Workbook

Sheet Index
A1: ='Input| Setup'!E5&" "&'Input| Escalations'!D8 -> Jemena Electricity 2026-27
B2: AER Capex Forecast Model
B3: =IFERROR(MID(CELL("filename",A2),FIND("]",CELL("filename",A2))+1,255),"") -> Index | C3: Overall Check: | D3: ='Model Validation'!$C$5 -> 0 | E3: NOTE: if there is an error code here you can unhide the Model Validation tab to help you identify the error source.
B5: A guide to the cell colours used in this workbook
B7: Input | C7: This is where you must enter data. Green cells are in all of the green worksheets, and not in any other worksheet.
B8: Input - optional | C8: Entering data into these cells is optional. Most relate to decisions you make about the forecasting and allocation of capitalised overheads.
B9: Do not edit cell | C9: =" These cells are found in table "&LEFT('Input| Escalations'!B22,2)&" only. They cover a dynamic that depends on your selection of base year for inputs. Please only enter data in the green cells." -> These cells are found in table 12 only. They cover a dynamic that depends on your selection of base year for inputs. Please only enter data in the green cells.
B10: Formula - do not edit | C10: These cells have formulas and validations in them, including when they appear blank. Please do not edit these cells. All cells in the blue and orange worksheets are this type.
B11: Jemena addition
B12: Worksheet summary
B14: Worksheet name (links) | C14: Check | E14: Input required? | G14: Description
B15: =IFERROR('Input| Setup'!B3,"") -> Input| Setup | C15: N/A | E15: Y | G15: Sets up the model with relevant years and output categories
B16: =IFERROR('Input| Escalations'!B3,"") -> Input| Escalations | C16: N/A | E16: Y | G16: Sets up the inflation and labour escalations
B17: =IFERROR('Input| JEN Mapping'!C3,"") -> Input| JEN Mapping | C17: N/A | E17: Y | G17: Sets up additional mapping for JEN direct costs
B18: =IFERROR('Input| Projects'!C3,"") -> Input| Projects | C18: ='Model Validation'!C10 -> 0 | E18: Y | G18: Forecast direct costs and other relevant forecast parameters are entered here.
B19: =IFERROR('Input| Disposals'!C3,"") -> Input| Disposals | C19: ='Model Validation'!C11 -> 0 | E19: Y | G19: Input for forecast disposals by PTRM category.
B20: =IFERROR('Input| Type 2 capcons'!B3,"") -> Input| Type 2 capcons | C20: ='Model Validation'!C12 -> 0 | E20: Y | G20: ="Input for type 2 capital contributions (a definition is given at table "&LEFT('Input| Type 2 capcons'!B5,2)&")" -> Input for type 2 capital contributions (a definition is given at table 24)
B21: =IFERROR('Input| Expensing'!B3,"") -> Input| Expensing | C21: ='Model Validation'!C13 -> 0 | E21: Y | G21: Input for forecast immediate expensing by PTRM category.
B22: =IFERROR('Input| Historical Capex'!B3,"") -> Input| Historical Capex | C22: ='Model Validation'!C14 -> 0 | E22: Y | G22: Input for historical direct costs
B23: =IFERROR('Input| Overheads'!B3,"") -> Input| Overheads | C23: ='Model Validation'!C15 -> 0 | E23: Y | G23: Input tables used to calculate forecast capitalised overheads.
B24: =IFERROR('Calc| Overheads Allocation'!B3,"") -> Calc| Overheads Allocation | C24: ='Model Validation'!C16 -> 0 | E24: N | G24: Calculation tables for forecast capitalised overheads and yearly allocation rates.
B25: =IFERROR('Calc| Project Costs'!C3,"") -> Calc| Project Costs | C25: ='Model Validation'!C17 -> 0 | E25: N | G25: Calculation tables for forecast capex outputs.
B26: =IFERROR('Output| PTRM (D)'!C3,"") -> Output| PTRM (D) | C26: ='Model Validation'!C18 -> 0 | E26: N | G26: Produces forecast capex and immediate expensing tables in PTRM format for distribution assets.
B27: =IFERROR('Output| PTRM (T)'!C3,"") -> Output| PTRM (T) | C27: ='Model Validation'!C19 -> 0 | E27: N | G27: Hidden tab. Produces forecast capex and immediate expensing tables in PTRM format for transmission assets.
B28: Output| RFM JEN | C28: ='Model Validation'!C20 -> 0 | E28: N | G28: Produces historical and forecast capex tables in RFM format for distribution assets.
B29: =IFERROR('Output| RIN'!B3,"") -> Output| RIN | C29: ='Model Validation'!C21 -> 0 | E29: N | G29: Produces forecast capex tables analogous to Reset RIN table 2.1.1.
B30: Output| JEN | C30: ='Model Validation'!C22 -> 0 | E30: N | G30: Produces specific historical and forecast capex tables
B31: =IFERROR('Output| AER'!B3,"") -> Output| AER | C31: ='Model Validation'!C23 -> 0 | E31: N | G31: Produces forecast capex by capex drivers that align with AER's standard assessment approach.
B32: =IFERROR('Model Validation'!B3,"") -> Model Validation | C32: ='Model Validation'!C5 -> 0 | E32: N | G32: Compiles all validation cells in the model to facilitate troubleshooting.
B34: Table listing and description
B36: Table name | C36: Worksheet | E36: Input required? | G36: Description
B37: ='Input| Setup'!A5 -> 1. Business name | C37: =B15 -> Input| Setup | E37: Y | G37: Please enter your business name. This is shown in cell A1 in each worksheet in the model.
B38: ='Input| Setup'!B7 -> 2. Financial years | C38: =B15 -> Input| Setup | E38: N | G38: ="Provides reference range for FY drop-down boxes, based on your input in table "&LEFT(B46,2)&"." -> Provides reference range for FY drop-down boxes, based on your input in table 10.
B39: ='Input| Setup'!B18 -> 3. RIN categories | C39: =B15 -> Input| Setup | E39: N | G39: Aligns with Reset RIN table 2.1.1.
B40: ='Input| Setup'!B28 -> 4. AER categories | C40: =B15 -> Input| Setup | E40: N | G40: Aligns with AER's current assessment categories.
B41: ='Input| Setup'!B39 -> 5. Months | C41: =B15 -> Input| Setup | E41: N | G41: Provides reference range for month drop-down boxes (i.e. June for end-year and December for mid-year).
B42: ='Input| Setup'!B44 -> 6. Overhead switch | C42: =B15 -> Input| Setup | E42: N | G42: ="Assigns yes or no response in table "&LEFT(B54,2)&" as to whether the project attracts capitalised overheads." -> Assigns yes or no response in table 18 as to whether the project attracts capitalised overheads.
B43: ='Input| Setup'!B48 -> 7. Distribution/transmission switch | C43: =C42 -> Input| Setup | E43: N | G43: ="Assigns Distribution or Transmission response in table "&LEFT(B45,1)&"." -> Assigns Distribution or Transmission response in table 9.
B44: ='Input| Setup'!B52 -> 8. Overhead allocation method | C44: =C43 -> Input| Setup | E44: N | G44: ="Assigns the methodology for allocating overheads in table "&LEFT(B71,2)&"." -> Assigns the methodology for allocating overheads in table 35.
B45: ='Input| Setup'!E7 -> 9. PTRM asset classes | C45: =B15 -> Input| Setup | E45: Y | G45: Please enter your PTRM classes.
B46: ='Input| Escalations'!B5 -> 10. Inflation table setup | C46: =B16 -> Input| Escalations | E46: Y | G46: Please enter the first year of the forecast regulatory control period, and the real year basis for cost inputs. Please ensure it is in YYYY-YY format
B47: ='Input| Escalations'!B12 -> 11. Inflation | C47: =C46 -> Input| Escalations | E47: Y | G47: Calculates CPI escalators. Please enter CPI (year-on-year change, lagged 12-months).
B48: ='Input| Escalations'!B22 -> 12. Forecast real price escalation | C48: =C47 -> Input| Escalations | E48: N | G48: Calculates real price escalators. Please enter forecast yearly escalation for internal labour, contract labour and non-labour.
B49: ='Input| Projects'!C7 -> 13. Project Details | C49: =B18 -> Input| Projects | E49: Y | G49: Please enter full list of forecast projects and programs. The 'Unique ID' input refers to your own internal project code.
B50: ='Input| Projects'!F7 -> 14. RIN and optional DNSP mapping categories | C50: =B18 -> Input| Projects | E50: Y | G50: Please allocate project to a RIN category. You can also add a DNSP-defined category for your internal validation purposes (optional), but note this will not map to an output table.
B51: ='Input| Projects'!I7 -> 15. Unescalated direct costs (excluding type 2 capital contributions) ($'000s 2023-24 December) | C51: =B18 -> Input| Projects | E51: Y | G51: ="Please enter annual forecast direct capex for each project and in real dollars as set out in table "&LEFT(B46,2)&". Where applicable, rebates are to be included in gross connections capex. For clarity, 'direct costs' means all costs excluding capitalised overheads." -> Please enter annual forecast direct capex for each project and in real dollars as set out in table 10. Where applicable, rebates are to be included in gross connections capex. For clarity, 'direct costs' means all costs excluding capitalised overheads.
B52: ='Input| Projects'!R7 -> 16. Type 1 capital contributions included in table 15 ($'000s 2023-24 December) | C52: =C51 -> Input| Projects | E52: Y | G52: ="Please enter total type 1 capital contributions, as defined in table "&LEFT(B60,2)&"." -> Please enter total type 1 capital contributions, as defined in table 24.
B53: ='Input| Projects'!Z7 -> 17. Cost components as % of direct costs | C53: =B18 -> Input| Projects | E53: Y | G53: Please enter the proportion of internal labour, contract labour and non-labour costs to total direct costs for each project (average over regulatory control period).
B54: ='Input| Projects'!AD7 -> 18. Capitalised overheads allocation | C54: =B18 -> Input| Projects | E54: Y | G54: Please indicate whether each project attracts capitalised network and/or corporate overheads.
B55: ='Input| Projects'!AG7 -> 19. Allocation of capitalised overheads - DNSP defined | C55: =C54 -> Input| Projects | E55: optional | G55: The model allows for allocation of overheads by direct costs, internal labour or a custom allocation method. Please complete this table only if you wish to do a custom allocation method.
B56: ='Input| Projects'!AJ7 -> 20. AER categories as % of direct costs (i.e. total costs reported in table 15, excluding capitalised overheads) | C56: =B18 -> Input| Projects | E56: Y | G56: Please enter the proportion of directs costs for each project and program to be allocated to each AER category.
B57: ='Input| Projects'!AT7 -> 21. PTRM asset classes as % of direct costs (i.e. total costs reported in table 15, excluding capitalised overheads) | C57: =B18 -> Input| Projects | E57: Y | G57: Please enter the proportion of directs costs for each project and program to be allocated to each PTRM asset class.
B58: ='Input| Disposals'!D5 -> 22. Forecast asset disposals ($'000s 2023-24 December) | C58: =B19 -> Input| Disposals | E58: Y | G58: Please enter your forecast asset disposals by PTRM asset class.
B59: ='Input| Disposals'!O5 -> 23. Forecast asset disposals ($'000s June 2026) | C59: =B19 -> Input| Disposals | E59: N | G59: ="Converts table "&LEFT(B58,2)&" data to correct real year basis." -> Converts table 22 data to correct real year basis.
B60: ='Input| Type 2 capcons'!B5 -> 24. Forecast type 2 capital contributions ($'000s 2023-24 December) | C60: =B20 -> Input| Type 2 capcons | E60: Y | G60: Please enter your forecast type 2 capital contributions by RIN category. The definitions for type 1 and type 2 capcons are given at this table.
B61: ='Input| Type 2 capcons'!B22 -> 25. Cost components of type 2 capital contributions | C61: =B20 -> Input| Type 2 capcons | E61: Y | G61: Please enter internal labour, contract labour and non-labour costs as a proportion of forecast type 2 capcons.
B62: ='Input| Type 2 capcons'!B28 -> 26. Real price escalators for type 2 capital contributions | C62: =B20 -> Input| Type 2 capcons | E62: N | G62: ="Calculates real price escalation based on the inputs from table "&LEFT(B61,2)&"." -> Calculates real price escalation based on the inputs from table 25.
B63: ='Input| Type 2 capcons'!B34 -> 27. Forecast type 2 capital contributions, escalated ($'000s June 2026) | C63: =B20 -> Input| Type 2 capcons | E63: N | G63: ="Converts table "&LEFT(B60,2)&" data to correct escalated, real year basis." -> Converts table 24 data to correct escalated, real year basis.
B64: ='Input| Expensing'!C5 -> 28. Immediate expensing (% to be immediately expensed) | C64: =B21 -> Input| Expensing | E64: Y | G64: Please enter forecast immediate expensing of capex as a percentage of total gross capex by PTRM asset class.
B65: ='Input| Expensing'!M5 -> 29. Immediate expensing (% to be immediately expensed) - Distribution | C65: =B21 -> Input| Expensing | E65: N | G65: Filters the immediate expensing for distribution assets
B66: ='Input| Expensing'!W5 -> 30. Immediate expensing (% to be immediately expensed) - Transmission | C66: =B21 -> Input| Expensing | E66: N | G66: Filters the immediate expensing for transmission assets
B67: ='Input| Overheads'!B5 -> 31. Forecast capitalised overheads for current period | C67: =B23 -> Input| Overheads | E67: Y | G67: ="Please enter forecast costs for the current period. If costs for year 4 are actuals, please enter them in table "&LEFT(B69,2)&" only." -> Please enter forecast costs for the current period. If costs for year 4 are actuals, please enter them in table 33 only.
B68: ='Input| Overheads'!B13 -> 32. Forecast capitalised overheads for forecast period - alternative method | C68: =B23 -> Input| Overheads | E68: optional | G68: OPTIONAL: please enter unescalated capitalised overheads in this table only if you wish to enter a substitute forecast for capitalised overheads instead of the default methodology (i.e. based on historicals).
B69: ='Input| Overheads'!B21 -> 33. Historical expenditure (nominal) | C69: =B23 -> Input| Overheads | E69: Y | G69: Please enter historical actual gross capex in nominal terms. Do not enter any forecast/estimated current period capex.
B70: ='Input| Overheads'!B33 -> 34. Forecast cost components of capitalised overheads | C70: =B23 -> Input| Overheads | E70: Y | G70: Please enter internal labour, contract labour and non-labour costs as a proportion of capitalised overheads.
B71: ='Input| Overheads'!B40 -> 35. Select an overheads allocation method | C71: =B23 -> Input| Overheads | E71: Y | G71: Please specify method to allocate capitalised overheads: allocation by direct costs, internal labour or own method (if you select own method, than instructions will appear below your selection).
B72: ='Calc| Overheads Allocation'!B5 -> 36. Overheads rate to be applied to forecast escalated direct costs (%) | C72: =$B$24 -> Calc| Overheads Allocation | E72: N | G72: Rate at which capitalised overheads are allocated to costs attracting overheads for each project.
B73: ='Calc| Overheads Allocation'!B14 -> 37. Capitalised overheads ($'000s June 2026) | C73: =$B$24 -> Calc| Overheads Allocation | E73: N | G73: Inflates historical actual capitalised overheads from nominal to real regulatory base dollars using CPI.
B74: ='Calc| Overheads Allocation'!B19 -> 38. Total costs that attract capitalised overheads ($'000s June 2026) | C74: Calc| Overheads Allocation | E74: N | G74: Inflates historical actual costs that attracts capitalised overheads from nominal to real regulatory base dollars using CPI.
B75: ='Calc| Overheads Allocation'!B26 -> 39. Escalated costs that attract overheads ($'000s June 2026) | C75: Calc| Overheads Allocation | E75: N | G75: Default method of forecasting capitalised overheads: compiles forecast direct capex that attracts capitalised overheads.
B76: ='Calc| Overheads Allocation'!B31 -> 40. Escalated capitalised internal labour costs that attract overheads ($'000s June 2026) | C76: Calc| Overheads Allocation | E76: N | G76: Default method of forecasting capitalised overheads: compiles forecast capitalised internal labour that attracts capitalised overheads.
B77: ='Calc| Overheads Allocation'!B35 -> 41. Change in costs attracting capitalised overheads | C77: Calc| Overheads Allocation | E77: N | G77: Default method of forecasting capitalised overheads: calculates the change in costs that attract capitalised overheads between current period actuals and forecast.
B78: ='Calc| Overheads Allocation'!B41 -> 42. Unescalated capitalised overheads ($'000s June 2026) | C78: Calc| Overheads Allocation | E78: N | G78: Default method of forecasting capitalised overheads: calculates forecast capitalised overheads based on the change in costs attracting overheads and assuming 25 per cent of capitalised overheads vary with changes in these costs.
B79: ='Calc| Overheads Allocation'!B47 -> 43. Annual unescalated capitalised overheads ($'000s June 2026) | C79: Calc| Overheads Allocation | E79: N | G79: ="Calculates annual forecast capitalised overheads either using data input by the distributor in table "&LEFT('Input| Overheads'!B21, 2)&" or based on the overhead rate calculated in table "&LEFT('Calc| Overheads Allocation'!B41,2)&"." -> Calculates annual forecast capitalised overheads either using data input by the distributor in table 33 or based on the overhead rate calculated in table 42.
B80: ='Calc| Overheads Allocation'!B53 -> 44. Real cost escalation - cumulative | C80: Calc| Overheads Allocation | E80: N | G80: Calculates real cost escalation applicable to forecast capitalised overheads.
B81: ='Calc| Overheads Allocation'!B58 -> 45. Forecast capitalised overheads | C81: Calc| Overheads Allocation | E81: N | G81: Output: total forecast capitalised overheads to be allocated to gross capex.
B82: ='Calc| Project Costs'!F7 -> 46. Direct unescalated costs, $000s ($2026 June) | C82: =$B$25 -> Calc| Project Costs | E82: N | G82: Inflates forecast direct costs from real base year for inputs to real regulatory base dollars using CPI.
B83: ='Calc| Project Costs'!N7 -> 47. Compound real cost escalation rates | C83: =$B$25 -> Calc| Project Costs | E83: N | G83: Calculates real price escalators for each project and program based on the proportion of internal labour, contract labour and non-labour costs to total gross direct capex.
B84: ='Calc| Project Costs'!V7 -> 48. Direct escalated costs ($'000s June 2026) | C84: =$B$25 -> Calc| Project Costs | E84: N | G84: Escalates direct costs using real price escalators.
B85: ='Calc| Project Costs'!AD7 -> 49. Direct escalated type 1 (cash) capcons ($'000s June 2026) | C85: Calc| Project Costs | E85: N | G85: Calculates escalated type 1 capital contributions.
B86: ='Calc| Project Costs'!AL7 -> 50. Network overheads ($'000s June 2026) | C86: Calc| Project Costs | E86: N | G86: ="Applies overhead rate based on selection in table "&LEFT(B71,2)&" to calculate allocation of capitalised network overheads." -> Applies overhead rate based on selection in table 35 to calculate allocation of capitalised network overheads.
B87: ='Calc| Project Costs'!AT7 -> 51. Corporate overheads ($'000s June 2026) | C87: Calc| Project Costs | E87: N | G87: ="Applies overhead rate based on selection in table "&LEFT(B71,2)&" to calculate allocation of capitalised corporate overheads." -> Applies overhead rate based on selection in table 35 to calculate allocation of capitalised corporate overheads.
B88: ='Calc| Project Costs'!BB7 -> 52. Total capitalised overheads ($'000s June 2026) | C88: Calc| Project Costs | E88: N | G88: Sums the total capitalised overheads.
B89: ='Calc| Project Costs'!BJ7 -> 53. Total overheads allocated to type 1 contributions ($'000s June 2026) | C89: Calc| Project Costs | E89: N | G89: Calculates allocation of capitalised overheads to type 1 capital contributions.
B90: ='Calc| Project Costs'!BR7 -> 54. Total escalated costs (excl. type 2 capcons) ($'000s June 2026) | C90: =$B$25 -> Calc| Project Costs | E90: N | G90: Calculates escalated gross capex (excluding type 2 capital contributions) for input into PTRM table.
B91: ='Calc| Project Costs'!BZ7 -> 55. Allocation to distribution and transmission | C91: =$B$25 -> Calc| Project Costs | E91: N | G91: Calculates proportion of costs allocated to either distribution or transmission, based on the PTRM asset class.
B92: ='Output| PTRM (D)'!C5 -> 56. Forecast gross capital expenditure – as incurred ($millions June 2026) (Distribution) | C92: =$B$26 -> Output| PTRM (D) | E92: N | G92: Output - distribution: gross forecast capex by PTRM asset class.
B93: ='Output| PTRM (D)'!C60 -> 57. Forecast capital contributions – Type 1 – as incurred ($millions June 2026) (Distribution) | C93: =$B$26 -> Output| PTRM (D) | E93: N | G93: Output - distribution: forecast type 1 (cash) capital contributions by PTRM asset class.
B94: ='Output| PTRM (D)'!C115 -> 58. Forecast asset disposals – as incurred ($millions June 2026) (Distribution) | C94: =$B$26 -> Output| PTRM (D) | E94: N | G94: Output - distribution: forecast asset disposals by PTRM asset class.
B95: ='Output| PTRM (D)'!C170 -> 59. Forecast net capital expenditure – as incurred ($millions June 2026) (Distribution) | C95: =$B$26 -> Output| PTRM (D) | E95: N | G95: Output - distribution: net forecast capex by PTRM asset class.
B96: ='Output| PTRM (D)'!L5 -> 60. Forecast immediate expensing of capital expenditure – as incurred ($millions June 2026) (Distribution) | C96: =$B$26 -> Output| PTRM (D) | E96: N | G96: Output - distribution: immediate expensing of capex by PTRM asset class.
B97: ='Output| PTRM (T)'!C5 -> 61. Forecast gross capital expenditure – as incurred ($millions June 2026) (Transmission) | C97: =$B$27 -> Output| PTRM (T) | E97: N | G97: Output - transmission: gross forecast capex by PTRM asset class.
B98: ='Output| PTRM (T)'!C60 -> 62. Forecast capital contributions – Type 1 – as incurred ($millions June 2026) (Transmission) | C98: =$B$27 -> Output| PTRM (T) | E98: N | G98: Output - transmission: forecast type 1 (cash) capital contributions by PTRM asset class.
B99: ='Output| PTRM (T)'!C115 -> 63. Forecast asset disposals – as incurred ($millions June 2026) (Transmission) | C99: =$B$27 -> Output| PTRM (T) | E99: N | G99: Output - transmission: forecast asset disposals by PTRM asset class.
B100: ='Output| PTRM (T)'!C170 -> 64. Forecast net capital expenditure – as incurred ($millions June 2026) (Transmission) | C100: =$B$27 -> Output| PTRM (T) | E100: N | G100: Output - transmission: net forecast capex by PTRM asset class.
B101: ='Output| PTRM (T)'!L5 -> 65. Forecast immediate expensing of capital expenditure – as incurred ($millions June 2026) (Transmission) | C101: =$B$27 -> Output| PTRM (T) | E101: N | G101: Output - transmission: immediate expensing of capex by PTRM asset class.
B102: ='Output| RIN'!B5 -> 66. RIN capex drivers: forecast capex ($000s June 2026) | C102: =B29 -> Output| RIN | E102: N | G102: Output: forecast capex - including gifted assets - by RIN category.
B103: ='Output| AER'!B5 -> 67. AER categories: forecast capex ($000s June 2026) | C103: =B31 -> Output| AER | E103: N | G103: Output: forecast capex by AER category.

Sheet Change Log
B1: Capex model
B2: Change Log
B4: Model change log
C6: Starting model name ----> | D6: AER – SCS Capex model - draft decision - Jemena Electricity determination 2026-31.xlsm
C8: Model changes to above model
C10: Model sheet | D10: Reference | E10: Cell reference | F10: Type | G10: Legend | H10: Comments
C12: =SheetName('Input| Setup'!A1) -> Input| Setup | D12: 1 | E12: =CellReference('Input| Setup'!E16:F16) -> E16:F16 | F12: Input | H12: Added 'Concrete Poles' RAB asset class per the AER's draft decision
C15: Model sheet | D15: Reference | E15: Cell reference | F15: Type | G15: Legend | H15: Comments
C17: =SheetName('Input| Escalations'!$A$1) -> Input| Escalations | D17: =+D12+1 -> 2 | E17: =CellReference('Input| Escalations'!I26:O26) -> I26:O26 | F17: Input | H17: Update real labour escalation from updated Oxford Economics forecasts
C18: =SheetName('Input| Escalations'!$A$1) -> Input| Escalations | D18: =+D17+1 -> 3 | E18: =CellReference('Input| Escalations'!I27:O27) -> I27:O27 | F18: Input | H18: Inclusion of contract labour real escalation
C21: Model sheet | D21: Reference | E21: Cell reference | F21: Type | G21: Legend | H21: Comments
C23: =SheetName('Input| JEN Mapping'!$A$1) -> Input| JEN Mapping | D23: =D18+1 -> 4 | E23: =CellReference('Input| JEN Mapping'!C299:H336) -> C299:H336 | F23: Input | H23: Additional projects added with unique IDs and category data
C24: =SheetName('Input| JEN Mapping'!$A$1) -> Input| JEN Mapping | D24: =+D23+1 -> 5 | E24: F72:G72, F105:G105, F245:G245 | F24: Input | H24: Updated RIN category
C25: =SheetName('Input| JEN Mapping'!$A$1) -> Input| JEN Mapping | D25: =+D24+1 -> 6 | E25: =CellReference('Input| JEN Mapping'!I9:K336) -> I9:K336 | F25: Input | H25: Addition of columns for Data Centre status, Data Centre group, and flag for inclusion/exclusion
C26: =SheetName('Input| JEN Mapping'!$A$1) -> Input| JEN Mapping | D26: =+D25+1 -> 7 | E26: =CellReference('Input| JEN Mapping'!O7:P33) -> O7:P33 | F26: Input | H26: Addition of mapping tables for Data Centre status to group and inclusion/exclusion flags
C29: Model sheet | D29: Reference | E29: Cell reference | F29: Type | G29: Legend | H29: Comments
C31: =SheetName('Input| Projects'!$A$1) -> Input| Projects | D31: =+D26+1 -> 8 | E31: =CellReference('Input| Projects'!I6:I336)&", "&CellReference('Input| Projects'!R10:R336) -> I6:I336, R10:R336 | F31: Deletion | H31: Remove FY25 forecast data
C32: =SheetName('Input| Projects'!$A$1) -> Input| Projects | D32: =+D31+1 -> 9 | E32: =CellReference('Input| Projects'!C10:G336) -> C10:G336 | F32: Input | H32: Minor updates to several existing project names and/or category data; additional projects added with unique IDs and category data
C33: =SheetName('Input| Projects'!$A$1) -> Input| Projects | D33: =+D32+1 -> 10 | E33: =CellReference('Input| Projects'!J10:O336) -> J10:O336 | F33: Input | H33: Updated inputs for capex forecast
C34: =SheetName('Input| Projects'!$A$1) -> Input| Projects | D34: =+D33+1 -> 11 | E34: =CellReference('Input| Projects'!P10:Q336) -> P10:Q336 | F34: Input | H34: Updates to data centre capital contribution percentages to align with the AER's draft decision
C37: Model sheet | D37: Reference | E37: Cell reference | F37: Type | G37: Legend | H37: Comments
C39: =SheetName('Input| Disposals'!$A$1) -> Input| Disposals | D39: =D34+1 -> 12 | E39: =CellReference('Input| Disposals'!D12) -> D12 | F39: Deletion | H39: Remove FY25 forecast data
C42: Model sheet | D42: Reference | E42: Cell reference | F42: Type | G42: Legend | H42: Comments
C44: =SheetName('Input| Type 2 capcons'!$A$1) -> Input| Type 2 capcons | D44: =+D39+1 -> 13 | E44: =CellReference('Input| Type 2 capcons'!C15:C18) -> C15:C18 | F44: Deletion | H44: Remove FY25 forecast data
C47: Model sheet | D47: Reference | E47: Cell reference | F47: Type | G47: Legend | H47: Comments
C49: =SheetName('Input| Historical Capex'!$A$1) -> Input| Historical Capex | D49: =+D44+1 -> 14 | E49: M9:M89, M116:M123, M148:M180 | F49: Input | H49: Inclusion of FY25 actual audited costs
C50: =SheetName('Input| Historical Capex'!$A$1) -> Input| Historical Capex | D50: =+D49+1 -> 15 | E50: M98:M108, M132:M140 | F50: Deletion | H50: Removal of 24-25 true up adjustment for 'as incurred' capital contributions
C51: =SheetName('Input| Historical Capex'!$A$1) -> Input| Historical Capex | D51: =+D50+1 -> 16 | E51: J66:L66, J74:L74, J80:L81, J116:L118 | F51: Input | H51: Updated FY22-24 capital contributions from 'as commissioned' to 'as incurred'
C52: =SheetName('Input| Historical Capex'!$A$1) -> Input| Historical Capex | D52: 17 | E52: B76, B112 | F52: Input | H52: Section headers updated from 'as commissioned' to 'as incurred'
C55: Model sheet | D55: Reference | E55: Cell reference | F55: Type | G55: Legend | H55: Comments
C57: =SheetName('Input| Overheads'!$A$1) -> Input| Overheads | D57: =+D52+1 -> 18 | E57: =CellReference('Input| Overheads'!C8) -> C8 | F57: Deletion | H57: Remove FY25 forecast data
C58: =SheetName('Input| Overheads'!$A$1) -> Input| Overheads | D58: =+D57+1 -> 19 | E58: =CellReference('Input| Overheads'!D8) -> D8 | F58: Formula | H58: FY26 forecast updated to alternative overheads formula, applying 50% fixed and 50% variable forecast approach
C59: =SheetName('Input| Overheads'!$A$1) -> Input| Overheads | D59: =+D58+1 -> 20 | E59: =CellReference('Input| Overheads'!E16:I16) -> E16:I16 | F59: Formula | H59: FY27-31 forecast updated to alternative overheads formula, applying 50% fixed and 50% variable forecast approach
C60: =SheetName('Input| Overheads'!$A$1) -> Input| Overheads | D60: =+D59+1 -> 21 | E60: =CellReference('Input| Overheads'!F24:F30) -> F24:F30 | F60: Input | H60: Inclusion of FY25 actual audited costs
C63: Model sheet | D63: Reference | E63: Cell reference | F63: Type | G63: Legend | H63: Comments
C65: =SheetName('Calc| Project Costs'!$A$1) -> Calc| Project Costs | D65: =+D60+1 -> 22 | E65: =CellReference('Calc| Project Costs'!X10:AB1009) -> X10:AB1009 | F65: Formula | H65: Formula updated to apply Data Centre inclusion/exclusion flag from Input|JEN Mapping, where all speculative data centre projects are excluded from the forecast
C66: =SheetName('Calc| Project Costs'!$A$1) -> Calc| Project Costs | D66: =+D65+1 -> 23 | E66: =CellReference('Calc| Project Costs'!AF10:AJ1009) -> AF10:AJ1009 | F66: Formula | H66: Formula updated to apply Data Centre inclusion/exclusion flag from Input|JEN Mapping
C67: =SheetName('Calc| Project Costs'!$A$1) -> Calc| Project Costs | D67: =+D66+1 -> 24 | E67: =CellReference('Calc| Project Costs'!X8:AB8) -> X8:AB8 | F67: Formula | H67: Check updated to include impact of Data Centre inclusion/exclusion flag from Input|JEN Mapping
C68: =SheetName('Calc| Project Costs'!$A$1) -> Calc| Project Costs | D68: =+D67+1 -> 25 | E68: =CellReference('Calc| Project Costs'!AF8:AJ8) -> AF8:AJ8 | F68: Formula | H68: Check updated to include impact of Data Centre inclusion/exclusion flag from Input|JEN Mapping
C71: Model sheet | D71: Reference | E71: Cell reference | F71: Type | G71: Legend | H71: Comments
C73: =SheetName('Output| RFM (JEN)'!$A$1) -> Output| RFM (JEN) | D73: =+D68+1 -> 26 | E73: =CellReference('Output| RFM (JEN)'!I8:I169)&", "&CellReference('Output| RFM (JEN)'!T6:T16) -> I8:I169, T6:T16 | F73: Formula | H73: Formula updated to lookup historical data instead of forecast for FY25. Check removed for columns that are now historical.
C76: Model sheet | D76: Reference | E76: Cell reference | F76: Type | G76: Legend | H76: Comments
C78: =SheetName('Output| RIN'!$A$1) -> Output| RIN | D78: =D73+1 -> 27 | E78: =CellReference('Output| RIN'!C9:C21) -> C9:C21 | F78: Deletion | H78: Remove FY25 forecast data
C81: Model sheet | D81: Reference | E81: Cell reference | F81: Type | G81: Legend | H81: Comments
C83: =SheetName('Output| JEN'!$A$1) -> Output| JEN | D83: =+D78+1 -> 28 | E83: Rows 41,60,85,126 | F83: Formula | H83: Addition of Concrete Poles RAB asset class and lookup for associated data
C86: Model sheet | D86: Reference | E86: Cell reference | F86: Type | G86: Legend | H86: Comments
C88: =SheetName('Output| AER'!$A$1) -> Output| AER | D88: =+D83+1 -> 29 | E88: =CellReference('Output| AER'!A26:J41) -> A26:J41 | F88: Addition | H88: New table added for Net Capex by AER category
B91: End

Sheet Input| Setup
A1: ='Input| Setup'!E5&" "&'Input| Escalations'!D8 -> Jemena Electricity 2026-27
B2: =IFERROR(Index!B2,"") -> AER Capex Forecast Model | C2: Key: | E2: Input | F2: Formula - do not edit | G2: JEN - RP
B3: =IFERROR(MID(CELL("filename",A2),FIND("]",CELL("filename",A2))+1,255),"") -> Input| Setup
A5: 1. Business name | E5: Jemena Electricity
B7: =LEFT(A5,1)+1&". Financial years" -> 2. Financial years | E7: =LEFT(B52,1)+1&". PTRM asset classes" -> 9. PTRM asset classes | F7: Distribution or transmission
B8: =LEFT(B9,4)-1&"-"&RIGHT(B9,2)-1 -> 2019-20 | D8: 1 | E8: Subtransmission | F8: Dx
B9: 2020-21 | D9: =D8+1 -> 2 | E9: Distribution system assets | F9: Dx
B10: 2021-22 | D10: 3 | E10: SCADA/Network control | F10: Dx
B11: 2022-23 | D11: 4 | E11: Non network - IT | F11: Dx
B12: 2023-24 | D12: 5 | E12: Non network - other | F12: Dx
B13: 2024-25 | D13: 6 | E13: Land | F13: Dx
B14: 2025-26 | D14: 7 | E14: In-house software | F14: Dx
B15: ='Input| Escalations'!D8 -> 2026-27 | D15: 8 | E15: Buildings - capital works | F15: Dx
D16: 9 | E16: Concrete poles | F16: Dx
D17: 10
B18: =LEFT(B7,1)+1&". RIN categories" -> 3. RIN categories | D18: 11
B19: Replacement | D19: 12
B20: Augmentation | D20: 13
B21: Connections | D21: 14
B22: Non network - IT | D22: 15
B23: Non network - other | D23: 16
B24: Network Overheads | D24: 17
B25: Corporate Overheads | D25: 18
D26: 19
D27: 20
B28: =LEFT(B18,1)+1&". AER categories" -> 4. AER categories | D28: 21
B29: Replacement | D29: 22
B30: DER/CER capex | D30: 23
B31: Augmentation | D31: 24
B32: Connections | D32: 25
B33: ICT capex | D33: 26
B34: Property capex | D34: 27
B35: Fleet capex | D35: 28
B36: Other non-network capex | D36: 29
B37: Network resilience | D37: 30
D38: 31
B39: =LEFT(B28,1)+1&". Months" -> 5. Months | D39: 32
B40: June | D40: 33
B41: December | D41: 34
D42: 35
D43: 36
B44: =LEFT(B39,1)+1&". Overhead switch" -> 6. Overhead switch | D44: 37
B45: Yes | D45: 38
B46: No | D46: 39
D47: 40
B48: =LEFT(B44,1)+1&". Distribution/transmission switch" -> 7. Distribution/transmission switch | D48: 41
B49: Dx | D49: 42
B50: Tx | D50: 43
D51: 44
B52: =LEFT(B48,1)+1&". Overhead allocation method" -> 8. Overhead allocation method | D52: 45
B53: Direct costs | D53: 46
B54: Internal labour | D54: 47
B55: DNSP defined | D55: 48
D56: 49
D57: 50

Sheet Input| Escalations
A1: ='Input| Setup'!E5&" "&'Input| Escalations'!D8 -> Jemena Electricity 2026-27
B2: =IFERROR(Index!B2,"") -> AER Capex Forecast Model | D2: Key: | E2: Input | F2: Do not edit cell | I2: Formula - do not edit | L2: Jemena addition | N2: AER draft decision | P2: JEN - RP
B3: =IFERROR(MID(CELL("filename",A2),FIND("]",CELL("filename",A2))+1,255),"") -> Input| Escalations
B5: =LEFT('Input| Setup'!E7,1)+1&". Inflation table setup" -> 10. Inflation table setup
D7: Year | E7: Month
B8: First year of forecast regulatory control period (YYYY-YY) | D8: 2026-27
B9: Base year for inputs | D9: 2023-24 | E9: December
B10: Base year for outputs | D10: =IFERROR(LEFT(D8,4),"") -> 2026 | E10: June
B12: =LEFT(B5,2)+1&". Inflation" -> 11. Inflation | D12: NOTE: please use a one year-lagged CPI series.
D14: CY20 | E14: HY21 | F14: =IFERROR((LEFT(G14,4)-1&IF(MID(G14,5,1)="","","-"&TEXT(MOD(MID(G14,6,2)-1,100),"00"))),"") -> 2021-22 | G14: =IFERROR((LEFT(H14,4)-1&IF(MID(H14,5,1)="","","-"&TEXT(MOD(MID(H14,6,2)-1,100),"00"))),"") -> 2022-23 | H14: =IFERROR((LEFT(I14,4)-1&IF(MID(I14,5,1)="","","-"&TEXT(MOD(MID(I14,6,2)-1,100),"00"))),"") -> 2023-24 | I14: =IFERROR((LEFT(J14,4)-1&IF(MID(J14,5,1)="","","-"&TEXT(MOD(MID(J14,6,2)-1,100),"00"))),"") -> 2024-25 | J14: =IFERROR((LEFT(K14,4)-1&IF(MID(K14,5,1)="","","-"&TEXT(MOD(MID(K14,6,2)-1,100),"00"))),"") -> 2025-26 | K14: =D8 -> 2026-27 | L14: =E10&" "&D10 -> June 2026
B15: CPI year on year change (%) - lagged one year (actual/estimate) | D15: 0.01592920354 | E15: 0.01219512195 | F15: 0.008605851979 | G15: 0.03498293515 | H15: 0.07831821929 | I15: 0.04051987768 | J15: 0.0242468773
B16: =E10&" "&D10&" estimate" -> June 2026 estimate
B17: Cumulative Inflation Index | D17: 1 | E17: =IFERROR(1+E15,"") -> 1.012195122 | F17: =IFERROR(E17*(1+F15),"") -> 1.020905923 | G17: =F17*(1+G15) -> 1.056620209 | H17: =G17*(1+H15) -> 1.139372822 | I17: =H17*(1+I15) -> 1.18554007 | J17: =I17*(1+J15) -> 1.214285714
B18: =IFERROR("Index: Nominal "&E9&" to "& "Real "&D10 &" "&LEFT(E10,9),"") -> Index: Nominal December to Real 2026 June | D18: =INDEX($D$17:$K$17,MATCH($D$10- 1,_xlfn.NUMBERVALUE(LEFT($D$14:$K$14,4)),0))/D$17*(1+D$15)^IF($E$9='Input| Setup'!$B$41,0.5,0) -> 1.223918806 | E18: =INDEX($D$17:$K$17,MATCH($D$10- 1,_xlfn.NUMBERVALUE(LEFT($D$14:$K$14,4)),0))/E$17*(1+E$15)^IF($E$9='Input| Setup'!$B$41,0.5,0) -> 1.206948573 | F18: =INDEX($D$17:$K$17,MATCH($D$10- 1,_xlfn.NUMBERVALUE(LEFT($D$14:$K$14,4)),0))/F$17*(1+F$15)^IF($E$9='Input| Setup'!$B$41,0.5,0) -> 1.194526817 | G18: =INDEX($D$17:$K$17,MATCH($D$10- 1,_xlfn.NUMBERVALUE(LEFT($D$14:$K$14,4)),0))/G$17*(1+G$15)^IF($E$9='Input| Setup'!$B$41,0.5,0) -> 1.169145514 | H18: =INDEX($D$17:$K$17,MATCH($D$10- 1,_xlfn.NUMBERVALUE(LEFT($D$14:$K$14,4)),0))/H$17*(1+H$15)^IF($E$9='Input| Setup'!$B$41,0.5,0) -> 1.10669641 | I18: =INDEX($D$17:$K$17,MATCH($D$10- 1,_xlfn.NUMBERVALUE(LEFT($D$14:$K$14,4)),0))/I$17*(1+I$15)^IF($E$9='Input| Setup'!$B$41,0.5,0) -> 1.044792002 | J18: =INDEX($D$17:$K$17,MATCH($D$10- 1,_xlfn.NUMBERVALUE(LEFT($D$14:$K$14,4)),0))/J$17*(1+J$15)^IF($E$9='Input| Setup'!$B$41,0.5,0) -> 1.012050827
B19: =IFERROR("Real "&D9 &" "&LEFT(E9,9)&" to "& "Real "&D10 &" "&LEFT(E10,9),"") -> Real 2023-24 December to Real 2026 June | L19: =INDEX(E14:K18,5,MATCH(D9,E14:K14)) -> 1.10669641
B20: Cumulative Inflation Index (Real 2021 to Real 2026) | E20: 1 | F20: =IFERROR(E20*(1+F15),"") -> 1.008605852 | G20: =IFERROR(F20*(1+G15),"") -> 1.043889845 | H20: =IFERROR(G20*(1+H15),"") -> 1.125645439 | I20: =IFERROR(H20*(1+I15),"") -> 1.171256454 | J20: =IFERROR(I20*(1+J15),"") -> 1.199655766
B22: =LEFT(B12,2)+1&". Forecast real price escalation" -> 12. Forecast real price escalation | E22: =IF(E9="June","NOTE: because you selected "&D9&" "&E9&" for inputs, please ensure you enter 6-month escalations for "&(LEFT(D9,4)+1&IF(MID(D9,5,1)="","","-"&TEXT(MOD(MID(D9,6,2)+1,100),"00"))),"") -> 
E24: =IF(C14<$D$9,"",E14) ->  | G24: =IF(F14<$D$9,"",G14) ->  | H24: =IF(G14<$D$9,"",H14) ->  | I24: =IF(H14<$D$9,"",I14) -> 2024-25 | J24: =IF(I14<$D$9,"",J14) -> 2025-26 | K24: =K14 -> 2026-27 | L24: =IFERROR((LEFT(K24,4)+1&IF(MID(K24,5,1)="","","-"&TEXT(MOD(MID(K24,6,2)+1,100),"00"))),"") -> 2027-28 | M24: =IFERROR((LEFT(L24,4)+1&IF(MID(L24,5,1)="","","-"&TEXT(MOD(MID(L24,6,2)+1,100),"00"))),"") -> 2028-29 | N24: =IFERROR((LEFT(M24,4)+1&IF(MID(M24,5,1)="","","-"&TEXT(MOD(MID(M24,6,2)+1,100),"00"))),"") -> 2029-30 | O24: =IFERROR((LEFT(N24,4)+1&IF(MID(N24,5,1)="","","-"&TEXT(MOD(MID(N24,6,2)+1,100),"00"))),"") -> 2030-31
B25: Annual escalation
B26: Internal labour | I26: 0.01825166827 | J26: 0.01276076614 | K26: 0.008120818073 | L26: 0.009550582168 | M26: 0.0111993349 | N26: 0.01227436192 | O26: 0.01202541615
B27: Contract labour | I27: =I26 -> 0.01825166827 | J27: =J26 -> 0.01276076614 | K27: =K26 -> 0.008120818073 | L27: 0.009550582168 | M27: 0.0111993349 | N27: 0.01227436192 | O27: 0.01202541615
B28: Non-labour
B29: Index
B30: Internal labour | C30: 1 | E30: =IFERROR(C30*(1+E26),"") -> 1 | F30: =IFERROR(E30*(1+F26),"") -> 1 | G30: 1 | H30: 1 | I30: 1.018251668 | J30: 1.03124534 | K30: 1.039619895 | L30: 1.049548871 | M30: 1.06130312 | N30: 1.074329939 | O30: 1.087249203
B31: Contract labour | C31: 1 | E31: =IFERROR(C31*(1+E27),"") -> 1 | F31: =IFERROR(E31*(1+F27),"") -> 1 | G31: 1 | H31: 1 | I31: 1.018251668 | J31: 1.03124534 | K31: 1.039619895 | L31: 1.049548871 | M31: 1.06130312 | N31: 1.074329939 | O31: 1.087249203
B32: Non-labour | C32: 1 | E32: =IFERROR(C32*(1+E28),"") -> 1 | F32: =IFERROR(E32*(1+F28),"") -> 1 | G32: 1 | H32: 1 | I32: 1 | J32: 1 | K32: 1 | L32: 1 | M32: 1 | N32: 1 | O32: 1
B33: Cumulative
B34: Internal labour | E34: =IF(E30-1=0,0,E30-1) -> 0 | F34: 0 | G34: 0 | H34: =IF(H30-1=0,0,H30-1) -> 0 | I34: 0.01825166827 | J34: 0.03124533968 | K34: 0.03961989547 | L34: 0.04954887071 | M34: 0.06130312001 | N34: 0.07432993861 | O34: 0.08724920321
B35: Contract labour | E35: 0 | F35: 0 | G35: 0 | H35: 0 | I35: 0.01825166827 | J35: 0.03124533968 | K35: 0.03961989547 | L35: 0.04954887071 | M35: 0.06130312001 | N35: 0.07432993861 | O35: 0.08724920321
B36: Non-labour | E36: 0 | F36: 0 | G36: 0 | H36: 0 | I36: 0 | J36: 0 | K36: 0 | L36: 0 | M36: 0 | N36: 0 | O36: 0
E38: ="Note: the grey cells below the enable conditional formatting in table "&LEFT(B22,2)&". Do not delete." -> Note: the grey cells below the enable conditional formatting in table 12. Do not delete.
E39: =IF(AND(E24="",F24=""),1,"") -> 1 | F39: 1 | G39: 1
E40: =IF(E24="",0,"") -> 0 | F40: 0 | G40: 0 | H40: 0

Sheet Input| JEN Mapping
A1: ='Input| Setup'!E5&" "&'Input| Escalations'!D8 -> Jemena Electricity 2026-27
C2: =IFERROR(Index!B2,"") -> AER Capex Forecast Model | D2: Sheet Validation | E2: Key: | F2: Input | G2: Input - optional | H2: Formula - do not edit | I2: Jemena added sheet | J2: JEN - RP
C3: =IFERROR(MID(CELL("filename",B2),FIND("]",CELL("filename",B2))+1,255),"") -> Input| JEN Mapping
C7: =LEFT('Input| Escalations'!B22,2)+1&". Project Details" -> 13. Project Details | M7: RIN Mapping | O7: Data Centre Capex Mapping
C9: Project/Program Inputs | D9: Unique ID | F9: AER categories | G9: Simplified RIN Category | H9: IT Type | I9: DC Status | J9: DC Group | K9: Include/Not Include | M9: RIN categories (unique) | N9: Simplified RIN category | O9: DC categories (unique) | P9: In/Out
B10: 1 | C10: ='Input| Projects'!C10 -> Ampact Connectors | D10: ='Input| Projects'!D10 -> A444 | F10: Replacement | G10: =+_xlfn.IFNA(_xlfn.XLOOKUP('Input| Projects'!F10,$M$10:$M$20,$N$10:$N$20),"") -> Replacement | H10: Non-IT | I10: Not applicable | J10: =_xlfn.XLOOKUP(I10,$O$23:$O$33,$P$23:$P$33) -> n/a | K10: =_xlfn.XLOOKUP($I10,$O$10:$O$20,$P$10:$P$20,0) -> 1 | M10: Replacement | N10: Replacement | O10: Status 1 | P10: 0
B11: =IFERROR(B10+1,"") -> 2 | C11: ='Input| Projects'!C11 -> LV Line Clash Mitigation | D11: ='Input| Projects'!D11 -> A109 | F11: Replacement | G11: =+_xlfn.IFNA(_xlfn.XLOOKUP('Input| Projects'!F11,$M$10:$M$20,$N$10:$N$20),"") -> Replacement | H11: Non-IT | I11: Not applicable | J11: n/a | K11: 1 | M11: DER capex | N11: Replacement | O11: Status 2 | P11: 0
B12: =IFERROR(B11+1,"") -> 3 | C12: ='Input| Projects'!C12 -> Bird/Animal Proofing Net Assets | D12: ='Input| Projects'!D12 -> A110 | F12: Replacement | G12: =+_xlfn.IFNA(_xlfn.XLOOKUP('Input| Projects'!F12,$M$10:$M$20,$N$10:$N$20),"") -> Replacement | H12: Non-IT | I12: Not applicable | J12: n/a | K12: 1 | M12: Augmentation | N12: Augmentation | O12: Status 3 | P12: 0
B13: 4 | C13: ='Input| Projects'!C13 -> Trans Pole Mounted Repl | D13: ='Input| Projects'!D13 -> A140 | F13: Replacement | G13: =+_xlfn.IFNA(_xlfn.XLOOKUP('Input| Projects'!F13,$M$10:$M$20,$N$10:$N$20),"") -> Replacement | H13: Non-IT | I13: Not applicable | J13: n/a | K13: 1 | M13: Connections | N13: Connections | O13: Status 4 | P13: 0
B14: 5 | C14: ='Input| Projects'!C14 -> Trans Ground/Indoor Repl | D14: ='Input| Projects'!D14 -> A243 | F14: Replacement | G14: =+_xlfn.IFNA(_xlfn.XLOOKUP('Input| Projects'!F14,$M$10:$M$20,$N$10:$N$20),"") -> Replacement | H14: Non-IT | I14: Not applicable | J14: n/a | K14: 1 | M14: Non network - IT | N14: Non-network | O14: Status 5 | P14: 1
B15: 6 | C15: ='Input| Projects'!C15 -> Indoor/Kiosk Switch Repl | D15: ='Input| Projects'!D15 -> A143 | F15: Replacement | G15: =+_xlfn.IFNA(_xlfn.XLOOKUP('Input| Projects'!F15,$M$10:$M$20,$N$10:$N$20),"") -> Replacement | H15: Non-IT | I15: Not applicable | J15: n/a | K15: 1 | M15: Non network - other | N15: Non-network | O15: Status 6 | P15: 1
B16: 7 | C16: ='Input| Projects'!C16 -> LV Switchgear Replacement | D16: ='Input| Projects'!D16 -> A142 | F16: Replacement | G16: =+_xlfn.IFNA(_xlfn.XLOOKUP('Input| Projects'!F16,$M$10:$M$20,$N$10:$N$20),"") -> Replacement | H16: Non-IT | I16: Not applicable | J16: n/a | K16: 1 | M16: ICT capex | N16: Non-network | O16: Status 7 | P16: 1
B17: 8 | C17: ='Input| Projects'!C17 -> Gas Switch Replacement | D17: ='Input| Projects'!D17 -> A144 | F17: Replacement | G17: =+_xlfn.IFNA(_xlfn.XLOOKUP('Input| Projects'!F17,$M$10:$M$20,$N$10:$N$20),"") -> Replacement | H17: Non-IT | I17: Not applicable | J17: n/a | K17: 1 | M17: Property capex | N17: Non-network | O17: Status 8 | P17: 1
B18: 9 | C18: ='Input| Projects'!C18 -> HV Isolators Replacement | D18: ='Input| Projects'!D18 -> A147 | F18: Replacement | G18: =+_xlfn.IFNA(_xlfn.XLOOKUP('Input| Projects'!F18,$M$10:$M$20,$N$10:$N$20),"") -> Replacement | H18: Non-IT | I18: Not applicable | J18: n/a | K18: 1 | M18: Fleet capex | N18: Non-network | O18: Not applicable | P18: 1
B19: 10 | C19: ='Input| Projects'!C19 -> Transformer/Subs Kiosk Repl | D19: ='Input| Projects'!D19 -> A148 | F19: Replacement | G19: =+_xlfn.IFNA(_xlfn.XLOOKUP('Input| Projects'!F19,$M$10:$M$20,$N$10:$N$20),"") -> Replacement | H19: Non-IT | I19: Not applicable | J19: n/a | K19: 1 | M19: Other non-network capex | N19: Non-network | O19: Legacy | P19: 0
B20: 11 | C20: ='Input| Projects'!C20 -> LV Isolator Replacement | D20: ='Input| Projects'!D20 -> A149 | F20: Replacement | G20: =+_xlfn.IFNA(_xlfn.XLOOKUP('Input| Projects'!F20,$M$10:$M$20,$N$10:$N$20),"") -> Replacement | H20: Non-IT | I20: Not applicable | J20: n/a | K20: 1 | M20: Not applicable | N20: Not applicable | O20: Spare 1 | P20: 0
B21: 12 | C21: ='Input| Projects'!C21 -> Kiosk Refurbishment | D21: ='Input| Projects'!D21 -> A108 | F21: Replacement | G21: =+_xlfn.IFNA(_xlfn.XLOOKUP('Input| Projects'!F21,$M$10:$M$20,$N$10:$N$20),"") -> Replacement | H21: Non-IT | I21: Not applicable | J21: n/a | K21: 1
B22: 13 | C22: ='Input| Projects'!C22 -> Service Fault Replacement | D22: ='Input| Projects'!D22 -> A152 | F22: Replacement | G22: =+_xlfn.IFNA(_xlfn.XLOOKUP('Input| Projects'!F22,$M$10:$M$20,$N$10:$N$20),"") -> Replacement | H22: Non-IT | I22: Not applicable | J22: n/a | K22: 1 | O22: DC categories (unique) | P22: DC Group
B23: 14 | C23: ='Input| Projects'!C23 -> Replace Serv and Alter Terms | D23: ='Input| Projects'!D23 -> A153 | F23: Replacement | G23: =+_xlfn.IFNA(_xlfn.XLOOKUP('Input| Projects'!F23,$M$10:$M$20,$N$10:$N$20),"") -> Replacement | H23: Non-IT | I23: Not applicable | J23: n/a | K23: 1 | O23: Status 1 | P23: Enquiry
B24: 15 | C24: ='Input| Projects'!C24 -> Install Disconnect Device | D24: ='Input| Projects'!D24 -> A155 | F24: Replacement | G24: =+_xlfn.IFNA(_xlfn.XLOOKUP('Input| Projects'!F24,$M$10:$M$20,$N$10:$N$20),"") -> Replacement | H24: Non-IT | I24: Not applicable | J24: n/a | K24: 1 | O24: Status 2 | P24: Enquiry
B25: 16 | C25: ='Input| Projects'!C25 -> Replace Services - Planned | D25: ='Input| Projects'!D25 -> A156 | F25: Replacement | G25: =+_xlfn.IFNA(_xlfn.XLOOKUP('Input| Projects'!F25,$M$10:$M$20,$N$10:$N$20),"") -> Replacement | H25: Non-IT | I25: Not applicable | J25: n/a | K25: 1 | O25: Status 3 | P25: Enquiry
B26: 17 | C26: ='Input| Projects'!C26 -> HV Open Wire Conductor Repl | D26: ='Input| Projects'!D26 -> A159 | F26: Replacement | G26: =+_xlfn.IFNA(_xlfn.XLOOKUP('Input| Projects'!F26,$M$10:$M$20,$N$10:$N$20),"") -> Replacement | H26: Non-IT | I26: Not applicable | J26: n/a | K26: 1 | O26: Status 4 | P26: Enquiry
B27: 18 | C27: ='Input| Projects'!C27 -> LV Open Wire Conductor Repl | D27: ='Input| Projects'!D27 -> A164 | F27: Replacement | G27: =+_xlfn.IFNA(_xlfn.XLOOKUP('Input| Projects'!F27,$M$10:$M$20,$N$10:$N$20),"") -> Replacement | H27: Non-IT | I27: Not applicable | J27: n/a | K27: 1 | O27: Status 5 | P27: Firm offer
B28: 19 | C28: ='Input| Projects'!C28 -> Pole Replacement (Incl. Pole Top) - HV | D28: ='Input| Projects'!D28 -> A166 | F28: Replacement | G28: =+_xlfn.IFNA(_xlfn.XLOOKUP('Input| Projects'!F28,$M$10:$M$20,$N$10:$N$20),"") -> Replacement | H28: Non-IT | I28: Not applicable | J28: n/a | K28: 1 | O28: Status 6 | P28: In-flight
B29: 20 | C29: ='Input| Projects'!C29 -> Pole Replacement (Incl. Pole Top) - LV | D29: ='Input| Projects'!D29 -> A170 | F29: Replacement | G29: =+_xlfn.IFNA(_xlfn.XLOOKUP('Input| Projects'!F29,$M$10:$M$20,$N$10:$N$20),"") -> Replacement | H29: Non-IT | I29: Not applicable | J29: n/a | K29: 1 | O29: Status 7 | P29: In-flight
B30: 21 | C30: ='Input| Projects'!C30 -> Pole Replacement (Incl. Pole Top) - ST | D30: ='Input| Projects'!D30 -> A171 | F30: Replacement | G30: =+_xlfn.IFNA(_xlfn.XLOOKUP('Input| Projects'!F30,$M$10:$M$20,$N$10:$N$20),"") -> Replacement | H30: Non-IT | I30: Not applicable | J30: n/a | K30: 1 | O30: Status 8 | P30: In-flight
B31: 22 | C31: ='Input| Projects'!C31 -> Pole Reinforcement - HV | D31: ='Input| Projects'!D31 -> A32 | F31: Replacement | G31: =+_xlfn.IFNA(_xlfn.XLOOKUP('Input| Projects'!F31,$M$10:$M$20,$N$10:$N$20),"") -> Replacement | H31: Non-IT | I31: Not applicable | J31: n/a | K31: 1 | O31: Not applicable | P31: n/a
B32: 23 | C32: ='Input| Projects'!C32 -> Pole Reinforcement - LV | D32: ='Input| Projects'!D32 -> A175 | F32: Replacement | G32: =+_xlfn.IFNA(_xlfn.XLOOKUP('Input| Projects'!F32,$M$10:$M$20,$N$10:$N$20),"") -> Replacement | H32: Non-IT | I32: Not applicable | J32: n/a | K32: 1 | O32: Legacy | P32: n/a
B33: 24 | C33: ='Input| Projects'!C33 -> Pole Reinforcement - ST | D33: ='Input| Projects'!D33 -> A177 | F33: Replacement | G33: =+_xlfn.IFNA(_xlfn.XLOOKUP('Input| Projects'!F33,$M$10:$M$20,$N$10:$N$20),"") -> Replacement | H33: Non-IT | I33: Not applicable | J33: n/a | K33: 1 | O33: Spare 1 | P33: n/a
B34: 25 | C34: ='Input| Projects'!C34 -> HV U/G Cable Replacement | D34: ='Input| Projects'!D34 -> A208 | F34: Replacement | G34: =+_xlfn.IFNA(_xlfn.XLOOKUP('Input| Projects'!F34,$M$10:$M$20,$N$10:$N$20),"") -> Replacement | H34: Non-IT | I34: Not applicable | J34: n/a | K34: 1
B35: 26 | C35: ='Input| Projects'!C35 -> LV U/G Cable Replacement | D35: ='Input| Projects'!D35 -> A210 | F35: Replacement | G35: =+_xlfn.IFNA(_xlfn.XLOOKUP('Input| Projects'!F35,$M$10:$M$20,$N$10:$N$20),"") -> Replacement | H35: Non-IT | I35: Not applicable | J35: n/a | K35: 1
B36: 27 | C36: ='Input| Projects'!C36 -> Pillar to Pillar | D36: ='Input| Projects'!D36 -> A211 | F36: Replacement | G36: =+_xlfn.IFNA(_xlfn.XLOOKUP('Input| Projects'!F36,$M$10:$M$20,$N$10:$N$20),"") -> Replacement | H36: Non-IT | I36: Not applicable | J36: n/a | K36: 1
B37: 28 | C37: ='Input| Projects'!C37 -> HV U/G Termination Replacement | D37: ='Input| Projects'!D37 -> A239 | F37: Replacement | G37: =+_xlfn.IFNA(_xlfn.XLOOKUP('Input| Projects'!F37,$M$10:$M$20,$N$10:$N$20),"") -> Replacement | H37: Non-IT | I37: Not applicable | J37: n/a | K37: 1
B38: 29 | C38: ='Input| Projects'!C38 -> LV U/G Termination Replacement | D38: ='Input| Projects'!D38 -> A213 | F38: Replacement | G38: =+_xlfn.IFNA(_xlfn.XLOOKUP('Input| Projects'!F38,$M$10:$M$20,$N$10:$N$20),"") -> Replacement | H38: Non-IT | I38: Not applicable | J38: n/a | K38: 1
B39: 30 | C39: ='Input| Projects'!C39 -> Surge Diverter Replacement | D39: ='Input| Projects'!D39 -> A216 | F39: Replacement | G39: =+_xlfn.IFNA(_xlfn.XLOOKUP('Input| Projects'!F39,$M$10:$M$20,$N$10:$N$20),"") -> Replacement | H39: Non-IT | I39: Not applicable | J39: n/a | K39: 1
B40: 31 | C40: ='Input| Projects'!C40 -> Fuse Unit Replacement | D40: ='Input| Projects'!D40 -> A217 | F40: Replacement | G40: =+_xlfn.IFNA(_xlfn.XLOOKUP('Input| Projects'!F40,$M$10:$M$20,$N$10:$N$20),"") -> Replacement | H40: Non-IT | I40: Not applicable | J40: n/a | K40: 1
B41: 32 | C41: ='Input| Projects'!C41 -> ST Insulators Replacement | D41: ='Input| Projects'!D41 -> A218 | F41: Replacement | G41: =+_xlfn.IFNA(_xlfn.XLOOKUP('Input| Projects'!F41,$M$10:$M$20,$N$10:$N$20),"") -> Replacement | H41: Non-IT | I41: Not applicable | J41: n/a | K41: 1
B42: 33 | C42: ='Input| Projects'!C42 -> HV Crossarms Replacement | D42: ='Input| Projects'!D42 -> A221 | F42: Replacement | G42: =+_xlfn.IFNA(_xlfn.XLOOKUP('Input| Projects'!F42,$M$10:$M$20,$N$10:$N$20),"") -> Replacement | H42: Non-IT | I42: Not applicable | J42: n/a | K42: 1
B43: 34 | C43: ='Input| Projects'!C43 -> HV Insulators Replacement | D43: ='Input| Projects'!D43 -> A227 | F43: Replacement | G43: =+_xlfn.IFNA(_xlfn.XLOOKUP('Input| Projects'!F43,$M$10:$M$20,$N$10:$N$20),"") -> Replacement | H43: Non-IT | I43: Not applicable | J43: n/a | K43: 1
B44: 35 | C44: ='Input| Projects'!C44 -> LV Crossarm Replacement | D44: ='Input| Projects'!D44 -> A228 | F44: Replacement | G44: =+_xlfn.IFNA(_xlfn.XLOOKUP('Input| Projects'!F44,$M$10:$M$20,$N$10:$N$20),"") -> Replacement | H44: Non-IT | I44: Not applicable | J44: n/a | K44: 1
B45: 36 | C45: ='Input| Projects'!C45 -> ST Crossarm Replacement | D45: ='Input| Projects'!D45 -> A241 | F45: Replacement | G45: =+_xlfn.IFNA(_xlfn.XLOOKUP('Input| Projects'!F45,$M$10:$M$20,$N$10:$N$20),"") -> Replacement | H45: Non-IT | I45: Not applicable | J45: n/a | K45: 1
B46: 37 | C46: ='Input| Projects'!C46 -> Overhead Line Fault Indicator Replacement | D46: ='Input| Projects'!D46 -> A381 | F46: Replacement | G46: =+_xlfn.IFNA(_xlfn.XLOOKUP('Input| Projects'!F46,$M$10:$M$20,$N$10:$N$20),"") -> Replacement | H46: Non-IT | I46: Not applicable | J46: n/a | K46: 1
B47: 38 | C47: ='Input| Projects'!C47 -> HV Line Clash Mitigation | D47: ='Input| Projects'!D47 -> A507 | F47: Replacement | G47: =+_xlfn.IFNA(_xlfn.XLOOKUP('Input| Projects'!F47,$M$10:$M$20,$N$10:$N$20),"") -> Replacement | H47: Non-IT | I47: Not applicable | J47: n/a | K47: 1
B48: 39 | C48: ='Input| Projects'!C48 -> Underground Routine Connections > 100A lab | D48: ='Input| Projects'!D48 -> A496 | F48: Connections | G48: =+_xlfn.IFNA(_xlfn.XLOOKUP('Input| Projects'!F48,$M$10:$M$20,$N$10:$N$20),"") -> Connections | H48: Non-IT | I48: Not applicable | J48: n/a | K48: 1
B49: 40 | C49: ='Input| Projects'!C49 -> ACR Replacement | D49: ='Input| Projects'!D49 -> A469 | F49: Replacement | G49: =+_xlfn.IFNA(_xlfn.XLOOKUP('Input| Projects'!F49,$M$10:$M$20,$N$10:$N$20),"") -> Replacement | H49: Non-IT | I49: Not applicable | J49: n/a | K49: 1
B50: 41 | C50: ='Input| Projects'!C50 -> HV Isolator Replacement (Single) | D50: ='Input| Projects'!D50 -> A900 | F50: Replacement | G50: =+_xlfn.IFNA(_xlfn.XLOOKUP('Input| Projects'!F50,$M$10:$M$20,$N$10:$N$20),"") -> Replacement | H50: Non-IT | I50: Not applicable | J50: n/a | K50: 1
B51: 42 | C51: ='Input| Projects'!C51 -> Install Remote Control Gas Switch | D51: ='Input| Projects'!D51 -> A63 | F51: Augmentation | G51: =+_xlfn.IFNA(_xlfn.XLOOKUP('Input| Projects'!F51,$M$10:$M$20,$N$10:$N$20),"") -> Augmentation | H51: Non-IT | I51: Not Applicable | J51: n/a | K51: 1
B52: 43 | C52: ='Input| Projects'!C52 -> Pole to Pit Installed | D52: ='Input| Projects'!D52 -> A246 | F52: Connections | G52: =+_xlfn.IFNA(_xlfn.XLOOKUP('Input| Projects'!F52,$M$10:$M$20,$N$10:$N$20),"") -> Connections | H52: Non-IT | I52: Not applicable | J52: n/a | K52: 1
B53: 44 | C53: ='Input| Projects'!C53 -> Undersize Pole Replacement | D53: ='Input| Projects'!D53 -> A477 | F53: Replacement | G53: =+_xlfn.IFNA(_xlfn.XLOOKUP('Input| Projects'!F53,$M$10:$M$20,$N$10:$N$20),"") -> Replacement | H53: Non-IT | I53: Not applicable | J53: n/a | K53: 1
B54: 45 | C54: ='Input| Projects'!C54 -> Undersize Pole Reinforcement | D54: ='Input| Projects'!D54 -> A480 | F54: Replacement | G54: =+_xlfn.IFNA(_xlfn.XLOOKUP('Input| Projects'!F54,$M$10:$M$20,$N$10:$N$20),"") -> Replacement | H54: Non-IT | I54: Not applicable | J54: n/a | K54: 1
B55: 46 | C55: ='Input| Projects'!C55 -> Replace ILJIN and HV overhead GFB switches | D55: ='Input| Projects'!D55 -> A285 | F55: Replacement | G55: =+_xlfn.IFNA(_xlfn.XLOOKUP('Input| Projects'!F55,$M$10:$M$20,$N$10:$N$20),"") -> Replacement | H55: Non-IT | I55: Not applicable | J55: n/a | K55: 1
B56: 47 | C56: ='Input| Projects'!C56 -> Service Rectification Program | D56: ='Input| Projects'!D56 -> A157 | F56: Replacement | G56: =+_xlfn.IFNA(_xlfn.XLOOKUP('Input| Projects'!F56,$M$10:$M$20,$N$10:$N$20),"") -> Replacement | H56: Non-IT | I56: Not applicable | J56: n/a | K56: 1
B57: 48 | C57: ='Input| Projects'!C57 -> Business Supply >10kVA | D57: ='Input| Projects'!D57 -> A1 | F57: Connections | G57: =+_xlfn.IFNA(_xlfn.XLOOKUP('Input| Projects'!F57,$M$10:$M$20,$N$10:$N$20),"") -> Connections | H57: Non-IT | I57: Not applicable | J57: n/a | K57: 1
B58: 49 | C58: ='Input| Projects'!C58 -> DC02 - West Footscray (Stage 3) | D58: ='Input| Projects'!D58 -> A956 | F58: Connections | G58: =+_xlfn.IFNA(_xlfn.XLOOKUP('Input| Projects'!F58,$M$10:$M$20,$N$10:$N$20),"") -> Connections | H58: Non-IT | I58: Status 6 | J58: In-flight | K58: 1
B59: 50 | C59: ='Input| Projects'!C59 -> Waste to Energy Plant Wollert | D59: ='Input| Projects'!D59 -> A265 | F59: Connections | G59: =+_xlfn.IFNA(_xlfn.XLOOKUP('Input| Projects'!F59,$M$10:$M$20,$N$10:$N$20),"") -> Connections | H59: Non-IT | I59: Not applicable | J59: n/a | K59: 1
B60: 51 | C60: ='Input| Projects'!C60 -> Medium Density Housing LV ext | D60: ='Input| Projects'!D60 -> A3 | F60: Connections | G60: =+_xlfn.IFNA(_xlfn.XLOOKUP('Input| Projects'!F60,$M$10:$M$20,$N$10:$N$20),"") -> Connections | H60: Non-IT | I60: Not applicable | J60: n/a | K60: 1
B61: 52 | C61: ='Input| Projects'!C61 -> P2P Back Office Supp Costs SCS | D61: ='Input| Projects'!D61 -> A397 | F61: Connections | G61: =+_xlfn.IFNA(_xlfn.XLOOKUP('Input| Projects'!F61,$M$10:$M$20,$N$10:$N$20),"") -> Connections | H61: Non-IT | I61: Not applicable | J61: n/a | K61: 1
B62: 53 | C62: ='Input| Projects'!C62 -> CAPITAL/REC WORKS - SUBTRANS ASSET | D62: ='Input| Projects'!D62 -> A318 | F62: Replacement | G62: =+_xlfn.IFNA(_xlfn.XLOOKUP('Input| Projects'!F62,$M$10:$M$20,$N$10:$N$20),"") -> Replacement | H62: Non-IT | I62: Not applicable | J62: n/a | K62: 1
B63: 54 | C63: ='Input| Projects'!C63 -> CAP REC WORKS - IN LINE POLES / STAYS | D63: ='Input| Projects'!D63 -> A319 | F63: Replacement | G63: =+_xlfn.IFNA(_xlfn.XLOOKUP('Input| Projects'!F63,$M$10:$M$20,$N$10:$N$20),"") -> Replacement | H63: Non-IT | I63: Not applicable | J63: n/a | K63: 1
B64: 55 | C64: ='Input| Projects'!C64 -> CAP REC WORKS - SUBS. MODIFICATION | D64: ='Input| Projects'!D64 -> A322 | F64: Replacement | G64: =+_xlfn.IFNA(_xlfn.XLOOKUP('Input| Projects'!F64,$M$10:$M$20,$N$10:$N$20),"") -> Replacement | H64: Non-IT | I64: Not applicable | J64: n/a | K64: 1
B65: 56 | C65: ='Input| Projects'!C65 -> CAP REC WORKS - UNDERGROUNDING OF ASSETS | D65: ='Input| Projects'!D65 -> A323 | F65: Replacement | G65: =+_xlfn.IFNA(_xlfn.XLOOKUP('Input| Projects'!F65,$M$10:$M$20,$N$10:$N$20),"") -> Replacement | H65: Non-IT | I65: Not applicable | J65: n/a | K65: 1
B66: 57 | C66: ='Input| Projects'!C66 -> Replace Metal Trifurcating Boxes | D66: ='Input| Projects'!D66 -> A209 | F66: Replacement | G66: =+_xlfn.IFNA(_xlfn.XLOOKUP('Input| Projects'!F66,$M$10:$M$20,$N$10:$N$20),"") -> Replacement | H66: Non-IT | I66: Not applicable | J66: n/a | K66: 1
B67: 58 | C67: ='Input| Projects'!C67 -> Melbourne Airport Rail Asset Relocations - Work Package 1 | D67: ='Input| Projects'!D67 -> A47 | F67: Replacement | G67: =+_xlfn.IFNA(_xlfn.XLOOKUP('Input| Projects'!F67,$M$10:$M$20,$N$10:$N$20),"") -> Replacement | H67: Non-IT | I67: Not applicable | J67: n/a | K67: 1
B68: 59 | C68: ='Input| Projects'!C68 -> DC01 - Tullamarine (Stage 3) | D68: ='Input| Projects'!D68 -> A65 | F68: Connections | G68: =+_xlfn.IFNA(_xlfn.XLOOKUP('Input| Projects'!F68,$M$10:$M$20,$N$10:$N$20),"") -> Connections | H68: Non-IT | I68: Status 8 | J68: In-flight | K68: 1
B69: 60 | C69: ='Input| Projects'!C69 -> Hospital Supply Upgrade | D69: ='Input| Projects'!D69 -> A146 | F69: Connections | G69: =+_xlfn.IFNA(_xlfn.XLOOKUP('Input| Projects'!F69,$M$10:$M$20,$N$10:$N$20),"") -> Connections | H69: Non-IT | I69: Not Applicable | J69: n/a | K69: 1
B70: 61 | C70: ='Input| Projects'!C70 -> DC02 - West Footscray (Stage 2) | D70: ='Input| Projects'!D70 -> A181 | F70: Connections | G70: =+_xlfn.IFNA(_xlfn.XLOOKUP('Input| Projects'!F70,$M$10:$M$20,$N$10:$N$20),"") -> Connections | H70: Non-IT | I70: Status 8 | J70: In-flight | K70: 1
B71: 62 | C71: ='Input| Projects'!C71 -> Rectification of Damaged Assets | D71: ='Input| Projects'!D71 -> A6 | F71: Replacement | G71: =+_xlfn.IFNA(_xlfn.XLOOKUP('Input| Projects'!F71,$M$10:$M$20,$N$10:$N$20),"") -> Replacement | H71: Non-IT | I71: Not applicable | J71: n/a | K71: 1
B72: 63 | C72: ='Input| Projects'!C72 -> Recoverable Works (emergency) | D72: ='Input| Projects'!D72 -> A231 | F72: Replacement | G72: =+_xlfn.IFNA(_xlfn.XLOOKUP('Input| Projects'!F72,$M$10:$M$20,$N$10:$N$20),"") -> Replacement | H72: Non-IT | I72: Not applicable | J72: n/a | K72: 1
B73: 64 | C73: ='Input| Projects'!C73 -> Asset Relocations - Yallambie Package | D73: ='Input| Projects'!D73 -> A372 | F73: Replacement | G73: =+_xlfn.IFNA(_xlfn.XLOOKUP('Input| Projects'!F73,$M$10:$M$20,$N$10:$N$20),"") -> Replacement | H73: Non-IT | I73: Not Applicable | J73: n/a | K73: 1
B74: 65 | C74: ='Input| Projects'!C74 -> Recoverable Works (Roads) | D74: ='Input| Projects'!D74 -> A234 | F74: Replacement | G74: =+_xlfn.IFNA(_xlfn.XLOOKUP('Input| Projects'!F74,$M$10:$M$20,$N$10:$N$20),"") -> Replacement | H74: Non-IT | I74: Not applicable | J74: =_xlfn.XLOOKUP(I74,$O$23:$O$33,$P$23:$P$33) -> n/a | K74: =_xlfn.XLOOKUP($I74,$O$10:$O$20,$P$10:$P$20,0) -> 1
B75: 66 | C75: ='Input| Projects'!C75 -> Low Density/Small Business Supplies <10kVA | D75: ='Input| Projects'!D75 -> A8 | F75: Connections | G75: =+_xlfn.IFNA(_xlfn.XLOOKUP('Input| Projects'!F75,$M$10:$M$20,$N$10:$N$20),"") -> Connections | H75: Non-IT | I75: Not applicable | J75: n/a | K75: 1
B76: =IFERROR(B75+1,"") -> 67 | C76: ='Input| Projects'!C76 -> Augment BTS-NS 22kV loop | D76: ='Input| Projects'!D76 -> A9 | F76: Augmentation | G76: =+_xlfn.IFNA(_xlfn.XLOOKUP('Input| Projects'!F76,$M$10:$M$20,$N$10:$N$20),"") -> Augmentation | H76: Non-IT | I76: Not applicable | J76: n/a | K76: 1
B77: 68 | C77: ='Input| Projects'!C77 -> Underground Routine Connections > 100A Back Office | D77: ='Input| Projects'!D77 -> A970 | F77: Connections | G77: =+_xlfn.IFNA(_xlfn.XLOOKUP('Input| Projects'!F77,$M$10:$M$20,$N$10:$N$20),"") -> Connections | H77: Non-IT | I77: Not applicable | J77: n/a | K77: 1
B78: 69 | C78: ='Input| Projects'!C78 -> Reconfigure Feeder - SBY24 | D78: ='Input| Projects'!D78 -> A11 | F78: Augmentation | G78: =+_xlfn.IFNA(_xlfn.XLOOKUP('Input| Projects'!F78,$M$10:$M$20,$N$10:$N$20),"") -> Augmentation | H78: Non-IT | I78: Not Applicable | J78: n/a | K78: 1
B79: 70 | C79: ='Input| Projects'!C79 -> Coolaroo No.2 bus feeders | D79: ='Input| Projects'!D79 -> A518 | F79: Augmentation | G79: =+_xlfn.IFNA(_xlfn.XLOOKUP('Input| Projects'!F79,$M$10:$M$20,$N$10:$N$20),"") -> Augmentation | H79: Non-IT | I79: Not applicable | J79: n/a | K79: 1
B80: 71 | C80: ='Input| Projects'!C80 -> Augment steel section - SBY24 | D80: ='Input| Projects'!D80 -> A23 | F80: Augmentation | G80: =+_xlfn.IFNA(_xlfn.XLOOKUP('Input| Projects'!F80,$M$10:$M$20,$N$10:$N$20),"") -> Augmentation | H80: Non-IT | I80: Not applicable | J80: n/a | K80: 1
B81: 72 | C81: ='Input| Projects'!C81 -> Establish tie-line between SBY23 and SBY13 | D81: ='Input| Projects'!D81 -> A35 | F81: Augmentation | G81: =+_xlfn.IFNA(_xlfn.XLOOKUP('Input| Projects'!F81,$M$10:$M$20,$N$10:$N$20),"") -> Augmentation | H81: Non-IT | I81: Not applicable | J81: n/a | K81: 1
B82: 73 | C82: ='Input| Projects'!C82 -> DC12 – Tullamarine (Stage 2) | D82: ='Input| Projects'!D82 -> A37 | F82: Connections | G82: =+_xlfn.IFNA(_xlfn.XLOOKUP('Input| Projects'!F82,$M$10:$M$20,$N$10:$N$20),"") -> Connections | H82: Non-IT | I82: Status 6 | J82: In-flight | K82: 1
B83: 74 | C83: ='Input| Projects'!C83 -> Install regulator - SBY13 | D83: ='Input| Projects'!D83 -> A39 | F83: Augmentation | G83: =+_xlfn.IFNA(_xlfn.XLOOKUP('Input| Projects'!F83,$M$10:$M$20,$N$10:$N$20),"") -> Augmentation | H83: Non-IT | I83: Not applicable | J83: n/a | K83: 1
B84: 75 | C84: ='Input| Projects'!C84 -> Install Regulator - SBY23 | D84: ='Input| Projects'!D84 -> A40 | F84: Augmentation | G84: =+_xlfn.IFNA(_xlfn.XLOOKUP('Input| Projects'!F84,$M$10:$M$20,$N$10:$N$20),"") -> Augmentation | H84: Non-IT | I84: Not applicable | J84: n/a | K84: 1
B85: 76 | C85: ='Input| Projects'!C85 -> New feeder KLO-023 | D85: ='Input| Projects'!D85 -> A515 | F85: Augmentation | G85: =+_xlfn.IFNA(_xlfn.XLOOKUP('Input| Projects'!F85,$M$10:$M$20,$N$10:$N$20),"") -> Augmentation | H85: Non-IT | I85: Not applicable | J85: n/a | K85: 1
B86: 77 | C86: ='Input| Projects'!C86 -> Establish new Craigieburn (CBN) zone substation - HV feeder works | D86: ='Input| Projects'!D86 -> A42 | F86: Augmentation | G86: =+_xlfn.IFNA(_xlfn.XLOOKUP('Input| Projects'!F86,$M$10:$M$20,$N$10:$N$20),"") -> Augmentation | H86: Non-IT | I86: Not applicable | J86: n/a | K86: 1
B87: 78 | C87: ='Input| Projects'!C87 -> New feeder FT0-025 | D87: ='Input| Projects'!D87 -> A44 | F87: Augmentation | G87: =+_xlfn.IFNA(_xlfn.XLOOKUP('Input| Projects'!F87,$M$10:$M$20,$N$10:$N$20),"") -> Augmentation | H87: Non-IT | I87: Not Applicable | J87: n/a | K87: 1
B88: 79 | C88: ='Input| Projects'!C88 -> Hillside Solar Farm | D88: ='Input| Projects'!D88 -> A56 | F88: Connections | G88: =+_xlfn.IFNA(_xlfn.XLOOKUP('Input| Projects'!F88,$M$10:$M$20,$N$10:$N$20),"") -> Connections | H88: Non-IT | I88: Not applicable | J88: n/a | K88: 1
B89: 80 | C89: ='Input| Projects'!C89 -> Craigieburn Park (South) | D89: ='Input| Projects'!D89 -> A382 | F89: Connections | G89: =+_xlfn.IFNA(_xlfn.XLOOKUP('Input| Projects'!F89,$M$10:$M$20,$N$10:$N$20),"") -> Connections | H89: Non-IT | I89: Not Applicable | J89: n/a | K89: 1
B90: 81 | C90: ='Input| Projects'!C90 -> DC10 - Westmeadows | D90: ='Input| Projects'!D90 -> A214 | F90: Connections | G90: =+_xlfn.IFNA(_xlfn.XLOOKUP('Input| Projects'!F90,$M$10:$M$20,$N$10:$N$20),"") -> Connections | H90: Non-IT | I90: Status 5 | J90: Firm offer | K90: 1
B91: 82 | C91: ='Input| Projects'!C91 -> Craigieburn Park (North) | D91: ='Input| Projects'!D91 -> A50 | F91: Connections | G91: =+_xlfn.IFNA(_xlfn.XLOOKUP('Input| Projects'!F91,$M$10:$M$20,$N$10:$N$20),"") -> Connections | H91: Non-IT | I91: Not Applicable | J91: n/a | K91: 1
B92: 83 | C92: ='Input| Projects'!C92 -> DC10 - MAT-MDT 66kV line extension to MDW | D92: ='Input| Projects'!D92 -> A54 | F92: Connections | G92: =+_xlfn.IFNA(_xlfn.XLOOKUP('Input| Projects'!F92,$M$10:$M$20,$N$10:$N$20),"") -> Connections | H92: Non-IT | I92: Status 5 | J92: Firm offer | K92: 1
B93: 84 | C93: ='Input| Projects'!C93 -> DC04 - Tullamarine (Stage 1) | D93: ='Input| Projects'!D93 -> A193 | F93: Connections | G93: =+_xlfn.IFNA(_xlfn.XLOOKUP('Input| Projects'!F93,$M$10:$M$20,$N$10:$N$20),"") -> Connections | H93: Non-IT | I93: Status 8 | J93: In-flight | K93: 1
B94: 85 | C94: ='Input| Projects'!C94 -> DC Growth Projects – Connection component [Future Major Customers Projects] | D94: ='Input| Projects'!D94 -> A59 | F94: Connections | G94: =+_xlfn.IFNA(_xlfn.XLOOKUP('Input| Projects'!F94,$M$10:$M$20,$N$10:$N$20),"") -> Connections | H94: Non-IT | I94: Legacy | J94: n/a | K94: 0
B95: 86 | C95: ='Input| Projects'!C95 -> New MAT2 ZSS 66kV Supplies | D95: ='Input| Projects'!D95 -> A60 | F95: Connections | G95: =+_xlfn.IFNA(_xlfn.XLOOKUP('Input| Projects'!F95,$M$10:$M$20,$N$10:$N$20),"") -> Connections | H95: Non-IT | I95: Not applicable | J95: n/a | K95: 1
B96: 87 | C96: ='Input| Projects'!C96 -> Community Batteries for Household Solar Program | D96: ='Input| Projects'!D96 -> A160 | F96: Augmentation | G96: =+_xlfn.IFNA(_xlfn.XLOOKUP('Input| Projects'!F96,$M$10:$M$20,$N$10:$N$20),"") -> Augmentation | H96: Non-IT | I96: Not Applicable | J96: n/a | K96: 1
B97: 88 | C97: ='Input| Projects'!C97 -> Supply Quality/Reliability - LV Overhead Augmentation | D97: ='Input| Projects'!D97 -> A66 | F97: Augmentation | G97: =+_xlfn.IFNA(_xlfn.XLOOKUP('Input| Projects'!F97,$M$10:$M$20,$N$10:$N$20),"") -> Augmentation | H97: Non-IT | I97: Not applicable | J97: n/a | K97: 1
B98: 89 | C98: ='Input| Projects'!C98 -> New feeder SBY-014 | D98: ='Input| Projects'!D98 -> A451 | F98: Augmentation | G98: =+_xlfn.IFNA(_xlfn.XLOOKUP('Input| Projects'!F98,$M$10:$M$20,$N$10:$N$20),"") -> Augmentation | H98: Non-IT | I98: Not applicable | J98: n/a | K98: 1
B99: 90 | C99: ='Input| Projects'!C99 -> New feeder SBY-022 | D99: ='Input| Projects'!D99 -> A103 | F99: Augmentation | G99: =+_xlfn.IFNA(_xlfn.XLOOKUP('Input| Projects'!F99,$M$10:$M$20,$N$10:$N$20),"") -> Augmentation | H99: Non-IT | I99: Not applicable | J99: n/a | K99: 1
B100: 91 | C100: ='Input| Projects'!C100 -> Install reactors at COO - 2 x 4MVAr | D100: ='Input| Projects'!D100 -> A369 | F100: Augmentation | G100: =+_xlfn.IFNA(_xlfn.XLOOKUP('Input| Projects'!F100,$M$10:$M$20,$N$10:$N$20),"") -> Augmentation | H100: Non-IT | I100: Not Applicable | J100: n/a | K100: 1
B101: 92 | C101: ='Input| Projects'!C101 -> Augment section of NH0-002 | D101: ='Input| Projects'!D101 -> A317 | F101: Augmentation | G101: =+_xlfn.IFNA(_xlfn.XLOOKUP('Input| Projects'!F101,$M$10:$M$20,$N$10:$N$20),"") -> Augmentation | H101: Non-IT | I101: Not applicable | J101: n/a | K101: 1
B102: 93 | C102: ='Input| Projects'!C102 -> Augment feeder FT0-021 | D102: ='Input| Projects'!D102 -> A121 | F102: Augmentation | G102: =+_xlfn.IFNA(_xlfn.XLOOKUP('Input| Projects'!F102,$M$10:$M$20,$N$10:$N$20),"") -> Augmentation | H102: Non-IT | I102: Not applicable | J102: n/a | K102: 1
B103: 94 | C103: ='Input| Projects'!C103 -> Latrobe University - City of the Future (Stage 2) | D103: ='Input| Projects'!D103 -> A123 | F103: Connections | G103: =+_xlfn.IFNA(_xlfn.XLOOKUP('Input| Projects'!F103,$M$10:$M$20,$N$10:$N$20),"") -> Connections | H103: Non-IT | I103: Not applicable | J103: n/a | K103: 1
B104: 95 | C104: ='Input| Projects'!C104 -> Distribution Substation Augmentation - Load Related | D104: ='Input| Projects'!D104 -> A67 | F104: Augmentation | G104: =+_xlfn.IFNA(_xlfn.XLOOKUP('Input| Projects'!F104,$M$10:$M$20,$N$10:$N$20),"") -> Augmentation | H104: Non-IT | I104: Not applicable | J104: n/a | K104: 1
B105: 96 | C105: ='Input| Projects'!C105 -> Establish new Craigieburn (CBN) zone substation - zone substation works | D105: ='Input| Projects'!D105 -> A72 | F105: Augmentation | G105: =+_xlfn.IFNA(_xlfn.XLOOKUP('Input| Projects'!F105,$M$10:$M$20,$N$10:$N$20),"") -> Augmentation | H105: Non-IT | I105: Not applicable | J105: n/a | K105: 1
B106: 97 | C106: ='Input| Projects'!C106 -> Install reactors at BD - 4 x 4MVAr reactors, two off 2 x 4MVAr capacitor banks | D106: ='Input| Projects'!D106 -> A370 | F106: Augmentation | G106: =+_xlfn.IFNA(_xlfn.XLOOKUP('Input| Projects'!F106,$M$10:$M$20,$N$10:$N$20),"") -> Augmentation | H106: Non-IT | I106: Not applicable | J106: n/a | K106: 1
B107: 98 | C107: ='Input| Projects'!C107 -> Install reactors at ST - 2 x 4MVAr | D107: ='Input| Projects'!D107 -> A74 | F107: Augmentation | G107: =+_xlfn.IFNA(_xlfn.XLOOKUP('Input| Projects'!F107,$M$10:$M$20,$N$10:$N$20),"") -> Augmentation | H107: Non-IT | I107: Not applicable | J107: n/a | K107: 1
B108: 99 | C108: ='Input| Projects'!C108 -> Install reactors at SBY - 2 x 4MVAr | D108: ='Input| Projects'!D108 -> A75 | F108: Augmentation | G108: =+_xlfn.IFNA(_xlfn.XLOOKUP('Input| Projects'!F108,$M$10:$M$20,$N$10:$N$20),"") -> Augmentation | H108: Non-IT | I108: Not applicable | J108: n/a | K108: 1
B109: 100 | C109: ='Input| Projects'!C109 -> Install reactors at SHM - 2 x 4MVAr | D109: ='Input| Projects'!D109 -> A76 | F109: Augmentation | G109: =+_xlfn.IFNA(_xlfn.XLOOKUP('Input| Projects'!F109,$M$10:$M$20,$N$10:$N$20),"") -> Augmentation | H109: Non-IT | I109: Not applicable | J109: n/a | K109: 1
B110: 101 | C110: ='Input| Projects'!C110 -> Installation of oil sampling points to OLTCs | D110: ='Input| Projects'!D110 -> A80 | F110: Replacement | G110: =+_xlfn.IFNA(_xlfn.XLOOKUP('Input| Projects'!F110,$M$10:$M$20,$N$10:$N$20),"") -> Replacement | H110: Non-IT | I110: Not applicable | J110: n/a | K110: 1
B111: 102 | C111: ='Input| Projects'!C111 -> Interlocked VAr controllers on 14 existing capacitor banks | D111: ='Input| Projects'!D111 -> A471 | F111: Augmentation | G111: =+_xlfn.IFNA(_xlfn.XLOOKUP('Input| Projects'!F111,$M$10:$M$20,$N$10:$N$20),"") -> Augmentation | H111: Non-IT | I111: Not applicable | J111: n/a | K111: 1
B112: 103 | C112: ='Input| Projects'!C112 -> Upgrade SBY No.1 and No.3 transformers to 20/33MVA | D112: ='Input| Projects'!D112 -> A83 | F112: Augmentation | G112: =+_xlfn.IFNA(_xlfn.XLOOKUP('Input| Projects'!F112,$M$10:$M$20,$N$10:$N$20),"") -> Augmentation | H112: Non-IT | I112: Not applicable | J112: n/a | K112: 1
B113: 104 | C113: ='Input| Projects'!C113 -> DC18 - Tullamarine (Stage 1) | D113: ='Input| Projects'!D113 -> A85 | F113: Connections | G113: =+_xlfn.IFNA(_xlfn.XLOOKUP('Input| Projects'!F113,$M$10:$M$20,$N$10:$N$20),"") -> Connections | H113: Non-IT | I113: Status 6 | J113: In-flight | K113: 1
B114: 105 | C114: ='Input| Projects'!C114 -> ST-SSS 66kV line extension | D114: ='Input| Projects'!D114 -> A445 | F114: Connections | G114: =+_xlfn.IFNA(_xlfn.XLOOKUP('Input| Projects'!F114,$M$10:$M$20,$N$10:$N$20),"") -> Connections | H114: Non-IT | I114: Status 6 | J114: In-flight | K114: 1
B115: 106 | C115: ='Input| Projects'!C115 -> New KTS-NDT 66kV Line | D115: ='Input| Projects'!D115 -> A446 | F115: Augmentation | G115: =+_xlfn.IFNA(_xlfn.XLOOKUP('Input| Projects'!F115,$M$10:$M$20,$N$10:$N$20),"") -> Augmentation | H115: Non-IT | I115: Not Applicable | J115: n/a | K115: 1
B116: 107 | C116: ='Input| Projects'!C116 -> Essendon Fields Feeder AW | D116: ='Input| Projects'!D116 -> A447 | F116: Connections | G116: =+_xlfn.IFNA(_xlfn.XLOOKUP('Input| Projects'!F116,$M$10:$M$20,$N$10:$N$20),"") -> Connections | H116: Non-IT | I116: Not applicable | J116: n/a | K116: 1
B117: 108 | C117: ='Input| Projects'!C117 -> DC18 - loop ADT into TMA-MAT 66kV line | D117: ='Input| Projects'!D117 -> A501 | F117: Connections | G117: =+_xlfn.IFNA(_xlfn.XLOOKUP('Input| Projects'!F117,$M$10:$M$20,$N$10:$N$20),"") -> Connections | H117: Non-IT | I117: Status 5 | J117: Firm offer | K117: 1
B118: 109 | C118: ='Input| Projects'!C118 -> DC11 – Craigieburn | D118: ='Input| Projects'!D118 -> A101 | F118: Connections | G118: =+_xlfn.IFNA(_xlfn.XLOOKUP('Input| Projects'!F118,$M$10:$M$20,$N$10:$N$20),"") -> Connections | H118: Non-IT | I118: Status 6 | J118: In-flight | K118: 1
B119: 110 | C119: ='Input| Projects'!C119 -> DC19 - new BLTS-HDY 66kV lines | D119: ='Input| Projects'!D119 -> A497 | F119: Connections | G119: =+_xlfn.IFNA(_xlfn.XLOOKUP('Input| Projects'!F119,$M$10:$M$20,$N$10:$N$20),"") -> Connections | H119: Non-IT | I119: Status 2 | J119: Enquiry | K119: 0
B120: 111 | C120: ='Input| Projects'!C120 -> Effloresence in buildings (TMA and SHM) | D120: ='Input| Projects'!D120 -> A408 | F120: Replacement | G120: =+_xlfn.IFNA(_xlfn.XLOOKUP('Input| Projects'!F120,$M$10:$M$20,$N$10:$N$20),"") -> Replacement | H120: Non-IT | I120: Not applicable | J120: n/a | K120: 1
B121: 112 | C121: ='Input| Projects'!C121 -> DC02 - loop NDW into BLTS-TH No.2 66kV Line | D121: ='Input| Projects'!D121 -> A481 | F121: Connections | G121: =+_xlfn.IFNA(_xlfn.XLOOKUP('Input| Projects'!F121,$M$10:$M$20,$N$10:$N$20),"") -> Connections | H121: Non-IT | I121: Status 8 | J121: In-flight | K121: 1
B122: 113 | C122: ='Input| Projects'!C122 -> DC07 - new BLTS-BKN 66kV line | D122: ='Input| Projects'!D122 -> A235 | F122: Connections | G122: =+_xlfn.IFNA(_xlfn.XLOOKUP('Input| Projects'!F122,$M$10:$M$20,$N$10:$N$20),"") -> Connections | H122: Non-IT | I122: Status 1 | J122: Enquiry | K122: 0
B123: 114 | C123: ='Input| Projects'!C123 -> DC Footscray area - tie TH-FW 66kV loops | D123: ='Input| Projects'!D123 -> A326 | F123: Augmentation | G123: =+_xlfn.IFNA(_xlfn.XLOOKUP('Input| Projects'!F123,$M$10:$M$20,$N$10:$N$20),"") -> Augmentation | H123: Non-IT | I123: Legacy | J123: n/a | K123: 0
B124: 115 | C124: ='Input| Projects'!C124 -> Replace all 66kV EE SRBP bushings | D124: ='Input| Projects'!D124 -> A327 | F124: Replacement | G124: =+_xlfn.IFNA(_xlfn.XLOOKUP('Input| Projects'!F124,$M$10:$M$20,$N$10:$N$20),"") -> Replacement | H124: Non-IT | I124: Not applicable | J124: n/a | K124: 1
B125: 116 | C125: ='Input| Projects'!C125 -> DC Footscray area - new 66kV line incomer at FW | D125: ='Input| Projects'!D125 -> A336 | F125: Augmentation | G125: =+_xlfn.IFNA(_xlfn.XLOOKUP('Input| Projects'!F125,$M$10:$M$20,$N$10:$N$20),"") -> Augmentation | H125: Non-IT | I125: Legacy | J125: n/a | K125: 0
B126: 117 | C126: ='Input| Projects'!C126 -> DC04 - new KTS-TMA 66kV line | D126: ='Input| Projects'!D126 -> A907 | F126: Connections | G126: =+_xlfn.IFNA(_xlfn.XLOOKUP('Input| Projects'!F126,$M$10:$M$20,$N$10:$N$20),"") -> Connections | H126: Non-IT | I126: Status 8 | J126: In-flight | K126: 1
B127: 118 | C127: ='Input| Projects'!C127 -> Replace GOB bushings | D127: ='Input| Projects'!D127 -> A906 | F127: Replacement | G127: =+_xlfn.IFNA(_xlfn.XLOOKUP('Input| Projects'!F127,$M$10:$M$20,$N$10:$N$20),"") -> Replacement | H127: Non-IT | I127: Not applicable | J127: n/a | K127: 1
B128: 119 | C128: ='Input| Projects'!C128 -> General Adhoc Allowance - Facilities | D128: ='Input| Projects'!D128 -> A331 | F128: Property capex | G128: =+_xlfn.IFNA(_xlfn.XLOOKUP('Input| Projects'!F128,$M$10:$M$20,$N$10:$N$20),"") -> Non-network | H128: Non-IT | I128: Not applicable | J128: n/a | K128: 1
B129: 120 | C129: ='Input| Projects'!C129 -> General Adhoc Allowance - Property Assets | D129: ='Input| Projects'!D129 -> A525 | F129: Property capex | G129: =+_xlfn.IFNA(_xlfn.XLOOKUP('Input| Projects'!F129,$M$10:$M$20,$N$10:$N$20),"") -> Non-network | H129: Non-IT | I129: Not applicable | J129: n/a | K129: 1
B130: 121 | C130: ='Input| Projects'!C130 -> Replacement and Growth Vehicles - EPV | D130: ='Input| Projects'!D130 -> A105 | F130: Fleet capex | G130: =+_xlfn.IFNA(_xlfn.XLOOKUP('Input| Projects'!F130,$M$10:$M$20,$N$10:$N$20),"") -> Non-network | H130: Non-IT | I130: Not applicable | J130: n/a | K130: 1
B131: 122 | C131: ='Input| Projects'!C131 -> Replacement and Growth Vehicles - HCV | D131: ='Input| Projects'!D131 -> A104 | F131: Fleet capex | G131: =+_xlfn.IFNA(_xlfn.XLOOKUP('Input| Projects'!F131,$M$10:$M$20,$N$10:$N$20),"") -> Non-network | H131: Non-IT | I131: Not applicable | J131: n/a | K131: 1
B132: 123 | C132: ='Input| Projects'!C132 -> Replacement and Growth Vehicles - LCV | D132: ='Input| Projects'!D132 -> A106 | F132: Fleet capex | G132: =+_xlfn.IFNA(_xlfn.XLOOKUP('Input| Projects'!F132,$M$10:$M$20,$N$10:$N$20),"") -> Non-network | H132: Non-IT | I132: Not applicable | J132: n/a | K132: 1
B133: 124 | C133: ='Input| Projects'!C133 -> Replacement and Growth Vehicles - Plant | D133: ='Input| Projects'!D133 -> A440 | F133: Fleet capex | G133: =+_xlfn.IFNA(_xlfn.XLOOKUP('Input| Projects'!F133,$M$10:$M$20,$N$10:$N$20),"") -> Non-network | H133: Non-IT | I133: Not applicable | J133: n/a | K133: 1
B134: 125 | C134: ='Input| Projects'!C134 -> Replacement and Growth Vehicles - PV | D134: ='Input| Projects'!D134 -> A441 | F134: Fleet capex | G134: =+_xlfn.IFNA(_xlfn.XLOOKUP('Input| Projects'!F134,$M$10:$M$20,$N$10:$N$20),"") -> Non-network | H134: Non-IT | I134: Not applicable | J134: n/a | K134: 1
B135: 126 | C135: ='Input| Projects'!C135 -> Replacement and Growth Vehicles - Trailer | D135: ='Input| Projects'!D135 -> A442 | F135: Fleet capex | G135: =+_xlfn.IFNA(_xlfn.XLOOKUP('Input| Projects'!F135,$M$10:$M$20,$N$10:$N$20),"") -> Non-network | H135: Non-IT | I135: Not applicable | J135: n/a | K135: 1
B136: 127 | C136: ='Input| Projects'!C136 -> VVC Roll-Out | D136: ='Input| Projects'!D136 -> A286 | F136: Augmentation | G136: =+_xlfn.IFNA(_xlfn.XLOOKUP('Input| Projects'!F136,$M$10:$M$20,$N$10:$N$20),"") -> Augmentation | H136: Non-IT | I136: Not applicable | J136: n/a | K136: 1
B137: 128 | C137: ='Input| Projects'!C137 -> Distribution substation augmentation - supply quality | D137: ='Input| Projects'!D137 -> A111 | F137: Augmentation | G137: =+_xlfn.IFNA(_xlfn.XLOOKUP('Input| Projects'!F137,$M$10:$M$20,$N$10:$N$20),"") -> Augmentation | H137: Non-IT | I137: Not applicable | J137: n/a | K137: 1
B138: 129 | C138: ='Input| Projects'!C138 -> Replace FW relays | D138: ='Input| Projects'!D138 -> A126 | F138: Replacement | G138: =+_xlfn.IFNA(_xlfn.XLOOKUP('Input| Projects'!F138,$M$10:$M$20,$N$10:$N$20),"") -> Replacement | H138: Non-IT | I138: Not Applicable | J138: =_xlfn.XLOOKUP(I138,$O$23:$O$33,$P$23:$P$33) -> n/a | K138: =_xlfn.XLOOKUP($I138,$O$10:$O$20,$P$10:$P$20,0) -> 1
B139: 130 | C139: ='Input| Projects'!C139 -> Replace zone substation battery banks and chargers | D139: ='Input| Projects'!D139 -> A133 | F139: Replacement | G139: =+_xlfn.IFNA(_xlfn.XLOOKUP('Input| Projects'!F139,$M$10:$M$20,$N$10:$N$20),"") -> Replacement | H139: Non-IT | I139: Not applicable | J139: n/a | K139: 1
B140: =IFERROR(B139+1,"") -> 131 | C140: ='Input| Projects'!C140 -> MPLS installation programme | D140: ='Input| Projects'!D140 -> A137 | F140: Replacement | G140: =+_xlfn.IFNA(_xlfn.XLOOKUP('Input| Projects'!F140,$M$10:$M$20,$N$10:$N$20),"") -> Replacement | H140: Non-IT | I140: Not applicable | J140: n/a | K140: 1
B141: 132 | C141: ='Input| Projects'!C141 -> Distribution S/S switchgear replacement (indoor and ground type) | D141: ='Input| Projects'!D141 -> A195 | F141: Replacement | G141: =+_xlfn.IFNA(_xlfn.XLOOKUP('Input| Projects'!F141,$M$10:$M$20,$N$10:$N$20),"") -> Replacement | H141: Non-IT | I141: Not applicable | J141: n/a | K141: 1
B142: 133 | C142: ='Input| Projects'!C142 -> Compact LV boards (J type fuses) in indoor subs | D142: ='Input| Projects'!D142 -> A399 | F142: Replacement | G142: =+_xlfn.IFNA(_xlfn.XLOOKUP('Input| Projects'!F142,$M$10:$M$20,$N$10:$N$20),"") -> Replacement | H142: Non-IT | I142: Not applicable | J142: n/a | K142: 1
B143: 134 | C143: ='Input| Projects'!C143 -> Melbourne Airport Rail Asset Relocations - Work Package 4A | D143: ='Input| Projects'!D143 -> A135 | F143: Replacement | G143: =+_xlfn.IFNA(_xlfn.XLOOKUP('Input| Projects'!F143,$M$10:$M$20,$N$10:$N$20),"") -> Replacement | H143: Non-IT | I143: Not applicable | J143: n/a | K143: 1
B144: 135 | C144: ='Input| Projects'!C144 -> Melbourne Airport Rail Asset Relocations - Work Package 4B | D144: ='Input| Projects'!D144 -> A383 | F144: Replacement | G144: =+_xlfn.IFNA(_xlfn.XLOOKUP('Input| Projects'!F144,$M$10:$M$20,$N$10:$N$20),"") -> Replacement | H144: Non-IT | I144: Not applicable | J144: n/a | K144: 1
B145: 136 | C145: ='Input| Projects'!C145 -> Melbourne Airport Rail Asset Relocations - Work Package 6 | D145: ='Input| Projects'!D145 -> A315 | F145: Replacement | G145: =+_xlfn.IFNA(_xlfn.XLOOKUP('Input| Projects'!F145,$M$10:$M$20,$N$10:$N$20),"") -> Replacement | H145: Non-IT | I145: Not applicable | J145: n/a | K145: 1
B146: 137 | C146: ='Input| Projects'!C146 -> MEDIUM DENSITY HOUSING - HV EXTENSION | D146: ='Input| Projects'!D146 -> A334 | F146: Connections | G146: =+_xlfn.IFNA(_xlfn.XLOOKUP('Input| Projects'!F146,$M$10:$M$20,$N$10:$N$20),"") -> Connections | H146: Non-IT | I146: Not applicable | J146: n/a | K146: 1
B147: 138 | C147: ='Input| Projects'!C147 -> DC09 - West Footscray | D147: ='Input| Projects'!D147 -> A951 | F147: Connections | G147: =+_xlfn.IFNA(_xlfn.XLOOKUP('Input| Projects'!F147,$M$10:$M$20,$N$10:$N$20),"") -> Connections | H147: Non-IT | I147: Status 5 | J147: Firm offer | K147: 1
B148: 139 | C148: ='Input| Projects'!C148 -> LV Mains Removal in HBRA | D148: ='Input| Projects'!D148 -> A162 | F148: Replacement | G148: =+_xlfn.IFNA(_xlfn.XLOOKUP('Input| Projects'!F148,$M$10:$M$20,$N$10:$N$20),"") -> Replacement | H148: Non-IT | I148: Not Applicable | J148: n/a | K148: 1
B149: 140 | C149: ='Input| Projects'!C149 -> Facade Rectification Program | D149: ='Input| Projects'!D149 -> A401 | F149: Replacement | G149: =+_xlfn.IFNA(_xlfn.XLOOKUP('Input| Projects'!F149,$M$10:$M$20,$N$10:$N$20),"") -> Replacement | H149: Non-IT | I149: Not applicable | J149: n/a | K149: 1
B150: 141 | C150: ='Input| Projects'!C150 -> Undersized Neutral Replacement | D150: ='Input| Projects'!D150 -> A165 | F150: Replacement | G150: =+_xlfn.IFNA(_xlfn.XLOOKUP('Input| Projects'!F150,$M$10:$M$20,$N$10:$N$20),"") -> Replacement | H150: Non-IT | I150: Not applicable | J150: n/a | K150: 1
B151: 142 | C151: ='Input| Projects'!C151 -> New feeder SHM-013 | D151: ='Input| Projects'!D151 -> A396 | F151: Augmentation | G151: =+_xlfn.IFNA(_xlfn.XLOOKUP('Input| Projects'!F151,$M$10:$M$20,$N$10:$N$20),"") -> Augmentation | H151: Non-IT | I151: Not applicable | J151: n/a | K151: 1
B152: 143 | C152: ='Input| Projects'!C152 -> DC09 - loop PDW into BLTS-TH No.2 66kV Line | D152: ='Input| Projects'!D152 -> A506 | F152: Connections | G152: =+_xlfn.IFNA(_xlfn.XLOOKUP('Input| Projects'!F152,$M$10:$M$20,$N$10:$N$20),"") -> Connections | H152: Non-IT | I152: Status 5 | J152: Firm offer | K152: 1
B153: 144 | C153: ='Input| Projects'!C153 -> Subtransmission communications and protection equipment replacement | D153: ='Input| Projects'!D153 -> A508 | F153: Replacement | G153: =+_xlfn.IFNA(_xlfn.XLOOKUP('Input| Projects'!F153,$M$10:$M$20,$N$10:$N$20),"") -> Replacement | H153: Non-IT | I153: Not Applicable | J153: n/a | K153: 1
B154: 145 | C154: ='Input| Projects'!C154 -> Brooklyn Terminal Station UFLS - Network | D154: ='Input| Projects'!D154 -> A475 | F154: Augmentation | G154: =+_xlfn.IFNA(_xlfn.XLOOKUP('Input| Projects'!F154,$M$10:$M$20,$N$10:$N$20),"") -> Augmentation | H154: Non-IT | I154: Not applicable | J154: n/a | K154: 1
B155: 146 | C155: ='Input| Projects'!C155 -> Brunswick Terminal Station UFLS - Network + New Development | D155: ='Input| Projects'!D155 -> A476 | F155: Augmentation | G155: =+_xlfn.IFNA(_xlfn.XLOOKUP('Input| Projects'!F155,$M$10:$M$20,$N$10:$N$20),"") -> Augmentation | H155: Non-IT | I155: Not applicable | J155: n/a | K155: 1
B156: 147 | C156: ='Input| Projects'!C156 -> Replace FW 22kV switchgear | D156: ='Input| Projects'!D156 -> A212 | F156: Replacement | G156: =+_xlfn.IFNA(_xlfn.XLOOKUP('Input| Projects'!F156,$M$10:$M$20,$N$10:$N$20),"") -> Replacement | H156: Non-IT | I156: Not Applicable | J156: n/a | K156: 1
B157: 148 | C157: ='Input| Projects'!C157 -> Replace FF No.3 transformer | D157: ='Input| Projects'!D157 -> A185 | F157: Replacement | G157: =+_xlfn.IFNA(_xlfn.XLOOKUP('Input| Projects'!F157,$M$10:$M$20,$N$10:$N$20),"") -> Replacement | H157: Non-IT | I157: Not Applicable | J157: n/a | K157: 1
B158: 149 | C158: ='Input| Projects'!C158 -> Procurement of strategic spares (secondary) | D158: ='Input| Projects'!D158 -> A186 | F158: Replacement | G158: =+_xlfn.IFNA(_xlfn.XLOOKUP('Input| Projects'!F158,$M$10:$M$20,$N$10:$N$20),"") -> Replacement | H158: Non-IT | I158: Not applicable | J158: n/a | K158: 1
B159: 150 | C159: ='Input| Projects'!C159 -> FF #4 6.6kV Bus | D159: ='Input| Projects'!D159 -> A43 | F159: Augmentation | G159: =+_xlfn.IFNA(_xlfn.XLOOKUP('Input| Projects'!F159,$M$10:$M$20,$N$10:$N$20),"") -> Augmentation | H159: Non-IT | I159: Not Applicable | J159: n/a | K159: 1
B160: 151 | C160: ='Input| Projects'!C160 -> 3rd Transformer and 66kV Works at FT (triggered by Moonee Valley) | D160: ='Input| Projects'!D160 -> A10 | F160: Augmentation | G160: =+_xlfn.IFNA(_xlfn.XLOOKUP('Input| Projects'!F160,$M$10:$M$20,$N$10:$N$20),"") -> Augmentation | H160: Non-IT | I160: Not applicable | J160: n/a | K160: 1
B161: 152 | C161: ='Input| Projects'!C161 -> Replace GSA transformer bushings | D161: ='Input| Projects'!D161 -> A199 | F161: Replacement | G161: =+_xlfn.IFNA(_xlfn.XLOOKUP('Input| Projects'!F161,$M$10:$M$20,$N$10:$N$20),"") -> Replacement | H161: Non-IT | I161: Not applicable | J161: n/a | K161: 1
B162: 153 | C162: ='Input| Projects'!C162 -> Subtransmission Installation Replacement | D162: ='Input| Projects'!D162 -> A20 | F162: Replacement | G162: =+_xlfn.IFNA(_xlfn.XLOOKUP('Input| Projects'!F162,$M$10:$M$20,$N$10:$N$20),"") -> Replacement | H162: Non-IT | I162: Not Applicable | J162: n/a | K162: 1
B163: 154 | C163: ='Input| Projects'!C163 -> Upgrade zone substation earth grids | D163: ='Input| Projects'!D163 -> A204 | F163: Replacement | G163: =+_xlfn.IFNA(_xlfn.XLOOKUP('Input| Projects'!F163,$M$10:$M$20,$N$10:$N$20),"") -> Replacement | H163: Non-IT | I163: Not applicable | J163: n/a | K163: 1
B164: 155 | C164: ='Input| Projects'!C164 -> Pole Replacement - replacement of staked poles - HV | D164: ='Input| Projects'!D164 -> A528 | F164: Replacement | G164: =+_xlfn.IFNA(_xlfn.XLOOKUP('Input| Projects'!F164,$M$10:$M$20,$N$10:$N$20),"") -> Replacement | H164: Non-IT | I164: Not applicable | J164: n/a | K164: 1
B165: 156 | C165: ='Input| Projects'!C165 -> Zone substation property minor capex works | D165: ='Input| Projects'!D165 -> A957 | F165: Replacement | G165: =+_xlfn.IFNA(_xlfn.XLOOKUP('Input| Projects'!F165,$M$10:$M$20,$N$10:$N$20),"") -> Replacement | H165: Non-IT | I165: Not applicable | J165: n/a | K165: 1
B166: 157 | C166: ='Input| Projects'!C166 -> Pole Replacement - replacement of staked poles - ST | D166: ='Input| Projects'!D166 -> A534 | F166: Replacement | G166: =+_xlfn.IFNA(_xlfn.XLOOKUP('Input| Projects'!F166,$M$10:$M$20,$N$10:$N$20),"") -> Replacement | H166: Non-IT | I166: Not applicable | J166: n/a | K166: 1
B167: 158 | C167: ='Input| Projects'!C167 -> Pole Replacement - replacement of limited life poles unsuitable for staking - HV | D167: ='Input| Projects'!D167 -> A535 | F167: Replacement | G167: =+_xlfn.IFNA(_xlfn.XLOOKUP('Input| Projects'!F167,$M$10:$M$20,$N$10:$N$20),"") -> Replacement | H167: Non-IT | I167: Not applicable | J167: n/a | K167: 1
B168: 159 | C168: ='Input| Projects'!C168 -> New trailer and carbonized oil filtration unit for Zinfra | D168: ='Input| Projects'!D168 -> A98 | F168: Other non-network capex | G168: =+_xlfn.IFNA(_xlfn.XLOOKUP('Input| Projects'!F168,$M$10:$M$20,$N$10:$N$20),"") -> Non-network | H168: Non-IT | I168: Not applicable | J168: n/a | K168: 1
B169: 160 | C169: ='Input| Projects'!C169 -> PSCN switches, router replacement and installation programme | D169: ='Input| Projects'!D169 -> A38 | F169: Replacement | G169: =+_xlfn.IFNA(_xlfn.XLOOKUP('Input| Projects'!F169,$M$10:$M$20,$N$10:$N$20),"") -> Replacement | H169: Non-IT | I169: Not applicable | J169: n/a | K169: 1
B170: 161 | C170: ='Input| Projects'!C170 -> Communications pole top radio replacement | D170: ='Input| Projects'!D170 -> A46 | F170: Replacement | G170: =+_xlfn.IFNA(_xlfn.XLOOKUP('Input| Projects'!F170,$M$10:$M$20,$N$10:$N$20),"") -> Replacement | H170: Non-IT | I170: Not Applicable | J170: n/a | K170: 1
B171: 162 | C171: ='Input| Projects'!C171 -> Pole Replacement - replacement of limited life poles unsuitable for staking - LV | D171: ='Input| Projects'!D171 -> A536 | F171: Replacement | G171: =+_xlfn.IFNA(_xlfn.XLOOKUP('Input| Projects'!F171,$M$10:$M$20,$N$10:$N$20),"") -> Replacement | H171: Non-IT | I171: Not applicable | J171: n/a | K171: 1
B172: 163 | C172: ='Input| Projects'!C172 -> Pole Replacement - replacement of limited life poles unsuitable for staking - ST | D172: ='Input| Projects'!D172 -> A537 | F172: Replacement | G172: =+_xlfn.IFNA(_xlfn.XLOOKUP('Input| Projects'!F172,$M$10:$M$20,$N$10:$N$20),"") -> Replacement | H172: Non-IT | I172: Not applicable | J172: n/a | K172: 1
B173: 164 | C173: ='Input| Projects'!C173 -> RTU replacement programme | D173: ='Input| Projects'!D173 -> A113 | F173: Replacement | G173: =+_xlfn.IFNA(_xlfn.XLOOKUP('Input| Projects'!F173,$M$10:$M$20,$N$10:$N$20),"") -> Replacement | H173: Non-IT | I173: Not applicable | J173: n/a | K173: 1
B174: 165 | C174: ='Input| Projects'!C174 -> Supervisory cable and fibre optic cable replacement programme | D174: ='Input| Projects'!D174 -> A55 | F174: Replacement | G174: =+_xlfn.IFNA(_xlfn.XLOOKUP('Input| Projects'!F174,$M$10:$M$20,$N$10:$N$20),"") -> Replacement | H174: Non-IT | I174: Not applicable | J174: n/a | K174: 1
B175: 166 | C175: ='Input| Projects'!C175 -> New feeder ES0-031 | D175: ='Input| Projects'!D175 -> A132 | F175: Augmentation | G175: =+_xlfn.IFNA(_xlfn.XLOOKUP('Input| Projects'!F175,$M$10:$M$20,$N$10:$N$20),"") -> Augmentation | H175: Non-IT | I175: Not applicable | J175: n/a | K175: 1
B176: 167 | C176: ='Input| Projects'!C176 -> Replace zone substation fences | D176: ='Input| Projects'!D176 -> A15 | F176: Replacement | G176: =+_xlfn.IFNA(_xlfn.XLOOKUP('Input| Projects'!F176,$M$10:$M$20,$N$10:$N$20),"") -> Replacement | H176: Non-IT | I176: Not applicable | J176: n/a | K176: 1
B177: 168 | C177: ='Input| Projects'!C177 -> Primary plant condition monitoring equipment | D177: ='Input| Projects'!D177 -> A172 | F177: Other non-network capex | G177: =+_xlfn.IFNA(_xlfn.XLOOKUP('Input| Projects'!F177,$M$10:$M$20,$N$10:$N$20),"") -> Non-network | H177: Non-IT | I177: Not applicable | J177: n/a | K177: 1
B178: 169 | C178: ='Input| Projects'!C178 -> Replace CS 22kV switchgear (arc flash risk), 66kV isolators, 66kV CB, earth switch and transformer bushings | D178: ='Input| Projects'!D178 -> A19 | F178: Replacement | G178: =+_xlfn.IFNA(_xlfn.XLOOKUP('Input| Projects'!F178,$M$10:$M$20,$N$10:$N$20),"") -> Replacement | H178: Non-IT | I178: Not applicable | J178: n/a | K178: 1
B179: 170 | C179: ='Input| Projects'!C179 -> Procurement of strategic spares (primary) | D179: ='Input| Projects'!D179 -> A21 | F179: Replacement | G179: =+_xlfn.IFNA(_xlfn.XLOOKUP('Input| Projects'!F179,$M$10:$M$20,$N$10:$N$20),"") -> Replacement | H179: Non-IT | I179: Not applicable | J179: n/a | K179: 1
B180: 171 | C180: ='Input| Projects'!C180 -> Upgrade zone substation locks and security systems (swipe cards) | D180: ='Input| Projects'!D180 -> A173 | F180: Replacement | G180: =+_xlfn.IFNA(_xlfn.XLOOKUP('Input| Projects'!F180,$M$10:$M$20,$N$10:$N$20),"") -> Replacement | H180: Non-IT | I180: Not applicable | J180: n/a | K180: 1
B181: 172 | C181: ='Input| Projects'!C181 -> Augment feeder CS0-005 | D181: ='Input| Projects'!D181 -> A136 | F181: Augmentation | G181: =+_xlfn.IFNA(_xlfn.XLOOKUP('Input| Projects'!F181,$M$10:$M$20,$N$10:$N$20),"") -> Augmentation | H181: Non-IT | I181: Not applicable | J181: n/a | K181: 1
B182: 173 | C182: ='Input| Projects'!C182 -> Replace NH 22kV switchgear, 66kV CB, 66kV isolator and earth switch | D182: ='Input| Projects'!D182 -> A29 | F182: Replacement | G182: =+_xlfn.IFNA(_xlfn.XLOOKUP('Input| Projects'!F182,$M$10:$M$20,$N$10:$N$20),"") -> Replacement | H182: Non-IT | I182: Not applicable | J182: n/a | K182: 1
B183: 174 | C183: ='Input| Projects'!C183 -> EP Conversion Stage 8 | D183: ='Input| Projects'!D183 -> A112 | F183: Augmentation | G183: =+_xlfn.IFNA(_xlfn.XLOOKUP('Input| Projects'!F183,$M$10:$M$20,$N$10:$N$20),"") -> Augmentation | H183: Non-IT | I183: Not applicable | J183: n/a | K183: 1
B184: 175 | C184: ='Input| Projects'!C184 -> CN zone substation redevelopment | D184: ='Input| Projects'!D184 -> A31 | F184: Replacement | G184: =+_xlfn.IFNA(_xlfn.XLOOKUP('Input| Projects'!F184,$M$10:$M$20,$N$10:$N$20),"") -> Replacement | H184: Non-IT | I184: Not applicable | J184: n/a | K184: 1
B185: 176 | C185: ='Input| Projects'!C185 -> EP Conversion Stage 6 | D185: ='Input| Projects'!D185 -> A114 | F185: Augmentation | G185: =+_xlfn.IFNA(_xlfn.XLOOKUP('Input| Projects'!F185,$M$10:$M$20,$N$10:$N$20),"") -> Augmentation | H185: Non-IT | I185: Not Applicable | J185: n/a | K185: 1
B186: 177 | C186: ='Input| Projects'!C186 -> EP Conversion Stage 7 | D186: ='Input| Projects'!D186 -> A115 | F186: Augmentation | G186: =+_xlfn.IFNA(_xlfn.XLOOKUP('Input| Projects'!F186,$M$10:$M$20,$N$10:$N$20),"") -> Augmentation | H186: Non-IT | I186: Not applicable | J186: n/a | K186: 1
B187: 178 | C187: ='Input| Projects'!C187 -> Broadmeadows Property Augmentation Works | D187: ='Input| Projects'!D187 -> A180 | F187: Property capex | G187: =+_xlfn.IFNA(_xlfn.XLOOKUP('Input| Projects'!F187,$M$10:$M$20,$N$10:$N$20),"") -> Non-network | H187: Non-IT | I187: Not applicable | J187: n/a | K187: 1
B188: 179 | C188: ='Input| Projects'!C188 -> Tullamarine Property Augmentation Works | D188: ='Input| Projects'!D188 -> A963 | F188: Property capex | G188: =+_xlfn.IFNA(_xlfn.XLOOKUP('Input| Projects'!F188,$M$10:$M$20,$N$10:$N$20),"") -> Non-network | H188: Non-IT | I188: Not applicable | J188: n/a | K188: 1
B189: 180 | C189: ='Input| Projects'!C189 -> Collins St Property Augmentation Works | D189: ='Input| Projects'!D189 -> A964 | F189: Property capex | G189: =+_xlfn.IFNA(_xlfn.XLOOKUP('Input| Projects'!F189,$M$10:$M$20,$N$10:$N$20),"") -> Non-network | H189: Non-IT | I189: Not applicable | J189: n/a | K189: 1
B190: 181 | C190: ='Input| Projects'!C190 -> Make Good Provision | D190: ='Input| Projects'!D190 -> A965 | F190: Other non-network capex | G190: =+_xlfn.IFNA(_xlfn.XLOOKUP('Input| Projects'!F190,$M$10:$M$20,$N$10:$N$20),"") -> Non-network | H190: Non-IT | I190: Not applicable | J190: n/a | K190: 1
B191: 182 | C191: ='Input| Projects'!C191 -> Tullamarine Hotroom Works | D191: ='Input| Projects'!D191 -> A187 | F191: Property capex | G191: =+_xlfn.IFNA(_xlfn.XLOOKUP('Input| Projects'!F191,$M$10:$M$20,$N$10:$N$20),"") -> Non-network | H191: Non-IT | I191: Not Applicable | J191: n/a | K191: 1
B192: 183 | C192: ='Input| Projects'!C192 -> Stay Fitout Update Provision (Stay Provision) | D192: ='Input| Projects'!D192 -> A188 | F192: Property capex | G192: =+_xlfn.IFNA(_xlfn.XLOOKUP('Input| Projects'!F192,$M$10:$M$20,$N$10:$N$20),"") -> Non-network | H192: Non-IT | I192: Not applicable | J192: n/a | K192: 1
B193: 184 | C193: ='Input| Projects'!C193 -> Broadmeadows and Tullamarine Chair Replacements | D193: ='Input| Projects'!D193 -> A966 | F193: Other non-network capex | G193: =+_xlfn.IFNA(_xlfn.XLOOKUP('Input| Projects'!F193,$M$10:$M$20,$N$10:$N$20),"") -> Non-network | H193: Non-IT | I193: Not applicable | J193: n/a | K193: 1
B194: 185 | C194: ='Input| Projects'!C194 -> Collins St Control Room and SCADA Laboratory Expansion (Stay Provision) | D194: ='Input| Projects'!D194 -> A967 | F194: Property capex | G194: =+_xlfn.IFNA(_xlfn.XLOOKUP('Input| Projects'!F194,$M$10:$M$20,$N$10:$N$20),"") -> Non-network | H194: Non-IT | I194: Not applicable | J194: n/a | K194: 1
B195: 186 | C195: ='Input| Projects'!C195 -> Relocate Corporate Portion From Collins St Retaining Control Room Insitu (Partial Exit, Partial Stay Strategy) Provision) | D195: ='Input| Projects'!D195 -> A909 | F195: Property capex | G195: =+_xlfn.IFNA(_xlfn.XLOOKUP('Input| Projects'!F195,$M$10:$M$20,$N$10:$N$20),"") -> Non-network | H195: Non-IT | I195: Not applicable | J195: n/a | K195: 1
B196: 187 | C196: ='Input| Projects'!C196 -> Tullamarine UPS Replacement | D196: ='Input| Projects'!D196 -> A968 | F196: Other non-network capex | G196: =+_xlfn.IFNA(_xlfn.XLOOKUP('Input| Projects'!F196,$M$10:$M$20,$N$10:$N$20),"") -> Non-network | H196: Non-IT | I196: Not applicable | J196: n/a | K196: 1
B197: 188 | C197: ='Input| Projects'!C197 -> Upgrade Heidelberg Disaster Recovery Fitout and Electrical Backbone Infrastructure | D197: ='Input| Projects'!D197 -> A969 | F197: Property capex | G197: =+_xlfn.IFNA(_xlfn.XLOOKUP('Input| Projects'!F197,$M$10:$M$20,$N$10:$N$20),"") -> Non-network | H197: Non-IT | I197: Not applicable | J197: n/a | K197: 1
B198: 189 | C198: ='Input| Projects'!C198 -> DC07 - Brooklyn (Stage 1) | D198: ='Input| Projects'!D198 -> A30 | F198: Connections | G198: =+_xlfn.IFNA(_xlfn.XLOOKUP('Input| Projects'!F198,$M$10:$M$20,$N$10:$N$20),"") -> Connections | H198: Non-IT | I198: Legacy | J198: n/a | K198: 0
B199: 190 | C199: ='Input| Projects'!C199 -> DC17 - Keilor East (Stage 1) | D199: ='Input| Projects'!D199 -> A502 | F199: Connections | G199: =+_xlfn.IFNA(_xlfn.XLOOKUP('Input| Projects'!F199,$M$10:$M$20,$N$10:$N$20),"") -> Connections | H199: Non-IT | I199: Status 5 | J199: Firm offer | K199: 1
B200: 191 | C200: ='Input| Projects'!C200 -> ESG and Green Building Initiatives - Collins St, Broadmeadows and Tullamarine Sites | D200: ='Input| Projects'!D200 -> A219 | F200: Property capex | G200: =+_xlfn.IFNA(_xlfn.XLOOKUP('Input| Projects'!F200,$M$10:$M$20,$N$10:$N$20),"") -> Non-network | H200: Non-IT | I200: Not applicable | J200: n/a | K200: 1
B201: 192 | C201: ='Input| Projects'!C201 -> Tullamarine Depot Augmentation | D201: ='Input| Projects'!D201 -> A224 | F201: Property capex | G201: =+_xlfn.IFNA(_xlfn.XLOOKUP('Input| Projects'!F201,$M$10:$M$20,$N$10:$N$20),"") -> Non-network | H201: Non-IT | I201: Not applicable | J201: n/a | K201: 1
B202: 193 | C202: ='Input| Projects'!C202 -> DC19 - Yarraville | D202: ='Input| Projects'!D202 -> A449 | F202: Connections | G202: =+_xlfn.IFNA(_xlfn.XLOOKUP('Input| Projects'!F202,$M$10:$M$20,$N$10:$N$20),"") -> Connections | H202: Non-IT | I202: Status 2 | J202: =_xlfn.XLOOKUP(I202,$O$23:$O$33,$P$23:$P$33) -> Enquiry | K202: =_xlfn.XLOOKUP($I202,$O$10:$O$20,$P$10:$P$20,0) -> 0
B203: 194 | C203: ='Input| Projects'!C203 -> DC20 - Craigieburn | D203: ='Input| Projects'!D203 -> A452 | F203: Connections | G203: =+_xlfn.IFNA(_xlfn.XLOOKUP('Input| Projects'!F203,$M$10:$M$20,$N$10:$N$20),"") -> Connections | H203: Non-IT | I203: Status 5 | J203: Firm offer | K203: 1
B204: =IFERROR(B203+1,"") -> 195 | C204: ='Input| Projects'!C204 -> DC21 - Broadmeadows | D204: ='Input| Projects'!D204 -> A453 | F204: Connections | G204: =+_xlfn.IFNA(_xlfn.XLOOKUP('Input| Projects'!F204,$M$10:$M$20,$N$10:$N$20),"") -> Connections | H204: Non-IT | I204: Status 4 | J204: Enquiry | K204: 0
... 805 more rows

Sheet Input| Projects
C2: =IFERROR(Index!B2,"") -> AER Capex Forecast Model | D2: Sheet Validation | E2: ='Model Validation'!$C$10 -> 0 | I2: Key: | J2: Input | K2: Input - optional | L2: Formula - do not edit | M2: Jemena modification | N2: AER draft decision | O2: JEN - RP
C3: =IFERROR(MID(CELL("filename",B2),FIND("]",CELL("filename",B2))+1,255),"") -> Input| Projects
I5: ="Total annual direct costs excl. type 2 capcons, unescalated (note: please include type 1 capital contributions as defined in table "&LEFT('Input| Type 2 capcons'!B5,2)&" and rebates where applicable)" -> Total annual direct costs excl. type 2 capcons, unescalated (note: please include type 1 capital contributions as defined in table 24 and rebates where applicable) | R5: ="Total annual type 1 capital contributions, direct costs, unescalated (note: see table "&LEFT('Input| Type 2 capcons'!B5,2)&" for definitions of type 1 and 2 capcons)" -> Total annual type 1 capital contributions, direct costs, unescalated (note: see table 24 for definitions of type 1 and 2 capcons) | AG5: =IF(SUM(AG10:AG1009)=0,0,IF(SUM(AG10:AG1009)=1,0,1)) -> 0 | AH5: =IF(SUM(AH10:AH1009)=0,0,IF(SUM(AH10:AH1009)=1,0,1)) -> 0
J6: =SUM(J10:J1009) -> 255118.8674 | K6: =SUM(K10:K1009) -> 518736.589 | L6: 592186.2719 | M6: 490684.9312 | N6: 481806.1321 | O6: 505847.3117 | R6: =SUM(R10:R1009) -> 0 | S6: 108323.4277 | T6: 247324.0941 | U6: 296927.04 | V6: 256305.803 | W6: 256178.9196 | X6: 296365.6447 | AG6: ="NOTE: fill in table only if you select 'DNSP defined' overhead allocation in table "&LEFT('Input| Overheads'!B40,2) -> NOTE: fill in table only if you select 'DNSP defined' overhead allocation in table 35 | AT6: 1 | AU6: =AT6+1 -> 2 | AV6: =AU6+1 -> 3 | AW6: 4 | AX6: 5 | AY6: 6 | AZ6: 7 | BA6: 8 | BB6: 9 | BC6: 10 | BD6: 11 | BE6: 12 | BF6: 13 | BG6: 14 | BH6: 15 | BI6: 16 | BJ6: 17 | BK6: 18 | BL6: 19 | BM6: 20 | BN6: 21 | BO6: 22 | BP6: 23 | BQ6: 24 | BR6: 25 | BS6: =BR6+1 -> 26 | BT6: 27 | BU6: 28 | BV6: 29 | BW6: 30 | BX6: 31 | BY6: 32 | BZ6: 33 | CA6: 34 | CB6: 35 | CC6: 36 | CD6: 37 | CE6: 38 | CF6: 39 | CG6: 40 | CH6: 41 | CI6: 42 | CJ6: 43 | CK6: 44 | CL6: 45 | CM6: 46 | CN6: 47 | CO6: 48 | CP6: 49 | CQ6: 50
C7: =LEFT('Input| Escalations'!B22,2)+1&". Project Details" -> 13. Project Details | F7: =LEFT(C7,2)+1&". RIN and optional DNSP mapping categories" -> 14. RIN and optional DNSP mapping categories | I7: =IFERROR(LEFT(F7,2)+1&". Unescalated direct costs (excluding type 2 capital contributions) ($'000s "&'Input| Escalations'!$D$9&" "&'Input| Escalations'!$E$9&")","") -> 15. Unescalated direct costs (excluding type 2 capital contributions) ($'000s 2023-24 December) | P7: Type 1 | Q7: Type 1 | R7: =LEFT(I7,2)+1&". Type 1 capital contributions included in table "&LEFT(I7,2)&" ($'000s "&'Input| Escalations'!$D$9&" "&'Input| Escalations'!$E$9&")" -> 16. Type 1 capital contributions included in table 15 ($'000s 2023-24 December) | Z7: =LEFT(R7,2)+1&". Cost components as % of direct costs " -> 17. Cost components as % of direct costs | AD7: =LEFT(Z7,2)+1&". Capitalised overheads allocation" -> 18. Capitalised overheads allocation | AG7: =LEFT(AD7,2)+1&". Allocation of capitalised overheads - DNSP defined" -> 19. Allocation of capitalised overheads - DNSP defined | AJ7: =LEFT(AG7,2)+1&". AER categories as % of direct costs (i.e. total costs reported in table "&LEFT(I7,2)& ", excluding capitalised overheads)" -> 20. AER categories as % of direct costs (i.e. total costs reported in table 15, excluding capitalised overheads) | AT7: =LEFT(AJ7,2)+1&". PTRM asset classes as % of direct costs (i.e. total costs reported in table "&LEFT(I7,2)& ", excluding capitalised overheads)" -> 21. PTRM asset classes as % of direct costs (i.e. total costs reported in table 15, excluding capitalised overheads)
AC8: =IF(SUM(AC10:AC1009)=0,0,1) -> 0 | AG8: % of total capitalised overheads allocated to project: | AS8: =IF(SUM(AS10:AS1009)=0,0,1) -> 0 | AT8: =IFERROR(IF(VLOOKUP(AT$6,'Input| Setup'!$D$8:$F$57,3,0)=0,"",VLOOKUP(AT$6,'Input| Setup'!$D$8:$F$57,3,0)),"") -> Dx | AU8: =IFERROR(IF(VLOOKUP(AU$6,'Input| Setup'!$D$8:$F$57,3,0)=0,"",VLOOKUP(AU$6,'Input| Setup'!$D$8:$F$57,3,0)),"") -> Dx | AV8: =IFERROR(IF(VLOOKUP(AV$6,'Input| Setup'!$D$8:$F$57,3,0)=0,"",VLOOKUP(AV$6,'Input| Setup'!$D$8:$F$57,3,0)),"") -> Dx | AW8: =IFERROR(IF(VLOOKUP(AW$6,'Input| Setup'!$D$8:$F$57,3,0)=0,"",VLOOKUP(AW$6,'Input| Setup'!$D$8:$F$57,3,0)),"") -> Dx | AX8: =IFERROR(IF(VLOOKUP(AX$6,'Input| Setup'!$D$8:$F$57,3,0)=0,"",VLOOKUP(AX$6,'Input| Setup'!$D$8:$F$57,3,0)),"") -> Dx | AY8: =IFERROR(IF(VLOOKUP(AY$6,'Input| Setup'!$D$8:$F$57,3,0)=0,"",VLOOKUP(AY$6,'Input| Setup'!$D$8:$F$57,3,0)),"") -> Dx | AZ8: =IFERROR(IF(VLOOKUP(AZ$6,'Input| Setup'!$D$8:$F$57,3,0)=0,"",VLOOKUP(AZ$6,'Input| Setup'!$D$8:$F$57,3,0)),"") -> Dx | BA8: =IFERROR(IF(VLOOKUP(BA$6,'Input| Setup'!$D$8:$F$57,3,0)=0,"",VLOOKUP(BA$6,'Input| Setup'!$D$8:$F$57,3,0)),"") -> Dx | BB8: =IFERROR(IF(VLOOKUP(BB$6,'Input| Setup'!$D$8:$F$57,3,0)=0,"",VLOOKUP(BB$6,'Input| Setup'!$D$8:$F$57,3,0)),"") -> Dx | BC8: =IFERROR(IF(VLOOKUP(BC$6,'Input| Setup'!$D$8:$F$57,3,0)=0,"",VLOOKUP(BC$6,'Input| Setup'!$D$8:$F$57,3,0)),"") ->  | BD8: =IFERROR(IF(VLOOKUP(BD$6,'Input| Setup'!$D$8:$F$57,3,0)=0,"",VLOOKUP(BD$6,'Input| Setup'!$D$8:$F$57,3,0)),"") ->  | BE8: =IFERROR(IF(VLOOKUP(BE$6,'Input| Setup'!$D$8:$F$57,3,0)=0,"",VLOOKUP(BE$6,'Input| Setup'!$D$8:$F$57,3,0)),"") ->  | BF8: =IFERROR(IF(VLOOKUP(BF$6,'Input| Setup'!$D$8:$F$57,3,0)=0,"",VLOOKUP(BF$6,'Input| Setup'!$D$8:$F$57,3,0)),"") ->  | BG8: =IFERROR(IF(VLOOKUP(BG$6,'Input| Setup'!$D$8:$F$57,3,0)=0,"",VLOOKUP(BG$6,'Input| Setup'!$D$8:$F$57,3,0)),"") ->  | BH8: =IFERROR(IF(VLOOKUP(BH$6,'Input| Setup'!$D$8:$F$57,3,0)=0,"",VLOOKUP(BH$6,'Input| Setup'!$D$8:$F$57,3,0)),"") ->  | BI8: =IFERROR(IF(VLOOKUP(BI$6,'Input| Setup'!$D$8:$F$57,3,0)=0,"",VLOOKUP(BI$6,'Input| Setup'!$D$8:$F$57,3,0)),"") ->  | BJ8: =IFERROR(IF(VLOOKUP(BJ$6,'Input| Setup'!$D$8:$F$57,3,0)=0,"",VLOOKUP(BJ$6,'Input| Setup'!$D$8:$F$57,3,0)),"") ->  | BK8: =IFERROR(IF(VLOOKUP(BK$6,'Input| Setup'!$D$8:$F$57,3,0)=0,"",VLOOKUP(BK$6,'Input| Setup'!$D$8:$F$57,3,0)),"") ->  | BL8: =IFERROR(IF(VLOOKUP(BL$6,'Input| Setup'!$D$8:$F$57,3,0)=0,"",VLOOKUP(BL$6,'Input| Setup'!$D$8:$F$57,3,0)),"") ->  | BM8: =IFERROR(IF(VLOOKUP(BM$6,'Input| Setup'!$D$8:$F$57,3,0)=0,"",VLOOKUP(BM$6,'Input| Setup'!$D$8:$F$57,3,0)),"") ->  | BN8: =IFERROR(IF(VLOOKUP(BN$6,'Input| Setup'!$D$8:$F$57,3,0)=0,"",VLOOKUP(BN$6,'Input| Setup'!$D$8:$F$57,3,0)),"") ->  | BO8: =IFERROR(IF(VLOOKUP(BO$6,'Input| Setup'!$D$8:$F$57,3,0)=0,"",VLOOKUP(BO$6,'Input| Setup'!$D$8:$F$57,3,0)),"") ->  | BP8: =IFERROR(IF(VLOOKUP(BP$6,'Input| Setup'!$D$8:$F$57,3,0)=0,"",VLOOKUP(BP$6,'Input| Setup'!$D$8:$F$57,3,0)),"") ->  | BQ8: =IFERROR(IF(VLOOKUP(BQ$6,'Input| Setup'!$D$8:$F$57,3,0)=0,"",VLOOKUP(BQ$6,'Input| Setup'!$D$8:$F$57,3,0)),"") ->  | BR8: =IFERROR(IF(VLOOKUP(BR$6,'Input| Setup'!$D$8:$F$57,3,0)=0,"",VLOOKUP(BR$6,'Input| Setup'!$D$8:$F$57,3,0)),"") ->  | BS8: =IFERROR(IF(VLOOKUP(BS$6,'Input| Setup'!$D$8:$F$57,3,0)=0,"",VLOOKUP(BS$6,'Input| Setup'!$D$8:$F$57,3,0)),"") ->  | BT8: =IFERROR(IF(VLOOKUP(BT$6,'Input| Setup'!$D$8:$F$57,3,0)=0,"",VLOOKUP(BT$6,'Input| Setup'!$D$8:$F$57,3,0)),"") ->  | BU8: =IFERROR(IF(VLOOKUP(BU$6,'Input| Setup'!$D$8:$F$57,3,0)=0,"",VLOOKUP(BU$6,'Input| Setup'!$D$8:$F$57,3,0)),"") ->  | BV8: =IFERROR(IF(VLOOKUP(BV$6,'Input| Setup'!$D$8:$F$57,3,0)=0,"",VLOOKUP(BV$6,'Input| Setup'!$D$8:$F$57,3,0)),"") ->  | BW8: =IFERROR(IF(VLOOKUP(BW$6,'Input| Setup'!$D$8:$F$57,3,0)=0,"",VLOOKUP(BW$6,'Input| Setup'!$D$8:$F$57,3,0)),"") ->  | BX8: =IFERROR(IF(VLOOKUP(BX$6,'Input| Setup'!$D$8:$F$57,3,0)=0,"",VLOOKUP(BX$6,'Input| Setup'!$D$8:$F$57,3,0)),"") ->  | BY8: =IFERROR(IF(VLOOKUP(BY$6,'Input| Setup'!$D$8:$F$57,3,0)=0,"",VLOOKUP(BY$6,'Input| Setup'!$D$8:$F$57,3,0)),"") ->  | BZ8: =IFERROR(IF(VLOOKUP(BZ$6,'Input| Setup'!$D$8:$F$57,3,0)=0,"",VLOOKUP(BZ$6,'Input| Setup'!$D$8:$F$57,3,0)),"") ->  | CA8: =IFERROR(IF(VLOOKUP(CA$6,'Input| Setup'!$D$8:$F$57,3,0)=0,"",VLOOKUP(CA$6,'Input| Setup'!$D$8:$F$57,3,0)),"") ->  | CB8: =IFERROR(IF(VLOOKUP(CB$6,'Input| Setup'!$D$8:$F$57,3,0)=0,"",VLOOKUP(CB$6,'Input| Setup'!$D$8:$F$57,3,0)),"") ->  | CC8: =IFERROR(IF(VLOOKUP(CC$6,'Input| Setup'!$D$8:$F$57,3,0)=0,"",VLOOKUP(CC$6,'Input| Setup'!$D$8:$F$57,3,0)),"") ->  | CD8: =IFERROR(IF(VLOOKUP(CD$6,'Input| Setup'!$D$8:$F$57,3,0)=0,"",VLOOKUP(CD$6,'Input| Setup'!$D$8:$F$57,3,0)),"") ->  | CE8: =IFERROR(IF(VLOOKUP(CE$6,'Input| Setup'!$D$8:$F$57,3,0)=0,"",VLOOKUP(CE$6,'Input| Setup'!$D$8:$F$57,3,0)),"") ->  | CF8: =IFERROR(IF(VLOOKUP(CF$6,'Input| Setup'!$D$8:$F$57,3,0)=0,"",VLOOKUP(CF$6,'Input| Setup'!$D$8:$F$57,3,0)),"") ->  | CG8: =IFERROR(IF(VLOOKUP(CG$6,'Input| Setup'!$D$8:$F$57,3,0)=0,"",VLOOKUP(CG$6,'Input| Setup'!$D$8:$F$57,3,0)),"") ->  | CH8: =IFERROR(IF(VLOOKUP(CH$6,'Input| Setup'!$D$8:$F$57,3,0)=0,"",VLOOKUP(CH$6,'Input| Setup'!$D$8:$F$57,3,0)),"") ->  | CI8: =IFERROR(IF(VLOOKUP(CI$6,'Input| Setup'!$D$8:$F$57,3,0)=0,"",VLOOKUP(CI$6,'Input| Setup'!$D$8:$F$57,3,0)),"") ->  | CJ8: =IFERROR(IF(VLOOKUP(CJ$6,'Input| Setup'!$D$8:$F$57,3,0)=0,"",VLOOKUP(CJ$6,'Input| Setup'!$D$8:$F$57,3,0)),"") ->  | CK8: =IFERROR(IF(VLOOKUP(CK$6,'Input| Setup'!$D$8:$F$57,3,0)=0,"",VLOOKUP(CK$6,'Input| Setup'!$D$8:$F$57,3,0)),"") ->  | CL8: =IFERROR(IF(VLOOKUP(CL$6,'Input| Setup'!$D$8:$F$57,3,0)=0,"",VLOOKUP(CL$6,'Input| Setup'!$D$8:$F$57,3,0)),"") ->  | CM8: =IFERROR(IF(VLOOKUP(CM$6,'Input| Setup'!$D$8:$F$57,3,0)=0,"",VLOOKUP(CM$6,'Input| Setup'!$D$8:$F$57,3,0)),"") ->  | CN8: =IFERROR(IF(VLOOKUP(CN$6,'Input| Setup'!$D$8:$F$57,3,0)=0,"",VLOOKUP(CN$6,'Input| Setup'!$D$8:$F$57,3,0)),"") ->  | CO8: =IFERROR(IF(VLOOKUP(CO$6,'Input| Setup'!$D$8:$F$57,3,0)=0,"",VLOOKUP(CO$6,'Input| Setup'!$D$8:$F$57,3,0)),"") ->  | CP8: =IFERROR(IF(VLOOKUP(CP$6,'Input| Setup'!$D$8:$F$57,3,0)=0,"",VLOOKUP(CP$6,'Input| Setup'!$D$8:$F$57,3,0)),"") ->  | CQ8: =IFERROR(IF(VLOOKUP(CQ$6,'Input| Setup'!$D$8:$F$57,3,0)=0,"",VLOOKUP(CQ$6,'Input| Setup'!$D$8:$F$57,3,0)),"") ->  | CR8: =IF(SUM(CR10:CR1009)=0,0,1) -> 0
C9: Project/Program Inputs | D9: Unique ID | F9: =MID('Input| Setup'!B18, 4, LEN('Input| Setup'!B18)) -> RIN categories | G9: RAB Categories | I9: =IFERROR('Input| Escalations'!I24,"") -> 2024-25 | J9: =IFERROR('Input| Escalations'!J24,"") -> 2025-26 | K9: =IFERROR('Input| Escalations'!K24,"") -> 2026-27 | L9: =IFERROR('Input| Escalations'!L24,"") -> 2027-28 | M9: =IFERROR('Input| Escalations'!M24,"") -> 2028-29 | N9: =IFERROR('Input| Escalations'!N24,"") -> 2029-30 | O9: =IFERROR('Input| Escalations'!O24,"") -> 2030-31 | P9: Allocation% to FY24-FY25 | Q9: Allocation% to FY26-FY31 | R9: =IFERROR('Input| Escalations'!I24,"") -> 2024-25 | S9: =IFERROR('Input| Escalations'!J24,"") -> 2025-26 | T9: =IFERROR('Input| Escalations'!K24,"") -> 2026-27 | U9: =IFERROR('Input| Escalations'!L24,"") -> 2027-28 | V9: =IFERROR('Input| Escalations'!M24,"") -> 2028-29 | W9: =IFERROR('Input| Escalations'!N24,"") -> 2029-30 | X9: =IFERROR('Input| Escalations'!O24,"") -> 2030-31 | Z9: Internal labour | AA9: Contract labour | AB9: Non-labour | AD9: Network Overheads Applies | AE9: Corporate Overheads Applies | AG9: % of total network overheads | AH9: % of total corporate overheads | AJ9: =IF('Input| Setup'!B29="","!Check",'Input| Setup'!B29) -> Replacement | AK9: =IF('Input| Setup'!B30="","!Check",'Input| Setup'!B30) -> DER/CER capex | AL9: =IF('Input| Setup'!B31="","!Check",'Input| Setup'!B31) -> Augmentation | AM9: =IF('Input| Setup'!B32="","!Check",'Input| Setup'!B32) -> Connections | AN9: =IF('Input| Setup'!B33="","!Check",'Input| Setup'!B33) -> ICT capex | AO9: =IF('Input| Setup'!B34="","!Check",'Input| Setup'!B34) -> Property capex | AP9: =IF('Input| Setup'!B35="","!Check",'Input| Setup'!B35) -> Fleet capex | AQ9: =IF('Input| Setup'!B36="","!Check",'Input| Setup'!B36) -> Other non-network capex | AR9: =IF('Input| Setup'!B37="","!Check",'Input| Setup'!B37) -> Network resilience | AT9: =IFERROR(IF(VLOOKUP(AT$6,'Input| Setup'!$D$8:$E$57,2,0)=0,"",VLOOKUP(AT$6,'Input| Setup'!$D$8:$E$57,2,0)),"") -> Subtransmission | AU9: =IF(VLOOKUP(AU$6,'Input| Setup'!$D$8:$E$57,2,0)=0,"",VLOOKUP(AU$6,'Input| Setup'!$D$8:$E$57,2,0)) -> Distribution system assets | AV9: =IFERROR(IF(VLOOKUP(AV$6,'Input| Setup'!$D$8:$E$57,2,0)=0,"",VLOOKUP(AV$6,'Input| Setup'!$D$8:$E$57,2,0)),"") -> SCADA/Network control | AW9: =IFERROR(IF(VLOOKUP(AW$6,'Input| Setup'!$D$8:$E$57,2,0)=0,"",VLOOKUP(AW$6,'Input| Setup'!$D$8:$E$57,2,0)),"") -> Non network - IT | AX9: =IFERROR(IF(VLOOKUP(AX$6,'Input| Setup'!$D$8:$E$57,2,0)=0,"",VLOOKUP(AX$6,'Input| Setup'!$D$8:$E$57,2,0)),"") -> Non network - other | AY9: =IFERROR(IF(VLOOKUP(AY$6,'Input| Setup'!$D$8:$E$57,2,0)=0,"",VLOOKUP(AY$6,'Input| Setup'!$D$8:$E$57,2,0)),"") -> Land | AZ9: =IFERROR(IF(VLOOKUP(AZ$6,'Input| Setup'!$D$8:$E$57,2,0)=0,"",VLOOKUP(AZ$6,'Input| Setup'!$D$8:$E$57,2,0)),"") -> In-house software | BA9: =IFERROR(IF(VLOOKUP(BA$6,'Input| Setup'!$D$8:$E$57,2,0)=0,"",VLOOKUP(BA$6,'Input| Setup'!$D$8:$E$57,2,0)),"") -> Buildings - capital works | BB9: =IFERROR(IF(VLOOKUP(BB$6,'Input| Setup'!$D$8:$E$57,2,0)=0,"",VLOOKUP(BB$6,'Input| Setup'!$D$8:$E$57,2,0)),"") -> Concrete poles | BC9: =IFERROR(IF(VLOOKUP(BC$6,'Input| Setup'!$D$8:$E$57,2,0)=0,"",VLOOKUP(BC$6,'Input| Setup'!$D$8:$E$57,2,0)),"") ->  | BD9: =IFERROR(IF(VLOOKUP(BD$6,'Input| Setup'!$D$8:$E$57,2,0)=0,"",VLOOKUP(BD$6,'Input| Setup'!$D$8:$E$57,2,0)),"") ->  | BE9: =IFERROR(IF(VLOOKUP(BE$6,'Input| Setup'!$D$8:$E$57,2,0)=0,"",VLOOKUP(BE$6,'Input| Setup'!$D$8:$E$57,2,0)),"") ->  | BF9: =IFERROR(IF(VLOOKUP(BF$6,'Input| Setup'!$D$8:$E$57,2,0)=0,"",VLOOKUP(BF$6,'Input| Setup'!$D$8:$E$57,2,0)),"") ->  | BG9: =IFERROR(IF(VLOOKUP(BG$6,'Input| Setup'!$D$8:$E$57,2,0)=0,"",VLOOKUP(BG$6,'Input| Setup'!$D$8:$E$57,2,0)),"") ->  | BH9: =IFERROR(IF(VLOOKUP(BH$6,'Input| Setup'!$D$8:$E$57,2,0)=0,"",VLOOKUP(BH$6,'Input| Setup'!$D$8:$E$57,2,0)),"") ->  | BI9: =IFERROR(IF(VLOOKUP(BI$6,'Input| Setup'!$D$8:$E$57,2,0)=0,"",VLOOKUP(BI$6,'Input| Setup'!$D$8:$E$57,2,0)),"") ->  | BJ9: =IFERROR(IF(VLOOKUP(BJ$6,'Input| Setup'!$D$8:$E$57,2,0)=0,"",VLOOKUP(BJ$6,'Input| Setup'!$D$8:$E$57,2,0)),"") ->  | BK9: =IFERROR(IF(VLOOKUP(BK$6,'Input| Setup'!$D$8:$E$57,2,0)=0,"",VLOOKUP(BK$6,'Input| Setup'!$D$8:$E$57,2,0)),"") ->  | BL9: =IFERROR(IF(VLOOKUP(BL$6,'Input| Setup'!$D$8:$E$57,2,0)=0,"",VLOOKUP(BL$6,'Input| Setup'!$D$8:$E$57,2,0)),"") ->  | BM9: =IFERROR(IF(VLOOKUP(BM$6,'Input| Setup'!$D$8:$E$57,2,0)=0,"",VLOOKUP(BM$6,'Input| Setup'!$D$8:$E$57,2,0)),"") ->  | BN9: =IFERROR(IF(VLOOKUP(BN$6,'Input| Setup'!$D$8:$E$57,2,0)=0,"",VLOOKUP(BN$6,'Input| Setup'!$D$8:$E$57,2,0)),"") ->  | BO9: =IFERROR(IF(VLOOKUP(BO$6,'Input| Setup'!$D$8:$E$57,2,0)=0,"",VLOOKUP(BO$6,'Input| Setup'!$D$8:$E$57,2,0)),"") ->  | BP9: =IFERROR(IF(VLOOKUP(BP$6,'Input| Setup'!$D$8:$E$57,2,0)=0,"",VLOOKUP(BP$6,'Input| Setup'!$D$8:$E$57,2,0)),"") ->  | BQ9: =IFERROR(IF(VLOOKUP(BQ$6,'Input| Setup'!$D$8:$E$57,2,0)=0,"",VLOOKUP(BQ$6,'Input| Setup'!$D$8:$E$57,2,0)),"") ->  | BR9: =IFERROR(IF(VLOOKUP(BR$6,'Input| Setup'!$D$8:$E$57,2,0)=0,"",VLOOKUP(BR$6,'Input| Setup'!$D$8:$E$57,2,0)),"") ->  | BS9: =IFERROR(IF(VLOOKUP(BS$6,'Input| Setup'!$D$8:$E$57,2,0)=0,"",VLOOKUP(BS$6,'Input| Setup'!$D$8:$E$57,2,0)),"") ->  | BT9: =IFERROR(IF(VLOOKUP(BT$6,'Input| Setup'!$D$8:$E$57,2,0)=0,"",VLOOKUP(BT$6,'Input| Setup'!$D$8:$E$57,2,0)),"") ->  | BU9: =IFERROR(IF(VLOOKUP(BU$6,'Input| Setup'!$D$8:$E$57,2,0)=0,"",VLOOKUP(BU$6,'Input| Setup'!$D$8:$E$57,2,0)),"") ->  | BV9: =IFERROR(IF(VLOOKUP(BV$6,'Input| Setup'!$D$8:$E$57,2,0)=0,"",VLOOKUP(BV$6,'Input| Setup'!$D$8:$E$57,2,0)),"") ->  | BW9: =IFERROR(IF(VLOOKUP(BW$6,'Input| Setup'!$D$8:$E$57,2,0)=0,"",VLOOKUP(BW$6,'Input| Setup'!$D$8:$E$57,2,0)),"") ->  | BX9: =IFERROR(IF(VLOOKUP(BX$6,'Input| Setup'!$D$8:$E$57,2,0)=0,"",VLOOKUP(BX$6,'Input| Setup'!$D$8:$E$57,2,0)),"") ->  | BY9: =IFERROR(IF(VLOOKUP(BY$6,'Input| Setup'!$D$8:$E$57,2,0)=0,"",VLOOKUP(BY$6,'Input| Setup'!$D$8:$E$57,2,0)),"") ->  | BZ9: =IFERROR(IF(VLOOKUP(BZ$6,'Input| Setup'!$D$8:$E$57,2,0)=0,"",VLOOKUP(BZ$6,'Input| Setup'!$D$8:$E$57,2,0)),"") ->  | CA9: =IFERROR(IF(VLOOKUP(CA$6,'Input| Setup'!$D$8:$E$57,2,0)=0,"",VLOOKUP(CA$6,'Input| Setup'!$D$8:$E$57,2,0)),"") ->  | CB9: =IFERROR(IF(VLOOKUP(CB$6,'Input| Setup'!$D$8:$E$57,2,0)=0,"",VLOOKUP(CB$6,'Input| Setup'!$D$8:$E$57,2,0)),"") ->  | CC9: =IFERROR(IF(VLOOKUP(CC$6,'Input| Setup'!$D$8:$E$57,2,0)=0,"",VLOOKUP(CC$6,'Input| Setup'!$D$8:$E$57,2,0)),"") ->  | CD9: =IFERROR(IF(VLOOKUP(CD$6,'Input| Setup'!$D$8:$E$57,2,0)=0,"",VLOOKUP(CD$6,'Input| Setup'!$D$8:$E$57,2,0)),"") ->  | CE9: =IFERROR(IF(VLOOKUP(CE$6,'Input| Setup'!$D$8:$E$57,2,0)=0,"",VLOOKUP(CE$6,'Input| Setup'!$D$8:$E$57,2,0)),"") ->  | CF9: =IFERROR(IF(VLOOKUP(CF$6,'Input| Setup'!$D$8:$E$57,2,0)=0,"",VLOOKUP(CF$6,'Input| Setup'!$D$8:$E$57,2,0)),"") ->  | CG9: =IFERROR(IF(VLOOKUP(CG$6,'Input| Setup'!$D$8:$E$57,2,0)=0,"",VLOOKUP(CG$6,'Input| Setup'!$D$8:$E$57,2,0)),"") ->  | CH9: =IFERROR(IF(VLOOKUP(CH$6,'Input| Setup'!$D$8:$E$57,2,0)=0,"",VLOOKUP(CH$6,'Input| Setup'!$D$8:$E$57,2,0)),"") ->  | CI9: =IFERROR(IF(VLOOKUP(CI$6,'Input| Setup'!$D$8:$E$57,2,0)=0,"",VLOOKUP(CI$6,'Input| Setup'!$D$8:$E$57,2,0)),"") ->  | CJ9: =IFERROR(IF(VLOOKUP(CJ$6,'Input| Setup'!$D$8:$E$57,2,0)=0,"",VLOOKUP(CJ$6,'Input| Setup'!$D$8:$E$57,2,0)),"") ->  | CK9: =IFERROR(IF(VLOOKUP(CK$6,'Input| Setup'!$D$8:$E$57,2,0)=0,"",VLOOKUP(CK$6,'Input| Setup'!$D$8:$E$57,2,0)),"") ->  | CL9: =IFERROR(IF(VLOOKUP(CL$6,'Input| Setup'!$D$8:$E$57,2,0)=0,"",VLOOKUP(CL$6,'Input| Setup'!$D$8:$E$57,2,0)),"") ->  | CM9: =IFERROR(IF(VLOOKUP(CM$6,'Input| Setup'!$D$8:$E$57,2,0)=0,"",VLOOKUP(CM$6,'Input| Setup'!$D$8:$E$57,2,0)),"") ->  | CN9: =IFERROR(IF(VLOOKUP(CN$6,'Input| Setup'!$D$8:$E$57,2,0)=0,"",VLOOKUP(CN$6,'Input| Setup'!$D$8:$E$57,2,0)),"") ->  | CO9: =IFERROR(IF(VLOOKUP(CO$6,'Input| Setup'!$D$8:$E$57,2,0)=0,"",VLOOKUP(CO$6,'Input| Setup'!$D$8:$E$57,2,0)),"") ->  | CP9: =IFERROR(IF(VLOOKUP(CP$6,'Input| Setup'!$D$8:$E$57,2,0)=0,"",VLOOKUP(CP$6,'Input| Setup'!$D$8:$E$57,2,0)),"") ->  | CQ9: =IFERROR(IF(VLOOKUP(CQ$6,'Input| Setup'!$D$8:$E$57,2,0)=0,"",VLOOKUP(CQ$6,'Input| Setup'!$D$8:$E$57,2,0)),"") -> 
B10: 1 | C10: Ampact Connectors | D10: A444 | F10: Replacement | G10: Distribution system assets | J10: 30.60856986 | K10: 29.20665063 | L10: 29.20665063 | M10: 29.20665063 | N10: 29.20665063 | O10: 29.20665063 | P10: 0 | Q10: 0 | S10: =+$P10*J10 -> 0 | T10: =+$Q10*K10 -> 0 | U10: =+$Q10*L10 -> 0 | V10: =+$Q10*M10 -> 0 | W10: =+$Q10*N10 -> 0 | X10: =+$Q10*O10 -> 0 | Z10: 0.7086701207 | AA10: 0.04060608461 | AB10: 0.2507237947 | AC10: =IF(SUM(Z10:AB10,I10:O10)=0,"",IF(ROUND(SUM(Z10:AB10),4)=1,"",1)) ->  | AD10: Yes | AE10: No | AJ10: =IF('Input| JEN Mapping'!$F10='Input| Projects'!AJ$9,1,0) -> 1 | AK10: =IF('Input| JEN Mapping'!$F10='Input| Projects'!AK$9,1,0) -> 0 | AL10: =IF('Input| JEN Mapping'!$F10='Input| Projects'!AL$9,1,0) -> 0 | AM10: =IF('Input| JEN Mapping'!$F10='Input| Projects'!AM$9,1,0) -> 0 | AN10: =IF('Input| JEN Mapping'!$F10='Input| Projects'!AN$9,1,0) -> 0 | AO10: =IF('Input| JEN Mapping'!$F10='Input| Projects'!AO$9,1,0) -> 0 | AP10: =IF('Input| JEN Mapping'!$F10='Input| Projects'!AP$9,1,0) -> 0 | AQ10: =IF('Input| JEN Mapping'!$F10='Input| Projects'!AQ$9,1,0) -> 0 | AR10: =IF('Input| JEN Mapping'!$F10='Input| Projects'!AR$9,1,0) -> 0 | AT10: =IF($C10="","",IF($G10='Input| Projects'!AT$9,1,0)) -> 0 | AU10: =IF($C10="","",IF($G10='Input| Projects'!AU$9,1,0)) -> 1 | AV10: =IF($C10="","",IF($G10='Input| Projects'!AV$9,1,0)) -> 0 | AW10: =IF($C10="","",IF($G10='Input| Projects'!AW$9,1,0)) -> 0 | AX10: =IF($C10="","",IF($G10='Input| Projects'!AX$9,1,0)) -> 0 | AY10: =IF($C10="","",IF($G10='Input| Projects'!AY$9,1,0)) -> 0 | AZ10: =IF($C10="","",IF($G10='Input| Projects'!AZ$9,1,0)) -> 0 | BA10: =IF($C10="","",IF($G10='Input| Projects'!BA$9,1,0)) -> 0 | BB10: =IF($C10="","",IF($G10='Input| Projects'!BB$9,1,0)) -> 0 | BC10: =IF($C10="","",IF($G10='Input| Projects'!BC$9,1,0)) -> 0 | BD10: =IF($C10="","",IF($G10='Input| Projects'!BD$9,1,0)) -> 0 | BE10: =IF($C10="","",IF($G10='Input| Projects'!BE$9,1,0)) -> 0 | BF10: =IF($C10="","",IF($G10='Input| Projects'!BF$9,1,0)) -> 0 | BG10: =IF($C10="","",IF($G10='Input| Projects'!BG$9,1,0)) -> 0 | BH10: =IF($C10="","",IF($G10='Input| Projects'!BH$9,1,0)) -> 0 | BI10: =IF($C10="","",IF($G10='Input| Projects'!BI$9,1,0)) -> 0 | BJ10: =IF($C10="","",IF($G10='Input| Projects'!BJ$9,1,0)) -> 0 | BK10: =IF($C10="","",IF($G10='Input| Projects'!BK$9,1,0)) -> 0 | BL10: =IF($C10="","",IF($G10='Input| Projects'!BL$9,1,0)) -> 0 | BM10: =IF($C10="","",IF($G10='Input| Projects'!BM$9,1,0)) -> 0 | BN10: =IF($C10="","",IF($G10='Input| Projects'!BN$9,1,0)) -> 0 | BO10: =IF($C10="","",IF($G10='Input| Projects'!BO$9,1,0)) -> 0 | BP10: =IF($C10="","",IF($G10='Input| Projects'!BP$9,1,0)) -> 0 | BQ10: =IF($C10="","",IF($G10='Input| Projects'!BQ$9,1,0)) -> 0 | BR10: =IF($C10="","",IF($G10='Input| Projects'!BR$9,1,0)) -> 0 | BS10: =IF($C10="","",IF($G10='Input| Projects'!BS$9,1,0)) -> 0 | BT10: =IF($C10="","",IF($G10='Input| Projects'!BT$9,1,0)) -> 0 | BU10: =IF($C10="","",IF($G10='Input| Projects'!BU$9,1,0)) -> 0 | BV10: =IF($C10="","",IF($G10='Input| Projects'!BV$9,1,0)) -> 0 | BW10: =IF($C10="","",IF($G10='Input| Projects'!BW$9,1,0)) -> 0 | BX10: =IF($C10="","",IF($G10='Input| Projects'!BX$9,1,0)) -> 0 | BY10: =IF($C10="","",IF($G10='Input| Projects'!BY$9,1,0)) -> 0 | BZ10: =IF($C10="","",IF($G10='Input| Projects'!BZ$9,1,0)) -> 0 | CA10: =IF($C10="","",IF($G10='Input| Projects'!CA$9,1,0)) -> 0 | CB10: =IF($C10="","",IF($G10='Input| Projects'!CB$9,1,0)) -> 0 | CC10: =IF($C10="","",IF($G10='Input| Projects'!CC$9,1,0)) -> 0 | CD10: =IF($C10="","",IF($G10='Input| Projects'!CD$9,1,0)) -> 0 | CE10: =IF($C10="","",IF($G10='Input| Projects'!CE$9,1,0)) -> 0 | CF10: =IF($C10="","",IF($G10='Input| Projects'!CF$9,1,0)) -> 0 | CG10: =IF($C10="","",IF($G10='Input| Projects'!CG$9,1,0)) -> 0 | CH10: =IF($C10="","",IF($G10='Input| Projects'!CH$9,1,0)) -> 0 | CI10: =IF($C10="","",IF($G10='Input| Projects'!CI$9,1,0)) -> 0 | CJ10: =IF($C10="","",IF($G10='Input| Projects'!CJ$9,1,0)) -> 0 | CK10: =IF($C10="","",IF($G10='Input| Projects'!CK$9,1,0)) -> 0 | CL10: =IF($C10="","",IF($G10='Input| Projects'!CL$9,1,0)) -> 0 | CM10: =IF($C10="","",IF($G10='Input| Projects'!CM$9,1,0)) -> 0 | CN10: =IF($C10="","",IF($G10='Input| Projects'!CN$9,1,0)) -> 0 | CO10: =IF($C10="","",IF($G10='Input| Projects'!CO$9,1,0)) -> 0 | CP10: =IF($C10="","",IF($G10='Input| Projects'!CP$9,1,0)) -> 0 | CQ10: =IF($C10="","",IF($G10='Input| Projects'!CQ$9,1,0)) -> 0 | CR10: =IF(COUNT(AJ10:AR10)=0,"",IF(SUM(AJ10:AR10)=1,"",1)) -> 
B11: =IFERROR(B10+1,"") -> 2 | C11: LV Line Clash Mitigation | D11: A109 | F11: Replacement | G11: Distribution system assets | J11: 14.11652854 | K11: 13.46996998 | L11: 13.46996998 | M11: 13.46996998 | N11: 13.46996998 | O11: 13.46996998 | P11: 0 | Q11: 0 | S11: =+$P11*J11 -> 0 | T11: =+$Q11*K11 -> 0 | U11: 0 | V11: 0 | W11: 0 | X11: 0 | Z11: 0.6182578624 | AA11: 0.107044332 | AB11: 0.2746978056 | AC11: =IF(SUM(Z11:AB11,I11:O11)=0,"",IF(ROUND(SUM(Z11:AB11),4)=1,"",1)) ->  | AD11: Yes | AE11: No | AJ11: =IF('Input| JEN Mapping'!$F11='Input| Projects'!AJ$9,1,0) -> 1 | AK11: =IF('Input| JEN Mapping'!$F11='Input| Projects'!AK$9,1,0) -> 0 | AL11: =IF('Input| JEN Mapping'!$F11='Input| Projects'!AL$9,1,0) -> 0 | AM11: =IF('Input| JEN Mapping'!$F11='Input| Projects'!AM$9,1,0) -> 0 | AN11: =IF('Input| JEN Mapping'!$F11='Input| Projects'!AN$9,1,0) -> 0 | AO11: =IF('Input| JEN Mapping'!$F11='Input| Projects'!AO$9,1,0) -> 0 | AP11: =IF('Input| JEN Mapping'!$F11='Input| Projects'!AP$9,1,0) -> 0 | AQ11: =IF('Input| JEN Mapping'!$F11='Input| Projects'!AQ$9,1,0) -> 0 | AR11: =IF('Input| JEN Mapping'!$F11='Input| Projects'!AR$9,1,0) -> 0 | AT11: =IF($C11="","",IF($G11='Input| Projects'!AT$9,1,0)) -> 0 | AU11: =IF($C11="","",IF($G11='Input| Projects'!AU$9,1,0)) -> 1 | AV11: =IF($C11="","",IF($G11='Input| Projects'!AV$9,1,0)) -> 0 | AW11: =IF($C11="","",IF($G11='Input| Projects'!AW$9,1,0)) -> 0 | AX11: =IF($C11="","",IF($G11='Input| Projects'!AX$9,1,0)) -> 0 | AY11: =IF($C11="","",IF($G11='Input| Projects'!AY$9,1,0)) -> 0 | AZ11: =IF($C11="","",IF($G11='Input| Projects'!AZ$9,1,0)) -> 0 | BA11: =IF($C11="","",IF($G11='Input| Projects'!BA$9,1,0)) -> 0 | BB11: =IF($C11="","",IF($G11='Input| Projects'!BB$9,1,0)) -> 0 | BC11: =IF($C11="","",IF($G11='Input| Projects'!BC$9,1,0)) -> 0 | BD11: =IF($C11="","",IF($G11='Input| Projects'!BD$9,1,0)) -> 0 | BE11: =IF($C11="","",IF($G11='Input| Projects'!BE$9,1,0)) -> 0 | BF11: =IF($C11="","",IF($G11='Input| Projects'!BF$9,1,0)) -> 0 | BG11: =IF($C11="","",IF($G11='Input| Projects'!BG$9,1,0)) -> 0 | BH11: =IF($C11="","",IF($G11='Input| Projects'!BH$9,1,0)) -> 0 | BI11: =IF($C11="","",IF($G11='Input| Projects'!BI$9,1,0)) -> 0 | BJ11: =IF($C11="","",IF($G11='Input| Projects'!BJ$9,1,0)) -> 0 | BK11: =IF($C11="","",IF($G11='Input| Projects'!BK$9,1,0)) -> 0 | BL11: =IF($C11="","",IF($G11='Input| Projects'!BL$9,1,0)) -> 0 | BM11: =IF($C11="","",IF($G11='Input| Projects'!BM$9,1,0)) -> 0 | BN11: =IF($C11="","",IF($G11='Input| Projects'!BN$9,1,0)) -> 0 | BO11: =IF($C11="","",IF($G11='Input| Projects'!BO$9,1,0)) -> 0 | BP11: =IF($C11="","",IF($G11='Input| Projects'!BP$9,1,0)) -> 0 | BQ11: =IF($C11="","",IF($G11='Input| Projects'!BQ$9,1,0)) -> 0 | BR11: =IF($C11="","",IF($G11='Input| Projects'!BR$9,1,0)) -> 0 | BS11: =IF($C11="","",IF($G11='Input| Projects'!BS$9,1,0)) -> 0 | BT11: =IF($C11="","",IF($G11='Input| Projects'!BT$9,1,0)) -> 0 | BU11: =IF($C11="","",IF($G11='Input| Projects'!BU$9,1,0)) -> 0 | BV11: =IF($C11="","",IF($G11='Input| Projects'!BV$9,1,0)) -> 0 | BW11: =IF($C11="","",IF($G11='Input| Projects'!BW$9,1,0)) -> 0 | BX11: =IF($C11="","",IF($G11='Input| Projects'!BX$9,1,0)) -> 0 | BY11: =IF($C11="","",IF($G11='Input| Projects'!BY$9,1,0)) -> 0 | BZ11: =IF($C11="","",IF($G11='Input| Projects'!BZ$9,1,0)) -> 0 | CA11: =IF($C11="","",IF($G11='Input| Projects'!CA$9,1,0)) -> 0 | CB11: =IF($C11="","",IF($G11='Input| Projects'!CB$9,1,0)) -> 0 | CC11: =IF($C11="","",IF($G11='Input| Projects'!CC$9,1,0)) -> 0 | CD11: =IF($C11="","",IF($G11='Input| Projects'!CD$9,1,0)) -> 0 | CE11: =IF($C11="","",IF($G11='Input| Projects'!CE$9,1,0)) -> 0 | CF11: =IF($C11="","",IF($G11='Input| Projects'!CF$9,1,0)) -> 0 | CG11: =IF($C11="","",IF($G11='Input| Projects'!CG$9,1,0)) -> 0 | CH11: =IF($C11="","",IF($G11='Input| Projects'!CH$9,1,0)) -> 0 | CI11: =IF($C11="","",IF($G11='Input| Projects'!CI$9,1,0)) -> 0 | CJ11: =IF($C11="","",IF($G11='Input| Projects'!CJ$9,1,0)) -> 0 | CK11: =IF($C11="","",IF($G11='Input| Projects'!CK$9,1,0)) -> 0 | CL11: =IF($C11="","",IF($G11='Input| Projects'!CL$9,1,0)) -> 0 | CM11: =IF($C11="","",IF($G11='Input| Projects'!CM$9,1,0)) -> 0 | CN11: =IF($C11="","",IF($G11='Input| Projects'!CN$9,1,0)) -> 0 | CO11: =IF($C11="","",IF($G11='Input| Projects'!CO$9,1,0)) -> 0 | CP11: =IF($C11="","",IF($G11='Input| Projects'!CP$9,1,0)) -> 0 | CQ11: =IF($C11="","",IF($G11='Input| Projects'!CQ$9,1,0)) -> 0 | CR11: =IF(COUNT(AJ11:AR11)=0,"",IF(SUM(AJ11:AR11)=1,"",1)) -> 
B12: =IFERROR(B11+1,"") -> 3 | C12: Bird/Animal Proofing Net Assets | D12: A110 | F12: Replacement | G12: Distribution system assets | J12: 33.06092499 | K12: 31.54668415 | L12: 31.54668415 | M12: 31.54668415 | N12: 31.54668415 | O12: 31.54668415 | P12: 0 | Q12: 0 | S12: 0 | T12: 0 | U12: 0 | V12: 0 | W12: 0 | X12: 0 | Z12: 0.5275922981 | AA12: 0.1398786569 | AB12: 0.332529045 | AD12: Yes | AE12: No | AJ12: =IF('Input| JEN Mapping'!$F12='Input| Projects'!AJ$9,1,0) -> 1 | AK12: =IF('Input| JEN Mapping'!$F12='Input| Projects'!AK$9,1,0) -> 0 | AL12: =IF('Input| JEN Mapping'!$F12='Input| Projects'!AL$9,1,0) -> 0 | AM12: =IF('Input| JEN Mapping'!$F12='Input| Projects'!AM$9,1,0) -> 0 | AN12: =IF('Input| JEN Mapping'!$F12='Input| Projects'!AN$9,1,0) -> 0 | AO12: =IF('Input| JEN Mapping'!$F12='Input| Projects'!AO$9,1,0) -> 0 | AP12: =IF('Input| JEN Mapping'!$F12='Input| Projects'!AP$9,1,0) -> 0 | AQ12: =IF('Input| JEN Mapping'!$F12='Input| Projects'!AQ$9,1,0) -> 0 | AR12: =IF('Input| JEN Mapping'!$F12='Input| Projects'!AR$9,1,0) -> 0 | AT12: =IF($C12="","",IF($G12='Input| Projects'!AT$9,1,0)) -> 0 | AU12: =IF($C12="","",IF($G12='Input| Projects'!AU$9,1,0)) -> 1 | AV12: =IF($C12="","",IF($G12='Input| Projects'!AV$9,1,0)) -> 0 | AW12: =IF($C12="","",IF($G12='Input| Projects'!AW$9,1,0)) -> 0 | AX12: =IF($C12="","",IF($G12='Input| Projects'!AX$9,1,0)) -> 0 | AY12: =IF($C12="","",IF($G12='Input| Projects'!AY$9,1,0)) -> 0 | AZ12: =IF($C12="","",IF($G12='Input| Projects'!AZ$9,1,0)) -> 0 | BA12: =IF($C12="","",IF($G12='Input| Projects'!BA$9,1,0)) -> 0 | BB12: =IF($C12="","",IF($G12='Input| Projects'!BB$9,1,0)) -> 0 | BC12: =IF($C12="","",IF($G12='Input| Projects'!BC$9,1,0)) -> 0 | BD12: =IF($C12="","",IF($G12='Input| Projects'!BD$9,1,0)) -> 0 | BE12: =IF($C12="","",IF($G12='Input| Projects'!BE$9,1,0)) -> 0 | BF12: =IF($C12="","",IF($G12='Input| Projects'!BF$9,1,0)) -> 0 | BG12: =IF($C12="","",IF($G12='Input| Projects'!BG$9,1,0)) -> 0 | BH12: =IF($C12="","",IF($G12='Input| Projects'!BH$9,1,0)) -> 0 | BI12: =IF($C12="","",IF($G12='Input| Projects'!BI$9,1,0)) -> 0 | BJ12: =IF($C12="","",IF($G12='Input| Projects'!BJ$9,1,0)) -> 0 | BK12: =IF($C12="","",IF($G12='Input| Projects'!BK$9,1,0)) -> 0 | BL12: =IF($C12="","",IF($G12='Input| Projects'!BL$9,1,0)) -> 0 | BM12: =IF($C12="","",IF($G12='Input| Projects'!BM$9,1,0)) -> 0 | BN12: =IF($C12="","",IF($G12='Input| Projects'!BN$9,1,0)) -> 0 | BO12: =IF($C12="","",IF($G12='Input| Projects'!BO$9,1,0)) -> 0 | BP12: =IF($C12="","",IF($G12='Input| Projects'!BP$9,1,0)) -> 0 | BQ12: =IF($C12="","",IF($G12='Input| Projects'!BQ$9,1,0)) -> 0 | BR12: =IF($C12="","",IF($G12='Input| Projects'!BR$9,1,0)) -> 0 | BS12: =IF($C12="","",IF($G12='Input| Projects'!BS$9,1,0)) -> 0 | BT12: =IF($C12="","",IF($G12='Input| Projects'!BT$9,1,0)) -> 0 | BU12: =IF($C12="","",IF($G12='Input| Projects'!BU$9,1,0)) -> 0 | BV12: =IF($C12="","",IF($G12='Input| Projects'!BV$9,1,0)) -> 0 | BW12: =IF($C12="","",IF($G12='Input| Projects'!BW$9,1,0)) -> 0 | BX12: =IF($C12="","",IF($G12='Input| Projects'!BX$9,1,0)) -> 0 | BY12: =IF($C12="","",IF($G12='Input| Projects'!BY$9,1,0)) -> 0 | BZ12: =IF($C12="","",IF($G12='Input| Projects'!BZ$9,1,0)) -> 0 | CA12: =IF($C12="","",IF($G12='Input| Projects'!CA$9,1,0)) -> 0 | CB12: =IF($C12="","",IF($G12='Input| Projects'!CB$9,1,0)) -> 0 | CC12: =IF($C12="","",IF($G12='Input| Projects'!CC$9,1,0)) -> 0 | CD12: =IF($C12="","",IF($G12='Input| Projects'!CD$9,1,0)) -> 0 | CE12: =IF($C12="","",IF($G12='Input| Projects'!CE$9,1,0)) -> 0 | CF12: =IF($C12="","",IF($G12='Input| Projects'!CF$9,1,0)) -> 0 | CG12: =IF($C12="","",IF($G12='Input| Projects'!CG$9,1,0)) -> 0 | CH12: =IF($C12="","",IF($G12='Input| Projects'!CH$9,1,0)) -> 0 | CI12: =IF($C12="","",IF($G12='Input| Projects'!CI$9,1,0)) -> 0 | CJ12: =IF($C12="","",IF($G12='Input| Projects'!CJ$9,1,0)) -> 0 | CK12: =IF($C12="","",IF($G12='Input| Projects'!CK$9,1,0)) -> 0 | CL12: =IF($C12="","",IF($G12='Input| Projects'!CL$9,1,0)) -> 0 | CM12: =IF($C12="","",IF($G12='Input| Projects'!CM$9,1,0)) -> 0 | CN12: =IF($C12="","",IF($G12='Input| Projects'!CN$9,1,0)) -> 0 | CO12: =IF($C12="","",IF($G12='Input| Projects'!CO$9,1,0)) -> 0 | CP12: =IF($C12="","",IF($G12='Input| Projects'!CP$9,1,0)) -> 0 | CQ12: =IF($C12="","",IF($G12='Input| Projects'!CQ$9,1,0)) -> 0
B13: 4 | C13: Trans Pole Mounted Repl | D13: A140 | F13: Replacement | G13: Distribution system assets | J13: 819.0010341 | K13: 808.9897855 | L13: 808.9897855 | M13: 808.9897855 | N13: 808.9897855 | O13: 808.9897855 | P13: 0 | Q13: 0 | S13: 0 | T13: 0 | U13: 0 | V13: 0 | W13: 0 | X13: 0 | Z13: 0.35795902 | AA13: 0.1390705913 | AB13: 0.5029703887 | AD13: Yes | AE13: No | AJ13: =IF('Input| JEN Mapping'!$F13='Input| Projects'!AJ$9,1,0) -> 1 | AK13: =IF('Input| JEN Mapping'!$F13='Input| Projects'!AK$9,1,0) -> 0 | AL13: =IF('Input| JEN Mapping'!$F13='Input| Projects'!AL$9,1,0) -> 0 | AM13: =IF('Input| JEN Mapping'!$F13='Input| Projects'!AM$9,1,0) -> 0 | AN13: =IF('Input| JEN Mapping'!$F13='Input| Projects'!AN$9,1,0) -> 0 | AO13: =IF('Input| JEN Mapping'!$F13='Input| Projects'!AO$9,1,0) -> 0 | AP13: =IF('Input| JEN Mapping'!$F13='Input| Projects'!AP$9,1,0) -> 0 | AQ13: =IF('Input| JEN Mapping'!$F13='Input| Projects'!AQ$9,1,0) -> 0 | AR13: =IF('Input| JEN Mapping'!$F13='Input| Projects'!AR$9,1,0) -> 0 | AT13: =IF($C13="","",IF($G13='Input| Projects'!AT$9,1,0)) -> 0 | AU13: =IF($C13="","",IF($G13='Input| Projects'!AU$9,1,0)) -> 1 | AV13: =IF($C13="","",IF($G13='Input| Projects'!AV$9,1,0)) -> 0 | AW13: =IF($C13="","",IF($G13='Input| Projects'!AW$9,1,0)) -> 0 | AX13: =IF($C13="","",IF($G13='Input| Projects'!AX$9,1,0)) -> 0 | AY13: =IF($C13="","",IF($G13='Input| Projects'!AY$9,1,0)) -> 0 | AZ13: =IF($C13="","",IF($G13='Input| Projects'!AZ$9,1,0)) -> 0 | BA13: =IF($C13="","",IF($G13='Input| Projects'!BA$9,1,0)) -> 0 | BB13: =IF($C13="","",IF($G13='Input| Projects'!BB$9,1,0)) -> 0 | BC13: =IF($C13="","",IF($G13='Input| Projects'!BC$9,1,0)) -> 0 | BD13: =IF($C13="","",IF($G13='Input| Projects'!BD$9,1,0)) -> 0 | BE13: =IF($C13="","",IF($G13='Input| Projects'!BE$9,1,0)) -> 0 | BF13: =IF($C13="","",IF($G13='Input| Projects'!BF$9,1,0)) -> 0 | BG13: =IF($C13="","",IF($G13='Input| Projects'!BG$9,1,0)) -> 0 | BH13: =IF($C13="","",IF($G13='Input| Projects'!BH$9,1,0)) -> 0 | BI13: =IF($C13="","",IF($G13='Input| Projects'!BI$9,1,0)) -> 0 | BJ13: =IF($C13="","",IF($G13='Input| Projects'!BJ$9,1,0)) -> 0 | BK13: =IF($C13="","",IF($G13='Input| Projects'!BK$9,1,0)) -> 0 | BL13: =IF($C13="","",IF($G13='Input| Projects'!BL$9,1,0)) -> 0 | BM13: =IF($C13="","",IF($G13='Input| Projects'!BM$9,1,0)) -> 0 | BN13: =IF($C13="","",IF($G13='Input| Projects'!BN$9,1,0)) -> 0 | BO13: =IF($C13="","",IF($G13='Input| Projects'!BO$9,1,0)) -> 0 | BP13: =IF($C13="","",IF($G13='Input| Projects'!BP$9,1,0)) -> 0 | BQ13: =IF($C13="","",IF($G13='Input| Projects'!BQ$9,1,0)) -> 0 | BR13: =IF($C13="","",IF($G13='Input| Projects'!BR$9,1,0)) -> 0 | BS13: =IF($C13="","",IF($G13='Input| Projects'!BS$9,1,0)) -> 0 | BT13: =IF($C13="","",IF($G13='Input| Projects'!BT$9,1,0)) -> 0 | BU13: =IF($C13="","",IF($G13='Input| Projects'!BU$9,1,0)) -> 0 | BV13: =IF($C13="","",IF($G13='Input| Projects'!BV$9,1,0)) -> 0 | BW13: =IF($C13="","",IF($G13='Input| Projects'!BW$9,1,0)) -> 0 | BX13: =IF($C13="","",IF($G13='Input| Projects'!BX$9,1,0)) -> 0 | BY13: =IF($C13="","",IF($G13='Input| Projects'!BY$9,1,0)) -> 0 | BZ13: =IF($C13="","",IF($G13='Input| Projects'!BZ$9,1,0)) -> 0 | CA13: =IF($C13="","",IF($G13='Input| Projects'!CA$9,1,0)) -> 0 | CB13: =IF($C13="","",IF($G13='Input| Projects'!CB$9,1,0)) -> 0 | CC13: =IF($C13="","",IF($G13='Input| Projects'!CC$9,1,0)) -> 0 | CD13: =IF($C13="","",IF($G13='Input| Projects'!CD$9,1,0)) -> 0 | CE13: =IF($C13="","",IF($G13='Input| Projects'!CE$9,1,0)) -> 0 | CF13: =IF($C13="","",IF($G13='Input| Projects'!CF$9,1,0)) -> 0 | CG13: =IF($C13="","",IF($G13='Input| Projects'!CG$9,1,0)) -> 0 | CH13: =IF($C13="","",IF($G13='Input| Projects'!CH$9,1,0)) -> 0 | CI13: =IF($C13="","",IF($G13='Input| Projects'!CI$9,1,0)) -> 0 | CJ13: =IF($C13="","",IF($G13='Input| Projects'!CJ$9,1,0)) -> 0 | CK13: =IF($C13="","",IF($G13='Input| Projects'!CK$9,1,0)) -> 0 | CL13: =IF($C13="","",IF($G13='Input| Projects'!CL$9,1,0)) -> 0 | CM13: =IF($C13="","",IF($G13='Input| Projects'!CM$9,1,0)) -> 0 | CN13: =IF($C13="","",IF($G13='Input| Projects'!CN$9,1,0)) -> 0 | CO13: =IF($C13="","",IF($G13='Input| Projects'!CO$9,1,0)) -> 0 | CP13: =IF($C13="","",IF($G13='Input| Projects'!CP$9,1,0)) -> 0 | CQ13: =IF($C13="","",IF($G13='Input| Projects'!CQ$9,1,0)) -> 0
B14: 5 | C14: Trans Ground/Indoor Repl | D14: A243 | F14: Replacement | G14: Distribution system assets | J14: 370.2695391 | K14: 401.4003676 | L14: 401.4003676 | M14: 401.4003676 | N14: 401.4003676 | O14: 401.4003676 | P14: 0 | Q14: 0 | S14: 0 | T14: 0 | U14: 0 | V14: 0 | W14: 0 | X14: 0 | Z14: 0.2893376929 | AA14: 0.05863726527 | AB14: 0.6520250419 | AD14: Yes | AE14: No | AJ14: =IF('Input| JEN Mapping'!$F14='Input| Projects'!AJ$9,1,0) -> 1 | AK14: =IF('Input| JEN Mapping'!$F14='Input| Projects'!AK$9,1,0) -> 0 | AL14: =IF('Input| JEN Mapping'!$F14='Input| Projects'!AL$9,1,0) -> 0 | AM14: =IF('Input| JEN Mapping'!$F14='Input| Projects'!AM$9,1,0) -> 0 | AN14: =IF('Input| JEN Mapping'!$F14='Input| Projects'!AN$9,1,0) -> 0 | AO14: =IF('Input| JEN Mapping'!$F14='Input| Projects'!AO$9,1,0) -> 0 | AP14: =IF('Input| JEN Mapping'!$F14='Input| Projects'!AP$9,1,0) -> 0 | AQ14: =IF('Input| JEN Mapping'!$F14='Input| Projects'!AQ$9,1,0) -> 0 | AR14: =IF('Input| JEN Mapping'!$F14='Input| Projects'!AR$9,1,0) -> 0 | AT14: =IF($C14="","",IF($G14='Input| Projects'!AT$9,1,0)) -> 0 | AU14: =IF($C14="","",IF($G14='Input| Projects'!AU$9,1,0)) -> 1 | AV14: =IF($C14="","",IF($G14='Input| Projects'!AV$9,1,0)) -> 0 | AW14: =IF($C14="","",IF($G14='Input| Projects'!AW$9,1,0)) -> 0 | AX14: =IF($C14="","",IF($G14='Input| Projects'!AX$9,1,0)) -> 0 | AY14: =IF($C14="","",IF($G14='Input| Projects'!AY$9,1,0)) -> 0 | AZ14: =IF($C14="","",IF($G14='Input| Projects'!AZ$9,1,0)) -> 0 | BA14: =IF($C14="","",IF($G14='Input| Projects'!BA$9,1,0)) -> 0 | BB14: =IF($C14="","",IF($G14='Input| Projects'!BB$9,1,0)) -> 0 | BC14: =IF($C14="","",IF($G14='Input| Projects'!BC$9,1,0)) -> 0 | BD14: =IF($C14="","",IF($G14='Input| Projects'!BD$9,1,0)) -> 0 | BE14: =IF($C14="","",IF($G14='Input| Projects'!BE$9,1,0)) -> 0 | BF14: =IF($C14="","",IF($G14='Input| Projects'!BF$9,1,0)) -> 0 | BG14: =IF($C14="","",IF($G14='Input| Projects'!BG$9,1,0)) -> 0 | BH14: =IF($C14="","",IF($G14='Input| Projects'!BH$9,1,0)) -> 0 | BI14: =IF($C14="","",IF($G14='Input| Projects'!BI$9,1,0)) -> 0 | BJ14: =IF($C14="","",IF($G14='Input| Projects'!BJ$9,1,0)) -> 0 | BK14: =IF($C14="","",IF($G14='Input| Projects'!BK$9,1,0)) -> 0 | BL14: =IF($C14="","",IF($G14='Input| Projects'!BL$9,1,0)) -> 0 | BM14: =IF($C14="","",IF($G14='Input| Projects'!BM$9,1,0)) -> 0 | BN14: =IF($C14="","",IF($G14='Input| Projects'!BN$9,1,0)) -> 0 | BO14: =IF($C14="","",IF($G14='Input| Projects'!BO$9,1,0)) -> 0 | BP14: =IF($C14="","",IF($G14='Input| Projects'!BP$9,1,0)) -> 0 | BQ14: =IF($C14="","",IF($G14='Input| Projects'!BQ$9,1,0)) -> 0 | BR14: =IF($C14="","",IF($G14='Input| Projects'!BR$9,1,0)) -> 0 | BS14: =IF($C14="","",IF($G14='Input| Projects'!BS$9,1,0)) -> 0 | BT14: =IF($C14="","",IF($G14='Input| Projects'!BT$9,1,0)) -> 0 | BU14: =IF($C14="","",IF($G14='Input| Projects'!BU$9,1,0)) -> 0 | BV14: =IF($C14="","",IF($G14='Input| Projects'!BV$9,1,0)) -> 0 | BW14: =IF($C14="","",IF($G14='Input| Projects'!BW$9,1,0)) -> 0 | BX14: =IF($C14="","",IF($G14='Input| Projects'!BX$9,1,0)) -> 0 | BY14: =IF($C14="","",IF($G14='Input| Projects'!BY$9,1,0)) -> 0 | BZ14: =IF($C14="","",IF($G14='Input| Projects'!BZ$9,1,0)) -> 0 | CA14: =IF($C14="","",IF($G14='Input| Projects'!CA$9,1,0)) -> 0 | CB14: =IF($C14="","",IF($G14='Input| Projects'!CB$9,1,0)) -> 0 | CC14: =IF($C14="","",IF($G14='Input| Projects'!CC$9,1,0)) -> 0 | CD14: =IF($C14="","",IF($G14='Input| Projects'!CD$9,1,0)) -> 0 | CE14: =IF($C14="","",IF($G14='Input| Projects'!CE$9,1,0)) -> 0 | CF14: =IF($C14="","",IF($G14='Input| Projects'!CF$9,1,0)) -> 0 | CG14: =IF($C14="","",IF($G14='Input| Projects'!CG$9,1,0)) -> 0 | CH14: =IF($C14="","",IF($G14='Input| Projects'!CH$9,1,0)) -> 0 | CI14: =IF($C14="","",IF($G14='Input| Projects'!CI$9,1,0)) -> 0 | CJ14: =IF($C14="","",IF($G14='Input| Projects'!CJ$9,1,0)) -> 0 | CK14: =IF($C14="","",IF($G14='Input| Projects'!CK$9,1,0)) -> 0 | CL14: =IF($C14="","",IF($G14='Input| Projects'!CL$9,1,0)) -> 0 | CM14: =IF($C14="","",IF($G14='Input| Projects'!CM$9,1,0)) -> 0 | CN14: =IF($C14="","",IF($G14='Input| Projects'!CN$9,1,0)) -> 0 | CO14: =IF($C14="","",IF($G14='Input| Projects'!CO$9,1,0)) -> 0 | CP14: =IF($C14="","",IF($G14='Input| Projects'!CP$9,1,0)) -> 0 | CQ14: =IF($C14="","",IF($G14='Input| Projects'!CQ$9,1,0)) -> 0
B15: 6 | C15: Indoor/Kiosk Switch Repl | D15: A143 | F15: Replacement | G15: Distribution system assets | J15: 0 | K15: 204.6444125 | L15: 306.9666187 | M15: 306.9666187 | N15: 306.9666187 | O15: 306.9666187 | P15: 0 | Q15: 0 | S15: 0 | T15: 0 | U15: 0 | V15: 0 | W15: 0 | X15: 0 | Z15: 0.3367240405 | AA15: 0.05523869757 | AB15: 0.608037262 | AD15: Yes | AE15: No | AJ15: =IF('Input| JEN Mapping'!$F15='Input| Projects'!AJ$9,1,0) -> 1 | AK15: =IF('Input| JEN Mapping'!$F15='Input| Projects'!AK$9,1,0) -> 0 | AL15: =IF('Input| JEN Mapping'!$F15='Input| Projects'!AL$9,1,0) -> 0 | AM15: =IF('Input| JEN Mapping'!$F15='Input| Projects'!AM$9,1,0) -> 0 | AN15: =IF('Input| JEN Mapping'!$F15='Input| Projects'!AN$9,1,0) -> 0 | AO15: =IF('Input| JEN Mapping'!$F15='Input| Projects'!AO$9,1,0) -> 0 | AP15: =IF('Input| JEN Mapping'!$F15='Input| Projects'!AP$9,1,0) -> 0 | AQ15: =IF('Input| JEN Mapping'!$F15='Input| Projects'!AQ$9,1,0) -> 0 | AR15: =IF('Input| JEN Mapping'!$F15='Input| Projects'!AR$9,1,0) -> 0 | AT15: =IF($C15="","",IF($G15='Input| Projects'!AT$9,1,0)) -> 0 | AU15: =IF($C15="","",IF($G15='Input| Projects'!AU$9,1,0)) -> 1 | AV15: =IF($C15="","",IF($G15='Input| Projects'!AV$9,1,0)) -> 0 | AW15: =IF($C15="","",IF($G15='Input| Projects'!AW$9,1,0)) -> 0 | AX15: =IF($C15="","",IF($G15='Input| Projects'!AX$9,1,0)) -> 0 | AY15: =IF($C15="","",IF($G15='Input| Projects'!AY$9,1,0)) -> 0 | AZ15: =IF($C15="","",IF($G15='Input| Projects'!AZ$9,1,0)) -> 0 | BA15: =IF($C15="","",IF($G15='Input| Projects'!BA$9,1,0)) -> 0 | BB15: =IF($C15="","",IF($G15='Input| Projects'!BB$9,1,0)) -> 0 | BC15: =IF($C15="","",IF($G15='Input| Projects'!BC$9,1,0)) -> 0 | BD15: =IF($C15="","",IF($G15='Input| Projects'!BD$9,1,0)) -> 0 | BE15: =IF($C15="","",IF($G15='Input| Projects'!BE$9,1,0)) -> 0 | BF15: =IF($C15="","",IF($G15='Input| Projects'!BF$9,1,0)) -> 0 | BG15: =IF($C15="","",IF($G15='Input| Projects'!BG$9,1,0)) -> 0 | BH15: =IF($C15="","",IF($G15='Input| Projects'!BH$9,1,0)) -> 0 | BI15: =IF($C15="","",IF($G15='Input| Projects'!BI$9,1,0)) -> 0 | BJ15: =IF($C15="","",IF($G15='Input| Projects'!BJ$9,1,0)) -> 0 | BK15: =IF($C15="","",IF($G15='Input| Projects'!BK$9,1,0)) -> 0 | BL15: =IF($C15="","",IF($G15='Input| Projects'!BL$9,1,0)) -> 0 | BM15: =IF($C15="","",IF($G15='Input| Projects'!BM$9,1,0)) -> 0 | BN15: =IF($C15="","",IF($G15='Input| Projects'!BN$9,1,0)) -> 0 | BO15: =IF($C15="","",IF($G15='Input| Projects'!BO$9,1,0)) -> 0 | BP15: =IF($C15="","",IF($G15='Input| Projects'!BP$9,1,0)) -> 0 | BQ15: =IF($C15="","",IF($G15='Input| Projects'!BQ$9,1,0)) -> 0 | BR15: =IF($C15="","",IF($G15='Input| Projects'!BR$9,1,0)) -> 0 | BS15: =IF($C15="","",IF($G15='Input| Projects'!BS$9,1,0)) -> 0 | BT15: =IF($C15="","",IF($G15='Input| Projects'!BT$9,1,0)) -> 0 | BU15: =IF($C15="","",IF($G15='Input| Projects'!BU$9,1,0)) -> 0 | BV15: =IF($C15="","",IF($G15='Input| Projects'!BV$9,1,0)) -> 0 | BW15: =IF($C15="","",IF($G15='Input| Projects'!BW$9,1,0)) -> 0 | BX15: =IF($C15="","",IF($G15='Input| Projects'!BX$9,1,0)) -> 0 | BY15: =IF($C15="","",IF($G15='Input| Projects'!BY$9,1,0)) -> 0 | BZ15: =IF($C15="","",IF($G15='Input| Projects'!BZ$9,1,0)) -> 0 | CA15: =IF($C15="","",IF($G15='Input| Projects'!CA$9,1,0)) -> 0 | CB15: =IF($C15="","",IF($G15='Input| Projects'!CB$9,1,0)) -> 0 | CC15: =IF($C15="","",IF($G15='Input| Projects'!CC$9,1,0)) -> 0 | CD15: =IF($C15="","",IF($G15='Input| Projects'!CD$9,1,0)) -> 0 | CE15: =IF($C15="","",IF($G15='Input| Projects'!CE$9,1,0)) -> 0 | CF15: =IF($C15="","",IF($G15='Input| Projects'!CF$9,1,0)) -> 0 | CG15: =IF($C15="","",IF($G15='Input| Projects'!CG$9,1,0)) -> 0 | CH15: =IF($C15="","",IF($G15='Input| Projects'!CH$9,1,0)) -> 0 | CI15: =IF($C15="","",IF($G15='Input| Projects'!CI$9,1,0)) -> 0 | CJ15: =IF($C15="","",IF($G15='Input| Projects'!CJ$9,1,0)) -> 0 | CK15: =IF($C15="","",IF($G15='Input| Projects'!CK$9,1,0)) -> 0 | CL15: =IF($C15="","",IF($G15='Input| Projects'!CL$9,1,0)) -> 0 | CM15: =IF($C15="","",IF($G15='Input| Projects'!CM$9,1,0)) -> 0 | CN15: =IF($C15="","",IF($G15='Input| Projects'!CN$9,1,0)) -> 0 | CO15: =IF($C15="","",IF($G15='Input| Projects'!CO$9,1,0)) -> 0 | CP15: =IF($C15="","",IF($G15='Input| Projects'!CP$9,1,0)) -> 0 | CQ15: =IF($C15="","",IF($G15='Input| Projects'!CQ$9,1,0)) -> 0
B16: 7 | C16: LV Switchgear Replacement | D16: A142 | F16: Replacement | G16: Distribution system assets | J16: 30.81740152 | K16: 30.67552996 | L16: 30.67552996 | M16: 30.67552996 | N16: 30.67552996 | O16: 30.67552996 | P16: 0 | Q16: 0 | S16: 0 | T16: 0 | U16: 0 | V16: 0 | W16: 0 | X16: 0 | Z16: 0.6787591652 | AA16: 0 | AB16: 0.3212408348 | AD16: Yes | AE16: No | AJ16: =IF('Input| JEN Mapping'!$F16='Input| Projects'!AJ$9,1,0) -> 1 | AK16: =IF('Input| JEN Mapping'!$F16='Input| Projects'!AK$9,1,0) -> 0 | AL16: =IF('Input| JEN Mapping'!$F16='Input| Projects'!AL$9,1,0) -> 0 | AM16: =IF('Input| JEN Mapping'!$F16='Input| Projects'!AM$9,1,0) -> 0 | AN16: =IF('Input| JEN Mapping'!$F16='Input| Projects'!AN$9,1,0) -> 0 | AO16: =IF('Input| JEN Mapping'!$F16='Input| Projects'!AO$9,1,0) -> 0 | AP16: =IF('Input| JEN Mapping'!$F16='Input| Projects'!AP$9,1,0) -> 0 | AQ16: =IF('Input| JEN Mapping'!$F16='Input| Projects'!AQ$9,1,0) -> 0 | AR16: =IF('Input| JEN Mapping'!$F16='Input| Projects'!AR$9,1,0) -> 0 | AT16: =IF($C16="","",IF($G16='Input| Projects'!AT$9,1,0)) -> 0 | AU16: =IF($C16="","",IF($G16='Input| Projects'!AU$9,1,0)) -> 1 | AV16: =IF($C16="","",IF($G16='Input| Projects'!AV$9,1,0)) -> 0 | AW16: =IF($C16="","",IF($G16='Input| Projects'!AW$9,1,0)) -> 0 | AX16: =IF($C16="","",IF($G16='Input| Projects'!AX$9,1,0)) -> 0 | AY16: =IF($C16="","",IF($G16='Input| Projects'!AY$9,1,0)) -> 0 | AZ16: =IF($C16="","",IF($G16='Input| Projects'!AZ$9,1,0)) -> 0 | BA16: =IF($C16="","",IF($G16='Input| Projects'!BA$9,1,0)) -> 0 | BB16: =IF($C16="","",IF($G16='Input| Projects'!BB$9,1,0)) -> 0 | BC16: =IF($C16="","",IF($G16='Input| Projects'!BC$9,1,0)) -> 0 | BD16: =IF($C16="","",IF($G16='Input| Projects'!BD$9,1,0)) -> 0 | BE16: =IF($C16="","",IF($G16='Input| Projects'!BE$9,1,0)) -> 0 | BF16: =IF($C16="","",IF($G16='Input| Projects'!BF$9,1,0)) -> 0 | BG16: =IF($C16="","",IF($G16='Input| Projects'!BG$9,1,0)) -> 0 | BH16: =IF($C16="","",IF($G16='Input| Projects'!BH$9,1,0)) -> 0 | BI16: =IF($C16="","",IF($G16='Input| Projects'!BI$9,1,0)) -> 0 | BJ16: =IF($C16="","",IF($G16='Input| Projects'!BJ$9,1,0)) -> 0 | BK16: =IF($C16="","",IF($G16='Input| Projects'!BK$9,1,0)) -> 0 | BL16: =IF($C16="","",IF($G16='Input| Projects'!BL$9,1,0)) -> 0 | BM16: =IF($C16="","",IF($G16='Input| Projects'!BM$9,1,0)) -> 0 | BN16: =IF($C16="","",IF($G16='Input| Projects'!BN$9,1,0)) -> 0 | BO16: =IF($C16="","",IF($G16='Input| Projects'!BO$9,1,0)) -> 0 | BP16: =IF($C16="","",IF($G16='Input| Projects'!BP$9,1,0)) -> 0 | BQ16: =IF($C16="","",IF($G16='Input| Projects'!BQ$9,1,0)) -> 0 | BR16: =IF($C16="","",IF($G16='Input| Projects'!BR$9,1,0)) -> 0 | BS16: =IF($C16="","",IF($G16='Input| Projects'!BS$9,1,0)) -> 0 | BT16: =IF($C16="","",IF($G16='Input| Projects'!BT$9,1,0)) -> 0 | BU16: =IF($C16="","",IF($G16='Input| Projects'!BU$9,1,0)) -> 0 | BV16: =IF($C16="","",IF($G16='Input| Projects'!BV$9,1,0)) -> 0 | BW16: =IF($C16="","",IF($G16='Input| Projects'!BW$9,1,0)) -> 0 | BX16: =IF($C16="","",IF($G16='Input| Projects'!BX$9,1,0)) -> 0 | BY16: =IF($C16="","",IF($G16='Input| Projects'!BY$9,1,0)) -> 0 | BZ16: =IF($C16="","",IF($G16='Input| Projects'!BZ$9,1,0)) -> 0 | CA16: =IF($C16="","",IF($G16='Input| Projects'!CA$9,1,0)) -> 0 | CB16: =IF($C16="","",IF($G16='Input| Projects'!CB$9,1,0)) -> 0 | CC16: =IF($C16="","",IF($G16='Input| Projects'!CC$9,1,0)) -> 0 | CD16: =IF($C16="","",IF($G16='Input| Projects'!CD$9,1,0)) -> 0 | CE16: =IF($C16="","",IF($G16='Input| Projects'!CE$9,1,0)) -> 0 | CF16: =IF($C16="","",IF($G16='Input| Projects'!CF$9,1,0)) -> 0 | CG16: =IF($C16="","",IF($G16='Input| Projects'!CG$9,1,0)) -> 0 | CH16: =IF($C16="","",IF($G16='Input| Projects'!CH$9,1,0)) -> 0 | CI16: =IF($C16="","",IF($G16='Input| Projects'!CI$9,1,0)) -> 0 | CJ16: =IF($C16="","",IF($G16='Input| Projects'!CJ$9,1,0)) -> 0 | CK16: =IF($C16="","",IF($G16='Input| Projects'!CK$9,1,0)) -> 0 | CL16: =IF($C16="","",IF($G16='Input| Projects'!CL$9,1,0)) -> 0 | CM16: =IF($C16="","",IF($G16='Input| Projects'!CM$9,1,0)) -> 0 | CN16: =IF($C16="","",IF($G16='Input| Projects'!CN$9,1,0)) -> 0 | CO16: =IF($C16="","",IF($G16='Input| Projects'!CO$9,1,0)) -> 0 | CP16: =IF($C16="","",IF($G16='Input| Projects'!CP$9,1,0)) -> 0 | CQ16: =IF($C16="","",IF($G16='Input| Projects'!CQ$9,1,0)) -> 0
B17: 8 | C17: Gas Switch Replacement | D17: A144 | F17: Replacement | G17: Distribution system assets | J17: 0 | K17: 327.2480837 | L17: 684.619422 | M17: 684.619422 | N17: 684.619422 | O17: 684.619422 | P17: 0 | Q17: 0 | S17: 0 | T17: 0 | U17: 0 | V17: 0 | W17: 0 | X17: 0 | Z17: 0.4661741506 | AA17: 0.1252386906 | AB17: 0.4085871588 | AD17: Yes | AE17: No | AJ17: =IF('Input| JEN Mapping'!$F17='Input| Projects'!AJ$9,1,0) -> 1 | AK17: =IF('Input| JEN Mapping'!$F17='Input| Projects'!AK$9,1,0) -> 0 | AL17: =IF('Input| JEN Mapping'!$F17='Input| Projects'!AL$9,1,0) -> 0 | AM17: =IF('Input| JEN Mapping'!$F17='Input| Projects'!AM$9,1,0) -> 0 | AN17: =IF('Input| JEN Mapping'!$F17='Input| Projects'!AN$9,1,0) -> 0 | AO17: =IF('Input| JEN Mapping'!$F17='Input| Projects'!AO$9,1,0) -> 0 | AP17: =IF('Input| JEN Mapping'!$F17='Input| Projects'!AP$9,1,0) -> 0 | AQ17: =IF('Input| JEN Mapping'!$F17='Input| Projects'!AQ$9,1,0) -> 0 | AR17: =IF('Input| JEN Mapping'!$F17='Input| Projects'!AR$9,1,0) -> 0 | AT17: =IF($C17="","",IF($G17='Input| Projects'!AT$9,1,0)) -> 0 | AU17: =IF($C17="","",IF($G17='Input| Projects'!AU$9,1,0)) -> 1 | AV17: =IF($C17="","",IF($G17='Input| Projects'!AV$9,1,0)) -> 0 | AW17: =IF($C17="","",IF($G17='Input| Projects'!AW$9,1,0)) -> 0 | AX17: =IF($C17="","",IF($G17='Input| Projects'!AX$9,1,0)) -> 0 | AY17: =IF($C17="","",IF($G17='Input| Projects'!AY$9,1,0)) -> 0 | AZ17: =IF($C17="","",IF($G17='Input| Projects'!AZ$9,1,0)) -> 0 | BA17: =IF($C17="","",IF($G17='Input| Projects'!BA$9,1,0)) -> 0 | BB17: =IF($C17="","",IF($G17='Input| Projects'!BB$9,1,0)) -> 0 | BC17: =IF($C17="","",IF($G17='Input| Projects'!BC$9,1,0)) -> 0 | BD17: =IF($C17="","",IF($G17='Input| Projects'!BD$9,1,0)) -> 0 | BE17: =IF($C17="","",IF($G17='Input| Projects'!BE$9,1,0)) -> 0 | BF17: =IF($C17="","",IF($G17='Input| Projects'!BF$9,1,0)) -> 0 | BG17: =IF($C17="","",IF($G17='Input| Projects'!BG$9,1,0)) -> 0 | BH17: =IF($C17="","",IF($G17='Input| Projects'!BH$9,1,0)) -> 0 | BI17: =IF($C17="","",IF($G17='Input| Projects'!BI$9,1,0)) -> 0 | BJ17: =IF($C17="","",IF($G17='Input| Projects'!BJ$9,1,0)) -> 0 | BK17: =IF($C17="","",IF($G17='Input| Projects'!BK$9,1,0)) -> 0 | BL17: =IF($C17="","",IF($G17='Input| Projects'!BL$9,1,0)) -> 0 | BM17: =IF($C17="","",IF($G17='Input| Projects'!BM$9,1,0)) -> 0 | BN17: =IF($C17="","",IF($G17='Input| Projects'!BN$9,1,0)) -> 0 | BO17: =IF($C17="","",IF($G17='Input| Projects'!BO$9,1,0)) -> 0 | BP17: =IF($C17="","",IF($G17='Input| Projects'!BP$9,1,0)) -> 0 | BQ17: =IF($C17="","",IF($G17='Input| Projects'!BQ$9,1,0)) -> 0 | BR17: =IF($C17="","",IF($G17='Input| Projects'!BR$9,1,0)) -> 0 | BS17: =IF($C17="","",IF($G17='Input| Projects'!BS$9,1,0)) -> 0 | BT17: =IF($C17="","",IF($G17='Input| Projects'!BT$9,1,0)) -> 0 | BU17: =IF($C17="","",IF($G17='Input| Projects'!BU$9,1,0)) -> 0 | BV17: =IF($C17="","",IF($G17='Input| Projects'!BV$9,1,0)) -> 0 | BW17: =IF($C17="","",IF($G17='Input| Projects'!BW$9,1,0)) -> 0 | BX17: =IF($C17="","",IF($G17='Input| Projects'!BX$9,1,0)) -> 0 | BY17: =IF($C17="","",IF($G17='Input| Projects'!BY$9,1,0)) -> 0 | BZ17: =IF($C17="","",IF($G17='Input| Projects'!BZ$9,1,0)) -> 0 | CA17: =IF($C17="","",IF($G17='Input| Projects'!CA$9,1,0)) -> 0 | CB17: =IF($C17="","",IF($G17='Input| Projects'!CB$9,1,0)) -> 0 | CC17: =IF($C17="","",IF($G17='Input| Projects'!CC$9,1,0)) -> 0 | CD17: =IF($C17="","",IF($G17='Input| Projects'!CD$9,1,0)) -> 0 | CE17: =IF($C17="","",IF($G17='Input| Projects'!CE$9,1,0)) -> 0 | CF17: =IF($C17="","",IF($G17='Input| Projects'!CF$9,1,0)) -> 0 | CG17: =IF($C17="","",IF($G17='Input| Projects'!CG$9,1,0)) -> 0 | CH17: =IF($C17="","",IF($G17='Input| Projects'!CH$9,1,0)) -> 0 | CI17: =IF($C17="","",IF($G17='Input| Projects'!CI$9,1,0)) -> 0 | CJ17: =IF($C17="","",IF($G17='Input| Projects'!CJ$9,1,0)) -> 0 | CK17: =IF($C17="","",IF($G17='Input| Projects'!CK$9,1,0)) -> 0 | CL17: =IF($C17="","",IF($G17='Input| Projects'!CL$9,1,0)) -> 0 | CM17: =IF($C17="","",IF($G17='Input| Projects'!CM$9,1,0)) -> 0 | CN17: =IF($C17="","",IF($G17='Input| Projects'!CN$9,1,0)) -> 0 | CO17: =IF($C17="","",IF($G17='Input| Projects'!CO$9,1,0)) -> 0 | CP17: =IF($C17="","",IF($G17='Input| Projects'!CP$9,1,0)) -> 0 | CQ17: =IF($C17="","",IF($G17='Input| Projects'!CQ$9,1,0)) -> 0
B18: 9 | C18: HV Isolators Replacement | D18: A147 | F18: Replacement | G18: Distribution system assets | J18: 395.0143939 | K18: 457.410578 | L18: 457.410578 | M18: 457.410578 | N18: 457.410578 | O18: 457.410578 | P18: 0 | Q18: 0 | S18: 0 | T18: 0 | U18: 0 | V18: 0 | W18: 0 | X18: 0 | Z18: 0.5386705125 | AA18: 0.2286211396 | AB18: 0.2327083479 | AD18: Yes | AE18: No | AJ18: =IF('Input| JEN Mapping'!$F18='Input| Projects'!AJ$9,1,0) -> 1 | AK18: =IF('Input| JEN Mapping'!$F18='Input| Projects'!AK$9,1,0) -> 0 | AL18: =IF('Input| JEN Mapping'!$F18='Input| Projects'!AL$9,1,0) -> 0 | AM18: =IF('Input| JEN Mapping'!$F18='Input| Projects'!AM$9,1,0) -> 0 | AN18: =IF('Input| JEN Mapping'!$F18='Input| Projects'!AN$9,1,0) -> 0 | AO18: =IF('Input| JEN Mapping'!$F18='Input| Projects'!AO$9,1,0) -> 0 | AP18: =IF('Input| JEN Mapping'!$F18='Input| Projects'!AP$9,1,0) -> 0 | AQ18: =IF('Input| JEN Mapping'!$F18='Input| Projects'!AQ$9,1,0) -> 0 | AR18: =IF('Input| JEN Mapping'!$F18='Input| Projects'!AR$9,1,0) -> 0 | AT18: =IF($C18="","",IF($G18='Input| Projects'!AT$9,1,0)) -> 0 | AU18: =IF($C18="","",IF($G18='Input| Projects'!AU$9,1,0)) -> 1 | AV18: =IF($C18="","",IF($G18='Input| Projects'!AV$9,1,0)) -> 0 | AW18: =IF($C18="","",IF($G18='Input| Projects'!AW$9,1,0)) -> 0 | AX18: =IF($C18="","",IF($G18='Input| Projects'!AX$9,1,0)) -> 0 | AY18: =IF($C18="","",IF($G18='Input| Projects'!AY$9,1,0)) -> 0 | AZ18: =IF($C18="","",IF($G18='Input| Projects'!AZ$9,1,0)) -> 0 | BA18: =IF($C18="","",IF($G18='Input| Projects'!BA$9,1,0)) -> 0 | BB18: =IF($C18="","",IF($G18='Input| Projects'!BB$9,1,0)) -> 0 | BC18: =IF($C18="","",IF($G18='Input| Projects'!BC$9,1,0)) -> 0 | BD18: =IF($C18="","",IF($G18='Input| Projects'!BD$9,1,0)) -> 0 | BE18: =IF($C18="","",IF($G18='Input| Projects'!BE$9,1,0)) -> 0 | BF18: =IF($C18="","",IF($G18='Input| Projects'!BF$9,1,0)) -> 0 | BG18: =IF($C18="","",IF($G18='Input| Projects'!BG$9,1,0)) -> 0 | BH18: =IF($C18="","",IF($G18='Input| Projects'!BH$9,1,0)) -> 0 | BI18: =IF($C18="","",IF($G18='Input| Projects'!BI$9,1,0)) -> 0 | BJ18: =IF($C18="","",IF($G18='Input| Projects'!BJ$9,1,0)) -> 0 | BK18: =IF($C18="","",IF($G18='Input| Projects'!BK$9,1,0)) -> 0 | BL18: =IF($C18="","",IF($G18='Input| Projects'!BL$9,1,0)) -> 0 | BM18: =IF($C18="","",IF($G18='Input| Projects'!BM$9,1,0)) -> 0 | BN18: =IF($C18="","",IF($G18='Input| Projects'!BN$9,1,0)) -> 0 | BO18: =IF($C18="","",IF($G18='Input| Projects'!BO$9,1,0)) -> 0 | BP18: =IF($C18="","",IF($G18='Input| Projects'!BP$9,1,0)) -> 0 | BQ18: =IF($C18="","",IF($G18='Input| Projects'!BQ$9,1,0)) -> 0 | BR18: =IF($C18="","",IF($G18='Input| Projects'!BR$9,1,0)) -> 0 | BS18: =IF($C18="","",IF($G18='Input| Projects'!BS$9,1,0)) -> 0 | BT18: =IF($C18="","",IF($G18='Input| Projects'!BT$9,1,0)) -> 0 | BU18: =IF($C18="","",IF($G18='Input| Projects'!BU$9,1,0)) -> 0 | BV18: =IF($C18="","",IF($G18='Input| Projects'!BV$9,1,0)) -> 0 | BW18: =IF($C18="","",IF($G18='Input| Projects'!BW$9,1,0)) -> 0 | BX18: =IF($C18="","",IF($G18='Input| Projects'!BX$9,1,0)) -> 0 | BY18: =IF($C18="","",IF($G18='Input| Projects'!BY$9,1,0)) -> 0 | BZ18: =IF($C18="","",IF($G18='Input| Projects'!BZ$9,1,0)) -> 0 | CA18: =IF($C18="","",IF($G18='Input| Projects'!CA$9,1,0)) -> 0 | CB18: =IF($C18="","",IF($G18='Input| Projects'!CB$9,1,0)) -> 0 | CC18: =IF($C18="","",IF($G18='Input| Projects'!CC$9,1,0)) -> 0 | CD18: =IF($C18="","",IF($G18='Input| Projects'!CD$9,1,0)) -> 0 | CE18: =IF($C18="","",IF($G18='Input| Projects'!CE$9,1,0)) -> 0 | CF18: =IF($C18="","",IF($G18='Input| Projects'!CF$9,1,0)) -> 0 | CG18: =IF($C18="","",IF($G18='Input| Projects'!CG$9,1,0)) -> 0 | CH18: =IF($C18="","",IF($G18='Input| Projects'!CH$9,1,0)) -> 0 | CI18: =IF($C18="","",IF($G18='Input| Projects'!CI$9,1,0)) -> 0 | CJ18: =IF($C18="","",IF($G18='Input| Projects'!CJ$9,1,0)) -> 0 | CK18: =IF($C18="","",IF($G18='Input| Projects'!CK$9,1,0)) -> 0 | CL18: =IF($C18="","",IF($G18='Input| Projects'!CL$9,1,0)) -> 0 | CM18: =IF($C18="","",IF($G18='Input| Projects'!CM$9,1,0)) -> 0 | CN18: =IF($C18="","",IF($G18='Input| Projects'!CN$9,1,0)) -> 0 | CO18: =IF($C18="","",IF($G18='Input| Projects'!CO$9,1,0)) -> 0 | CP18: =IF($C18="","",IF($G18='Input| Projects'!CP$9,1,0)) -> 0 | CQ18: =IF($C18="","",IF($G18='Input| Projects'!CQ$9,1,0)) -> 0
B19: 10 | C19: Transformer/Subs Kiosk Repl | D19: A148 | F19: Replacement | G19: Distribution system assets | J19: 237.8914089 | K19: 471.4222469 | L19: 471.4222469 | M19: 471.4222469 | N19: 471.4222469 | O19: 471.4222469 | P19: 0 | Q19: 0 | S19: 0 | T19: 0 | U19: 0 | V19: 0 | W19: 0 | X19: 0 | Z19: 0.1989005701 | AA19: 0.07241785301 | AB19: 0.7286815769 | AD19: Yes | AE19: No | AJ19: =IF('Input| JEN Mapping'!$F19='Input| Projects'!AJ$9,1,0) -> 1 | AK19: =IF('Input| JEN Mapping'!$F19='Input| Projects'!AK$9,1,0) -> 0 | AL19: =IF('Input| JEN Mapping'!$F19='Input| Projects'!AL$9,1,0) -> 0 | AM19: =IF('Input| JEN Mapping'!$F19='Input| Projects'!AM$9,1,0) -> 0 | AN19: =IF('Input| JEN Mapping'!$F19='Input| Projects'!AN$9,1,0) -> 0 | AO19: =IF('Input| JEN Mapping'!$F19='Input| Projects'!AO$9,1,0) -> 0 | AP19: =IF('Input| JEN Mapping'!$F19='Input| Projects'!AP$9,1,0) -> 0 | AQ19: =IF('Input| JEN Mapping'!$F19='Input| Projects'!AQ$9,1,0) -> 0 | AR19: =IF('Input| JEN Mapping'!$F19='Input| Projects'!AR$9,1,0) -> 0 | AT19: =IF($C19="","",IF($G19='Input| Projects'!AT$9,1,0)) -> 0 | AU19: =IF($C19="","",IF($G19='Input| Projects'!AU$9,1,0)) -> 1 | AV19: =IF($C19="","",IF($G19='Input| Projects'!AV$9,1,0)) -> 0 | AW19: =IF($C19="","",IF($G19='Input| Projects'!AW$9,1,0)) -> 0 | AX19: =IF($C19="","",IF($G19='Input| Projects'!AX$9,1,0)) -> 0 | AY19: =IF($C19="","",IF($G19='Input| Projects'!AY$9,1,0)) -> 0 | AZ19: =IF($C19="","",IF($G19='Input| Projects'!AZ$9,1,0)) -> 0 | BA19: =IF($C19="","",IF($G19='Input| Projects'!BA$9,1,0)) -> 0 | BB19: =IF($C19="","",IF($G19='Input| Projects'!BB$9,1,0)) -> 0 | BC19: =IF($C19="","",IF($G19='Input| Projects'!BC$9,1,0)) -> 0 | BD19: =IF($C19="","",IF($G19='Input| Projects'!BD$9,1,0)) -> 0 | BE19: =IF($C19="","",IF($G19='Input| Projects'!BE$9,1,0)) -> 0 | BF19: =IF($C19="","",IF($G19='Input| Projects'!BF$9,1,0)) -> 0 | BG19: =IF($C19="","",IF($G19='Input| Projects'!BG$9,1,0)) -> 0 | BH19: =IF($C19="","",IF($G19='Input| Projects'!BH$9,1,0)) -> 0 | BI19: =IF($C19="","",IF($G19='Input| Projects'!BI$9,1,0)) -> 0 | BJ19: =IF($C19="","",IF($G19='Input| Projects'!BJ$9,1,0)) -> 0 | BK19: =IF($C19="","",IF($G19='Input| Projects'!BK$9,1,0)) -> 0 | BL19: =IF($C19="","",IF($G19='Input| Projects'!BL$9,1,0)) -> 0 | BM19: =IF($C19="","",IF($G19='Input| Projects'!BM$9,1,0)) -> 0 | BN19: =IF($C19="","",IF($G19='Input| Projects'!BN$9,1,0)) -> 0 | BO19: =IF($C19="","",IF($G19='Input| Projects'!BO$9,1,0)) -> 0 | BP19: =IF($C19="","",IF($G19='Input| Projects'!BP$9,1,0)) -> 0 | BQ19: =IF($C19="","",IF($G19='Input| Projects'!BQ$9,1,0)) -> 0 | BR19: =IF($C19="","",IF($G19='Input| Projects'!BR$9,1,0)) -> 0 | BS19: =IF($C19="","",IF($G19='Input| Projects'!BS$9,1,0)) -> 0 | BT19: =IF($C19="","",IF($G19='Input| Projects'!BT$9,1,0)) -> 0 | BU19: =IF($C19="","",IF($G19='Input| Projects'!BU$9,1,0)) -> 0 | BV19: =IF($C19="","",IF($G19='Input| Projects'!BV$9,1,0)) -> 0 | BW19: =IF($C19="","",IF($G19='Input| Projects'!BW$9,1,0)) -> 0 | BX19: =IF($C19="","",IF($G19='Input| Projects'!BX$9,1,0)) -> 0 | BY19: =IF($C19="","",IF($G19='Input| Projects'!BY$9,1,0)) -> 0 | BZ19: =IF($C19="","",IF($G19='Input| Projects'!BZ$9,1,0)) -> 0 | CA19: =IF($C19="","",IF($G19='Input| Projects'!CA$9,1,0)) -> 0 | CB19: =IF($C19="","",IF($G19='Input| Projects'!CB$9,1,0)) -> 0 | CC19: =IF($C19="","",IF($G19='Input| Projects'!CC$9,1,0)) -> 0 | CD19: =IF($C19="","",IF($G19='Input| Projects'!CD$9,1,0)) -> 0 | CE19: =IF($C19="","",IF($G19='Input| Projects'!CE$9,1,0)) -> 0 | CF19: =IF($C19="","",IF($G19='Input| Projects'!CF$9,1,0)) -> 0 | CG19: =IF($C19="","",IF($G19='Input| Projects'!CG$9,1,0)) -> 0 | CH19: =IF($C19="","",IF($G19='Input| Projects'!CH$9,1,0)) -> 0 | CI19: =IF($C19="","",IF($G19='Input| Projects'!CI$9,1,0)) -> 0 | CJ19: =IF($C19="","",IF($G19='Input| Projects'!CJ$9,1,0)) -> 0 | CK19: =IF($C19="","",IF($G19='Input| Projects'!CK$9,1,0)) -> 0 | CL19: =IF($C19="","",IF($G19='Input| Projects'!CL$9,1,0)) -> 0 | CM19: =IF($C19="","",IF($G19='Input| Projects'!CM$9,1,0)) -> 0 | CN19: =IF($C19="","",IF($G19='Input| Projects'!CN$9,1,0)) -> 0 | CO19: =IF($C19="","",IF($G19='Input| Projects'!CO$9,1,0)) -> 0 | CP19: =IF($C19="","",IF($G19='Input| Projects'!CP$9,1,0)) -> 0 | CQ19: =IF($C19="","",IF($G19='Input| Projects'!CQ$9,1,0)) -> 0
B20: 11 | C20: LV Isolator Replacement | D20: A149 | F20: Replacement | G20: Distribution system assets | J20: 390.6654269 | K20: 399.7997487 | L20: 399.2708726 | M20: 398.8634249 | N20: 399.4090467 | O20: 399.7536627 | P20: 0 | Q20: 0 | S20: 0 | T20: 0 | U20: 0 | V20: 0 | W20: 0 | X20: 0 | Z20: 0.7064313244 | AA20: 0.06937119387 | AB20: 0.2241974817 | AD20: Yes | AE20: No | AJ20: =IF('Input| JEN Mapping'!$F20='Input| Projects'!AJ$9,1,0) -> 1 | AK20: =IF('Input| JEN Mapping'!$F20='Input| Projects'!AK$9,1,0) -> 0 | AL20: =IF('Input| JEN Mapping'!$F20='Input| Projects'!AL$9,1,0) -> 0 | AM20: =IF('Input| JEN Mapping'!$F20='Input| Projects'!AM$9,1,0) -> 0 | AN20: =IF('Input| JEN Mapping'!$F20='Input| Projects'!AN$9,1,0) -> 0 | AO20: =IF('Input| JEN Mapping'!$F20='Input| Projects'!AO$9,1,0) -> 0 | AP20: =IF('Input| JEN Mapping'!$F20='Input| Projects'!AP$9,1,0) -> 0 | AQ20: =IF('Input| JEN Mapping'!$F20='Input| Projects'!AQ$9,1,0) -> 0 | AR20: =IF('Input| JEN Mapping'!$F20='Input| Projects'!AR$9,1,0) -> 0 | AT20: =IF($C20="","",IF($G20='Input| Projects'!AT$9,1,0)) -> 0 | AU20: =IF($C20="","",IF($G20='Input| Projects'!AU$9,1,0)) -> 1 | AV20: =IF($C20="","",IF($G20='Input| Projects'!AV$9,1,0)) -> 0 | AW20: =IF($C20="","",IF($G20='Input| Projects'!AW$9,1,0)) -> 0 | AX20: =IF($C20="","",IF($G20='Input| Projects'!AX$9,1,0)) -> 0 | AY20: =IF($C20="","",IF($G20='Input| Projects'!AY$9,1,0)) -> 0 | AZ20: =IF($C20="","",IF($G20='Input| Projects'!AZ$9,1,0)) -> 0 | BA20: =IF($C20="","",IF($G20='Input| Projects'!BA$9,1,0)) -> 0 | BB20: =IF($C20="","",IF($G20='Input| Projects'!BB$9,1,0)) -> 0 | BC20: =IF($C20="","",IF($G20='Input| Projects'!BC$9,1,0)) -> 0 | BD20: =IF($C20="","",IF($G20='Input| Projects'!BD$9,1,0)) -> 0 | BE20: =IF($C20="","",IF($G20='Input| Projects'!BE$9,1,0)) -> 0 | BF20: =IF($C20="","",IF($G20='Input| Projects'!BF$9,1,0)) -> 0 | BG20: =IF($C20="","",IF($G20='Input| Projects'!BG$9,1,0)) -> 0 | BH20: =IF($C20="","",IF($G20='Input| Projects'!BH$9,1,0)) -> 0 | BI20: =IF($C20="","",IF($G20='Input| Projects'!BI$9,1,0)) -> 0 | BJ20: =IF($C20="","",IF($G20='Input| Projects'!BJ$9,1,0)) -> 0 | BK20: =IF($C20="","",IF($G20='Input| Projects'!BK$9,1,0)) -> 0 | BL20: =IF($C20="","",IF($G20='Input| Projects'!BL$9,1,0)) -> 0 | BM20: =IF($C20="","",IF($G20='Input| Projects'!BM$9,1,0)) -> 0 | BN20: =IF($C20="","",IF($G20='Input| Projects'!BN$9,1,0)) -> 0 | BO20: =IF($C20="","",IF($G20='Input| Projects'!BO$9,1,0)) -> 0 | BP20: =IF($C20="","",IF($G20='Input| Projects'!BP$9,1,0)) -> 0 | BQ20: =IF($C20="","",IF($G20='Input| Projects'!BQ$9,1,0)) -> 0 | BR20: =IF($C20="","",IF($G20='Input| Projects'!BR$9,1,0)) -> 0 | BS20: =IF($C20="","",IF($G20='Input| Projects'!BS$9,1,0)) -> 0 | BT20: =IF($C20="","",IF($G20='Input| Projects'!BT$9,1,0)) -> 0 | BU20: =IF($C20="","",IF($G20='Input| Projects'!BU$9,1,0)) -> 0 | BV20: =IF($C20="","",IF($G20='Input| Projects'!BV$9,1,0)) -> 0 | BW20: =IF($C20="","",IF($G20='Input| Projects'!BW$9,1,0)) -> 0 | BX20: =IF($C20="","",IF($G20='Input| Projects'!BX$9,1,0)) -> 0 | BY20: =IF($C20="","",IF($G20='Input| Projects'!BY$9,1,0)) -> 0 | BZ20: =IF($C20="","",IF($G20='Input| Projects'!BZ$9,1,0)) -> 0 | CA20: =IF($C20="","",IF($G20='Input| Projects'!CA$9,1,0)) -> 0 | CB20: =IF($C20="","",IF($G20='Input| Projects'!CB$9,1,0)) -> 0 | CC20: =IF($C20="","",IF($G20='Input| Projects'!CC$9,1,0)) -> 0 | CD20: =IF($C20="","",IF($G20='Input| Projects'!CD$9,1,0)) -> 0 | CE20: =IF($C20="","",IF($G20='Input| Projects'!CE$9,1,0)) -> 0 | CF20: =IF($C20="","",IF($G20='Input| Projects'!CF$9,1,0)) -> 0 | CG20: =IF($C20="","",IF($G20='Input| Projects'!CG$9,1,0)) -> 0 | CH20: =IF($C20="","",IF($G20='Input| Projects'!CH$9,1,0)) -> 0 | CI20: =IF($C20="","",IF($G20='Input| Projects'!CI$9,1,0)) -> 0 | CJ20: =IF($C20="","",IF($G20='Input| Projects'!CJ$9,1,0)) -> 0 | CK20: =IF($C20="","",IF($G20='Input| Projects'!CK$9,1,0)) -> 0 | CL20: =IF($C20="","",IF($G20='Input| Projects'!CL$9,1,0)) -> 0 | CM20: =IF($C20="","",IF($G20='Input| Projects'!CM$9,1,0)) -> 0 | CN20: =IF($C20="","",IF($G20='Input| Projects'!CN$9,1,0)) -> 0 | CO20: =IF($C20="","",IF($G20='Input| Projects'!CO$9,1,0)) -> 0 | CP20: =IF($C20="","",IF($G20='Input| Projects'!CP$9,1,0)) -> 0 | CQ20: =IF($C20="","",IF($G20='Input| Projects'!CQ$9,1,0)) -> 0
B21: 12 | C21: Kiosk Refurbishment | D21: A108 | F21: Replacement | G21: Distribution system assets | J21: 68.20227874 | K21: 68.20227874 | L21: 68.20227874 | M21: 68.20227874 | N21: 68.20227874 | O21: 68.20227874 | P21: 0 | Q21: 0 | S21: 0 | T21: 0 | U21: 0 | V21: 0 | W21: 0 | X21: 0 | Z21: 0.7471338853 | AA21: 0.07183830982 | AB21: 0.1810278049 | AD21: Yes | AE21: No | AJ21: =IF('Input| JEN Mapping'!$F21='Input| Projects'!AJ$9,1,0) -> 1 | AK21: =IF('Input| JEN Mapping'!$F21='Input| Projects'!AK$9,1,0) -> 0 | AL21: =IF('Input| JEN Mapping'!$F21='Input| Projects'!AL$9,1,0) -> 0 | AM21: =IF('Input| JEN Mapping'!$F21='Input| Projects'!AM$9,1,0) -> 0 | AN21: =IF('Input| JEN Mapping'!$F21='Input| Projects'!AN$9,1,0) -> 0 | AO21: =IF('Input| JEN Mapping'!$F21='Input| Projects'!AO$9,1,0) -> 0 | AP21: =IF('Input| JEN Mapping'!$F21='Input| Projects'!AP$9,1,0) -> 0 | AQ21: =IF('Input| JEN Mapping'!$F21='Input| Projects'!AQ$9,1,0) -> 0 | AR21: =IF('Input| JEN Mapping'!$F21='Input| Projects'!AR$9,1,0) -> 0 | AT21: =IF($C21="","",IF($G21='Input| Projects'!AT$9,1,0)) -> 0 | AU21: =IF($C21="","",IF($G21='Input| Projects'!AU$9,1,0)) -> 1 | AV21: =IF($C21="","",IF($G21='Input| Projects'!AV$9,1,0)) -> 0 | AW21: =IF($C21="","",IF($G21='Input| Projects'!AW$9,1,0)) -> 0 | AX21: =IF($C21="","",IF($G21='Input| Projects'!AX$9,1,0)) -> 0 | AY21: =IF($C21="","",IF($G21='Input| Projects'!AY$9,1,0)) -> 0 | AZ21: =IF($C21="","",IF($G21='Input| Projects'!AZ$9,1,0)) -> 0 | BA21: =IF($C21="","",IF($G21='Input| Projects'!BA$9,1,0)) -> 0 | BB21: =IF($C21="","",IF($G21='Input| Projects'!BB$9,1,0)) -> 0 | BC21: =IF($C21="","",IF($G21='Input| Projects'!BC$9,1,0)) -> 0 | BD21: =IF($C21="","",IF($G21='Input| Projects'!BD$9,1,0)) -> 0 | BE21: =IF($C21="","",IF($G21='Input| Projects'!BE$9,1,0)) -> 0 | BF21: =IF($C21="","",IF($G21='Input| Projects'!BF$9,1,0)) -> 0 | BG21: =IF($C21="","",IF($G21='Input| Projects'!BG$9,1,0)) -> 0 | BH21: =IF($C21="","",IF($G21='Input| Projects'!BH$9,1,0)) -> 0 | BI21: =IF($C21="","",IF($G21='Input| Projects'!BI$9,1,0)) -> 0 | BJ21: =IF($C21="","",IF($G21='Input| Projects'!BJ$9,1,0)) -> 0 | BK21: =IF($C21="","",IF($G21='Input| Projects'!BK$9,1,0)) -> 0 | BL21: =IF($C21="","",IF($G21='Input| Projects'!BL$9,1,0)) -> 0 | BM21: =IF($C21="","",IF($G21='Input| Projects'!BM$9,1,0)) -> 0 | BN21: =IF($C21="","",IF($G21='Input| Projects'!BN$9,1,0)) -> 0 | BO21: =IF($C21="","",IF($G21='Input| Projects'!BO$9,1,0)) -> 0 | BP21: =IF($C21="","",IF($G21='Input| Projects'!BP$9,1,0)) -> 0 | BQ21: =IF($C21="","",IF($G21='Input| Projects'!BQ$9,1,0)) -> 0 | BR21: =IF($C21="","",IF($G21='Input| Projects'!BR$9,1,0)) -> 0 | BS21: =IF($C21="","",IF($G21='Input| Projects'!BS$9,1,0)) -> 0 | BT21: =IF($C21="","",IF($G21='Input| Projects'!BT$9,1,0)) -> 0 | BU21: =IF($C21="","",IF($G21='Input| Projects'!BU$9,1,0)) -> 0 | BV21: =IF($C21="","",IF($G21='Input| Projects'!BV$9,1,0)) -> 0 | BW21: =IF($C21="","",IF($G21='Input| Projects'!BW$9,1,0)) -> 0 | BX21: =IF($C21="","",IF($G21='Input| Projects'!BX$9,1,0)) -> 0 | BY21: =IF($C21="","",IF($G21='Input| Projects'!BY$9,1,0)) -> 0 | BZ21: =IF($C21="","",IF($G21='Input| Projects'!BZ$9,1,0)) -> 0 | CA21: =IF($C21="","",IF($G21='Input| Projects'!CA$9,1,0)) -> 0 | CB21: =IF($C21="","",IF($G21='Input| Projects'!CB$9,1,0)) -> 0 | CC21: =IF($C21="","",IF($G21='Input| Projects'!CC$9,1,0)) -> 0 | CD21: =IF($C21="","",IF($G21='Input| Projects'!CD$9,1,0)) -> 0 | CE21: =IF($C21="","",IF($G21='Input| Projects'!CE$9,1,0)) -> 0 | CF21: =IF($C21="","",IF($G21='Input| Projects'!CF$9,1,0)) -> 0 | CG21: =IF($C21="","",IF($G21='Input| Projects'!CG$9,1,0)) -> 0 | CH21: =IF($C21="","",IF($G21='Input| Projects'!CH$9,1,0)) -> 0 | CI21: =IF($C21="","",IF($G21='Input| Projects'!CI$9,1,0)) -> 0 | CJ21: =IF($C21="","",IF($G21='Input| Projects'!CJ$9,1,0)) -> 0 | CK21: =IF($C21="","",IF($G21='Input| Projects'!CK$9,1,0)) -> 0 | CL21: =IF($C21="","",IF($G21='Input| Projects'!CL$9,1,0)) -> 0 | CM21: =IF($C21="","",IF($G21='Input| Projects'!CM$9,1,0)) -> 0 | CN21: =IF($C21="","",IF($G21='Input| Projects'!CN$9,1,0)) -> 0 | CO21: =IF($C21="","",IF($G21='Input| Projects'!CO$9,1,0)) -> 0 | CP21: =IF($C21="","",IF($G21='Input| Projects'!CP$9,1,0)) -> 0 | CQ21: =IF($C21="","",IF($G21='Input| Projects'!CQ$9,1,0)) -> 0
B22: 13 | C22: Service Fault Replacement | D22: A152 | F22: Replacement | G22: Distribution system assets | J22: 520.1012023 | K22: 754.3515811 | L22: 753.8645512 | M22: 753.6272657 | N22: 739.3253863 | O22: 720.2887692 | P22: 0 | Q22: 0 | S22: 0 | T22: 0 | U22: 0 | V22: 0 | W22: 0 | X22: 0 | Z22: 0.853997688 | AA22: 0.03307109494 | AB22: 0.112931217 | AD22: Yes | AE22: No | AJ22: =IF('Input| JEN Mapping'!$F22='Input| Projects'!AJ$9,1,0) -> 1 | AK22: =IF('Input| JEN Mapping'!$F22='Input| Projects'!AK$9,1,0) -> 0 | AL22: =IF('Input| JEN Mapping'!$F22='Input| Projects'!AL$9,1,0) -> 0 | AM22: =IF('Input| JEN Mapping'!$F22='Input| Projects'!AM$9,1,0) -> 0 | AN22: =IF('Input| JEN Mapping'!$F22='Input| Projects'!AN$9,1,0) -> 0 | AO22: =IF('Input| JEN Mapping'!$F22='Input| Projects'!AO$9,1,0) -> 0 | AP22: =IF('Input| JEN Mapping'!$F22='Input| Projects'!AP$9,1,0) -> 0 | AQ22: =IF('Input| JEN Mapping'!$F22='Input| Projects'!AQ$9,1,0) -> 0 | AR22: =IF('Input| JEN Mapping'!$F22='Input| Projects'!AR$9,1,0) -> 0 | AT22: =IF($C22="","",IF($G22='Input| Projects'!AT$9,1,0)) -> 0 | AU22: =IF($C22="","",IF($G22='Input| Projects'!AU$9,1,0)) -> 1 | AV22: =IF($C22="","",IF($G22='Input| Projects'!AV$9,1,0)) -> 0 | AW22: =IF($C22="","",IF($G22='Input| Projects'!AW$9,1,0)) -> 0 | AX22: =IF($C22="","",IF($G22='Input| Projects'!AX$9,1,0)) -> 0 | AY22: =IF($C22="","",IF($G22='Input| Projects'!AY$9,1,0)) -> 0 | AZ22: =IF($C22="","",IF($G22='Input| Projects'!AZ$9,1,0)) -> 0 | BA22: =IF($C22="","",IF($G22='Input| Projects'!BA$9,1,0)) -> 0 | BB22: =IF($C22="","",IF($G22='Input| Projects'!BB$9,1,0)) -> 0 | BC22: =IF($C22="","",IF($G22='Input| Projects'!BC$9,1,0)) -> 0 | BD22: =IF($C22="","",IF($G22='Input| Projects'!BD$9,1,0)) -> 0 | BE22: =IF($C22="","",IF($G22='Input| Projects'!BE$9,1,0)) -> 0 | BF22: =IF($C22="","",IF($G22='Input| Projects'!BF$9,1,0)) -> 0 | BG22: =IF($C22="","",IF($G22='Input| Projects'!BG$9,1,0)) -> 0 | BH22: =IF($C22="","",IF($G22='Input| Projects'!BH$9,1,0)) -> 0 | BI22: =IF($C22="","",IF($G22='Input| Projects'!BI$9,1,0)) -> 0 | BJ22: =IF($C22="","",IF($G22='Input| Projects'!BJ$9,1,0)) -> 0 | BK22: =IF($C22="","",IF($G22='Input| Projects'!BK$9,1,0)) -> 0 | BL22: =IF($C22="","",IF($G22='Input| Projects'!BL$9,1,0)) -> 0 | BM22: =IF($C22="","",IF($G22='Input| Projects'!BM$9,1,0)) -> 0 | BN22: =IF($C22="","",IF($G22='Input| Projects'!BN$9,1,0)) -> 0 | BO22: =IF($C22="","",IF($G22='Input| Projects'!BO$9,1,0)) -> 0 | BP22: =IF($C22="","",IF($G22='Input| Projects'!BP$9,1,0)) -> 0 | BQ22: =IF($C22="","",IF($G22='Input| Projects'!BQ$9,1,0)) -> 0 | BR22: =IF($C22="","",IF($G22='Input| Projects'!BR$9,1,0)) -> 0 | BS22: =IF($C22="","",IF($G22='Input| Projects'!BS$9,1,0)) -> 0 | BT22: =IF($C22="","",IF($G22='Input| Projects'!BT$9,1,0)) -> 0 | BU22: =IF($C22="","",IF($G22='Input| Projects'!BU$9,1,0)) -> 0 | BV22: =IF($C22="","",IF($G22='Input| Projects'!BV$9,1,0)) -> 0 | BW22: =IF($C22="","",IF($G22='Input| Projects'!BW$9,1,0)) -> 0 | BX22: =IF($C22="","",IF($G22='Input| Projects'!BX$9,1,0)) -> 0 | BY22: =IF($C22="","",IF($G22='Input| Projects'!BY$9,1,0)) -> 0 | BZ22: =IF($C22="","",IF($G22='Input| Projects'!BZ$9,1,0)) -> 0 | CA22: =IF($C22="","",IF($G22='Input| Projects'!CA$9,1,0)) -> 0 | CB22: =IF($C22="","",IF($G22='Input| Projects'!CB$9,1,0)) -> 0 | CC22: =IF($C22="","",IF($G22='Input| Projects'!CC$9,1,0)) -> 0 | CD22: =IF($C22="","",IF($G22='Input| Projects'!CD$9,1,0)) -> 0 | CE22: =IF($C22="","",IF($G22='Input| Projects'!CE$9,1,0)) -> 0 | CF22: =IF($C22="","",IF($G22='Input| Projects'!CF$9,1,0)) -> 0 | CG22: =IF($C22="","",IF($G22='Input| Projects'!CG$9,1,0)) -> 0 | CH22: =IF($C22="","",IF($G22='Input| Projects'!CH$9,1,0)) -> 0 | CI22: =IF($C22="","",IF($G22='Input| Projects'!CI$9,1,0)) -> 0 | CJ22: =IF($C22="","",IF($G22='Input| Projects'!CJ$9,1,0)) -> 0 | CK22: =IF($C22="","",IF($G22='Input| Projects'!CK$9,1,0)) -> 0 | CL22: =IF($C22="","",IF($G22='Input| Projects'!CL$9,1,0)) -> 0 | CM22: =IF($C22="","",IF($G22='Input| Projects'!CM$9,1,0)) -> 0 | CN22: =IF($C22="","",IF($G22='Input| Projects'!CN$9,1,0)) -> 0 | CO22: =IF($C22="","",IF($G22='Input| Projects'!CO$9,1,0)) -> 0 | CP22: =IF($C22="","",IF($G22='Input| Projects'!CP$9,1,0)) -> 0 | CQ22: =IF($C22="","",IF($G22='Input| Projects'!CQ$9,1,0)) -> 0
B23: 14 | C23: Replace Serv and Alter Terms | D23: A153 | F23: Replacement | G23: Distribution system assets | J23: 520.7074445 | K23: 513.0920779 | L23: 513.0920779 | M23: 513.0920779 | N23: 513.0920779 | O23: 513.0920779 | P23: 0 | Q23: 0 | S23: 0 | T23: 0 | U23: 0 | V23: 0 | W23: 0 | X23: 0 | Z23: 0.3154907908 | AA23: 0.02616092155 | AB23: 0.6583482877 | AD23: Yes | AE23: No | AJ23: =IF('Input| JEN Mapping'!$F23='Input| Projects'!AJ$9,1,0) -> 1 | AK23: =IF('Input| JEN Mapping'!$F23='Input| Projects'!AK$9,1,0) -> 0 | AL23: =IF('Input| JEN Mapping'!$F23='Input| Projects'!AL$9,1,0) -> 0 | AM23: =IF('Input| JEN Mapping'!$F23='Input| Projects'!AM$9,1,0) -> 0 | AN23: =IF('Input| JEN Mapping'!$F23='Input| Projects'!AN$9,1,0) -> 0 | AO23: =IF('Input| JEN Mapping'!$F23='Input| Projects'!AO$9,1,0) -> 0 | AP23: =IF('Input| JEN Mapping'!$F23='Input| Projects'!AP$9,1,0) -> 0 | AQ23: =IF('Input| JEN Mapping'!$F23='Input| Projects'!AQ$9,1,0) -> 0 | AR23: =IF('Input| JEN Mapping'!$F23='Input| Projects'!AR$9,1,0) -> 0 | AT23: =IF($C23="","",IF($G23='Input| Projects'!AT$9,1,0)) -> 0 | AU23: =IF($C23="","",IF($G23='Input| Projects'!AU$9,1,0)) -> 1 | AV23: =IF($C23="","",IF($G23='Input| Projects'!AV$9,1,0)) -> 0 | AW23: =IF($C23="","",IF($G23='Input| Projects'!AW$9,1,0)) -> 0 | AX23: =IF($C23="","",IF($G23='Input| Projects'!AX$9,1,0)) -> 0 | AY23: =IF($C23="","",IF($G23='Input| Projects'!AY$9,1,0)) -> 0 | AZ23: =IF($C23="","",IF($G23='Input| Projects'!AZ$9,1,0)) -> 0 | BA23: =IF($C23="","",IF($G23='Input| Projects'!BA$9,1,0)) -> 0 | BB23: =IF($C23="","",IF($G23='Input| Projects'!BB$9,1,0)) -> 0 | BC23: =IF($C23="","",IF($G23='Input| Projects'!BC$9,1,0)) -> 0 | BD23: =IF($C23="","",IF($G23='Input| Projects'!BD$9,1,0)) -> 0 | BE23: =IF($C23="","",IF($G23='Input| Projects'!BE$9,1,0)) -> 0 | BF23: =IF($C23="","",IF($G23='Input| Projects'!BF$9,1,0)) -> 0 | BG23: =IF($C23="","",IF($G23='Input| Projects'!BG$9,1,0)) -> 0 | BH23: =IF($C23="","",IF($G23='Input| Projects'!BH$9,1,0)) -> 0 | BI23: =IF($C23="","",IF($G23='Input| Projects'!BI$9,1,0)) -> 0 | BJ23: =IF($C23="","",IF($G23='Input| Projects'!BJ$9,1,0)) -> 0 | BK23: =IF($C23="","",IF($G23='Input| Projects'!BK$9,1,0)) -> 0 | BL23: =IF($C23="","",IF($G23='Input| Projects'!BL$9,1,0)) -> 0 | BM23: =IF($C23="","",IF($G23='Input| Projects'!BM$9,1,0)) -> 0 | BN23: =IF($C23="","",IF($G23='Input| Projects'!BN$9,1,0)) -> 0 | BO23: =IF($C23="","",IF($G23='Input| Projects'!BO$9,1,0)) -> 0 | BP23: =IF($C23="","",IF($G23='Input| Projects'!BP$9,1,0)) -> 0 | BQ23: =IF($C23="","",IF($G23='Input| Projects'!BQ$9,1,0)) -> 0 | BR23: =IF($C23="","",IF($G23='Input| Projects'!BR$9,1,0)) -> 0 | BS23: =IF($C23="","",IF($G23='Input| Projects'!BS$9,1,0)) -> 0 | BT23: =IF($C23="","",IF($G23='Input| Projects'!BT$9,1,0)) -> 0 | BU23: =IF($C23="","",IF($G23='Input| Projects'!BU$9,1,0)) -> 0 | BV23: =IF($C23="","",IF($G23='Input| Projects'!BV$9,1,0)) -> 0 | BW23: =IF($C23="","",IF($G23='Input| Projects'!BW$9,1,0)) -> 0 | BX23: =IF($C23="","",IF($G23='Input| Projects'!BX$9,1,0)) -> 0 | BY23: =IF($C23="","",IF($G23='Input| Projects'!BY$9,1,0)) -> 0 | BZ23: =IF($C23="","",IF($G23='Input| Projects'!BZ$9,1,0)) -> 0 | CA23: =IF($C23="","",IF($G23='Input| Projects'!CA$9,1,0)) -> 0 | CB23: =IF($C23="","",IF($G23='Input| Projects'!CB$9,1,0)) -> 0 | CC23: =IF($C23="","",IF($G23='Input| Projects'!CC$9,1,0)) -> 0 | CD23: =IF($C23="","",IF($G23='Input| Projects'!CD$9,1,0)) -> 0 | CE23: =IF($C23="","",IF($G23='Input| Projects'!CE$9,1,0)) -> 0 | CF23: =IF($C23="","",IF($G23='Input| Projects'!CF$9,1,0)) -> 0 | CG23: =IF($C23="","",IF($G23='Input| Projects'!CG$9,1,0)) -> 0 | CH23: =IF($C23="","",IF($G23='Input| Projects'!CH$9,1,0)) -> 0 | CI23: =IF($C23="","",IF($G23='Input| Projects'!CI$9,1,0)) -> 0 | CJ23: =IF($C23="","",IF($G23='Input| Projects'!CJ$9,1,0)) -> 0 | CK23: =IF($C23="","",IF($G23='Input| Projects'!CK$9,1,0)) -> 0 | CL23: =IF($C23="","",IF($G23='Input| Projects'!CL$9,1,0)) -> 0 | CM23: =IF($C23="","",IF($G23='Input| Projects'!CM$9,1,0)) -> 0 | CN23: =IF($C23="","",IF($G23='Input| Projects'!CN$9,1,0)) -> 0 | CO23: =IF($C23="","",IF($G23='Input| Projects'!CO$9,1,0)) -> 0 | CP23: =IF($C23="","",IF($G23='Input| Projects'!CP$9,1,0)) -> 0 | CQ23: =IF($C23="","",IF($G23='Input| Projects'!CQ$9,1,0)) -> 0
B24: 15 | C24: Install Disconnect Device | D24: A155 | F24: Replacement | G24: Distribution system assets | J24: 22.56486917 | K24: 37.89137465 | L24: 37.89137465 | M24: 37.89137465 | N24: 25.33252875 | O24: 11.61763846 | P24: 0 | Q24: 0 | S24: 0 | T24: 0 | U24: 0 | V24: 0 | W24: 0 | X24: 0 | Z24: 0.3608276729 | AA24: 0.4798531438 | AB24: 0.1593191833 | AD24: Yes | AE24: No | AJ24: =IF('Input| JEN Mapping'!$F24='Input| Projects'!AJ$9,1,0) -> 1 | AK24: =IF('Input| JEN Mapping'!$F24='Input| Projects'!AK$9,1,0) -> 0 | AL24: =IF('Input| JEN Mapping'!$F24='Input| Projects'!AL$9,1,0) -> 0 | AM24: =IF('Input| JEN Mapping'!$F24='Input| Projects'!AM$9,1,0) -> 0 | AN24: =IF('Input| JEN Mapping'!$F24='Input| Projects'!AN$9,1,0) -> 0 | AO24: =IF('Input| JEN Mapping'!$F24='Input| Projects'!AO$9,1,0) -> 0 | AP24: =IF('Input| JEN Mapping'!$F24='Input| Projects'!AP$9,1,0) -> 0 | AQ24: =IF('Input| JEN Mapping'!$F24='Input| Projects'!AQ$9,1,0) -> 0 | AR24: =IF('Input| JEN Mapping'!$F24='Input| Projects'!AR$9,1,0) -> 0 | AT24: =IF($C24="","",IF($G24='Input| Projects'!AT$9,1,0)) -> 0 | AU24: =IF($C24="","",IF($G24='Input| Projects'!AU$9,1,0)) -> 1 | AV24: =IF($C24="","",IF($G24='Input| Projects'!AV$9,1,0)) -> 0 | AW24: =IF($C24="","",IF($G24='Input| Projects'!AW$9,1,0)) -> 0 | AX24: =IF($C24="","",IF($G24='Input| Projects'!AX$9,1,0)) -> 0 | AY24: =IF($C24="","",IF($G24='Input| Projects'!AY$9,1,0)) -> 0 | AZ24: =IF($C24="","",IF($G24='Input| Projects'!AZ$9,1,0)) -> 0 | BA24: =IF($C24="","",IF($G24='Input| Projects'!BA$9,1,0)) -> 0 | BB24: =IF($C24="","",IF($G24='Input| Projects'!BB$9,1,0)) -> 0 | BC24: =IF($C24="","",IF($G24='Input| Projects'!BC$9,1,0)) -> 0 | BD24: =IF($C24="","",IF($G24='Input| Projects'!BD$9,1,0)) -> 0 | BE24: =IF($C24="","",IF($G24='Input| Projects'!BE$9,1,0)) -> 0 | BF24: =IF($C24="","",IF($G24='Input| Projects'!BF$9,1,0)) -> 0 | BG24: =IF($C24="","",IF($G24='Input| Projects'!BG$9,1,0)) -> 0 | BH24: =IF($C24="","",IF($G24='Input| Projects'!BH$9,1,0)) -> 0 | BI24: =IF($C24="","",IF($G24='Input| Projects'!BI$9,1,0)) -> 0 | BJ24: =IF($C24="","",IF($G24='Input| Projects'!BJ$9,1,0)) -> 0 | BK24: =IF($C24="","",IF($G24='Input| Projects'!BK$9,1,0)) -> 0 | BL24: =IF($C24="","",IF($G24='Input| Projects'!BL$9,1,0)) -> 0 | BM24: =IF($C24="","",IF($G24='Input| Projects'!BM$9,1,0)) -> 0 | BN24: =IF($C24="","",IF($G24='Input| Projects'!BN$9,1,0)) -> 0 | BO24: =IF($C24="","",IF($G24='Input| Projects'!BO$9,1,0)) -> 0 | BP24: =IF($C24="","",IF($G24='Input| Projects'!BP$9,1,0)) -> 0 | BQ24: =IF($C24="","",IF($G24='Input| Projects'!BQ$9,1,0)) -> 0 | BR24: =IF($C24="","",IF($G24='Input| Projects'!BR$9,1,0)) -> 0 | BS24: =IF($C24="","",IF($G24='Input| Projects'!BS$9,1,0)) -> 0 | BT24: =IF($C24="","",IF($G24='Input| Projects'!BT$9,1,0)) -> 0 | BU24: =IF($C24="","",IF($G24='Input| Projects'!BU$9,1,0)) -> 0 | BV24: =IF($C24="","",IF($G24='Input| Projects'!BV$9,1,0)) -> 0 | BW24: =IF($C24="","",IF($G24='Input| Projects'!BW$9,1,0)) -> 0 | BX24: =IF($C24="","",IF($G24='Input| Projects'!BX$9,1,0)) -> 0 | BY24: =IF($C24="","",IF($G24='Input| Projects'!BY$9,1,0)) -> 0 | BZ24: =IF($C24="","",IF($G24='Input| Projects'!BZ$9,1,0)) -> 0 | CA24: =IF($C24="","",IF($G24='Input| Projects'!CA$9,1,0)) -> 0 | CB24: =IF($C24="","",IF($G24='Input| Projects'!CB$9,1,0)) -> 0 | CC24: =IF($C24="","",IF($G24='Input| Projects'!CC$9,1,0)) -> 0 | CD24: =IF($C24="","",IF($G24='Input| Projects'!CD$9,1,0)) -> 0 | CE24: =IF($C24="","",IF($G24='Input| Projects'!CE$9,1,0)) -> 0 | CF24: =IF($C24="","",IF($G24='Input| Projects'!CF$9,1,0)) -> 0 | CG24: =IF($C24="","",IF($G24='Input| Projects'!CG$9,1,0)) -> 0 | CH24: =IF($C24="","",IF($G24='Input| Projects'!CH$9,1,0)) -> 0 | CI24: =IF($C24="","",IF($G24='Input| Projects'!CI$9,1,0)) -> 0 | CJ24: =IF($C24="","",IF($G24='Input| Projects'!CJ$9,1,0)) -> 0 | CK24: =IF($C24="","",IF($G24='Input| Projects'!CK$9,1,0)) -> 0 | CL24: =IF($C24="","",IF($G24='Input| Projects'!CL$9,1,0)) -> 0 | CM24: =IF($C24="","",IF($G24='Input| Projects'!CM$9,1,0)) -> 0 | CN24: =IF($C24="","",IF($G24='Input| Projects'!CN$9,1,0)) -> 0 | CO24: =IF($C24="","",IF($G24='Input| Projects'!CO$9,1,0)) -> 0 | CP24: =IF($C24="","",IF($G24='Input| Projects'!CP$9,1,0)) -> 0 | CQ24: =IF($C24="","",IF($G24='Input| Projects'!CQ$9,1,0)) -> 0
B25: 16 | C25: Replace Services - Planned | D25: A156 | F25: Replacement | G25: Distribution system assets | J25: 581.1382796 | K25: 421.6441649 | L25: 581.1382796 | M25: 581.1382796 | N25: 581.1382796 | O25: 581.1382796 | P25: 0 | Q25: 0 | S25: 0 | T25: 0 | U25: 0 | V25: 0 | W25: 0 | X25: 0 | Z25: 0.3128564302 | AA25: 0.5622215209 | AB25: 0.1249220489 | AD25: Yes | AE25: No | AJ25: =IF('Input| JEN Mapping'!$F25='Input| Projects'!AJ$9,1,0) -> 1 | AK25: =IF('Input| JEN Mapping'!$F25='Input| Projects'!AK$9,1,0) -> 0 | AL25: =IF('Input| JEN Mapping'!$F25='Input| Projects'!AL$9,1,0) -> 0 | AM25: =IF('Input| JEN Mapping'!$F25='Input| Projects'!AM$9,1,0) -> 0 | AN25: =IF('Input| JEN Mapping'!$F25='Input| Projects'!AN$9,1,0) -> 0 | AO25: =IF('Input| JEN Mapping'!$F25='Input| Projects'!AO$9,1,0) -> 0 | AP25: =IF('Input| JEN Mapping'!$F25='Input| Projects'!AP$9,1,0) -> 0 | AQ25: =IF('Input| JEN Mapping'!$F25='Input| Projects'!AQ$9,1,0) -> 0 | AR25: =IF('Input| JEN Mapping'!$F25='Input| Projects'!AR$9,1,0) -> 0 | AT25: =IF($C25="","",IF($G25='Input| Projects'!AT$9,1,0)) -> 0 | AU25: =IF($C25="","",IF($G25='Input| Projects'!AU$9,1,0)) -> 1 | AV25: =IF($C25="","",IF($G25='Input| Projects'!AV$9,1,0)) -> 0 | AW25: =IF($C25="","",IF($G25='Input| Projects'!AW$9,1,0)) -> 0 | AX25: =IF($C25="","",IF($G25='Input| Projects'!AX$9,1,0)) -> 0 | AY25: =IF($C25="","",IF($G25='Input| Projects'!AY$9,1,0)) -> 0 | AZ25: =IF($C25="","",IF($G25='Input| Projects'!AZ$9,1,0)) -> 0 | BA25: =IF($C25="","",IF($G25='Input| Projects'!BA$9,1,0)) -> 0 | BB25: =IF($C25="","",IF($G25='Input| Projects'!BB$9,1,0)) -> 0 | BC25: =IF($C25="","",IF($G25='Input| Projects'!BC$9,1,0)) -> 0 | BD25: =IF($C25="","",IF($G25='Input| Projects'!BD$9,1,0)) -> 0 | BE25: =IF($C25="","",IF($G25='Input| Projects'!BE$9,1,0)) -> 0 | BF25: =IF($C25="","",IF($G25='Input| Projects'!BF$9,1,0)) -> 0 | BG25: =IF($C25="","",IF($G25='Input| Projects'!BG$9,1,0)) -> 0 | BH25: =IF($C25="","",IF($G25='Input| Projects'!BH$9,1,0)) -> 0 | BI25: =IF($C25="","",IF($G25='Input| Projects'!BI$9,1,0)) -> 0 | BJ25: =IF($C25="","",IF($G25='Input| Projects'!BJ$9,1,0)) -> 0 | BK25: =IF($C25="","",IF($G25='Input| Projects'!BK$9,1,0)) -> 0 | BL25: =IF($C25="","",IF($G25='Input| Projects'!BL$9,1,0)) -> 0 | BM25: =IF($C25="","",IF($G25='Input| Projects'!BM$9,1,0)) -> 0 | BN25: =IF($C25="","",IF($G25='Input| Projects'!BN$9,1,0)) -> 0 | BO25: =IF($C25="","",IF($G25='Input| Projects'!BO$9,1,0)) -> 0 | BP25: =IF($C25="","",IF($G25='Input| Projects'!BP$9,1,0)) -> 0 | BQ25: =IF($C25="","",IF($G25='Input| Projects'!BQ$9,1,0)) -> 0 | BR25: =IF($C25="","",IF($G25='Input| Projects'!BR$9,1,0)) -> 0 | BS25: =IF($C25="","",IF($G25='Input| Projects'!BS$9,1,0)) -> 0 | BT25: =IF($C25="","",IF($G25='Input| Projects'!BT$9,1,0)) -> 0 | BU25: =IF($C25="","",IF($G25='Input| Projects'!BU$9,1,0)) -> 0 | BV25: =IF($C25="","",IF($G25='Input| Projects'!BV$9,1,0)) -> 0 | BW25: =IF($C25="","",IF($G25='Input| Projects'!BW$9,1,0)) -> 0 | BX25: =IF($C25="","",IF($G25='Input| Projects'!BX$9,1,0)) -> 0 | BY25: =IF($C25="","",IF($G25='Input| Projects'!BY$9,1,0)) -> 0 | BZ25: =IF($C25="","",IF($G25='Input| Projects'!BZ$9,1,0)) -> 0 | CA25: =IF($C25="","",IF($G25='Input| Projects'!CA$9,1,0)) -> 0 | CB25: =IF($C25="","",IF($G25='Input| Projects'!CB$9,1,0)) -> 0 | CC25: =IF($C25="","",IF($G25='Input| Projects'!CC$9,1,0)) -> 0 | CD25: =IF($C25="","",IF($G25='Input| Projects'!CD$9,1,0)) -> 0 | CE25: =IF($C25="","",IF($G25='Input| Projects'!CE$9,1,0)) -> 0 | CF25: =IF($C25="","",IF($G25='Input| Projects'!CF$9,1,0)) -> 0 | CG25: =IF($C25="","",IF($G25='Input| Projects'!CG$9,1,0)) -> 0 | CH25: =IF($C25="","",IF($G25='Input| Projects'!CH$9,1,0)) -> 0 | CI25: =IF($C25="","",IF($G25='Input| Projects'!CI$9,1,0)) -> 0 | CJ25: =IF($C25="","",IF($G25='Input| Projects'!CJ$9,1,0)) -> 0 | CK25: =IF($C25="","",IF($G25='Input| Projects'!CK$9,1,0)) -> 0 | CL25: =IF($C25="","",IF($G25='Input| Projects'!CL$9,1,0)) -> 0 | CM25: =IF($C25="","",IF($G25='Input| Projects'!CM$9,1,0)) -> 0 | CN25: =IF($C25="","",IF($G25='Input| Projects'!CN$9,1,0)) -> 0 | CO25: =IF($C25="","",IF($G25='Input| Projects'!CO$9,1,0)) -> 0 | CP25: =IF($C25="","",IF($G25='Input| Projects'!CP$9,1,0)) -> 0 | CQ25: =IF($C25="","",IF($G25='Input| Projects'!CQ$9,1,0)) -> 0
B26: 17 | C26: HV Open Wire Conductor Repl | D26: A159 | F26: Replacement | G26: Distribution system assets | J26: 65.41645301 | K26: 70.03902892 | L26: 70.03902892 | M26: 70.03902892 | N26: 103.5176847 | O26: 140.0780578 | P26: 0 | Q26: 0 | S26: 0 | T26: 0 | U26: 0 | V26: 0 | W26: 0 | X26: 0 | Z26: 0.6155629548 | AA26: 0.1956582601 | AB26: 0.1887787851 | AD26: Yes | AE26: No | AJ26: =IF('Input| JEN Mapping'!$F26='Input| Projects'!AJ$9,1,0) -> 1 | AK26: =IF('Input| JEN Mapping'!$F26='Input| Projects'!AK$9,1,0) -> 0 | AL26: =IF('Input| JEN Mapping'!$F26='Input| Projects'!AL$9,1,0) -> 0 | AM26: =IF('Input| JEN Mapping'!$F26='Input| Projects'!AM$9,1,0) -> 0 | AN26: =IF('Input| JEN Mapping'!$F26='Input| Projects'!AN$9,1,0) -> 0 | AO26: =IF('Input| JEN Mapping'!$F26='Input| Projects'!AO$9,1,0) -> 0 | AP26: =IF('Input| JEN Mapping'!$F26='Input| Projects'!AP$9,1,0) -> 0 | AQ26: =IF('Input| JEN Mapping'!$F26='Input| Projects'!AQ$9,1,0) -> 0 | AR26: =IF('Input| JEN Mapping'!$F26='Input| Projects'!AR$9,1,0) -> 0 | AT26: =IF($C26="","",IF($G26='Input| Projects'!AT$9,1,0)) -> 0 | AU26: =IF($C26="","",IF($G26='Input| Projects'!AU$9,1,0)) -> 1 | AV26: =IF($C26="","",IF($G26='Input| Projects'!AV$9,1,0)) -> 0 | AW26: =IF($C26="","",IF($G26='Input| Projects'!AW$9,1,0)) -> 0 | AX26: =IF($C26="","",IF($G26='Input| Projects'!AX$9,1,0)) -> 0 | AY26: =IF($C26="","",IF($G26='Input| Projects'!AY$9,1,0)) -> 0 | AZ26: =IF($C26="","",IF($G26='Input| Projects'!AZ$9,1,0)) -> 0 | BA26: =IF($C26="","",IF($G26='Input| Projects'!BA$9,1,0)) -> 0 | BB26: =IF($C26="","",IF($G26='Input| Projects'!BB$9,1,0)) -> 0 | BC26: =IF($C26="","",IF($G26='Input| Projects'!BC$9,1,0)) -> 0 | BD26: =IF($C26="","",IF($G26='Input| Projects'!BD$9,1,0)) -> 0 | BE26: =IF($C26="","",IF($G26='Input| Projects'!BE$9,1,0)) -> 0 | BF26: =IF($C26="","",IF($G26='Input| Projects'!BF$9,1,0)) -> 0 | BG26: =IF($C26="","",IF($G26='Input| Projects'!BG$9,1,0)) -> 0 | BH26: =IF($C26="","",IF($G26='Input| Projects'!BH$9,1,0)) -> 0 | BI26: =IF($C26="","",IF($G26='Input| Projects'!BI$9,1,0)) -> 0 | BJ26: =IF($C26="","",IF($G26='Input| Projects'!BJ$9,1,0)) -> 0 | BK26: =IF($C26="","",IF($G26='Input| Projects'!BK$9,1,0)) -> 0 | BL26: =IF($C26="","",IF($G26='Input| Projects'!BL$9,1,0)) -> 0 | BM26: =IF($C26="","",IF($G26='Input| Projects'!BM$9,1,0)) -> 0 | BN26: =IF($C26="","",IF($G26='Input| Projects'!BN$9,1,0)) -> 0 | BO26: =IF($C26="","",IF($G26='Input| Projects'!BO$9,1,0)) -> 0 | BP26: =IF($C26="","",IF($G26='Input| Projects'!BP$9,1,0)) -> 0 | BQ26: =IF($C26="","",IF($G26='Input| Projects'!BQ$9,1,0)) -> 0 | BR26: =IF($C26="","",IF($G26='Input| Projects'!BR$9,1,0)) -> 0 | BS26: =IF($C26="","",IF($G26='Input| Projects'!BS$9,1,0)) -> 0 | BT26: =IF($C26="","",IF($G26='Input| Projects'!BT$9,1,0)) -> 0 | BU26: =IF($C26="","",IF($G26='Input| Projects'!BU$9,1,0)) -> 0 | BV26: =IF($C26="","",IF($G26='Input| Projects'!BV$9,1,0)) -> 0 | BW26: =IF($C26="","",IF($G26='Input| Projects'!BW$9,1,0)) -> 0 | BX26: =IF($C26="","",IF($G26='Input| Projects'!BX$9,1,0)) -> 0 | BY26: =IF($C26="","",IF($G26='Input| Projects'!BY$9,1,0)) -> 0 | BZ26: =IF($C26="","",IF($G26='Input| Projects'!BZ$9,1,0)) -> 0 | CA26: =IF($C26="","",IF($G26='Input| Projects'!CA$9,1,0)) -> 0 | CB26: =IF($C26="","",IF($G26='Input| Projects'!CB$9,1,0)) -> 0 | CC26: =IF($C26="","",IF($G26='Input| Projects'!CC$9,1,0)) -> 0 | CD26: =IF($C26="","",IF($G26='Input| Projects'!CD$9,1,0)) -> 0 | CE26: =IF($C26="","",IF($G26='Input| Projects'!CE$9,1,0)) -> 0 | CF26: =IF($C26="","",IF($G26='Input| Projects'!CF$9,1,0)) -> 0 | CG26: =IF($C26="","",IF($G26='Input| Projects'!CG$9,1,0)) -> 0 | CH26: =IF($C26="","",IF($G26='Input| Projects'!CH$9,1,0)) -> 0 | CI26: =IF($C26="","",IF($G26='Input| Projects'!CI$9,1,0)) -> 0 | CJ26: =IF($C26="","",IF($G26='Input| Projects'!CJ$9,1,0)) -> 0 | CK26: =IF($C26="","",IF($G26='Input| Projects'!CK$9,1,0)) -> 0 | CL26: =IF($C26="","",IF($G26='Input| Projects'!CL$9,1,0)) -> 0 | CM26: =IF($C26="","",IF($G26='Input| Projects'!CM$9,1,0)) -> 0 | CN26: =IF($C26="","",IF($G26='Input| Projects'!CN$9,1,0)) -> 0 | CO26: =IF($C26="","",IF($G26='Input| Projects'!CO$9,1,0)) -> 0 | CP26: =IF($C26="","",IF($G26='Input| Projects'!CP$9,1,0)) -> 0 | CQ26: =IF($C26="","",IF($G26='Input| Projects'!CQ$9,1,0)) -> 0
B27: 18 | C27: LV Open Wire Conductor Repl | D27: A164 | F27: Replacement | G27: Distribution system assets | J27: 319.7109004 | K27: 372.623427 | L27: 372.623427 | M27: 372.623427 | N27: 372.623427 | O27: 372.623427 | P27: 0 | Q27: 0 | S27: 0 | T27: 0 | U27: 0 | V27: 0 | W27: 0 | X27: 0 | Z27: 0.6089901404 | AA27: 0.179411971 | AB27: 0.2115978885 | AD27: Yes | AE27: No | AJ27: =IF('Input| JEN Mapping'!$F27='Input| Projects'!AJ$9,1,0) -> 1 | AK27: =IF('Input| JEN Mapping'!$F27='Input| Projects'!AK$9,1,0) -> 0 | AL27: =IF('Input| JEN Mapping'!$F27='Input| Projects'!AL$9,1,0) -> 0 | AM27: =IF('Input| JEN Mapping'!$F27='Input| Projects'!AM$9,1,0) -> 0 | AN27: =IF('Input| JEN Mapping'!$F27='Input| Projects'!AN$9,1,0) -> 0 | AO27: =IF('Input| JEN Mapping'!$F27='Input| Projects'!AO$9,1,0) -> 0 | AP27: =IF('Input| JEN Mapping'!$F27='Input| Projects'!AP$9,1,0) -> 0 | AQ27: =IF('Input| JEN Mapping'!$F27='Input| Projects'!AQ$9,1,0) -> 0 | AR27: =IF('Input| JEN Mapping'!$F27='Input| Projects'!AR$9,1,0) -> 0 | AT27: =IF($C27="","",IF($G27='Input| Projects'!AT$9,1,0)) -> 0 | AU27: =IF($C27="","",IF($G27='Input| Projects'!AU$9,1,0)) -> 1 | AV27: =IF($C27="","",IF($G27='Input| Projects'!AV$9,1,0)) -> 0 | AW27: =IF($C27="","",IF($G27='Input| Projects'!AW$9,1,0)) -> 0 | AX27: =IF($C27="","",IF($G27='Input| Projects'!AX$9,1,0)) -> 0 | AY27: =IF($C27="","",IF($G27='Input| Projects'!AY$9,1,0)) -> 0 | AZ27: =IF($C27="","",IF($G27='Input| Projects'!AZ$9,1,0)) -> 0 | BA27: =IF($C27="","",IF($G27='Input| Projects'!BA$9,1,0)) -> 0 | BB27: =IF($C27="","",IF($G27='Input| Projects'!BB$9,1,0)) -> 0 | BC27: =IF($C27="","",IF($G27='Input| Projects'!BC$9,1,0)) -> 0 | BD27: =IF($C27="","",IF($G27='Input| Projects'!BD$9,1,0)) -> 0 | BE27: =IF($C27="","",IF($G27='Input| Projects'!BE$9,1,0)) -> 0 | BF27: =IF($C27="","",IF($G27='Input| Projects'!BF$9,1,0)) -> 0 | BG27: =IF($C27="","",IF($G27='Input| Projects'!BG$9,1,0)) -> 0 | BH27: =IF($C27="","",IF($G27='Input| Projects'!BH$9,1,0)) -> 0 | BI27: =IF($C27="","",IF($G27='Input| Projects'!BI$9,1,0)) -> 0 | BJ27: =IF($C27="","",IF($G27='Input| Projects'!BJ$9,1,0)) -> 0 | BK27: =IF($C27="","",IF($G27='Input| Projects'!BK$9,1,0)) -> 0 | BL27: =IF($C27="","",IF($G27='Input| Projects'!BL$9,1,0)) -> 0 | BM27: =IF($C27="","",IF($G27='Input| Projects'!BM$9,1,0)) -> 0 | BN27: =IF($C27="","",IF($G27='Input| Projects'!BN$9,1,0)) -> 0 | BO27: =IF($C27="","",IF($G27='Input| Projects'!BO$9,1,0)) -> 0 | BP27: =IF($C27="","",IF($G27='Input| Projects'!BP$9,1,0)) -> 0 | BQ27: =IF($C27="","",IF($G27='Input| Projects'!BQ$9,1,0)) -> 0 | BR27: =IF($C27="","",IF($G27='Input| Projects'!BR$9,1,0)) -> 0 | BS27: =IF($C27="","",IF($G27='Input| Projects'!BS$9,1,0)) -> 0 | BT27: =IF($C27="","",IF($G27='Input| Projects'!BT$9,1,0)) -> 0 | BU27: =IF($C27="","",IF($G27='Input| Projects'!BU$9,1,0)) -> 0 | BV27: =IF($C27="","",IF($G27='Input| Projects'!BV$9,1,0)) -> 0 | BW27: =IF($C27="","",IF($G27='Input| Projects'!BW$9,1,0)) -> 0 | BX27: =IF($C27="","",IF($G27='Input| Projects'!BX$9,1,0)) -> 0 | BY27: =IF($C27="","",IF($G27='Input| Projects'!BY$9,1,0)) -> 0 | BZ27: =IF($C27="","",IF($G27='Input| Projects'!BZ$9,1,0)) -> 0 | CA27: =IF($C27="","",IF($G27='Input| Projects'!CA$9,1,0)) -> 0 | CB27: =IF($C27="","",IF($G27='Input| Projects'!CB$9,1,0)) -> 0 | CC27: =IF($C27="","",IF($G27='Input| Projects'!CC$9,1,0)) -> 0 | CD27: =IF($C27="","",IF($G27='Input| Projects'!CD$9,1,0)) -> 0 | CE27: =IF($C27="","",IF($G27='Input| Projects'!CE$9,1,0)) -> 0 | CF27: =IF($C27="","",IF($G27='Input| Projects'!CF$9,1,0)) -> 0 | CG27: =IF($C27="","",IF($G27='Input| Projects'!CG$9,1,0)) -> 0 | CH27: =IF($C27="","",IF($G27='Input| Projects'!CH$9,1,0)) -> 0 | CI27: =IF($C27="","",IF($G27='Input| Projects'!CI$9,1,0)) -> 0 | CJ27: =IF($C27="","",IF($G27='Input| Projects'!CJ$9,1,0)) -> 0 | CK27: =IF($C27="","",IF($G27='Input| Projects'!CK$9,1,0)) -> 0 | CL27: =IF($C27="","",IF($G27='Input| Projects'!CL$9,1,0)) -> 0 | CM27: =IF($C27="","",IF($G27='Input| Projects'!CM$9,1,0)) -> 0 | CN27: =IF($C27="","",IF($G27='Input| Projects'!CN$9,1,0)) -> 0 | CO27: =IF($C27="","",IF($G27='Input| Projects'!CO$9,1,0)) -> 0 | CP27: =IF($C27="","",IF($G27='Input| Projects'!CP$9,1,0)) -> 0 | CQ27: =IF($C27="","",IF($G27='Input| Projects'!CQ$9,1,0)) -> 0
B28: 19 | C28: Pole Replacement (Incl. Pole Top) - HV | D28: A166 | F28: Replacement | G28: Distribution system assets | J28: 2952.459092 | K28: 628.6872532 | L28: 1216.968374 | M28: 1216.968374 | N28: 1216.968374 | O28: 1215.11921 | P28: 0 | Q28: 0 | S28: 0 | T28: 0 | U28: 0 | V28: 0 | W28: 0 | X28: 0 | Z28: 0.4967632744 | AA28: 0.3111882358 | AB28: 0.1920484898 | AD28: Yes | AE28: No | AJ28: =IF('Input| JEN Mapping'!$F28='Input| Projects'!AJ$9,1,0) -> 1 | AK28: =IF('Input| JEN Mapping'!$F28='Input| Projects'!AK$9,1,0) -> 0 | AL28: =IF('Input| JEN Mapping'!$F28='Input| Projects'!AL$9,1,0) -> 0 | AM28: =IF('Input| JEN Mapping'!$F28='Input| Projects'!AM$9,1,0) -> 0 | AN28: =IF('Input| JEN Mapping'!$F28='Input| Projects'!AN$9,1,0) -> 0 | AO28: =IF('Input| JEN Mapping'!$F28='Input| Projects'!AO$9,1,0) -> 0 | AP28: =IF('Input| JEN Mapping'!$F28='Input| Projects'!AP$9,1,0) -> 0 | AQ28: =IF('Input| JEN Mapping'!$F28='Input| Projects'!AQ$9,1,0) -> 0 | AR28: =IF('Input| JEN Mapping'!$F28='Input| Projects'!AR$9,1,0) -> 0 | AT28: =IF($C28="","",IF($G28='Input| Projects'!AT$9,1,0)) -> 0 | AU28: =IF($C28="","",IF($G28='Input| Projects'!AU$9,1,0)) -> 1 | AV28: =IF($C28="","",IF($G28='Input| Projects'!AV$9,1,0)) -> 0 | AW28: =IF($C28="","",IF($G28='Input| Projects'!AW$9,1,0)) -> 0 | AX28: =IF($C28="","",IF($G28='Input| Projects'!AX$9,1,0)) -> 0 | AY28: =IF($C28="","",IF($G28='Input| Projects'!AY$9,1,0)) -> 0 | AZ28: =IF($C28="","",IF($G28='Input| Projects'!AZ$9,1,0)) -> 0 | BA28: =IF($C28="","",IF($G28='Input| Projects'!BA$9,1,0)) -> 0 | BB28: =IF($C28="","",IF($G28='Input| Projects'!BB$9,1,0)) -> 0 | BC28: =IF($C28="","",IF($G28='Input| Projects'!BC$9,1,0)) -> 0 | BD28: =IF($C28="","",IF($G28='Input| Projects'!BD$9,1,0)) -> 0 | BE28: =IF($C28="","",IF($G28='Input| Projects'!BE$9,1,0)) -> 0 | BF28: =IF($C28="","",IF($G28='Input| Projects'!BF$9,1,0)) -> 0 | BG28: =IF($C28="","",IF($G28='Input| Projects'!BG$9,1,0)) -> 0 | BH28: =IF($C28="","",IF($G28='Input| Projects'!BH$9,1,0)) -> 0 | BI28: =IF($C28="","",IF($G28='Input| Projects'!BI$9,1,0)) -> 0 | BJ28: =IF($C28="","",IF($G28='Input| Projects'!BJ$9,1,0)) -> 0 | BK28: =IF($C28="","",IF($G28='Input| Projects'!BK$9,1,0)) -> 0 | BL28: =IF($C28="","",IF($G28='Input| Projects'!BL$9,1,0)) -> 0 | BM28: =IF($C28="","",IF($G28='Input| Projects'!BM$9,1,0)) -> 0 | BN28: =IF($C28="","",IF($G28='Input| Projects'!BN$9,1,0)) -> 0 | BO28: =IF($C28="","",IF($G28='Input| Projects'!BO$9,1,0)) -> 0 | BP28: =IF($C28="","",IF($G28='Input| Projects'!BP$9,1,0)) -> 0 | BQ28: =IF($C28="","",IF($G28='Input| Projects'!BQ$9,1,0)) -> 0 | BR28: =IF($C28="","",IF($G28='Input| Projects'!BR$9,1,0)) -> 0 | BS28: =IF($C28="","",IF($G28='Input| Projects'!BS$9,1,0)) -> 0 | BT28: =IF($C28="","",IF($G28='Input| Projects'!BT$9,1,0)) -> 0 | BU28: =IF($C28="","",IF($G28='Input| Projects'!BU$9,1,0)) -> 0 | BV28: =IF($C28="","",IF($G28='Input| Projects'!BV$9,1,0)) -> 0 | BW28: =IF($C28="","",IF($G28='Input| Projects'!BW$9,1,0)) -> 0 | BX28: =IF($C28="","",IF($G28='Input| Projects'!BX$9,1,0)) -> 0 | BY28: =IF($C28="","",IF($G28='Input| Projects'!BY$9,1,0)) -> 0 | BZ28: =IF($C28="","",IF($G28='Input| Projects'!BZ$9,1,0)) -> 0 | CA28: =IF($C28="","",IF($G28='Input| Projects'!CA$9,1,0)) -> 0 | CB28: =IF($C28="","",IF($G28='Input| Projects'!CB$9,1,0)) -> 0 | CC28: =IF($C28="","",IF($G28='Input| Projects'!CC$9,1,0)) -> 0 | CD28: =IF($C28="","",IF($G28='Input| Projects'!CD$9,1,0)) -> 0 | CE28: =IF($C28="","",IF($G28='Input| Projects'!CE$9,1,0)) -> 0 | CF28: =IF($C28="","",IF($G28='Input| Projects'!CF$9,1,0)) -> 0 | CG28: =IF($C28="","",IF($G28='Input| Projects'!CG$9,1,0)) -> 0 | CH28: =IF($C28="","",IF($G28='Input| Projects'!CH$9,1,0)) -> 0 | CI28: =IF($C28="","",IF($G28='Input| Projects'!CI$9,1,0)) -> 0 | CJ28: =IF($C28="","",IF($G28='Input| Projects'!CJ$9,1,0)) -> 0 | CK28: =IF($C28="","",IF($G28='Input| Projects'!CK$9,1,0)) -> 0 | CL28: =IF($C28="","",IF($G28='Input| Projects'!CL$9,1,0)) -> 0 | CM28: =IF($C28="","",IF($G28='Input| Projects'!CM$9,1,0)) -> 0 | CN28: =IF($C28="","",IF($G28='Input| Projects'!CN$9,1,0)) -> 0 | CO28: =IF($C28="","",IF($G28='Input| Projects'!CO$9,1,0)) -> 0 | CP28: =IF($C28="","",IF($G28='Input| Projects'!CP$9,1,0)) -> 0 | CQ28: =IF($C28="","",IF($G28='Input| Projects'!CQ$9,1,0)) -> 0
B29: 20 | C29: Pole Replacement (Incl. Pole Top) - LV | D29: A170 | F29: Replacement | G29: Distribution system assets | J29: 1641.740392 | K29: 356.7312803 | L29: 690.5352125 | M29: 690.5352125 | N29: 690.5352125 | O29: 689.4859556 | P29: 0 | Q29: 0 | S29: 0 | T29: 0 | U29: 0 | V29: 0 | W29: 0 | X29: 0 | Z29: 0.5142390664 | AA29: 0.320448873 | AB29: 0.1653120605 | AD29: Yes | AE29: No | AJ29: =IF('Input| JEN Mapping'!$F29='Input| Projects'!AJ$9,1,0) -> 1 | AK29: =IF('Input| JEN Mapping'!$F29='Input| Projects'!AK$9,1,0) -> 0 | AL29: =IF('Input| JEN Mapping'!$F29='Input| Projects'!AL$9,1,0) -> 0 | AM29: =IF('Input| JEN Mapping'!$F29='Input| Projects'!AM$9,1,0) -> 0 | AN29: =IF('Input| JEN Mapping'!$F29='Input| Projects'!AN$9,1,0) -> 0 | AO29: =IF('Input| JEN Mapping'!$F29='Input| Projects'!AO$9,1,0) -> 0 | AP29: =IF('Input| JEN Mapping'!$F29='Input| Projects'!AP$9,1,0) -> 0 | AQ29: =IF('Input| JEN Mapping'!$F29='Input| Projects'!AQ$9,1,0) -> 0 | AR29: =IF('Input| JEN Mapping'!$F29='Input| Projects'!AR$9,1,0) -> 0 | AT29: =IF($C29="","",IF($G29='Input| Projects'!AT$9,1,0)) -> 0 | AU29: =IF($C29="","",IF($G29='Input| Projects'!AU$9,1,0)) -> 1 | AV29: =IF($C29="","",IF($G29='Input| Projects'!AV$9,1,0)) -> 0 | AW29: =IF($C29="","",IF($G29='Input| Projects'!AW$9,1,0)) -> 0 | AX29: =IF($C29="","",IF($G29='Input| Projects'!AX$9,1,0)) -> 0 | AY29: =IF($C29="","",IF($G29='Input| Projects'!AY$9,1,0)) -> 0 | AZ29: =IF($C29="","",IF($G29='Input| Projects'!AZ$9,1,0)) -> 0 | BA29: =IF($C29="","",IF($G29='Input| Projects'!BA$9,1,0)) -> 0 | BB29: =IF($C29="","",IF($G29='Input| Projects'!BB$9,1,0)) -> 0 | BC29: =IF($C29="","",IF($G29='Input| Projects'!BC$9,1,0)) -> 0 | BD29: =IF($C29="","",IF($G29='Input| Projects'!BD$9,1,0)) -> 0 | BE29: =IF($C29="","",IF($G29='Input| Projects'!BE$9,1,0)) -> 0 | BF29: =IF($C29="","",IF($G29='Input| Projects'!BF$9,1,0)) -> 0 | BG29: =IF($C29="","",IF($G29='Input| Projects'!BG$9,1,0)) -> 0 | BH29: =IF($C29="","",IF($G29='Input| Projects'!BH$9,1,0)) -> 0 | BI29: =IF($C29="","",IF($G29='Input| Projects'!BI$9,1,0)) -> 0 | BJ29: =IF($C29="","",IF($G29='Input| Projects'!BJ$9,1,0)) -> 0 | BK29: =IF($C29="","",IF($G29='Input| Projects'!BK$9,1,0)) -> 0 | BL29: =IF($C29="","",IF($G29='Input| Projects'!BL$9,1,0)) -> 0 | BM29: =IF($C29="","",IF($G29='Input| Projects'!BM$9,1,0)) -> 0 | BN29: =IF($C29="","",IF($G29='Input| Projects'!BN$9,1,0)) -> 0 | BO29: =IF($C29="","",IF($G29='Input| Projects'!BO$9,1,0)) -> 0 | BP29: =IF($C29="","",IF($G29='Input| Projects'!BP$9,1,0)) -> 0 | BQ29: =IF($C29="","",IF($G29='Input| Projects'!BQ$9,1,0)) -> 0 | BR29: =IF($C29="","",IF($G29='Input| Projects'!BR$9,1,0)) -> 0 | BS29: =IF($C29="","",IF($G29='Input| Projects'!BS$9,1,0)) -> 0 | BT29: =IF($C29="","",IF($G29='Input| Projects'!BT$9,1,0)) -> 0 | BU29: =IF($C29="","",IF($G29='Input| Projects'!BU$9,1,0)) -> 0 | BV29: =IF($C29="","",IF($G29='Input| Projects'!BV$9,1,0)) -> 0 | BW29: =IF($C29="","",IF($G29='Input| Projects'!BW$9,1,0)) -> 0 | BX29: =IF($C29="","",IF($G29='Input| Projects'!BX$9,1,0)) -> 0 | BY29: =IF($C29="","",IF($G29='Input| Projects'!BY$9,1,0)) -> 0 | BZ29: =IF($C29="","",IF($G29='Input| Projects'!BZ$9,1,0)) -> 0 | CA29: =IF($C29="","",IF($G29='Input| Projects'!CA$9,1,0)) -> 0 | CB29: =IF($C29="","",IF($G29='Input| Projects'!CB$9,1,0)) -> 0 | CC29: =IF($C29="","",IF($G29='Input| Projects'!CC$9,1,0)) -> 0 | CD29: =IF($C29="","",IF($G29='Input| Projects'!CD$9,1,0)) -> 0 | CE29: =IF($C29="","",IF($G29='Input| Projects'!CE$9,1,0)) -> 0 | CF29: =IF($C29="","",IF($G29='Input| Projects'!CF$9,1,0)) -> 0 | CG29: =IF($C29="","",IF($G29='Input| Projects'!CG$9,1,0)) -> 0 | CH29: =IF($C29="","",IF($G29='Input| Projects'!CH$9,1,0)) -> 0 | CI29: =IF($C29="","",IF($G29='Input| Projects'!CI$9,1,0)) -> 0 | CJ29: =IF($C29="","",IF($G29='Input| Projects'!CJ$9,1,0)) -> 0 | CK29: =IF($C29="","",IF($G29='Input| Projects'!CK$9,1,0)) -> 0 | CL29: =IF($C29="","",IF($G29='Input| Projects'!CL$9,1,0)) -> 0 | CM29: =IF($C29="","",IF($G29='Input| Projects'!CM$9,1,0)) -> 0 | CN29: =IF($C29="","",IF($G29='Input| Projects'!CN$9,1,0)) -> 0 | CO29: =IF($C29="","",IF($G29='Input| Projects'!CO$9,1,0)) -> 0 | CP29: =IF($C29="","",IF($G29='Input| Projects'!CP$9,1,0)) -> 0 | CQ29: =IF($C29="","",IF($G29='Input| Projects'!CQ$9,1,0)) -> 0
B30: 21 | C30: Pole Replacement (Incl. Pole Top) - ST | D30: A171 | F30: Replacement | G30: Subtransmission | J30: 191.9470698 | K30: 65.35161677 | L30: 137.205036 | M30: 137.205036 | N30: 137.205036 | O30: 136.9965552 | P30: 0 | Q30: 0 | S30: 0 | T30: 0 | U30: 0 | V30: 0 | W30: 0 | X30: 0 | Z30: 0.3737799772 | AA30: 0.3886179709 | AB30: 0.2376020519 | AD30: Yes | AE30: No | AJ30: =IF('Input| JEN Mapping'!$F30='Input| Projects'!AJ$9,1,0) -> 1 | AK30: =IF('Input| JEN Mapping'!$F30='Input| Projects'!AK$9,1,0) -> 0 | AL30: =IF('Input| JEN Mapping'!$F30='Input| Projects'!AL$9,1,0) -> 0 | AM30: =IF('Input| JEN Mapping'!$F30='Input| Projects'!AM$9,1,0) -> 0 | AN30: =IF('Input| JEN Mapping'!$F30='Input| Projects'!AN$9,1,0) -> 0 | AO30: =IF('Input| JEN Mapping'!$F30='Input| Projects'!AO$9,1,0) -> 0 | AP30: =IF('Input| JEN Mapping'!$F30='Input| Projects'!AP$9,1,0) -> 0 | AQ30: =IF('Input| JEN Mapping'!$F30='Input| Projects'!AQ$9,1,0) -> 0 | AR30: =IF('Input| JEN Mapping'!$F30='Input| Projects'!AR$9,1,0) -> 0 | AT30: =IF($C30="","",IF($G30='Input| Projects'!AT$9,1,0)) -> 1 | AU30: =IF($C30="","",IF($G30='Input| Projects'!AU$9,1,0)) -> 0 | AV30: =IF($C30="","",IF($G30='Input| Projects'!AV$9,1,0)) -> 0 | AW30: =IF($C30="","",IF($G30='Input| Projects'!AW$9,1,0)) -> 0 | AX30: =IF($C30="","",IF($G30='Input| Projects'!AX$9,1,0)) -> 0 | AY30: =IF($C30="","",IF($G30='Input| Projects'!AY$9,1,0)) -> 0 | AZ30: =IF($C30="","",IF($G30='Input| Projects'!AZ$9,1,0)) -> 0 | BA30: =IF($C30="","",IF($G30='Input| Projects'!BA$9,1,0)) -> 0 | BB30: =IF($C30="","",IF($G30='Input| Projects'!BB$9,1,0)) -> 0 | BC30: =IF($C30="","",IF($G30='Input| Projects'!BC$9,1,0)) -> 0 | BD30: =IF($C30="","",IF($G30='Input| Projects'!BD$9,1,0)) -> 0 | BE30: =IF($C30="","",IF($G30='Input| Projects'!BE$9,1,0)) -> 0 | BF30: =IF($C30="","",IF($G30='Input| Projects'!BF$9,1,0)) -> 0 | BG30: =IF($C30="","",IF($G30='Input| Projects'!BG$9,1,0)) -> 0 | BH30: =IF($C30="","",IF($G30='Input| Projects'!BH$9,1,0)) -> 0 | BI30: =IF($C30="","",IF($G30='Input| Projects'!BI$9,1,0)) -> 0 | BJ30: =IF($C30="","",IF($G30='Input| Projects'!BJ$9,1,0)) -> 0 | BK30: =IF($C30="","",IF($G30='Input| Projects'!BK$9,1,0)) -> 0 | BL30: =IF($C30="","",IF($G30='Input| Projects'!BL$9,1,0)) -> 0 | BM30: =IF($C30="","",IF($G30='Input| Projects'!BM$9,1,0)) -> 0 | BN30: =IF($C30="","",IF($G30='Input| Projects'!BN$9,1,0)) -> 0 | BO30: =IF($C30="","",IF($G30='Input| Projects'!BO$9,1,0)) -> 0 | BP30: =IF($C30="","",IF($G30='Input| Projects'!BP$9,1,0)) -> 0 | BQ30: =IF($C30="","",IF($G30='Input| Projects'!BQ$9,1,0)) -> 0 | BR30: =IF($C30="","",IF($G30='Input| Projects'!BR$9,1,0)) -> 0 | BS30: =IF($C30="","",IF($G30='Input| Projects'!BS$9,1,0)) -> 0 | BT30: =IF($C30="","",IF($G30='Input| Projects'!BT$9,1,0)) -> 0 | BU30: =IF($C30="","",IF($G30='Input| Projects'!BU$9,1,0)) -> 0 | BV30: =IF($C30="","",IF($G30='Input| Projects'!BV$9,1,0)) -> 0 | BW30: =IF($C30="","",IF($G30='Input| Projects'!BW$9,1,0)) -> 0 | BX30: =IF($C30="","",IF($G30='Input| Projects'!BX$9,1,0)) -> 0 | BY30: =IF($C30="","",IF($G30='Input| Projects'!BY$9,1,0)) -> 0 | BZ30: =IF($C30="","",IF($G30='Input| Projects'!BZ$9,1,0)) -> 0 | CA30: =IF($C30="","",IF($G30='Input| Projects'!CA$9,1,0)) -> 0 | CB30: =IF($C30="","",IF($G30='Input| Projects'!CB$9,1,0)) -> 0 | CC30: =IF($C30="","",IF($G30='Input| Projects'!CC$9,1,0)) -> 0 | CD30: =IF($C30="","",IF($G30='Input| Projects'!CD$9,1,0)) -> 0 | CE30: =IF($C30="","",IF($G30='Input| Projects'!CE$9,1,0)) -> 0 | CF30: =IF($C30="","",IF($G30='Input| Projects'!CF$9,1,0)) -> 0 | CG30: =IF($C30="","",IF($G30='Input| Projects'!CG$9,1,0)) -> 0 | CH30: =IF($C30="","",IF($G30='Input| Projects'!CH$9,1,0)) -> 0 | CI30: =IF($C30="","",IF($G30='Input| Projects'!CI$9,1,0)) -> 0 | CJ30: =IF($C30="","",IF($G30='Input| Projects'!CJ$9,1,0)) -> 0 | CK30: =IF($C30="","",IF($G30='Input| Projects'!CK$9,1,0)) -> 0 | CL30: =IF($C30="","",IF($G30='Input| Projects'!CL$9,1,0)) -> 0 | CM30: =IF($C30="","",IF($G30='Input| Projects'!CM$9,1,0)) -> 0 | CN30: =IF($C30="","",IF($G30='Input| Projects'!CN$9,1,0)) -> 0 | CO30: =IF($C30="","",IF($G30='Input| Projects'!CO$9,1,0)) -> 0 | CP30: =IF($C30="","",IF($G30='Input| Projects'!CP$9,1,0)) -> 0 | CQ30: =IF($C30="","",IF($G30='Input| Projects'!CQ$9,1,0)) -> 0
B31: 22 | C31: Pole Reinforcement - HV | D31: A32 | F31: Replacement | G31: Distribution system assets | J31: 289.1276424 | K31: 251.2978574 | L31: 270.2127499 | M31: 270.2127499 | N31: 270.2127499 | O31: 270.2127499 | P31: 0 | Q31: 0 | S31: 0 | T31: 0 | U31: 0 | V31: 0 | W31: 0 | X31: 0 | Z31: 0.04441947681 | AA31: 0.7104697726 | AB31: 0.2451107506 | AD31: Yes | AE31: No | AJ31: =IF('Input| JEN Mapping'!$F31='Input| Projects'!AJ$9,1,0) -> 1 | AK31: =IF('Input| JEN Mapping'!$F31='Input| Projects'!AK$9,1,0) -> 0 | AL31: =IF('Input| JEN Mapping'!$F31='Input| Projects'!AL$9,1,0) -> 0 | AM31: =IF('Input| JEN Mapping'!$F31='Input| Projects'!AM$9,1,0) -> 0 | AN31: =IF('Input| JEN Mapping'!$F31='Input| Projects'!AN$9,1,0) -> 0 | AO31: =IF('Input| JEN Mapping'!$F31='Input| Projects'!AO$9,1,0) -> 0 | AP31: =IF('Input| JEN Mapping'!$F31='Input| Projects'!AP$9,1,0) -> 0 | AQ31: =IF('Input| JEN Mapping'!$F31='Input| Projects'!AQ$9,1,0) -> 0 | AR31: =IF('Input| JEN Mapping'!$F31='Input| Projects'!AR$9,1,0) -> 0 | AT31: =IF($C31="","",IF($G31='Input| Projects'!AT$9,1,0)) -> 0 | AU31: =IF($C31="","",IF($G31='Input| Projects'!AU$9,1,0)) -> 1 | AV31: =IF($C31="","",IF($G31='Input| Projects'!AV$9,1,0)) -> 0 | AW31: =IF($C31="","",IF($G31='Input| Projects'!AW$9,1,0)) -> 0 | AX31: =IF($C31="","",IF($G31='Input| Projects'!AX$9,1,0)) -> 0 | AY31: =IF($C31="","",IF($G31='Input| Projects'!AY$9,1,0)) -> 0 | AZ31: =IF($C31="","",IF($G31='Input| Projects'!AZ$9,1,0)) -> 0 | BA31: =IF($C31="","",IF($G31='Input| Projects'!BA$9,1,0)) -> 0 | BB31: =IF($C31="","",IF($G31='Input| Projects'!BB$9,1,0)) -> 0 | BC31: =IF($C31="","",IF($G31='Input| Projects'!BC$9,1,0)) -> 0 | BD31: =IF($C31="","",IF($G31='Input| Projects'!BD$9,1,0)) -> 0 | BE31: =IF($C31="","",IF($G31='Input| Projects'!BE$9,1,0)) -> 0 | BF31: =IF($C31="","",IF($G31='Input| Projects'!BF$9,1,0)) -> 0 | BG31: =IF($C31="","",IF($G31='Input| Projects'!BG$9,1,0)) -> 0 | BH31: =IF($C31="","",IF($G31='Input| Projects'!BH$9,1,0)) -> 0 | BI31: =IF($C31="","",IF($G31='Input| Projects'!BI$9,1,0)) -> 0 | BJ31: =IF($C31="","",IF($G31='Input| Projects'!BJ$9,1,0)) -> 0 | BK31: =IF($C31="","",IF($G31='Input| Projects'!BK$9,1,0)) -> 0 | BL31: =IF($C31="","",IF($G31='Input| Projects'!BL$9,1,0)) -> 0 | BM31: =IF($C31="","",IF($G31='Input| Projects'!BM$9,1,0)) -> 0 | BN31: =IF($C31="","",IF($G31='Input| Projects'!BN$9,1,0)) -> 0 | BO31: =IF($C31="","",IF($G31='Input| Projects'!BO$9,1,0)) -> 0 | BP31: =IF($C31="","",IF($G31='Input| Projects'!BP$9,1,0)) -> 0 | BQ31: =IF($C31="","",IF($G31='Input| Projects'!BQ$9,1,0)) -> 0 | BR31: =IF($C31="","",IF($G31='Input| Projects'!BR$9,1,0)) -> 0 | BS31: =IF($C31="","",IF($G31='Input| Projects'!BS$9,1,0)) -> 0 | BT31: =IF($C31="","",IF($G31='Input| Projects'!BT$9,1,0)) -> 0 | BU31: =IF($C31="","",IF($G31='Input| Projects'!BU$9,1,0)) -> 0 | BV31: =IF($C31="","",IF($G31='Input| Projects'!BV$9,1,0)) -> 0 | BW31: =IF($C31="","",IF($G31='Input| Projects'!BW$9,1,0)) -> 0 | BX31: =IF($C31="","",IF($G31='Input| Projects'!BX$9,1,0)) -> 0 | BY31: =IF($C31="","",IF($G31='Input| Projects'!BY$9,1,0)) -> 0 | BZ31: =IF($C31="","",IF($G31='Input| Projects'!BZ$9,1,0)) -> 0 | CA31: =IF($C31="","",IF($G31='Input| Projects'!CA$9,1,0)) -> 0 | CB31: =IF($C31="","",IF($G31='Input| Projects'!CB$9,1,0)) -> 0 | CC31: =IF($C31="","",IF($G31='Input| Projects'!CC$9,1,0)) -> 0 | CD31: =IF($C31="","",IF($G31='Input| Projects'!CD$9,1,0)) -> 0 | CE31: =IF($C31="","",IF($G31='Input| Projects'!CE$9,1,0)) -> 0 | CF31: =IF($C31="","",IF($G31='Input| Projects'!CF$9,1,0)) -> 0 | CG31: =IF($C31="","",IF($G31='Input| Projects'!CG$9,1,0)) -> 0 | CH31: =IF($C31="","",IF($G31='Input| Projects'!CH$9,1,0)) -> 0 | CI31: =IF($C31="","",IF($G31='Input| Projects'!CI$9,1,0)) -> 0 | CJ31: =IF($C31="","",IF($G31='Input| Projects'!CJ$9,1,0)) -> 0 | CK31: =IF($C31="","",IF($G31='Input| Projects'!CK$9,1,0)) -> 0 | CL31: =IF($C31="","",IF($G31='Input| Projects'!CL$9,1,0)) -> 0 | CM31: =IF($C31="","",IF($G31='Input| Projects'!CM$9,1,0)) -> 0 | CN31: =IF($C31="","",IF($G31='Input| Projects'!CN$9,1,0)) -> 0 | CO31: =IF($C31="","",IF($G31='Input| Projects'!CO$9,1,0)) -> 0 | CP31: =IF($C31="","",IF($G31='Input| Projects'!CP$9,1,0)) -> 0 | CQ31: =IF($C31="","",IF($G31='Input| Projects'!CQ$9,1,0)) -> 0
B32: 23 | C32: Pole Reinforcement - LV | D32: A175 | F32: Replacement | G32: Distribution system assets | J32: 462.8428641 | K32: 462.8428641 | L32: 462.8428641 | M32: 462.8428641 | N32: 462.8428641 | O32: 462.8428641 | P32: 0 | Q32: 0 | S32: 0 | T32: 0 | U32: 0 | V32: 0 | W32: 0 | X32: 0 | Z32: 0.08258288944 | AA32: 0.5323199852 | AB32: 0.3850971254 | AD32: Yes | AE32: No | AJ32: =IF('Input| JEN Mapping'!$F32='Input| Projects'!AJ$9,1,0) -> 1 | AK32: =IF('Input| JEN Mapping'!$F32='Input| Projects'!AK$9,1,0) -> 0 | AL32: =IF('Input| JEN Mapping'!$F32='Input| Projects'!AL$9,1,0) -> 0 | AM32: =IF('Input| JEN Mapping'!$F32='Input| Projects'!AM$9,1,0) -> 0 | AN32: =IF('Input| JEN Mapping'!$F32='Input| Projects'!AN$9,1,0) -> 0 | AO32: =IF('Input| JEN Mapping'!$F32='Input| Projects'!AO$9,1,0) -> 0 | AP32: =IF('Input| JEN Mapping'!$F32='Input| Projects'!AP$9,1,0) -> 0 | AQ32: =IF('Input| JEN Mapping'!$F32='Input| Projects'!AQ$9,1,0) -> 0 | AR32: =IF('Input| JEN Mapping'!$F32='Input| Projects'!AR$9,1,0) -> 0 | AT32: =IF($C32="","",IF($G32='Input| Projects'!AT$9,1,0)) -> 0 | AU32: =IF($C32="","",IF($G32='Input| Projects'!AU$9,1,0)) -> 1 | AV32: =IF($C32="","",IF($G32='Input| Projects'!AV$9,1,0)) -> 0 | AW32: =IF($C32="","",IF($G32='Input| Projects'!AW$9,1,0)) -> 0 | AX32: =IF($C32="","",IF($G32='Input| Projects'!AX$9,1,0)) -> 0 | AY32: =IF($C32="","",IF($G32='Input| Projects'!AY$9,1,0)) -> 0 | AZ32: =IF($C32="","",IF($G32='Input| Projects'!AZ$9,1,0)) -> 0 | BA32: =IF($C32="","",IF($G32='Input| Projects'!BA$9,1,0)) -> 0 | BB32: =IF($C32="","",IF($G32='Input| Projects'!BB$9,1,0)) -> 0 | BC32: =IF($C32="","",IF($G32='Input| Projects'!BC$9,1,0)) -> 0 | BD32: =IF($C32="","",IF($G32='Input| Projects'!BD$9,1,0)) -> 0 | BE32: =IF($C32="","",IF($G32='Input| Projects'!BE$9,1,0)) -> 0 | BF32: =IF($C32="","",IF($G32='Input| Projects'!BF$9,1,0)) -> 0 | BG32: =IF($C32="","",IF($G32='Input| Projects'!BG$9,1,0)) -> 0 | BH32: =IF($C32="","",IF($G32='Input| Projects'!BH$9,1,0)) -> 0 | BI32: =IF($C32="","",IF($G32='Input| Projects'!BI$9,1,0)) -> 0 | BJ32: =IF($C32="","",IF($G32='Input| Projects'!BJ$9,1,0)) -> 0 | BK32: =IF($C32="","",IF($G32='Input| Projects'!BK$9,1,0)) -> 0 | BL32: =IF($C32="","",IF($G32='Input| Projects'!BL$9,1,0)) -> 0 | BM32: =IF($C32="","",IF($G32='Input| Projects'!BM$9,1,0)) -> 0 | BN32: =IF($C32="","",IF($G32='Input| Projects'!BN$9,1,0)) -> 0 | BO32: =IF($C32="","",IF($G32='Input| Projects'!BO$9,1,0)) -> 0 | BP32: =IF($C32="","",IF($G32='Input| Projects'!BP$9,1,0)) -> 0 | BQ32: =IF($C32="","",IF($G32='Input| Projects'!BQ$9,1,0)) -> 0 | BR32: =IF($C32="","",IF($G32='Input| Projects'!BR$9,1,0)) -> 0 | BS32: =IF($C32="","",IF($G32='Input| Projects'!BS$9,1,0)) -> 0 | BT32: =IF($C32="","",IF($G32='Input| Projects'!BT$9,1,0)) -> 0 | BU32: =IF($C32="","",IF($G32='Input| Projects'!BU$9,1,0)) -> 0 | BV32: =IF($C32="","",IF($G32='Input| Projects'!BV$9,1,0)) -> 0 | BW32: =IF($C32="","",IF($G32='Input| Projects'!BW$9,1,0)) -> 0 | BX32: =IF($C32="","",IF($G32='Input| Projects'!BX$9,1,0)) -> 0 | BY32: =IF($C32="","",IF($G32='Input| Projects'!BY$9,1,0)) -> 0 | BZ32: =IF($C32="","",IF($G32='Input| Projects'!BZ$9,1,0)) -> 0 | CA32: =IF($C32="","",IF($G32='Input| Projects'!CA$9,1,0)) -> 0 | CB32: =IF($C32="","",IF($G32='Input| Projects'!CB$9,1,0)) -> 0 | CC32: =IF($C32="","",IF($G32='Input| Projects'!CC$9,1,0)) -> 0 | CD32: =IF($C32="","",IF($G32='Input| Projects'!CD$9,1,0)) -> 0 | CE32: =IF($C32="","",IF($G32='Input| Projects'!CE$9,1,0)) -> 0 | CF32: =IF($C32="","",IF($G32='Input| Projects'!CF$9,1,0)) -> 0 | CG32: =IF($C32="","",IF($G32='Input| Projects'!CG$9,1,0)) -> 0 | CH32: =IF($C32="","",IF($G32='Input| Projects'!CH$9,1,0)) -> 0 | CI32: =IF($C32="","",IF($G32='Input| Projects'!CI$9,1,0)) -> 0 | CJ32: =IF($C32="","",IF($G32='Input| Projects'!CJ$9,1,0)) -> 0 | CK32: =IF($C32="","",IF($G32='Input| Projects'!CK$9,1,0)) -> 0 | CL32: =IF($C32="","",IF($G32='Input| Projects'!CL$9,1,0)) -> 0 | CM32: =IF($C32="","",IF($G32='Input| Projects'!CM$9,1,0)) -> 0 | CN32: =IF($C32="","",IF($G32='Input| Projects'!CN$9,1,0)) -> 0 | CO32: =IF($C32="","",IF($G32='Input| Projects'!CO$9,1,0)) -> 0 | CP32: =IF($C32="","",IF($G32='Input| Projects'!CP$9,1,0)) -> 0 | CQ32: =IF($C32="","",IF($G32='Input| Projects'!CQ$9,1,0)) -> 0
B33: 24 | C33: Pole Reinforcement - ST | D33: A177 | F33: Replacement | G33: Subtransmission | J33: 50.03819827 | K33: 40.41857696 | L33: 40.41857696 | M33: 40.41857696 | N33: 40.41857696 | O33: 40.41857696 | P33: 0 | Q33: 0 | S33: 0 | T33: 0 | U33: 0 | V33: 0 | W33: 0 | X33: 0 | Z33: 0.5909219026 | AA33: 0.1681333579 | AB33: 0.2409447395 | AD33: Yes | AE33: No | AJ33: =IF('Input| JEN Mapping'!$F33='Input| Projects'!AJ$9,1,0) -> 1 | AK33: =IF('Input| JEN Mapping'!$F33='Input| Projects'!AK$9,1,0) -> 0 | AL33: =IF('Input| JEN Mapping'!$F33='Input| Projects'!AL$9,1,0) -> 0 | AM33: =IF('Input| JEN Mapping'!$F33='Input| Projects'!AM$9,1,0) -> 0 | AN33: =IF('Input| JEN Mapping'!$F33='Input| Projects'!AN$9,1,0) -> 0 | AO33: =IF('Input| JEN Mapping'!$F33='Input| Projects'!AO$9,1,0) -> 0 | AP33: =IF('Input| JEN Mapping'!$F33='Input| Projects'!AP$9,1,0) -> 0 | AQ33: =IF('Input| JEN Mapping'!$F33='Input| Projects'!AQ$9,1,0) -> 0 | AR33: =IF('Input| JEN Mapping'!$F33='Input| Projects'!AR$9,1,0) -> 0 | AT33: =IF($C33="","",IF($G33='Input| Projects'!AT$9,1,0)) -> 1 | AU33: =IF($C33="","",IF($G33='Input| Projects'!AU$9,1,0)) -> 0 | AV33: =IF($C33="","",IF($G33='Input| Projects'!AV$9,1,0)) -> 0 | AW33: =IF($C33="","",IF($G33='Input| Projects'!AW$9,1,0)) -> 0 | AX33: =IF($C33="","",IF($G33='Input| Projects'!AX$9,1,0)) -> 0 | AY33: =IF($C33="","",IF($G33='Input| Projects'!AY$9,1,0)) -> 0 | AZ33: =IF($C33="","",IF($G33='Input| Projects'!AZ$9,1,0)) -> 0 | BA33: =IF($C33="","",IF($G33='Input| Projects'!BA$9,1,0)) -> 0 | BB33: =IF($C33="","",IF($G33='Input| Projects'!BB$9,1,0)) -> 0 | BC33: =IF($C33="","",IF($G33='Input| Projects'!BC$9,1,0)) -> 0 | BD33: =IF($C33="","",IF($G33='Input| Projects'!BD$9,1,0)) -> 0 | BE33: =IF($C33="","",IF($G33='Input| Projects'!BE$9,1,0)) -> 0 | BF33: =IF($C33="","",IF($G33='Input| Projects'!BF$9,1,0)) -> 0 | BG33: =IF($C33="","",IF($G33='Input| Projects'!BG$9,1,0)) -> 0 | BH33: =IF($C33="","",IF($G33='Input| Projects'!BH$9,1,0)) -> 0 | BI33: =IF($C33="","",IF($G33='Input| Projects'!BI$9,1,0)) -> 0 | BJ33: =IF($C33="","",IF($G33='Input| Projects'!BJ$9,1,0)) -> 0 | BK33: =IF($C33="","",IF($G33='Input| Projects'!BK$9,1,0)) -> 0 | BL33: =IF($C33="","",IF($G33='Input| Projects'!BL$9,1,0)) -> 0 | BM33: =IF($C33="","",IF($G33='Input| Projects'!BM$9,1,0)) -> 0 | BN33: =IF($C33="","",IF($G33='Input| Projects'!BN$9,1,0)) -> 0 | BO33: =IF($C33="","",IF($G33='Input| Projects'!BO$9,1,0)) -> 0 | BP33: =IF($C33="","",IF($G33='Input| Projects'!BP$9,1,0)) -> 0 | BQ33: =IF($C33="","",IF($G33='Input| Projects'!BQ$9,1,0)) -> 0 | BR33: =IF($C33="","",IF($G33='Input| Projects'!BR$9,1,0)) -> 0 | BS33: =IF($C33="","",IF($G33='Input| Projects'!BS$9,1,0)) -> 0 | BT33: =IF($C33="","",IF($G33='Input| Projects'!BT$9,1,0)) -> 0 | BU33: =IF($C33="","",IF($G33='Input| Projects'!BU$9,1,0)) -> 0 | BV33: =IF($C33="","",IF($G33='Input| Projects'!BV$9,1,0)) -> 0 | BW33: =IF($C33="","",IF($G33='Input| Projects'!BW$9,1,0)) -> 0 | BX33: =IF($C33="","",IF($G33='Input| Projects'!BX$9,1,0)) -> 0 | BY33: =IF($C33="","",IF($G33='Input| Projects'!BY$9,1,0)) -> 0 | BZ33: =IF($C33="","",IF($G33='Input| Projects'!BZ$9,1,0)) -> 0 | CA33: =IF($C33="","",IF($G33='Input| Projects'!CA$9,1,0)) -> 0 | CB33: =IF($C33="","",IF($G33='Input| Projects'!CB$9,1,0)) -> 0 | CC33: =IF($C33="","",IF($G33='Input| Projects'!CC$9,1,0)) -> 0 | CD33: =IF($C33="","",IF($G33='Input| Projects'!CD$9,1,0)) -> 0 | CE33: =IF($C33="","",IF($G33='Input| Projects'!CE$9,1,0)) -> 0 | CF33: =IF($C33="","",IF($G33='Input| Projects'!CF$9,1,0)) -> 0 | CG33: =IF($C33="","",IF($G33='Input| Projects'!CG$9,1,0)) -> 0 | CH33: =IF($C33="","",IF($G33='Input| Projects'!CH$9,1,0)) -> 0 | CI33: =IF($C33="","",IF($G33='Input| Projects'!CI$9,1,0)) -> 0 | CJ33: =IF($C33="","",IF($G33='Input| Projects'!CJ$9,1,0)) -> 0 | CK33: =IF($C33="","",IF($G33='Input| Projects'!CK$9,1,0)) -> 0 | CL33: =IF($C33="","",IF($G33='Input| Projects'!CL$9,1,0)) -> 0 | CM33: =IF($C33="","",IF($G33='Input| Projects'!CM$9,1,0)) -> 0 | CN33: =IF($C33="","",IF($G33='Input| Projects'!CN$9,1,0)) -> 0 | CO33: =IF($C33="","",IF($G33='Input| Projects'!CO$9,1,0)) -> 0 | CP33: =IF($C33="","",IF($G33='Input| Projects'!CP$9,1,0)) -> 0 | CQ33: =IF($C33="","",IF($G33='Input| Projects'!CQ$9,1,0)) -> 0
B34: 25 | C34: HV U/G Cable Replacement | D34: A208 | F34: Replacement | G34: Distribution system assets | J34: 21.21615369 | K34: 162.5415139 | L34: 159.269864 | M34: 162.5415139 | N34: 159.269864 | O34: 162.5415139 | P34: 0 | Q34: 0 | S34: 0 | T34: 0 | U34: 0 | V34: 0 | W34: 0 | X34: 0 | Z34: 0.3762186697 | AA34: 0.4320969138 | AB34: 0.1916844165 | AD34: Yes | AE34: No | AJ34: =IF('Input| JEN Mapping'!$F34='Input| Projects'!AJ$9,1,0) -> 1 | AK34: =IF('Input| JEN Mapping'!$F34='Input| Projects'!AK$9,1,0) -> 0 | AL34: =IF('Input| JEN Mapping'!$F34='Input| Projects'!AL$9,1,0) -> 0 | AM34: =IF('Input| JEN Mapping'!$F34='Input| Projects'!AM$9,1,0) -> 0 | AN34: =IF('Input| JEN Mapping'!$F34='Input| Projects'!AN$9,1,0) -> 0 | AO34: =IF('Input| JEN Mapping'!$F34='Input| Projects'!AO$9,1,0) -> 0 | AP34: =IF('Input| JEN Mapping'!$F34='Input| Projects'!AP$9,1,0) -> 0 | AQ34: =IF('Input| JEN Mapping'!$F34='Input| Projects'!AQ$9,1,0) -> 0 | AR34: =IF('Input| JEN Mapping'!$F34='Input| Projects'!AR$9,1,0) -> 0 | AT34: =IF($C34="","",IF($G34='Input| Projects'!AT$9,1,0)) -> 0 | AU34: =IF($C34="","",IF($G34='Input| Projects'!AU$9,1,0)) -> 1 | AV34: =IF($C34="","",IF($G34='Input| Projects'!AV$9,1,0)) -> 0 | AW34: =IF($C34="","",IF($G34='Input| Projects'!AW$9,1,0)) -> 0 | AX34: =IF($C34="","",IF($G34='Input| Projects'!AX$9,1,0)) -> 0 | AY34: =IF($C34="","",IF($G34='Input| Projects'!AY$9,1,0)) -> 0 | AZ34: =IF($C34="","",IF($G34='Input| Projects'!AZ$9,1,0)) -> 0 | BA34: =IF($C34="","",IF($G34='Input| Projects'!BA$9,1,0)) -> 0 | BB34: =IF($C34="","",IF($G34='Input| Projects'!BB$9,1,0)) -> 0 | BC34: =IF($C34="","",IF($G34='Input| Projects'!BC$9,1,0)) -> 0 | BD34: =IF($C34="","",IF($G34='Input| Projects'!BD$9,1,0)) -> 0 | BE34: =IF($C34="","",IF($G34='Input| Projects'!BE$9,1,0)) -> 0 | BF34: =IF($C34="","",IF($G34='Input| Projects'!BF$9,1,0)) -> 0 | BG34: =IF($C34="","",IF($G34='Input| Projects'!BG$9,1,0)) -> 0 | BH34: =IF($C34="","",IF($G34='Input| Projects'!BH$9,1,0)) -> 0 | BI34: =IF($C34="","",IF($G34='Input| Projects'!BI$9,1,0)) -> 0 | BJ34: =IF($C34="","",IF($G34='Input| Projects'!BJ$9,1,0)) -> 0 | BK34: =IF($C34="","",IF($G34='Input| Projects'!BK$9,1,0)) -> 0 | BL34: =IF($C34="","",IF($G34='Input| Projects'!BL$9,1,0)) -> 0 | BM34: =IF($C34="","",IF($G34='Input| Projects'!BM$9,1,0)) -> 0 | BN34: =IF($C34="","",IF($G34='Input| Projects'!BN$9,1,0)) -> 0 | BO34: =IF($C34="","",IF($G34='Input| Projects'!BO$9,1,0)) -> 0 | BP34: =IF($C34="","",IF($G34='Input| Projects'!BP$9,1,0)) -> 0 | BQ34: =IF($C34="","",IF($G34='Input| Projects'!BQ$9,1,0)) -> 0 | BR34: =IF($C34="","",IF($G34='Input| Projects'!BR$9,1,0)) -> 0 | BS34: =IF($C34="","",IF($G34='Input| Projects'!BS$9,1,0)) -> 0 | BT34: =IF($C34="","",IF($G34='Input| Projects'!BT$9,1,0)) -> 0 | BU34: =IF($C34="","",IF($G34='Input| Projects'!BU$9,1,0)) -> 0 | BV34: =IF($C34="","",IF($G34='Input| Projects'!BV$9,1,0)) -> 0 | BW34: =IF($C34="","",IF($G34='Input| Projects'!BW$9,1,0)) -> 0 | BX34: =IF($C34="","",IF($G34='Input| Projects'!BX$9,1,0)) -> 0 | BY34: =IF($C34="","",IF($G34='Input| Projects'!BY$9,1,0)) -> 0 | BZ34: =IF($C34="","",IF($G34='Input| Projects'!BZ$9,1,0)) -> 0 | CA34: =IF($C34="","",IF($G34='Input| Projects'!CA$9,1,0)) -> 0 | CB34: =IF($C34="","",IF($G34='Input| Projects'!CB$9,1,0)) -> 0 | CC34: =IF($C34="","",IF($G34='Input| Projects'!CC$9,1,0)) -> 0 | CD34: =IF($C34="","",IF($G34='Input| Projects'!CD$9,1,0)) -> 0 | CE34: =IF($C34="","",IF($G34='Input| Projects'!CE$9,1,0)) -> 0 | CF34: =IF($C34="","",IF($G34='Input| Projects'!CF$9,1,0)) -> 0 | CG34: =IF($C34="","",IF($G34='Input| Projects'!CG$9,1,0)) -> 0 | CH34: =IF($C34="","",IF($G34='Input| Projects'!CH$9,1,0)) -> 0 | CI34: =IF($C34="","",IF($G34='Input| Projects'!CI$9,1,0)) -> 0 | CJ34: =IF($C34="","",IF($G34='Input| Projects'!CJ$9,1,0)) -> 0 | CK34: =IF($C34="","",IF($G34='Input| Projects'!CK$9,1,0)) -> 0 | CL34: =IF($C34="","",IF($G34='Input| Projects'!CL$9,1,0)) -> 0 | CM34: =IF($C34="","",IF($G34='Input| Projects'!CM$9,1,0)) -> 0 | CN34: =IF($C34="","",IF($G34='Input| Projects'!CN$9,1,0)) -> 0 | CO34: =IF($C34="","",IF($G34='Input| Projects'!CO$9,1,0)) -> 0 | CP34: =IF($C34="","",IF($G34='Input| Projects'!CP$9,1,0)) -> 0 | CQ34: =IF($C34="","",IF($G34='Input| Projects'!CQ$9,1,0)) -> 0
B35: 26 | C35: LV U/G Cable Replacement | D35: A210 | F35: Replacement | G35: Distribution system assets | J35: 126.6121893 | K35: 124.190475 | L35: 124.190475 | M35: 124.190475 | N35: 124.190475 | O35: 124.190475 | P35: 0 | Q35: 0 | S35: 0 | T35: 0 | U35: 0 | V35: 0 | W35: 0 | X35: 0 | Z35: 0.3682398135 | AA35: 0.4413561595 | AB35: 0.1904040271 | AD35: Yes | AE35: No | AJ35: =IF('Input| JEN Mapping'!$F35='Input| Projects'!AJ$9,1,0) -> 1 | AK35: =IF('Input| JEN Mapping'!$F35='Input| Projects'!AK$9,1,0) -> 0 | AL35: =IF('Input| JEN Mapping'!$F35='Input| Projects'!AL$9,1,0) -> 0 | AM35: =IF('Input| JEN Mapping'!$F35='Input| Projects'!AM$9,1,0) -> 0 | AN35: =IF('Input| JEN Mapping'!$F35='Input| Projects'!AN$9,1,0) -> 0 | AO35: =IF('Input| JEN Mapping'!$F35='Input| Projects'!AO$9,1,0) -> 0 | AP35: =IF('Input| JEN Mapping'!$F35='Input| Projects'!AP$9,1,0) -> 0 | AQ35: =IF('Input| JEN Mapping'!$F35='Input| Projects'!AQ$9,1,0) -> 0 | AR35: =IF('Input| JEN Mapping'!$F35='Input| Projects'!AR$9,1,0) -> 0 | AT35: =IF($C35="","",IF($G35='Input| Projects'!AT$9,1,0)) -> 0 | AU35: =IF($C35="","",IF($G35='Input| Projects'!AU$9,1,0)) -> 1 | AV35: =IF($C35="","",IF($G35='Input| Projects'!AV$9,1,0)) -> 0 | AW35: =IF($C35="","",IF($G35='Input| Projects'!AW$9,1,0)) -> 0 | AX35: =IF($C35="","",IF($G35='Input| Projects'!AX$9,1,0)) -> 0 | AY35: =IF($C35="","",IF($G35='Input| Projects'!AY$9,1,0)) -> 0 | AZ35: =IF($C35="","",IF($G35='Input| Projects'!AZ$9,1,0)) -> 0 | BA35: =IF($C35="","",IF($G35='Input| Projects'!BA$9,1,0)) -> 0 | BB35: =IF($C35="","",IF($G35='Input| Projects'!BB$9,1,0)) -> 0 | BC35: =IF($C35="","",IF($G35='Input| Projects'!BC$9,1,0)) -> 0 | BD35: =IF($C35="","",IF($G35='Input| Projects'!BD$9,1,0)) -> 0 | BE35: =IF($C35="","",IF($G35='Input| Projects'!BE$9,1,0)) -> 0 | BF35: =IF($C35="","",IF($G35='Input| Projects'!BF$9,1,0)) -> 0 | BG35: =IF($C35="","",IF($G35='Input| Projects'!BG$9,1,0)) -> 0 | BH35: =IF($C35="","",IF($G35='Input| Projects'!BH$9,1,0)) -> 0 | BI35: =IF($C35="","",IF($G35='Input| Projects'!BI$9,1,0)) -> 0 | BJ35: =IF($C35="","",IF($G35='Input| Projects'!BJ$9,1,0)) -> 0 | BK35: =IF($C35="","",IF($G35='Input| Projects'!BK$9,1,0)) -> 0 | BL35: =IF($C35="","",IF($G35='Input| Projects'!BL$9,1,0)) -> 0 | BM35: =IF($C35="","",IF($G35='Input| Projects'!BM$9,1,0)) -> 0 | BN35: =IF($C35="","",IF($G35='Input| Projects'!BN$9,1,0)) -> 0 | BO35: =IF($C35="","",IF($G35='Input| Projects'!BO$9,1,0)) -> 0 | BP35: =IF($C35="","",IF($G35='Input| Projects'!BP$9,1,0)) -> 0 | BQ35: =IF($C35="","",IF($G35='Input| Projects'!BQ$9,1,0)) -> 0 | BR35: =IF($C35="","",IF($G35='Input| Projects'!BR$9,1,0)) -> 0 | BS35: =IF($C35="","",IF($G35='Input| Projects'!BS$9,1,0)) -> 0 | BT35: =IF($C35="","",IF($G35='Input| Projects'!BT$9,1,0)) -> 0 | BU35: =IF($C35="","",IF($G35='Input| Projects'!BU$9,1,0)) -> 0 | BV35: =IF($C35="","",IF($G35='Input| Projects'!BV$9,1,0)) -> 0 | BW35: =IF($C35="","",IF($G35='Input| Projects'!BW$9,1,0)) -> 0 | BX35: =IF($C35="","",IF($G35='Input| Projects'!BX$9,1,0)) -> 0 | BY35: =IF($C35="","",IF($G35='Input| Projects'!BY$9,1,0)) -> 0 | BZ35: =IF($C35="","",IF($G35='Input| Projects'!BZ$9,1,0)) -> 0 | CA35: =IF($C35="","",IF($G35='Input| Projects'!CA$9,1,0)) -> 0 | CB35: =IF($C35="","",IF($G35='Input| Projects'!CB$9,1,0)) -> 0 | CC35: =IF($C35="","",IF($G35='Input| Projects'!CC$9,1,0)) -> 0 | CD35: =IF($C35="","",IF($G35='Input| Projects'!CD$9,1,0)) -> 0 | CE35: =IF($C35="","",IF($G35='Input| Projects'!CE$9,1,0)) -> 0 | CF35: =IF($C35="","",IF($G35='Input| Projects'!CF$9,1,0)) -> 0 | CG35: =IF($C35="","",IF($G35='Input| Projects'!CG$9,1,0)) -> 0 | CH35: =IF($C35="","",IF($G35='Input| Projects'!CH$9,1,0)) -> 0 | CI35: =IF($C35="","",IF($G35='Input| Projects'!CI$9,1,0)) -> 0 | CJ35: =IF($C35="","",IF($G35='Input| Projects'!CJ$9,1,0)) -> 0 | CK35: =IF($C35="","",IF($G35='Input| Projects'!CK$9,1,0)) -> 0 | CL35: =IF($C35="","",IF($G35='Input| Projects'!CL$9,1,0)) -> 0 | CM35: =IF($C35="","",IF($G35='Input| Projects'!CM$9,1,0)) -> 0 | CN35: =IF($C35="","",IF($G35='Input| Projects'!CN$9,1,0)) -> 0 | CO35: =IF($C35="","",IF($G35='Input| Projects'!CO$9,1,0)) -> 0 | CP35: =IF($C35="","",IF($G35='Input| Projects'!CP$9,1,0)) -> 0 | CQ35: =IF($C35="","",IF($G35='Input| Projects'!CQ$9,1,0)) -> 0
B36: 27 | C36: Pillar to Pillar | D36: A211 | F36: Replacement | G36: Distribution system assets | J36: 35.09849813 | K36: 32.55890364 | L36: 32.55890364 | M36: 32.55890364 | N36: 32.55890364 | O36: 32.55890364 | P36: 0 | Q36: 0 | S36: 0 | T36: 0 | U36: 0 | V36: 0 | W36: 0 | X36: 0 | Z36: 0.2551456111 | AA36: 0.4097941075 | AB36: 0.3350602815 | AD36: Yes | AE36: No | AJ36: =IF('Input| JEN Mapping'!$F36='Input| Projects'!AJ$9,1,0) -> 1 | AK36: =IF('Input| JEN Mapping'!$F36='Input| Projects'!AK$9,1,0) -> 0 | AL36: =IF('Input| JEN Mapping'!$F36='Input| Projects'!AL$9,1,0) -> 0 | AM36: =IF('Input| JEN Mapping'!$F36='Input| Projects'!AM$9,1,0) -> 0 | AN36: =IF('Input| JEN Mapping'!$F36='Input| Projects'!AN$9,1,0) -> 0 | AO36: =IF('Input| JEN Mapping'!$F36='Input| Projects'!AO$9,1,0) -> 0 | AP36: =IF('Input| JEN Mapping'!$F36='Input| Projects'!AP$9,1,0) -> 0 | AQ36: =IF('Input| JEN Mapping'!$F36='Input| Projects'!AQ$9,1,0) -> 0 | AR36: =IF('Input| JEN Mapping'!$F36='Input| Projects'!AR$9,1,0) -> 0 | AT36: =IF($C36="","",IF($G36='Input| Projects'!AT$9,1,0)) -> 0 | AU36: =IF($C36="","",IF($G36='Input| Projects'!AU$9,1,0)) -> 1 | AV36: =IF($C36="","",IF($G36='Input| Projects'!AV$9,1,0)) -> 0 | AW36: =IF($C36="","",IF($G36='Input| Projects'!AW$9,1,0)) -> 0 | AX36: =IF($C36="","",IF($G36='Input| Projects'!AX$9,1,0)) -> 0 | AY36: =IF($C36="","",IF($G36='Input| Projects'!AY$9,1,0)) -> 0 | AZ36: =IF($C36="","",IF($G36='Input| Projects'!AZ$9,1,0)) -> 0 | BA36: =IF($C36="","",IF($G36='Input| Projects'!BA$9,1,0)) -> 0 | BB36: =IF($C36="","",IF($G36='Input| Projects'!BB$9,1,0)) -> 0 | BC36: =IF($C36="","",IF($G36='Input| Projects'!BC$9,1,0)) -> 0 | BD36: =IF($C36="","",IF($G36='Input| Projects'!BD$9,1,0)) -> 0 | BE36: =IF($C36="","",IF($G36='Input| Projects'!BE$9,1,0)) -> 0 | BF36: =IF($C36="","",IF($G36='Input| Projects'!BF$9,1,0)) -> 0 | BG36: =IF($C36="","",IF($G36='Input| Projects'!BG$9,1,0)) -> 0 | BH36: =IF($C36="","",IF($G36='Input| Projects'!BH$9,1,0)) -> 0 | BI36: =IF($C36="","",IF($G36='Input| Projects'!BI$9,1,0)) -> 0 | BJ36: =IF($C36="","",IF($G36='Input| Projects'!BJ$9,1,0)) -> 0 | BK36: =IF($C36="","",IF($G36='Input| Projects'!BK$9,1,0)) -> 0 | BL36: =IF($C36="","",IF($G36='Input| Projects'!BL$9,1,0)) -> 0 | BM36: =IF($C36="","",IF($G36='Input| Projects'!BM$9,1,0)) -> 0 | BN36: =IF($C36="","",IF($G36='Input| Projects'!BN$9,1,0)) -> 0 | BO36: =IF($C36="","",IF($G36='Input| Projects'!BO$9,1,0)) -> 0 | BP36: =IF($C36="","",IF($G36='Input| Projects'!BP$9,1,0)) -> 0 | BQ36: =IF($C36="","",IF($G36='Input| Projects'!BQ$9,1,0)) -> 0 | BR36: =IF($C36="","",IF($G36='Input| Projects'!BR$9,1,0)) -> 0 | BS36: =IF($C36="","",IF($G36='Input| Projects'!BS$9,1,0)) -> 0 | BT36: =IF($C36="","",IF($G36='Input| Projects'!BT$9,1,0)) -> 0 | BU36: =IF($C36="","",IF($G36='Input| Projects'!BU$9,1,0)) -> 0 | BV36: =IF($C36="","",IF($G36='Input| Projects'!BV$9,1,0)) -> 0 | BW36: =IF($C36="","",IF($G36='Input| Projects'!BW$9,1,0)) -> 0 | BX36: =IF($C36="","",IF($G36='Input| Projects'!BX$9,1,0)) -> 0 | BY36: =IF($C36="","",IF($G36='Input| Projects'!BY$9,1,0)) -> 0 | BZ36: =IF($C36="","",IF($G36='Input| Projects'!BZ$9,1,0)) -> 0 | CA36: =IF($C36="","",IF($G36='Input| Projects'!CA$9,1,0)) -> 0 | CB36: =IF($C36="","",IF($G36='Input| Projects'!CB$9,1,0)) -> 0 | CC36: =IF($C36="","",IF($G36='Input| Projects'!CC$9,1,0)) -> 0 | CD36: =IF($C36="","",IF($G36='Input| Projects'!CD$9,1,0)) -> 0 | CE36: =IF($C36="","",IF($G36='Input| Projects'!CE$9,1,0)) -> 0 | CF36: =IF($C36="","",IF($G36='Input| Projects'!CF$9,1,0)) -> 0 | CG36: =IF($C36="","",IF($G36='Input| Projects'!CG$9,1,0)) -> 0 | CH36: =IF($C36="","",IF($G36='Input| Projects'!CH$9,1,0)) -> 0 | CI36: =IF($C36="","",IF($G36='Input| Projects'!CI$9,1,0)) -> 0 | CJ36: =IF($C36="","",IF($G36='Input| Projects'!CJ$9,1,0)) -> 0 | CK36: =IF($C36="","",IF($G36='Input| Projects'!CK$9,1,0)) -> 0 | CL36: =IF($C36="","",IF($G36='Input| Projects'!CL$9,1,0)) -> 0 | CM36: =IF($C36="","",IF($G36='Input| Projects'!CM$9,1,0)) -> 0 | CN36: =IF($C36="","",IF($G36='Input| Projects'!CN$9,1,0)) -> 0 | CO36: =IF($C36="","",IF($G36='Input| Projects'!CO$9,1,0)) -> 0 | CP36: =IF($C36="","",IF($G36='Input| Projects'!CP$9,1,0)) -> 0 | CQ36: =IF($C36="","",IF($G36='Input| Projects'!CQ$9,1,0)) -> 0
B37: 28 | C37: HV U/G Termination Replacement | D37: A239 | F37: Replacement | G37: Distribution system assets | J37: 404.5657624 | K37: 339.8284438 | L37: 339.8284438 | M37: 339.8284438 | N37: 339.8284438 | O37: 339.8284438 | P37: 0 | Q37: 0 | S37: 0 | T37: 0 | U37: 0 | V37: 0 | W37: 0 | X37: 0 | Z37: 0.5360096384 | AA37: 0.3067535528 | AB37: 0.1572368088 | AD37: Yes | AE37: No | AJ37: =IF('Input| JEN Mapping'!$F37='Input| Projects'!AJ$9,1,0) -> 1 | AK37: =IF('Input| JEN Mapping'!$F37='Input| Projects'!AK$9,1,0) -> 0 | AL37: =IF('Input| JEN Mapping'!$F37='Input| Projects'!AL$9,1,0) -> 0 | AM37: =IF('Input| JEN Mapping'!$F37='Input| Projects'!AM$9,1,0) -> 0 | AN37: =IF('Input| JEN Mapping'!$F37='Input| Projects'!AN$9,1,0) -> 0 | AO37: =IF('Input| JEN Mapping'!$F37='Input| Projects'!AO$9,1,0) -> 0 | AP37: =IF('Input| JEN Mapping'!$F37='Input| Projects'!AP$9,1,0) -> 0 | AQ37: =IF('Input| JEN Mapping'!$F37='Input| Projects'!AQ$9,1,0) -> 0 | AR37: =IF('Input| JEN Mapping'!$F37='Input| Projects'!AR$9,1,0) -> 0 | AT37: =IF($C37="","",IF($G37='Input| Projects'!AT$9,1,0)) -> 0 | AU37: =IF($C37="","",IF($G37='Input| Projects'!AU$9,1,0)) -> 1 | AV37: =IF($C37="","",IF($G37='Input| Projects'!AV$9,1,0)) -> 0 | AW37: =IF($C37="","",IF($G37='Input| Projects'!AW$9,1,0)) -> 0 | AX37: =IF($C37="","",IF($G37='Input| Projects'!AX$9,1,0)) -> 0 | AY37: =IF($C37="","",IF($G37='Input| Projects'!AY$9,1,0)) -> 0 | AZ37: =IF($C37="","",IF($G37='Input| Projects'!AZ$9,1,0)) -> 0 | BA37: =IF($C37="","",IF($G37='Input| Projects'!BA$9,1,0)) -> 0 | BB37: =IF($C37="","",IF($G37='Input| Projects'!BB$9,1,0)) -> 0 | BC37: =IF($C37="","",IF($G37='Input| Projects'!BC$9,1,0)) -> 0 | BD37: =IF($C37="","",IF($G37='Input| Projects'!BD$9,1,0)) -> 0 | BE37: =IF($C37="","",IF($G37='Input| Projects'!BE$9,1,0)) -> 0 | BF37: =IF($C37="","",IF($G37='Input| Projects'!BF$9,1,0)) -> 0 | BG37: =IF($C37="","",IF($G37='Input| Projects'!BG$9,1,0)) -> 0 | BH37: =IF($C37="","",IF($G37='Input| Projects'!BH$9,1,0)) -> 0 | BI37: =IF($C37="","",IF($G37='Input| Projects'!BI$9,1,0)) -> 0 | BJ37: =IF($C37="","",IF($G37='Input| Projects'!BJ$9,1,0)) -> 0 | BK37: =IF($C37="","",IF($G37='Input| Projects'!BK$9,1,0)) -> 0 | BL37: =IF($C37="","",IF($G37='Input| Projects'!BL$9,1,0)) -> 0 | BM37: =IF($C37="","",IF($G37='Input| Projects'!BM$9,1,0)) -> 0 | BN37: =IF($C37="","",IF($G37='Input| Projects'!BN$9,1,0)) -> 0 | BO37: =IF($C37="","",IF($G37='Input| Projects'!BO$9,1,0)) -> 0 | BP37: =IF($C37="","",IF($G37='Input| Projects'!BP$9,1,0)) -> 0 | BQ37: =IF($C37="","",IF($G37='Input| Projects'!BQ$9,1,0)) -> 0 | BR37: =IF($C37="","",IF($G37='Input| Projects'!BR$9,1,0)) -> 0 | BS37: =IF($C37="","",IF($G37='Input| Projects'!BS$9,1,0)) -> 0 | BT37: =IF($C37="","",IF($G37='Input| Projects'!BT$9,1,0)) -> 0 | BU37: =IF($C37="","",IF($G37='Input| Projects'!BU$9,1,0)) -> 0 | BV37: =IF($C37="","",IF($G37='Input| Projects'!BV$9,1,0)) -> 0 | BW37: =IF($C37="","",IF($G37='Input| Projects'!BW$9,1,0)) -> 0 | BX37: =IF($C37="","",IF($G37='Input| Projects'!BX$9,1,0)) -> 0 | BY37: =IF($C37="","",IF($G37='Input| Projects'!BY$9,1,0)) -> 0 | BZ37: =IF($C37="","",IF($G37='Input| Projects'!BZ$9,1,0)) -> 0 | CA37: =IF($C37="","",IF($G37='Input| Projects'!CA$9,1,0)) -> 0 | CB37: =IF($C37="","",IF($G37='Input| Projects'!CB$9,1,0)) -> 0 | CC37: =IF($C37="","",IF($G37='Input| Projects'!CC$9,1,0)) -> 0 | CD37: =IF($C37="","",IF($G37='Input| Projects'!CD$9,1,0)) -> 0 | CE37: =IF($C37="","",IF($G37='Input| Projects'!CE$9,1,0)) -> 0 | CF37: =IF($C37="","",IF($G37='Input| Projects'!CF$9,1,0)) -> 0 | CG37: =IF($C37="","",IF($G37='Input| Projects'!CG$9,1,0)) -> 0 | CH37: =IF($C37="","",IF($G37='Input| Projects'!CH$9,1,0)) -> 0 | CI37: =IF($C37="","",IF($G37='Input| Projects'!CI$9,1,0)) -> 0 | CJ37: =IF($C37="","",IF($G37='Input| Projects'!CJ$9,1,0)) -> 0 | CK37: =IF($C37="","",IF($G37='Input| Projects'!CK$9,1,0)) -> 0 | CL37: =IF($C37="","",IF($G37='Input| Projects'!CL$9,1,0)) -> 0 | CM37: =IF($C37="","",IF($G37='Input| Projects'!CM$9,1,0)) -> 0 | CN37: =IF($C37="","",IF($G37='Input| Projects'!CN$9,1,0)) -> 0 | CO37: =IF($C37="","",IF($G37='Input| Projects'!CO$9,1,0)) -> 0 | CP37: =IF($C37="","",IF($G37='Input| Projects'!CP$9,1,0)) -> 0 | CQ37: =IF($C37="","",IF($G37='Input| Projects'!CQ$9,1,0)) -> 0
B38: 29 | C38: LV U/G Termination Replacement | D38: A213 | F38: Replacement | G38: Distribution system assets | J38: 482.9182543 | K38: 469.8956558 | L38: 467.7610752 | M38: 466.1165881 | N38: 468.3187556 | O38: 469.7096496 | P38: 0 | Q38: 0 | S38: 0 | T38: 0 | U38: 0 | V38: 0 | W38: 0 | X38: 0 | Z38: 0.4498815265 | AA38: 0.4627821589 | AB38: 0.08733631468 | AD38: Yes | AE38: No | AJ38: =IF('Input| JEN Mapping'!$F38='Input| Projects'!AJ$9,1,0) -> 1 | AK38: =IF('Input| JEN Mapping'!$F38='Input| Projects'!AK$9,1,0) -> 0 | AL38: =IF('Input| JEN Mapping'!$F38='Input| Projects'!AL$9,1,0) -> 0 | AM38: =IF('Input| JEN Mapping'!$F38='Input| Projects'!AM$9,1,0) -> 0 | AN38: =IF('Input| JEN Mapping'!$F38='Input| Projects'!AN$9,1,0) -> 0 | AO38: =IF('Input| JEN Mapping'!$F38='Input| Projects'!AO$9,1,0) -> 0 | AP38: =IF('Input| JEN Mapping'!$F38='Input| Projects'!AP$9,1,0) -> 0 | AQ38: =IF('Input| JEN Mapping'!$F38='Input| Projects'!AQ$9,1,0) -> 0 | AR38: =IF('Input| JEN Mapping'!$F38='Input| Projects'!AR$9,1,0) -> 0 | AT38: =IF($C38="","",IF($G38='Input| Projects'!AT$9,1,0)) -> 0 | AU38: =IF($C38="","",IF($G38='Input| Projects'!AU$9,1,0)) -> 1 | AV38: =IF($C38="","",IF($G38='Input| Projects'!AV$9,1,0)) -> 0 | AW38: =IF($C38="","",IF($G38='Input| Projects'!AW$9,1,0)) -> 0 | AX38: =IF($C38="","",IF($G38='Input| Projects'!AX$9,1,0)) -> 0 | AY38: =IF($C38="","",IF($G38='Input| Projects'!AY$9,1,0)) -> 0 | AZ38: =IF($C38="","",IF($G38='Input| Projects'!AZ$9,1,0)) -> 0 | BA38: =IF($C38="","",IF($G38='Input| Projects'!BA$9,1,0)) -> 0 | BB38: =IF($C38="","",IF($G38='Input| Projects'!BB$9,1,0)) -> 0 | BC38: =IF($C38="","",IF($G38='Input| Projects'!BC$9,1,0)) -> 0 | BD38: =IF($C38="","",IF($G38='Input| Projects'!BD$9,1,0)) -> 0 | BE38: =IF($C38="","",IF($G38='Input| Projects'!BE$9,1,0)) -> 0 | BF38: =IF($C38="","",IF($G38='Input| Projects'!BF$9,1,0)) -> 0 | BG38: =IF($C38="","",IF($G38='Input| Projects'!BG$9,1,0)) -> 0 | BH38: =IF($C38="","",IF($G38='Input| Projects'!BH$9,1,0)) -> 0 | BI38: =IF($C38="","",IF($G38='Input| Projects'!BI$9,1,0)) -> 0 | BJ38: =IF($C38="","",IF($G38='Input| Projects'!BJ$9,1,0)) -> 0 | BK38: =IF($C38="","",IF($G38='Input| Projects'!BK$9,1,0)) -> 0 | BL38: =IF($C38="","",IF($G38='Input| Projects'!BL$9,1,0)) -> 0 | BM38: =IF($C38="","",IF($G38='Input| Projects'!BM$9,1,0)) -> 0 | BN38: =IF($C38="","",IF($G38='Input| Projects'!BN$9,1,0)) -> 0 | BO38: =IF($C38="","",IF($G38='Input| Projects'!BO$9,1,0)) -> 0 | BP38: =IF($C38="","",IF($G38='Input| Projects'!BP$9,1,0)) -> 0 | BQ38: =IF($C38="","",IF($G38='Input| Projects'!BQ$9,1,0)) -> 0 | BR38: =IF($C38="","",IF($G38='Input| Projects'!BR$9,1,0)) -> 0 | BS38: =IF($C38="","",IF($G38='Input| Projects'!BS$9,1,0)) -> 0 | BT38: =IF($C38="","",IF($G38='Input| Projects'!BT$9,1,0)) -> 0 | BU38: =IF($C38="","",IF($G38='Input| Projects'!BU$9,1,0)) -> 0 | BV38: =IF($C38="","",IF($G38='Input| Projects'!BV$9,1,0)) -> 0 | BW38: =IF($C38="","",IF($G38='Input| Projects'!BW$9,1,0)) -> 0 | BX38: =IF($C38="","",IF($G38='Input| Projects'!BX$9,1,0)) -> 0 | BY38: =IF($C38="","",IF($G38='Input| Projects'!BY$9,1,0)) -> 0 | BZ38: =IF($C38="","",IF($G38='Input| Projects'!BZ$9,1,0)) -> 0 | CA38: =IF($C38="","",IF($G38='Input| Projects'!CA$9,1,0)) -> 0 | CB38: =IF($C38="","",IF($G38='Input| Projects'!CB$9,1,0)) -> 0 | CC38: =IF($C38="","",IF($G38='Input| Projects'!CC$9,1,0)) -> 0 | CD38: =IF($C38="","",IF($G38='Input| Projects'!CD$9,1,0)) -> 0 | CE38: =IF($C38="","",IF($G38='Input| Projects'!CE$9,1,0)) -> 0 | CF38: =IF($C38="","",IF($G38='Input| Projects'!CF$9,1,0)) -> 0 | CG38: =IF($C38="","",IF($G38='Input| Projects'!CG$9,1,0)) -> 0 | CH38: =IF($C38="","",IF($G38='Input| Projects'!CH$9,1,0)) -> 0 | CI38: =IF($C38="","",IF($G38='Input| Projects'!CI$9,1,0)) -> 0 | CJ38: =IF($C38="","",IF($G38='Input| Projects'!CJ$9,1,0)) -> 0 | CK38: =IF($C38="","",IF($G38='Input| Projects'!CK$9,1,0)) -> 0 | CL38: =IF($C38="","",IF($G38='Input| Projects'!CL$9,1,0)) -> 0 | CM38: =IF($C38="","",IF($G38='Input| Projects'!CM$9,1,0)) -> 0 | CN38: =IF($C38="","",IF($G38='Input| Projects'!CN$9,1,0)) -> 0 | CO38: =IF($C38="","",IF($G38='Input| Projects'!CO$9,1,0)) -> 0 | CP38: =IF($C38="","",IF($G38='Input| Projects'!CP$9,1,0)) -> 0 | CQ38: =IF($C38="","",IF($G38='Input| Projects'!CQ$9,1,0)) -> 0
B39: 30 | C39: Surge Diverter Replacement | D39: A216 | F39: Replacement | G39: Distribution system assets | J39: 112.8344533 | K39: 144.7977027 | L39: 144.7768874 | M39: 144.7645947 | N39: 144.7867755 | O39: 144.795295 | P39: 0 | Q39: 0 | S39: 0 | T39: 0 | U39: 0 | V39: 0 | W39: 0 | X39: 0 | Z39: 0.6000179669 | AA39: 0.2490257142 | AB39: 0.1509563189 | AD39: Yes | AE39: No | AJ39: =IF('Input| JEN Mapping'!$F39='Input| Projects'!AJ$9,1,0) -> 1 | AK39: =IF('Input| JEN Mapping'!$F39='Input| Projects'!AK$9,1,0) -> 0 | AL39: =IF('Input| JEN Mapping'!$F39='Input| Projects'!AL$9,1,0) -> 0 | AM39: =IF('Input| JEN Mapping'!$F39='Input| Projects'!AM$9,1,0) -> 0 | AN39: =IF('Input| JEN Mapping'!$F39='Input| Projects'!AN$9,1,0) -> 0 | AO39: =IF('Input| JEN Mapping'!$F39='Input| Projects'!AO$9,1,0) -> 0 | AP39: =IF('Input| JEN Mapping'!$F39='Input| Projects'!AP$9,1,0) -> 0 | AQ39: =IF('Input| JEN Mapping'!$F39='Input| Projects'!AQ$9,1,0) -> 0 | AR39: =IF('Input| JEN Mapping'!$F39='Input| Projects'!AR$9,1,0) -> 0 | AT39: =IF($C39="","",IF($G39='Input| Projects'!AT$9,1,0)) -> 0 | AU39: =IF($C39="","",IF($G39='Input| Projects'!AU$9,1,0)) -> 1 | AV39: =IF($C39="","",IF($G39='Input| Projects'!AV$9,1,0)) -> 0 | AW39: =IF($C39="","",IF($G39='Input| Projects'!AW$9,1,0)) -> 0 | AX39: =IF($C39="","",IF($G39='Input| Projects'!AX$9,1,0)) -> 0 | AY39: =IF($C39="","",IF($G39='Input| Projects'!AY$9,1,0)) -> 0 | AZ39: =IF($C39="","",IF($G39='Input| Projects'!AZ$9,1,0)) -> 0 | BA39: =IF($C39="","",IF($G39='Input| Projects'!BA$9,1,0)) -> 0 | BB39: =IF($C39="","",IF($G39='Input| Projects'!BB$9,1,0)) -> 0 | BC39: =IF($C39="","",IF($G39='Input| Projects'!BC$9,1,0)) -> 0 | BD39: =IF($C39="","",IF($G39='Input| Projects'!BD$9,1,0)) -> 0 | BE39: =IF($C39="","",IF($G39='Input| Projects'!BE$9,1,0)) -> 0 | BF39: =IF($C39="","",IF($G39='Input| Projects'!BF$9,1,0)) -> 0 | BG39: =IF($C39="","",IF($G39='Input| Projects'!BG$9,1,0)) -> 0 | BH39: =IF($C39="","",IF($G39='Input| Projects'!BH$9,1,0)) -> 0 | BI39: =IF($C39="","",IF($G39='Input| Projects'!BI$9,1,0)) -> 0 | BJ39: =IF($C39="","",IF($G39='Input| Projects'!BJ$9,1,0)) -> 0 | BK39: =IF($C39="","",IF($G39='Input| Projects'!BK$9,1,0)) -> 0 | BL39: =IF($C39="","",IF($G39='Input| Projects'!BL$9,1,0)) -> 0 | BM39: =IF($C39="","",IF($G39='Input| Projects'!BM$9,1,0)) -> 0 | BN39: =IF($C39="","",IF($G39='Input| Projects'!BN$9,1,0)) -> 0 | BO39: =IF($C39="","",IF($G39='Input| Projects'!BO$9,1,0)) -> 0 | BP39: =IF($C39="","",IF($G39='Input| Projects'!BP$9,1,0)) -> 0 | BQ39: =IF($C39="","",IF($G39='Input| Projects'!BQ$9,1,0)) -> 0 | BR39: =IF($C39="","",IF($G39='Input| Projects'!BR$9,1,0)) -> 0 | BS39: =IF($C39="","",IF($G39='Input| Projects'!BS$9,1,0)) -> 0 | BT39: =IF($C39="","",IF($G39='Input| Projects'!BT$9,1,0)) -> 0 | BU39: =IF($C39="","",IF($G39='Input| Projects'!BU$9,1,0)) -> 0 | BV39: =IF($C39="","",IF($G39='Input| Projects'!BV$9,1,0)) -> 0 | BW39: =IF($C39="","",IF($G39='Input| Projects'!BW$9,1,0)) -> 0 | BX39: =IF($C39="","",IF($G39='Input| Projects'!BX$9,1,0)) -> 0 | BY39: =IF($C39="","",IF($G39='Input| Projects'!BY$9,1,0)) -> 0 | BZ39: =IF($C39="","",IF($G39='Input| Projects'!BZ$9,1,0)) -> 0 | CA39: =IF($C39="","",IF($G39='Input| Projects'!CA$9,1,0)) -> 0 | CB39: =IF($C39="","",IF($G39='Input| Projects'!CB$9,1,0)) -> 0 | CC39: =IF($C39="","",IF($G39='Input| Projects'!CC$9,1,0)) -> 0 | CD39: =IF($C39="","",IF($G39='Input| Projects'!CD$9,1,0)) -> 0 | CE39: =IF($C39="","",IF($G39='Input| Projects'!CE$9,1,0)) -> 0 | CF39: =IF($C39="","",IF($G39='Input| Projects'!CF$9,1,0)) -> 0 | CG39: =IF($C39="","",IF($G39='Input| Projects'!CG$9,1,0)) -> 0 | CH39: =IF($C39="","",IF($G39='Input| Projects'!CH$9,1,0)) -> 0 | CI39: =IF($C39="","",IF($G39='Input| Projects'!CI$9,1,0)) -> 0 | CJ39: =IF($C39="","",IF($G39='Input| Projects'!CJ$9,1,0)) -> 0 | CK39: =IF($C39="","",IF($G39='Input| Projects'!CK$9,1,0)) -> 0 | CL39: =IF($C39="","",IF($G39='Input| Projects'!CL$9,1,0)) -> 0 | CM39: =IF($C39="","",IF($G39='Input| Projects'!CM$9,1,0)) -> 0 | CN39: =IF($C39="","",IF($G39='Input| Projects'!CN$9,1,0)) -> 0 | CO39: =IF($C39="","",IF($G39='Input| Projects'!CO$9,1,0)) -> 0 | CP39: =IF($C39="","",IF($G39='Input| Projects'!CP$9,1,0)) -> 0 | CQ39: =IF($C39="","",IF($G39='Input| Projects'!CQ$9,1,0)) -> 0
B40: 31 | C40: Fuse Unit Replacement | D40: A217 | F40: Replacement | G40: Distribution system assets | J40: 68.10363001 | K40: 69.41954165 | L40: 69.27917166 | M40: 69.19627513 | N40: 69.34585314 | O40: 69.40330503 | P40: 0 | Q40: 0 | S40: 0 | T40: 0 | U40: 0 | V40: 0 | W40: 0 | X40: 0 | Z40: 0.6223630682 | AA40: 0.04357332922 | AB40: 0.3340636026 | AD40: Yes | AE40: No | AJ40: =IF('Input| JEN Mapping'!$F40='Input| Projects'!AJ$9,1,0) -> 1 | AK40: =IF('Input| JEN Mapping'!$F40='Input| Projects'!AK$9,1,0) -> 0 | AL40: =IF('Input| JEN Mapping'!$F40='Input| Projects'!AL$9,1,0) -> 0 | AM40: =IF('Input| JEN Mapping'!$F40='Input| Projects'!AM$9,1,0) -> 0 | AN40: =IF('Input| JEN Mapping'!$F40='Input| Projects'!AN$9,1,0) -> 0 | AO40: =IF('Input| JEN Mapping'!$F40='Input| Projects'!AO$9,1,0) -> 0 | AP40: =IF('Input| JEN Mapping'!$F40='Input| Projects'!AP$9,1,0) -> 0 | AQ40: =IF('Input| JEN Mapping'!$F40='Input| Projects'!AQ$9,1,0) -> 0 | AR40: =IF('Input| JEN Mapping'!$F40='Input| Projects'!AR$9,1,0) -> 0 | AT40: =IF($C40="","",IF($G40='Input| Projects'!AT$9,1,0)) -> 0 | AU40: =IF($C40="","",IF($G40='Input| Projects'!AU$9,1,0)) -> 1 | AV40: =IF($C40="","",IF($G40='Input| Projects'!AV$9,1,0)) -> 0 | AW40: =IF($C40="","",IF($G40='Input| Projects'!AW$9,1,0)) -> 0 | AX40: =IF($C40="","",IF($G40='Input| Projects'!AX$9,1,0)) -> 0 | AY40: =IF($C40="","",IF($G40='Input| Projects'!AY$9,1,0)) -> 0 | AZ40: =IF($C40="","",IF($G40='Input| Projects'!AZ$9,1,0)) -> 0 | BA40: =IF($C40="","",IF($G40='Input| Projects'!BA$9,1,0)) -> 0 | BB40: =IF($C40="","",IF($G40='Input| Projects'!BB$9,1,0)) -> 0 | BC40: =IF($C40="","",IF($G40='Input| Projects'!BC$9,1,0)) -> 0 | BD40: =IF($C40="","",IF($G40='Input| Projects'!BD$9,1,0)) -> 0 | BE40: =IF($C40="","",IF($G40='Input| Projects'!BE$9,1,0)) -> 0 | BF40: =IF($C40="","",IF($G40='Input| Projects'!BF$9,1,0)) -> 0 | BG40: =IF($C40="","",IF($G40='Input| Projects'!BG$9,1,0)) -> 0 | BH40: =IF($C40="","",IF($G40='Input| Projects'!BH$9,1,0)) -> 0 | BI40: =IF($C40="","",IF($G40='Input| Projects'!BI$9,1,0)) -> 0 | BJ40: =IF($C40="","",IF($G40='Input| Projects'!BJ$9,1,0)) -> 0 | BK40: =IF($C40="","",IF($G40='Input| Projects'!BK$9,1,0)) -> 0 | BL40: =IF($C40="","",IF($G40='Input| Projects'!BL$9,1,0)) -> 0 | BM40: =IF($C40="","",IF($G40='Input| Projects'!BM$9,1,0)) -> 0 | BN40: =IF($C40="","",IF($G40='Input| Projects'!BN$9,1,0)) -> 0 | BO40: =IF($C40="","",IF($G40='Input| Projects'!BO$9,1,0)) -> 0 | BP40: =IF($C40="","",IF($G40='Input| Projects'!BP$9,1,0)) -> 0 | BQ40: =IF($C40="","",IF($G40='Input| Projects'!BQ$9,1,0)) -> 0 | BR40: =IF($C40="","",IF($G40='Input| Projects'!BR$9,1,0)) -> 0 | BS40: =IF($C40="","",IF($G40='Input| Projects'!BS$9,1,0)) -> 0 | BT40: =IF($C40="","",IF($G40='Input| Projects'!BT$9,1,0)) -> 0 | BU40: =IF($C40="","",IF($G40='Input| Projects'!BU$9,1,0)) -> 0 | BV40: =IF($C40="","",IF($G40='Input| Projects'!BV$9,1,0)) -> 0 | BW40: =IF($C40="","",IF($G40='Input| Projects'!BW$9,1,0)) -> 0 | BX40: =IF($C40="","",IF($G40='Input| Projects'!BX$9,1,0)) -> 0 | BY40: =IF($C40="","",IF($G40='Input| Projects'!BY$9,1,0)) -> 0 | BZ40: =IF($C40="","",IF($G40='Input| Projects'!BZ$9,1,0)) -> 0 | CA40: =IF($C40="","",IF($G40='Input| Projects'!CA$9,1,0)) -> 0 | CB40: =IF($C40="","",IF($G40='Input| Projects'!CB$9,1,0)) -> 0 | CC40: =IF($C40="","",IF($G40='Input| Projects'!CC$9,1,0)) -> 0 | CD40: =IF($C40="","",IF($G40='Input| Projects'!CD$9,1,0)) -> 0 | CE40: =IF($C40="","",IF($G40='Input| Projects'!CE$9,1,0)) -> 0 | CF40: =IF($C40="","",IF($G40='Input| Projects'!CF$9,1,0)) -> 0 | CG40: =IF($C40="","",IF($G40='Input| Projects'!CG$9,1,0)) -> 0 | CH40: =IF($C40="","",IF($G40='Input| Projects'!CH$9,1,0)) -> 0 | CI40: =IF($C40="","",IF($G40='Input| Projects'!CI$9,1,0)) -> 0 | CJ40: =IF($C40="","",IF($G40='Input| Projects'!CJ$9,1,0)) -> 0 | CK40: =IF($C40="","",IF($G40='Input| Projects'!CK$9,1,0)) -> 0 | CL40: =IF($C40="","",IF($G40='Input| Projects'!CL$9,1,0)) -> 0 | CM40: =IF($C40="","",IF($G40='Input| Projects'!CM$9,1,0)) -> 0 | CN40: =IF($C40="","",IF($G40='Input| Projects'!CN$9,1,0)) -> 0 | CO40: =IF($C40="","",IF($G40='Input| Projects'!CO$9,1,0)) -> 0 | CP40: =IF($C40="","",IF($G40='Input| Projects'!CP$9,1,0)) -> 0 | CQ40: =IF($C40="","",IF($G40='Input| Projects'!CQ$9,1,0)) -> 0
B41: 32 | C41: ST Insulators Replacement | D41: A218 | F41: Replacement | G41: Subtransmission | J41: 23.55790688 | K41: 31.53836382 | L41: 31.53836382 | M41: 31.53836382 | N41: 31.53836382 | O41: 31.53836382 | P41: 0 | Q41: 0 | S41: 0 | T41: 0 | U41: 0 | V41: 0 | W41: 0 | X41: 0 | Z41: 0.6068600518 | AA41: 0.06192852467 | AB41: 0.3312114236 | AD41: Yes | AE41: No | AJ41: =IF('Input| JEN Mapping'!$F41='Input| Projects'!AJ$9,1,0) -> 1 | AK41: =IF('Input| JEN Mapping'!$F41='Input| Projects'!AK$9,1,0) -> 0 | AL41: =IF('Input| JEN Mapping'!$F41='Input| Projects'!AL$9,1,0) -> 0 | AM41: =IF('Input| JEN Mapping'!$F41='Input| Projects'!AM$9,1,0) -> 0 | AN41: =IF('Input| JEN Mapping'!$F41='Input| Projects'!AN$9,1,0) -> 0 | AO41: =IF('Input| JEN Mapping'!$F41='Input| Projects'!AO$9,1,0) -> 0 | AP41: =IF('Input| JEN Mapping'!$F41='Input| Projects'!AP$9,1,0) -> 0 | AQ41: =IF('Input| JEN Mapping'!$F41='Input| Projects'!AQ$9,1,0) -> 0 | AR41: =IF('Input| JEN Mapping'!$F41='Input| Projects'!AR$9,1,0) -> 0 | AT41: =IF($C41="","",IF($G41='Input| Projects'!AT$9,1,0)) -> 1 | AU41: =IF($C41="","",IF($G41='Input| Projects'!AU$9,1,0)) -> 0 | AV41: =IF($C41="","",IF($G41='Input| Projects'!AV$9,1,0)) -> 0 | AW41: =IF($C41="","",IF($G41='Input| Projects'!AW$9,1,0)) -> 0 | AX41: =IF($C41="","",IF($G41='Input| Projects'!AX$9,1,0)) -> 0 | AY41: =IF($C41="","",IF($G41='Input| Projects'!AY$9,1,0)) -> 0 | AZ41: =IF($C41="","",IF($G41='Input| Projects'!AZ$9,1,0)) -> 0 | BA41: =IF($C41="","",IF($G41='Input| Projects'!BA$9,1,0)) -> 0 | BB41: =IF($C41="","",IF($G41='Input| Projects'!BB$9,1,0)) -> 0 | BC41: =IF($C41="","",IF($G41='Input| Projects'!BC$9,1,0)) -> 0 | BD41: =IF($C41="","",IF($G41='Input| Projects'!BD$9,1,0)) -> 0 | BE41: =IF($C41="","",IF($G41='Input| Projects'!BE$9,1,0)) -> 0 | BF41: =IF($C41="","",IF($G41='Input| Projects'!BF$9,1,0)) -> 0 | BG41: =IF($C41="","",IF($G41='Input| Projects'!BG$9,1,0)) -> 0 | BH41: =IF($C41="","",IF($G41='Input| Projects'!BH$9,1,0)) -> 0 | BI41: =IF($C41="","",IF($G41='Input| Projects'!BI$9,1,0)) -> 0 | BJ41: =IF($C41="","",IF($G41='Input| Projects'!BJ$9,1,0)) -> 0 | BK41: =IF($C41="","",IF($G41='Input| Projects'!BK$9,1,0)) -> 0 | BL41: =IF($C41="","",IF($G41='Input| Projects'!BL$9,1,0)) -> 0 | BM41: =IF($C41="","",IF($G41='Input| Projects'!BM$9,1,0)) -> 0 | BN41: =IF($C41="","",IF($G41='Input| Projects'!BN$9,1,0)) -> 0 | BO41: =IF($C41="","",IF($G41='Input| Projects'!BO$9,1,0)) -> 0 | BP41: =IF($C41="","",IF($G41='Input| Projects'!BP$9,1,0)) -> 0 | BQ41: =IF($C41="","",IF($G41='Input| Projects'!BQ$9,1,0)) -> 0 | BR41: =IF($C41="","",IF($G41='Input| Projects'!BR$9,1,0)) -> 0 | BS41: =IF($C41="","",IF($G41='Input| Projects'!BS$9,1,0)) -> 0 | BT41: =IF($C41="","",IF($G41='Input| Projects'!BT$9,1,0)) -> 0 | BU41: =IF($C41="","",IF($G41='Input| Projects'!BU$9,1,0)) -> 0 | BV41: =IF($C41="","",IF($G41='Input| Projects'!BV$9,1,0)) -> 0 | BW41: =IF($C41="","",IF($G41='Input| Projects'!BW$9,1,0)) -> 0 | BX41: =IF($C41="","",IF($G41='Input| Projects'!BX$9,1,0)) -> 0 | BY41: =IF($C41="","",IF($G41='Input| Projects'!BY$9,1,0)) -> 0 | BZ41: =IF($C41="","",IF($G41='Input| Projects'!BZ$9,1,0)) -> 0 | CA41: =IF($C41="","",IF($G41='Input| Projects'!CA$9,1,0)) -> 0 | CB41: =IF($C41="","",IF($G41='Input| Projects'!CB$9,1,0)) -> 0 | CC41: =IF($C41="","",IF($G41='Input| Projects'!CC$9,1,0)) -> 0 | CD41: =IF($C41="","",IF($G41='Input| Projects'!CD$9,1,0)) -> 0 | CE41: =IF($C41="","",IF($G41='Input| Projects'!CE$9,1,0)) -> 0 | CF41: =IF($C41="","",IF($G41='Input| Projects'!CF$9,1,0)) -> 0 | CG41: =IF($C41="","",IF($G41='Input| Projects'!CG$9,1,0)) -> 0 | CH41: =IF($C41="","",IF($G41='Input| Projects'!CH$9,1,0)) -> 0 | CI41: =IF($C41="","",IF($G41='Input| Projects'!CI$9,1,0)) -> 0 | CJ41: =IF($C41="","",IF($G41='Input| Projects'!CJ$9,1,0)) -> 0 | CK41: =IF($C41="","",IF($G41='Input| Projects'!CK$9,1,0)) -> 0 | CL41: =IF($C41="","",IF($G41='Input| Projects'!CL$9,1,0)) -> 0 | CM41: =IF($C41="","",IF($G41='Input| Projects'!CM$9,1,0)) -> 0 | CN41: =IF($C41="","",IF($G41='Input| Projects'!CN$9,1,0)) -> 0 | CO41: =IF($C41="","",IF($G41='Input| Projects'!CO$9,1,0)) -> 0 | CP41: =IF($C41="","",IF($G41='Input| Projects'!CP$9,1,0)) -> 0 | CQ41: =IF($C41="","",IF($G41='Input| Projects'!CQ$9,1,0)) -> 0
B42: 33 | C42: HV Crossarms Replacement | D42: A221 | F42: Replacement | G42: Distribution system assets | J42: 1470.680974 | K42: 1593.471593 | L42: 1593.471593 | M42: 1593.471593 | N42: 1593.471593 | O42: 1593.471593 | P42: 0 | Q42: 0 | S42: 0 | T42: 0 | U42: 0 | V42: 0 | W42: 0 | X42: 0 | Z42: 0.5897413581 | AA42: 0.2337437754 | AB42: 0.1765148665 | AD42: Yes | AE42: No | AJ42: =IF('Input| JEN Mapping'!$F42='Input| Projects'!AJ$9,1,0) -> 1 | AK42: =IF('Input| JEN Mapping'!$F42='Input| Projects'!AK$9,1,0) -> 0 | AL42: =IF('Input| JEN Mapping'!$F42='Input| Projects'!AL$9,1,0) -> 0 | AM42: =IF('Input| JEN Mapping'!$F42='Input| Projects'!AM$9,1,0) -> 0 | AN42: =IF('Input| JEN Mapping'!$F42='Input| Projects'!AN$9,1,0) -> 0 | AO42: =IF('Input| JEN Mapping'!$F42='Input| Projects'!AO$9,1,0) -> 0 | AP42: =IF('Input| JEN Mapping'!$F42='Input| Projects'!AP$9,1,0) -> 0 | AQ42: =IF('Input| JEN Mapping'!$F42='Input| Projects'!AQ$9,1,0) -> 0 | AR42: =IF('Input| JEN Mapping'!$F42='Input| Projects'!AR$9,1,0) -> 0 | AT42: =IF($C42="","",IF($G42='Input| Projects'!AT$9,1,0)) -> 0 | AU42: =IF($C42="","",IF($G42='Input| Projects'!AU$9,1,0)) -> 1 | AV42: =IF($C42="","",IF($G42='Input| Projects'!AV$9,1,0)) -> 0 | AW42: =IF($C42="","",IF($G42='Input| Projects'!AW$9,1,0)) -> 0 | AX42: =IF($C42="","",IF($G42='Input| Projects'!AX$9,1,0)) -> 0 | AY42: =IF($C42="","",IF($G42='Input| Projects'!AY$9,1,0)) -> 0 | AZ42: =IF($C42="","",IF($G42='Input| Projects'!AZ$9,1,0)) -> 0 | BA42: =IF($C42="","",IF($G42='Input| Projects'!BA$9,1,0)) -> 0 | BB42: =IF($C42="","",IF($G42='Input| Projects'!BB$9,1,0)) -> 0 | BC42: =IF($C42="","",IF($G42='Input| Projects'!BC$9,1,0)) -> 0 | BD42: =IF($C42="","",IF($G42='Input| Projects'!BD$9,1,0)) -> 0 | BE42: =IF($C42="","",IF($G42='Input| Projects'!BE$9,1,0)) -> 0 | BF42: =IF($C42="","",IF($G42='Input| Projects'!BF$9,1,0)) -> 0 | BG42: =IF($C42="","",IF($G42='Input| Projects'!BG$9,1,0)) -> 0 | BH42: =IF($C42="","",IF($G42='Input| Projects'!BH$9,1,0)) -> 0 | BI42: =IF($C42="","",IF($G42='Input| Projects'!BI$9,1,0)) -> 0 | BJ42: =IF($C42="","",IF($G42='Input| Projects'!BJ$9,1,0)) -> 0 | BK42: =IF($C42="","",IF($G42='Input| Projects'!BK$9,1,0)) -> 0 | BL42: =IF($C42="","",IF($G42='Input| Projects'!BL$9,1,0)) -> 0 | BM42: =IF($C42="","",IF($G42='Input| Projects'!BM$9,1,0)) -> 0 | BN42: =IF($C42="","",IF($G42='Input| Projects'!BN$9,1,0)) -> 0 | BO42: =IF($C42="","",IF($G42='Input| Projects'!BO$9,1,0)) -> 0 | BP42: =IF($C42="","",IF($G42='Input| Projects'!BP$9,1,0)) -> 0 | BQ42: =IF($C42="","",IF($G42='Input| Projects'!BQ$9,1,0)) -> 0 | BR42: =IF($C42="","",IF($G42='Input| Projects'!BR$9,1,0)) -> 0 | BS42: =IF($C42="","",IF($G42='Input| Projects'!BS$9,1,0)) -> 0 | BT42: =IF($C42="","",IF($G42='Input| Projects'!BT$9,1,0)) -> 0 | BU42: =IF($C42="","",IF($G42='Input| Projects'!BU$9,1,0)) -> 0 | BV42: =IF($C42="","",IF($G42='Input| Projects'!BV$9,1,0)) -> 0 | BW42: =IF($C42="","",IF($G42='Input| Projects'!BW$9,1,0)) -> 0 | BX42: =IF($C42="","",IF($G42='Input| Projects'!BX$9,1,0)) -> 0 | BY42: =IF($C42="","",IF($G42='Input| Projects'!BY$9,1,0)) -> 0 | BZ42: =IF($C42="","",IF($G42='Input| Projects'!BZ$9,1,0)) -> 0 | CA42: =IF($C42="","",IF($G42='Input| Projects'!CA$9,1,0)) -> 0 | CB42: =IF($C42="","",IF($G42='Input| Projects'!CB$9,1,0)) -> 0 | CC42: =IF($C42="","",IF($G42='Input| Projects'!CC$9,1,0)) -> 0 | CD42: =IF($C42="","",IF($G42='Input| Projects'!CD$9,1,0)) -> 0 | CE42: =IF($C42="","",IF($G42='Input| Projects'!CE$9,1,0)) -> 0 | CF42: =IF($C42="","",IF($G42='Input| Projects'!CF$9,1,0)) -> 0 | CG42: =IF($C42="","",IF($G42='Input| Projects'!CG$9,1,0)) -> 0 | CH42: =IF($C42="","",IF($G42='Input| Projects'!CH$9,1,0)) -> 0 | CI42: =IF($C42="","",IF($G42='Input| Projects'!CI$9,1,0)) -> 0 | CJ42: =IF($C42="","",IF($G42='Input| Projects'!CJ$9,1,0)) -> 0 | CK42: =IF($C42="","",IF($G42='Input| Projects'!CK$9,1,0)) -> 0 | CL42: =IF($C42="","",IF($G42='Input| Projects'!CL$9,1,0)) -> 0 | CM42: =IF($C42="","",IF($G42='Input| Projects'!CM$9,1,0)) -> 0 | CN42: =IF($C42="","",IF($G42='Input| Projects'!CN$9,1,0)) -> 0 | CO42: =IF($C42="","",IF($G42='Input| Projects'!CO$9,1,0)) -> 0 | CP42: =IF($C42="","",IF($G42='Input| Projects'!CP$9,1,0)) -> 0 | CQ42: =IF($C42="","",IF($G42='Input| Projects'!CQ$9,1,0)) -> 0
B43: 34 | C43: HV Insulators Replacement | D43: A227 | F43: Replacement | G43: Distribution system assets | J43: 68.02676033 | K43: 117.2546667 | L43: 116.968942 | M43: 116.8002051 | N43: 117.1046729 | O43: 117.2216169 | P43: 0 | Q43: 0 | S43: 0 | T43: 0 | U43: 0 | V43: 0 | W43: 0 | X43: 0 | Z43: 0.6305420087 | AA43: 0.08201257613 | AB43: 0.2874454152 | AD43: Yes | AE43: No | AJ43: =IF('Input| JEN Mapping'!$F43='Input| Projects'!AJ$9,1,0) -> 1 | AK43: =IF('Input| JEN Mapping'!$F43='Input| Projects'!AK$9,1,0) -> 0 | AL43: =IF('Input| JEN Mapping'!$F43='Input| Projects'!AL$9,1,0) -> 0 | AM43: =IF('Input| JEN Mapping'!$F43='Input| Projects'!AM$9,1,0) -> 0 | AN43: =IF('Input| JEN Mapping'!$F43='Input| Projects'!AN$9,1,0) -> 0 | AO43: =IF('Input| JEN Mapping'!$F43='Input| Projects'!AO$9,1,0) -> 0 | AP43: =IF('Input| JEN Mapping'!$F43='Input| Projects'!AP$9,1,0) -> 0 | AQ43: =IF('Input| JEN Mapping'!$F43='Input| Projects'!AQ$9,1,0) -> 0 | AR43: =IF('Input| JEN Mapping'!$F43='Input| Projects'!AR$9,1,0) -> 0 | AT43: =IF($C43="","",IF($G43='Input| Projects'!AT$9,1,0)) -> 0 | AU43: =IF($C43="","",IF($G43='Input| Projects'!AU$9,1,0)) -> 1 | AV43: =IF($C43="","",IF($G43='Input| Projects'!AV$9,1,0)) -> 0 | AW43: =IF($C43="","",IF($G43='Input| Projects'!AW$9,1,0)) -> 0 | AX43: =IF($C43="","",IF($G43='Input| Projects'!AX$9,1,0)) -> 0 | AY43: =IF($C43="","",IF($G43='Input| Projects'!AY$9,1,0)) -> 0 | AZ43: =IF($C43="","",IF($G43='Input| Projects'!AZ$9,1,0)) -> 0 | BA43: =IF($C43="","",IF($G43='Input| Projects'!BA$9,1,0)) -> 0 | BB43: =IF($C43="","",IF($G43='Input| Projects'!BB$9,1,0)) -> 0 | BC43: =IF($C43="","",IF($G43='Input| Projects'!BC$9,1,0)) -> 0 | BD43: =IF($C43="","",IF($G43='Input| Projects'!BD$9,1,0)) -> 0 | BE43: =IF($C43="","",IF($G43='Input| Projects'!BE$9,1,0)) -> 0 | BF43: =IF($C43="","",IF($G43='Input| Projects'!BF$9,1,0)) -> 0 | BG43: =IF($C43="","",IF($G43='Input| Projects'!BG$9,1,0)) -> 0 | BH43: =IF($C43="","",IF($G43='Input| Projects'!BH$9,1,0)) -> 0 | BI43: =IF($C43="","",IF($G43='Input| Projects'!BI$9,1,0)) -> 0 | BJ43: =IF($C43="","",IF($G43='Input| Projects'!BJ$9,1,0)) -> 0 | BK43: =IF($C43="","",IF($G43='Input| Projects'!BK$9,1,0)) -> 0 | BL43: =IF($C43="","",IF($G43='Input| Projects'!BL$9,1,0)) -> 0 | BM43: =IF($C43="","",IF($G43='Input| Projects'!BM$9,1,0)) -> 0 | BN43: =IF($C43="","",IF($G43='Input| Projects'!BN$9,1,0)) -> 0 | BO43: =IF($C43="","",IF($G43='Input| Projects'!BO$9,1,0)) -> 0 | BP43: =IF($C43="","",IF($G43='Input| Projects'!BP$9,1,0)) -> 0 | BQ43: =IF($C43="","",IF($G43='Input| Projects'!BQ$9,1,0)) -> 0 | BR43: =IF($C43="","",IF($G43='Input| Projects'!BR$9,1,0)) -> 0 | BS43: =IF($C43="","",IF($G43='Input| Projects'!BS$9,1,0)) -> 0 | BT43: =IF($C43="","",IF($G43='Input| Projects'!BT$9,1,0)) -> 0 | BU43: =IF($C43="","",IF($G43='Input| Projects'!BU$9,1,0)) -> 0 | BV43: =IF($C43="","",IF($G43='Input| Projects'!BV$9,1,0)) -> 0 | BW43: =IF($C43="","",IF($G43='Input| Projects'!BW$9,1,0)) -> 0 | BX43: =IF($C43="","",IF($G43='Input| Projects'!BX$9,1,0)) -> 0 | BY43: =IF($C43="","",IF($G43='Input| Projects'!BY$9,1,0)) -> 0 | BZ43: =IF($C43="","",IF($G43='Input| Projects'!BZ$9,1,0)) -> 0 | CA43: =IF($C43="","",IF($G43='Input| Projects'!CA$9,1,0)) -> 0 | CB43: =IF($C43="","",IF($G43='Input| Projects'!CB$9,1,0)) -> 0 | CC43: =IF($C43="","",IF($G43='Input| Projects'!CC$9,1,0)) -> 0 | CD43: =IF($C43="","",IF($G43='Input| Projects'!CD$9,1,0)) -> 0 | CE43: =IF($C43="","",IF($G43='Input| Projects'!CE$9,1,0)) -> 0 | CF43: =IF($C43="","",IF($G43='Input| Projects'!CF$9,1,0)) -> 0 | CG43: =IF($C43="","",IF($G43='Input| Projects'!CG$9,1,0)) -> 0 | CH43: =IF($C43="","",IF($G43='Input| Projects'!CH$9,1,0)) -> 0 | CI43: =IF($C43="","",IF($G43='Input| Projects'!CI$9,1,0)) -> 0 | CJ43: =IF($C43="","",IF($G43='Input| Projects'!CJ$9,1,0)) -> 0 | CK43: =IF($C43="","",IF($G43='Input| Projects'!CK$9,1,0)) -> 0 | CL43: =IF($C43="","",IF($G43='Input| Projects'!CL$9,1,0)) -> 0 | CM43: =IF($C43="","",IF($G43='Input| Projects'!CM$9,1,0)) -> 0 | CN43: =IF($C43="","",IF($G43='Input| Projects'!CN$9,1,0)) -> 0 | CO43: =IF($C43="","",IF($G43='Input| Projects'!CO$9,1,0)) -> 0 | CP43: =IF($C43="","",IF($G43='Input| Projects'!CP$9,1,0)) -> 0 | CQ43: =IF($C43="","",IF($G43='Input| Projects'!CQ$9,1,0)) -> 0
B44: 35 | C44: LV Crossarm Replacement | D44: A228 | F44: Replacement | G44: Distribution system assets | J44: 3075.329295 | K44: 4374.644333 | L44: 6135.546049 | M44: 6135.546049 | N44: 6135.546049 | O44: 6135.546049 | P44: 0 | Q44: 0 | S44: 0 | T44: 0 | U44: 0 | V44: 0 | W44: 0 | X44: 0 | Z44: 0.6154404693 | AA44: 0.2485809004 | AB44: 0.1359786302 | AD44: Yes | AE44: No | AJ44: =IF('Input| JEN Mapping'!$F44='Input| Projects'!AJ$9,1,0) -> 1 | AK44: =IF('Input| JEN Mapping'!$F44='Input| Projects'!AK$9,1,0) -> 0 | AL44: =IF('Input| JEN Mapping'!$F44='Input| Projects'!AL$9,1,0) -> 0 | AM44: =IF('Input| JEN Mapping'!$F44='Input| Projects'!AM$9,1,0) -> 0 | AN44: =IF('Input| JEN Mapping'!$F44='Input| Projects'!AN$9,1,0) -> 0 | AO44: =IF('Input| JEN Mapping'!$F44='Input| Projects'!AO$9,1,0) -> 0 | AP44: =IF('Input| JEN Mapping'!$F44='Input| Projects'!AP$9,1,0) -> 0 | AQ44: =IF('Input| JEN Mapping'!$F44='Input| Projects'!AQ$9,1,0) -> 0 | AR44: =IF('Input| JEN Mapping'!$F44='Input| Projects'!AR$9,1,0) -> 0 | AT44: =IF($C44="","",IF($G44='Input| Projects'!AT$9,1,0)) -> 0 | AU44: =IF($C44="","",IF($G44='Input| Projects'!AU$9,1,0)) -> 1 | AV44: =IF($C44="","",IF($G44='Input| Projects'!AV$9,1,0)) -> 0 | AW44: =IF($C44="","",IF($G44='Input| Projects'!AW$9,1,0)) -> 0 | AX44: =IF($C44="","",IF($G44='Input| Projects'!AX$9,1,0)) -> 0 | AY44: =IF($C44="","",IF($G44='Input| Projects'!AY$9,1,0)) -> 0 | AZ44: =IF($C44="","",IF($G44='Input| Projects'!AZ$9,1,0)) -> 0 | BA44: =IF($C44="","",IF($G44='Input| Projects'!BA$9,1,0)) -> 0 | BB44: =IF($C44="","",IF($G44='Input| Projects'!BB$9,1,0)) -> 0 | BC44: =IF($C44="","",IF($G44='Input| Projects'!BC$9,1,0)) -> 0 | BD44: =IF($C44="","",IF($G44='Input| Projects'!BD$9,1,0)) -> 0 | BE44: =IF($C44="","",IF($G44='Input| Projects'!BE$9,1,0)) -> 0 | BF44: =IF($C44="","",IF($G44='Input| Projects'!BF$9,1,0)) -> 0 | BG44: =IF($C44="","",IF($G44='Input| Projects'!BG$9,1,0)) -> 0 | BH44: =IF($C44="","",IF($G44='Input| Projects'!BH$9,1,0)) -> 0 | BI44: =IF($C44="","",IF($G44='Input| Projects'!BI$9,1,0)) -> 0 | BJ44: =IF($C44="","",IF($G44='Input| Projects'!BJ$9,1,0)) -> 0 | BK44: =IF($C44="","",IF($G44='Input| Projects'!BK$9,1,0)) -> 0 | BL44: =IF($C44="","",IF($G44='Input| Projects'!BL$9,1,0)) -> 0 | BM44: =IF($C44="","",IF($G44='Input| Projects'!BM$9,1,0)) -> 0 | BN44: =IF($C44="","",IF($G44='Input| Projects'!BN$9,1,0)) -> 0 | BO44: =IF($C44="","",IF($G44='Input| Projects'!BO$9,1,0)) -> 0 | BP44: =IF($C44="","",IF($G44='Input| Projects'!BP$9,1,0)) -> 0 | BQ44: =IF($C44="","",IF($G44='Input| Projects'!BQ$9,1,0)) -> 0 | BR44: =IF($C44="","",IF($G44='Input| Projects'!BR$9,1,0)) -> 0 | BS44: =IF($C44="","",IF($G44='Input| Projects'!BS$9,1,0)) -> 0 | BT44: =IF($C44="","",IF($G44='Input| Projects'!BT$9,1,0)) -> 0 | BU44: =IF($C44="","",IF($G44='Input| Projects'!BU$9,1,0)) -> 0 | BV44: =IF($C44="","",IF($G44='Input| Projects'!BV$9,1,0)) -> 0 | BW44: =IF($C44="","",IF($G44='Input| Projects'!BW$9,1,0)) -> 0 | BX44: =IF($C44="","",IF($G44='Input| Projects'!BX$9,1,0)) -> 0 | BY44: =IF($C44="","",IF($G44='Input| Projects'!BY$9,1,0)) -> 0 | BZ44: =IF($C44="","",IF($G44='Input| Projects'!BZ$9,1,0)) -> 0 | CA44: =IF($C44="","",IF($G44='Input| Projects'!CA$9,1,0)) -> 0 | CB44: =IF($C44="","",IF($G44='Input| Projects'!CB$9,1,0)) -> 0 | CC44: =IF($C44="","",IF($G44='Input| Projects'!CC$9,1,0)) -> 0 | CD44: =IF($C44="","",IF($G44='Input| Projects'!CD$9,1,0)) -> 0 | CE44: =IF($C44="","",IF($G44='Input| Projects'!CE$9,1,0)) -> 0 | CF44: =IF($C44="","",IF($G44='Input| Projects'!CF$9,1,0)) -> 0 | CG44: =IF($C44="","",IF($G44='Input| Projects'!CG$9,1,0)) -> 0 | CH44: =IF($C44="","",IF($G44='Input| Projects'!CH$9,1,0)) -> 0 | CI44: =IF($C44="","",IF($G44='Input| Projects'!CI$9,1,0)) -> 0 | CJ44: =IF($C44="","",IF($G44='Input| Projects'!CJ$9,1,0)) -> 0 | CK44: =IF($C44="","",IF($G44='Input| Projects'!CK$9,1,0)) -> 0 | CL44: =IF($C44="","",IF($G44='Input| Projects'!CL$9,1,0)) -> 0 | CM44: =IF($C44="","",IF($G44='Input| Projects'!CM$9,1,0)) -> 0 | CN44: =IF($C44="","",IF($G44='Input| Projects'!CN$9,1,0)) -> 0 | CO44: =IF($C44="","",IF($G44='Input| Projects'!CO$9,1,0)) -> 0 | CP44: =IF($C44="","",IF($G44='Input| Projects'!CP$9,1,0)) -> 0 | CQ44: =IF($C44="","",IF($G44='Input| Projects'!CQ$9,1,0)) -> 0
B45: 36 | C45: ST Crossarm Replacement | D45: A241 | F45: Replacement | G45: Subtransmission | J45: 56.70721099 | K45: 101.7489386 | L45: 162.0206028 | M45: 162.0206028 | N45: 162.0206028 | O45: 162.0206028 | P45: 0 | Q45: 0 | S45: 0 | T45: 0 | U45: 0 | V45: 0 | W45: 0 | X45: 0 | Z45: 0.4656291321 | AA45: 0.1411337481 | AB45: 0.3932371198 | AD45: Yes | AE45: No | AJ45: =IF('Input| JEN Mapping'!$F45='Input| Projects'!AJ$9,1,0) -> 1 | AK45: =IF('Input| JEN Mapping'!$F45='Input| Projects'!AK$9,1,0) -> 0 | AL45: =IF('Input| JEN Mapping'!$F45='Input| Projects'!AL$9,1,0) -> 0 | AM45: =IF('Input| JEN Mapping'!$F45='Input| Projects'!AM$9,1,0) -> 0 | AN45: =IF('Input| JEN Mapping'!$F45='Input| Projects'!AN$9,1,0) -> 0 | AO45: =IF('Input| JEN Mapping'!$F45='Input| Projects'!AO$9,1,0) -> 0 | AP45: =IF('Input| JEN Mapping'!$F45='Input| Projects'!AP$9,1,0) -> 0 | AQ45: =IF('Input| JEN Mapping'!$F45='Input| Projects'!AQ$9,1,0) -> 0 | AR45: =IF('Input| JEN Mapping'!$F45='Input| Projects'!AR$9,1,0) -> 0 | AT45: =IF($C45="","",IF($G45='Input| Projects'!AT$9,1,0)) -> 1 | AU45: =IF($C45="","",IF($G45='Input| Projects'!AU$9,1,0)) -> 0 | AV45: =IF($C45="","",IF($G45='Input| Projects'!AV$9,1,0)) -> 0 | AW45: =IF($C45="","",IF($G45='Input| Projects'!AW$9,1,0)) -> 0 | AX45: =IF($C45="","",IF($G45='Input| Projects'!AX$9,1,0)) -> 0 | AY45: =IF($C45="","",IF($G45='Input| Projects'!AY$9,1,0)) -> 0 | AZ45: =IF($C45="","",IF($G45='Input| Projects'!AZ$9,1,0)) -> 0 | BA45: =IF($C45="","",IF($G45='Input| Projects'!BA$9,1,0)) -> 0 | BB45: =IF($C45="","",IF($G45='Input| Projects'!BB$9,1,0)) -> 0 | BC45: =IF($C45="","",IF($G45='Input| Projects'!BC$9,1,0)) -> 0 | BD45: =IF($C45="","",IF($G45='Input| Projects'!BD$9,1,0)) -> 0 | BE45: =IF($C45="","",IF($G45='Input| Projects'!BE$9,1,0)) -> 0 | BF45: =IF($C45="","",IF($G45='Input| Projects'!BF$9,1,0)) -> 0 | BG45: =IF($C45="","",IF($G45='Input| Projects'!BG$9,1,0)) -> 0 | BH45: =IF($C45="","",IF($G45='Input| Projects'!BH$9,1,0)) -> 0 | BI45: =IF($C45="","",IF($G45='Input| Projects'!BI$9,1,0)) -> 0 | BJ45: =IF($C45="","",IF($G45='Input| Projects'!BJ$9,1,0)) -> 0 | BK45: =IF($C45="","",IF($G45='Input| Projects'!BK$9,1,0)) -> 0 | BL45: =IF($C45="","",IF($G45='Input| Projects'!BL$9,1,0)) -> 0 | BM45: =IF($C45="","",IF($G45='Input| Projects'!BM$9,1,0)) -> 0 | BN45: =IF($C45="","",IF($G45='Input| Projects'!BN$9,1,0)) -> 0 | BO45: =IF($C45="","",IF($G45='Input| Projects'!BO$9,1,0)) -> 0 | BP45: =IF($C45="","",IF($G45='Input| Projects'!BP$9,1,0)) -> 0 | BQ45: =IF($C45="","",IF($G45='Input| Projects'!BQ$9,1,0)) -> 0 | BR45: =IF($C45="","",IF($G45='Input| Projects'!BR$9,1,0)) -> 0 | BS45: =IF($C45="","",IF($G45='Input| Projects'!BS$9,1,0)) -> 0 | BT45: =IF($C45="","",IF($G45='Input| Projects'!BT$9,1,0)) -> 0 | BU45: =IF($C45="","",IF($G45='Input| Projects'!BU$9,1,0)) -> 0 | BV45: =IF($C45="","",IF($G45='Input| Projects'!BV$9,1,0)) -> 0 | BW45: =IF($C45="","",IF($G45='Input| Projects'!BW$9,1,0)) -> 0 | BX45: =IF($C45="","",IF($G45='Input| Projects'!BX$9,1,0)) -> 0 | BY45: =IF($C45="","",IF($G45='Input| Projects'!BY$9,1,0)) -> 0 | BZ45: =IF($C45="","",IF($G45='Input| Projects'!BZ$9,1,0)) -> 0 | CA45: =IF($C45="","",IF($G45='Input| Projects'!CA$9,1,0)) -> 0 | CB45: =IF($C45="","",IF($G45='Input| Projects'!CB$9,1,0)) -> 0 | CC45: =IF($C45="","",IF($G45='Input| Projects'!CC$9,1,0)) -> 0 | CD45: =IF($C45="","",IF($G45='Input| Projects'!CD$9,1,0)) -> 0 | CE45: =IF($C45="","",IF($G45='Input| Projects'!CE$9,1,0)) -> 0 | CF45: =IF($C45="","",IF($G45='Input| Projects'!CF$9,1,0)) -> 0 | CG45: =IF($C45="","",IF($G45='Input| Projects'!CG$9,1,0)) -> 0 | CH45: =IF($C45="","",IF($G45='Input| Projects'!CH$9,1,0)) -> 0 | CI45: =IF($C45="","",IF($G45='Input| Projects'!CI$9,1,0)) -> 0 | CJ45: =IF($C45="","",IF($G45='Input| Projects'!CJ$9,1,0)) -> 0 | CK45: =IF($C45="","",IF($G45='Input| Projects'!CK$9,1,0)) -> 0 | CL45: =IF($C45="","",IF($G45='Input| Projects'!CL$9,1,0)) -> 0 | CM45: =IF($C45="","",IF($G45='Input| Projects'!CM$9,1,0)) -> 0 | CN45: =IF($C45="","",IF($G45='Input| Projects'!CN$9,1,0)) -> 0 | CO45: =IF($C45="","",IF($G45='Input| Projects'!CO$9,1,0)) -> 0 | CP45: =IF($C45="","",IF($G45='Input| Projects'!CP$9,1,0)) -> 0 | CQ45: =IF($C45="","",IF($G45='Input| Projects'!CQ$9,1,0)) -> 0
B46: 37 | C46: Overhead Line Fault Indicator Replacement | D46: A381 | F46: Replacement | G46: Distribution system assets | J46: 0 | K46: 0 | L46: 0 | M46: 159.2208368 | N46: 280.0243727 | O46: 225.0023319 | P46: 0 | Q46: 0 | S46: 0 | T46: 0 | U46: 0 | V46: 0 | W46: 0 | X46: 0 | Z46: 0.2681975353 | AA46: 0.3655552555 | AB46: 0.3662472092 | AD46: Yes | AE46: No | AJ46: =IF('Input| JEN Mapping'!$F46='Input| Projects'!AJ$9,1,0) -> 1 | AK46: =IF('Input| JEN Mapping'!$F46='Input| Projects'!AK$9,1,0) -> 0 | AL46: =IF('Input| JEN Mapping'!$F46='Input| Projects'!AL$9,1,0) -> 0 | AM46: =IF('Input| JEN Mapping'!$F46='Input| Projects'!AM$9,1,0) -> 0 | AN46: =IF('Input| JEN Mapping'!$F46='Input| Projects'!AN$9,1,0) -> 0 | AO46: =IF('Input| JEN Mapping'!$F46='Input| Projects'!AO$9,1,0) -> 0 | AP46: =IF('Input| JEN Mapping'!$F46='Input| Projects'!AP$9,1,0) -> 0 | AQ46: =IF('Input| JEN Mapping'!$F46='Input| Projects'!AQ$9,1,0) -> 0 | AR46: =IF('Input| JEN Mapping'!$F46='Input| Projects'!AR$9,1,0) -> 0 | AT46: =IF($C46="","",IF($G46='Input| Projects'!AT$9,1,0)) -> 0 | AU46: =IF($C46="","",IF($G46='Input| Projects'!AU$9,1,0)) -> 1 | AV46: =IF($C46="","",IF($G46='Input| Projects'!AV$9,1,0)) -> 0 | AW46: =IF($C46="","",IF($G46='Input| Projects'!AW$9,1,0)) -> 0 | AX46: =IF($C46="","",IF($G46='Input| Projects'!AX$9,1,0)) -> 0 | AY46: =IF($C46="","",IF($G46='Input| Projects'!AY$9,1,0)) -> 0 | AZ46: =IF($C46="","",IF($G46='Input| Projects'!AZ$9,1,0)) -> 0 | BA46: =IF($C46="","",IF($G46='Input| Projects'!BA$9,1,0)) -> 0 | BB46: =IF($C46="","",IF($G46='Input| Projects'!BB$9,1,0)) -> 0 | BC46: =IF($C46="","",IF($G46='Input| Projects'!BC$9,1,0)) -> 0 | BD46: =IF($C46="","",IF($G46='Input| Projects'!BD$9,1,0)) -> 0 | BE46: =IF($C46="","",IF($G46='Input| Projects'!BE$9,1,0)) -> 0 | BF46: =IF($C46="","",IF($G46='Input| Projects'!BF$9,1,0)) -> 0 | BG46: =IF($C46="","",IF($G46='Input| Projects'!BG$9,1,0)) -> 0 | BH46: =IF($C46="","",IF($G46='Input| Projects'!BH$9,1,0)) -> 0 | BI46: =IF($C46="","",IF($G46='Input| Projects'!BI$9,1,0)) -> 0 | BJ46: =IF($C46="","",IF($G46='Input| Projects'!BJ$9,1,0)) -> 0 | BK46: =IF($C46="","",IF($G46='Input| Projects'!BK$9,1,0)) -> 0 | BL46: =IF($C46="","",IF($G46='Input| Projects'!BL$9,1,0)) -> 0 | BM46: =IF($C46="","",IF($G46='Input| Projects'!BM$9,1,0)) -> 0 | BN46: =IF($C46="","",IF($G46='Input| Projects'!BN$9,1,0)) -> 0 | BO46: =IF($C46="","",IF($G46='Input| Projects'!BO$9,1,0)) -> 0 | BP46: =IF($C46="","",IF($G46='Input| Projects'!BP$9,1,0)) -> 0 | BQ46: =IF($C46="","",IF($G46='Input| Projects'!BQ$9,1,0)) -> 0 | BR46: =IF($C46="","",IF($G46='Input| Projects'!BR$9,1,0)) -> 0 | BS46: =IF($C46="","",IF($G46='Input| Projects'!BS$9,1,0)) -> 0 | BT46: =IF($C46="","",IF($G46='Input| Projects'!BT$9,1,0)) -> 0 | BU46: =IF($C46="","",IF($G46='Input| Projects'!BU$9,1,0)) -> 0 | BV46: =IF($C46="","",IF($G46='Input| Projects'!BV$9,1,0)) -> 0 | BW46: =IF($C46="","",IF($G46='Input| Projects'!BW$9,1,0)) -> 0 | BX46: =IF($C46="","",IF($G46='Input| Projects'!BX$9,1,0)) -> 0 | BY46: =IF($C46="","",IF($G46='Input| Projects'!BY$9,1,0)) -> 0 | BZ46: =IF($C46="","",IF($G46='Input| Projects'!BZ$9,1,0)) -> 0 | CA46: =IF($C46="","",IF($G46='Input| Projects'!CA$9,1,0)) -> 0 | CB46: =IF($C46="","",IF($G46='Input| Projects'!CB$9,1,0)) -> 0 | CC46: =IF($C46="","",IF($G46='Input| Projects'!CC$9,1,0)) -> 0 | CD46: =IF($C46="","",IF($G46='Input| Projects'!CD$9,1,0)) -> 0 | CE46: =IF($C46="","",IF($G46='Input| Projects'!CE$9,1,0)) -> 0 | CF46: =IF($C46="","",IF($G46='Input| Projects'!CF$9,1,0)) -> 0 | CG46: =IF($C46="","",IF($G46='Input| Projects'!CG$9,1,0)) -> 0 | CH46: =IF($C46="","",IF($G46='Input| Projects'!CH$9,1,0)) -> 0 | CI46: =IF($C46="","",IF($G46='Input| Projects'!CI$9,1,0)) -> 0 | CJ46: =IF($C46="","",IF($G46='Input| Projects'!CJ$9,1,0)) -> 0 | CK46: =IF($C46="","",IF($G46='Input| Projects'!CK$9,1,0)) -> 0 | CL46: =IF($C46="","",IF($G46='Input| Projects'!CL$9,1,0)) -> 0 | CM46: =IF($C46="","",IF($G46='Input| Projects'!CM$9,1,0)) -> 0 | CN46: =IF($C46="","",IF($G46='Input| Projects'!CN$9,1,0)) -> 0 | CO46: =IF($C46="","",IF($G46='Input| Projects'!CO$9,1,0)) -> 0 | CP46: =IF($C46="","",IF($G46='Input| Projects'!CP$9,1,0)) -> 0 | CQ46: =IF($C46="","",IF($G46='Input| Projects'!CQ$9,1,0)) -> 0
B47: 38 | C47: HV Line Clash Mitigation | D47: A507 | F47: Replacement | G47: Distribution system assets | J47: 14.29426676 | K47: 13.25998772 | L47: 13.25998772 | M47: 13.25998772 | N47: 13.25998772 | O47: 13.25998772 | P47: 0 | Q47: 0 | S47: 0 | T47: 0 | U47: 0 | V47: 0 | W47: 0 | X47: 0 | Z47: 0.5223787064 | AA47: 0.06399266997 | AB47: 0.4136286236 | AD47: Yes | AE47: No | AJ47: =IF('Input| JEN Mapping'!$F47='Input| Projects'!AJ$9,1,0) -> 1 | AK47: =IF('Input| JEN Mapping'!$F47='Input| Projects'!AK$9,1,0) -> 0 | AL47: =IF('Input| JEN Mapping'!$F47='Input| Projects'!AL$9,1,0) -> 0 | AM47: =IF('Input| JEN Mapping'!$F47='Input| Projects'!AM$9,1,0) -> 0 | AN47: =IF('Input| JEN Mapping'!$F47='Input| Projects'!AN$9,1,0) -> 0 | AO47: =IF('Input| JEN Mapping'!$F47='Input| Projects'!AO$9,1,0) -> 0 | AP47: =IF('Input| JEN Mapping'!$F47='Input| Projects'!AP$9,1,0) -> 0 | AQ47: =IF('Input| JEN Mapping'!$F47='Input| Projects'!AQ$9,1,0) -> 0 | AR47: =IF('Input| JEN Mapping'!$F47='Input| Projects'!AR$9,1,0) -> 0 | AT47: =IF($C47="","",IF($G47='Input| Projects'!AT$9,1,0)) -> 0 | AU47: =IF($C47="","",IF($G47='Input| Projects'!AU$9,1,0)) -> 1 | AV47: =IF($C47="","",IF($G47='Input| Projects'!AV$9,1,0)) -> 0 | AW47: =IF($C47="","",IF($G47='Input| Projects'!AW$9,1,0)) -> 0 | AX47: =IF($C47="","",IF($G47='Input| Projects'!AX$9,1,0)) -> 0 | AY47: =IF($C47="","",IF($G47='Input| Projects'!AY$9,1,0)) -> 0 | AZ47: =IF($C47="","",IF($G47='Input| Projects'!AZ$9,1,0)) -> 0 | BA47: =IF($C47="","",IF($G47='Input| Projects'!BA$9,1,0)) -> 0 | BB47: =IF($C47="","",IF($G47='Input| Projects'!BB$9,1,0)) -> 0 | BC47: =IF($C47="","",IF($G47='Input| Projects'!BC$9,1,0)) -> 0 | BD47: =IF($C47="","",IF($G47='Input| Projects'!BD$9,1,0)) -> 0 | BE47: =IF($C47="","",IF($G47='Input| Projects'!BE$9,1,0)) -> 0 | BF47: =IF($C47="","",IF($G47='Input| Projects'!BF$9,1,0)) -> 0 | BG47: =IF($C47="","",IF($G47='Input| Projects'!BG$9,1,0)) -> 0 | BH47: =IF($C47="","",IF($G47='Input| Projects'!BH$9,1,0)) -> 0 | BI47: =IF($C47="","",IF($G47='Input| Projects'!BI$9,1,0)) -> 0 | BJ47: =IF($C47="","",IF($G47='Input| Projects'!BJ$9,1,0)) -> 0 | BK47: =IF($C47="","",IF($G47='Input| Projects'!BK$9,1,0)) -> 0 | BL47: =IF($C47="","",IF($G47='Input| Projects'!BL$9,1,0)) -> 0 | BM47: =IF($C47="","",IF($G47='Input| Projects'!BM$9,1,0)) -> 0 | BN47: =IF($C47="","",IF($G47='Input| Projects'!BN$9,1,0)) -> 0 | BO47: =IF($C47="","",IF($G47='Input| Projects'!BO$9,1,0)) -> 0 | BP47: =IF($C47="","",IF($G47='Input| Projects'!BP$9,1,0)) -> 0 | BQ47: =IF($C47="","",IF($G47='Input| Projects'!BQ$9,1,0)) -> 0 | BR47: =IF($C47="","",IF($G47='Input| Projects'!BR$9,1,0)) -> 0 | BS47: =IF($C47="","",IF($G47='Input| Projects'!BS$9,1,0)) -> 0 | BT47: =IF($C47="","",IF($G47='Input| Projects'!BT$9,1,0)) -> 0 | BU47: =IF($C47="","",IF($G47='Input| Projects'!BU$9,1,0)) -> 0 | BV47: =IF($C47="","",IF($G47='Input| Projects'!BV$9,1,0)) -> 0 | BW47: =IF($C47="","",IF($G47='Input| Projects'!BW$9,1,0)) -> 0 | BX47: =IF($C47="","",IF($G47='Input| Projects'!BX$9,1,0)) -> 0 | BY47: =IF($C47="","",IF($G47='Input| Projects'!BY$9,1,0)) -> 0 | BZ47: =IF($C47="","",IF($G47='Input| Projects'!BZ$9,1,0)) -> 0 | CA47: =IF($C47="","",IF($G47='Input| Projects'!CA$9,1,0)) -> 0 | CB47: =IF($C47="","",IF($G47='Input| Projects'!CB$9,1,0)) -> 0 | CC47: =IF($C47="","",IF($G47='Input| Projects'!CC$9,1,0)) -> 0 | CD47: =IF($C47="","",IF($G47='Input| Projects'!CD$9,1,0)) -> 0 | CE47: =IF($C47="","",IF($G47='Input| Projects'!CE$9,1,0)) -> 0 | CF47: =IF($C47="","",IF($G47='Input| Projects'!CF$9,1,0)) -> 0 | CG47: =IF($C47="","",IF($G47='Input| Projects'!CG$9,1,0)) -> 0 | CH47: =IF($C47="","",IF($G47='Input| Projects'!CH$9,1,0)) -> 0 | CI47: =IF($C47="","",IF($G47='Input| Projects'!CI$9,1,0)) -> 0 | CJ47: =IF($C47="","",IF($G47='Input| Projects'!CJ$9,1,0)) -> 0 | CK47: =IF($C47="","",IF($G47='Input| Projects'!CK$9,1,0)) -> 0 | CL47: =IF($C47="","",IF($G47='Input| Projects'!CL$9,1,0)) -> 0 | CM47: =IF($C47="","",IF($G47='Input| Projects'!CM$9,1,0)) -> 0 | CN47: =IF($C47="","",IF($G47='Input| Projects'!CN$9,1,0)) -> 0 | CO47: =IF($C47="","",IF($G47='Input| Projects'!CO$9,1,0)) -> 0 | CP47: =IF($C47="","",IF($G47='Input| Projects'!CP$9,1,0)) -> 0 | CQ47: =IF($C47="","",IF($G47='Input| Projects'!CQ$9,1,0)) -> 0
B48: 39 | C48: Underground Routine Connections > 100A lab | D48: A496 | F48: Connections | G48: Distribution system assets | J48: 338.0101158 | K48: 331.1635576 | L48: 323.9883658 | M48: 320.5846693 | N48: 320.5846693 | O48: 320.963013 | P48: 0.43 | Q48: 0.43 | S48: 145.3443498 | T48: 142.4003298 | U48: 139.3149973 | V48: 137.8514078 | W48: 137.8514078 | X48: 138.0140956 | Z48: 0.0182494332 | AA48: 0.1216925952 | AB48: 0.8600579716 | AD48: Yes | AE48: No | AJ48: =IF('Input| JEN Mapping'!$F48='Input| Projects'!AJ$9,1,0) -> 0 | AK48: =IF('Input| JEN Mapping'!$F48='Input| Projects'!AK$9,1,0) -> 0 | AL48: =IF('Input| JEN Mapping'!$F48='Input| Projects'!AL$9,1,0) -> 0 | AM48: =IF('Input| JEN Mapping'!$F48='Input| Projects'!AM$9,1,0) -> 1 | AN48: =IF('Input| JEN Mapping'!$F48='Input| Projects'!AN$9,1,0) -> 0 | AO48: =IF('Input| JEN Mapping'!$F48='Input| Projects'!AO$9,1,0) -> 0 | AP48: =IF('Input| JEN Mapping'!$F48='Input| Projects'!AP$9,1,0) -> 0 | AQ48: =IF('Input| JEN Mapping'!$F48='Input| Projects'!AQ$9,1,0) -> 0 | AR48: =IF('Input| JEN Mapping'!$F48='Input| Projects'!AR$9,1,0) -> 0 | AT48: =IF($C48="","",IF($G48='Input| Projects'!AT$9,1,0)) -> 0 | AU48: =IF($C48="","",IF($G48='Input| Projects'!AU$9,1,0)) -> 1 | AV48: =IF($C48="","",IF($G48='Input| Projects'!AV$9,1,0)) -> 0 | AW48: =IF($C48="","",IF($G48='Input| Projects'!AW$9,1,0)) -> 0 | AX48: =IF($C48="","",IF($G48='Input| Projects'!AX$9,1,0)) -> 0 | AY48: =IF($C48="","",IF($G48='Input| Projects'!AY$9,1,0)) -> 0 | AZ48: =IF($C48="","",IF($G48='Input| Projects'!AZ$9,1,0)) -> 0 | BA48: =IF($C48="","",IF($G48='Input| Projects'!BA$9,1,0)) -> 0 | BB48: =IF($C48="","",IF($G48='Input| Projects'!BB$9,1,0)) -> 0 | BC48: =IF($C48="","",IF($G48='Input| Projects'!BC$9,1,0)) -> 0 | BD48: =IF($C48="","",IF($G48='Input| Projects'!BD$9,1,0)) -> 0 | BE48: =IF($C48="","",IF($G48='Input| Projects'!BE$9,1,0)) -> 0 | BF48: =IF($C48="","",IF($G48='Input| Projects'!BF$9,1,0)) -> 0 | BG48: =IF($C48="","",IF($G48='Input| Projects'!BG$9,1,0)) -> 0 | BH48: =IF($C48="","",IF($G48='Input| Projects'!BH$9,1,0)) -> 0 | BI48: =IF($C48="","",IF($G48='Input| Projects'!BI$9,1,0)) -> 0 | BJ48: =IF($C48="","",IF($G48='Input| Projects'!BJ$9,1,0)) -> 0 | BK48: =IF($C48="","",IF($G48='Input| Projects'!BK$9,1,0)) -> 0 | BL48: =IF($C48="","",IF($G48='Input| Projects'!BL$9,1,0)) -> 0 | BM48: =IF($C48="","",IF($G48='Input| Projects'!BM$9,1,0)) -> 0 | BN48: =IF($C48="","",IF($G48='Input| Projects'!BN$9,1,0)) -> 0 | BO48: =IF($C48="","",IF($G48='Input| Projects'!BO$9,1,0)) -> 0 | BP48: =IF($C48="","",IF($G48='Input| Projects'!BP$9,1,0)) -> 0 | BQ48: =IF($C48="","",IF($G48='Input| Projects'!BQ$9,1,0)) -> 0 | BR48: =IF($C48="","",IF($G48='Input| Projects'!BR$9,1,0)) -> 0 | BS48: =IF($C48="","",IF($G48='Input| Projects'!BS$9,1,0)) -> 0 | BT48: =IF($C48="","",IF($G48='Input| Projects'!BT$9,1,0)) -> 0 | BU48: =IF($C48="","",IF($G48='Input| Projects'!BU$9,1,0)) -> 0 | BV48: =IF($C48="","",IF($G48='Input| Projects'!BV$9,1,0)) -> 0 | BW48: =IF($C48="","",IF($G48='Input| Projects'!BW$9,1,0)) -> 0 | BX48: =IF($C48="","",IF($G48='Input| Projects'!BX$9,1,0)) -> 0 | BY48: =IF($C48="","",IF($G48='Input| Projects'!BY$9,1,0)) -> 0 | BZ48: =IF($C48="","",IF($G48='Input| Projects'!BZ$9,1,0)) -> 0 | CA48: =IF($C48="","",IF($G48='Input| Projects'!CA$9,1,0)) -> 0 | CB48: =IF($C48="","",IF($G48='Input| Projects'!CB$9,1,0)) -> 0 | CC48: =IF($C48="","",IF($G48='Input| Projects'!CC$9,1,0)) -> 0 | CD48: =IF($C48="","",IF($G48='Input| Projects'!CD$9,1,0)) -> 0 | CE48: =IF($C48="","",IF($G48='Input| Projects'!CE$9,1,0)) -> 0 | CF48: =IF($C48="","",IF($G48='Input| Projects'!CF$9,1,0)) -> 0 | CG48: =IF($C48="","",IF($G48='Input| Projects'!CG$9,1,0)) -> 0 | CH48: =IF($C48="","",IF($G48='Input| Projects'!CH$9,1,0)) -> 0 | CI48: =IF($C48="","",IF($G48='Input| Projects'!CI$9,1,0)) -> 0 | CJ48: =IF($C48="","",IF($G48='Input| Projects'!CJ$9,1,0)) -> 0 | CK48: =IF($C48="","",IF($G48='Input| Projects'!CK$9,1,0)) -> 0 | CL48: =IF($C48="","",IF($G48='Input| Projects'!CL$9,1,0)) -> 0 | CM48: =IF($C48="","",IF($G48='Input| Projects'!CM$9,1,0)) -> 0 | CN48: =IF($C48="","",IF($G48='Input| Projects'!CN$9,1,0)) -> 0 | CO48: =IF($C48="","",IF($G48='Input| Projects'!CO$9,1,0)) -> 0 | CP48: =IF($C48="","",IF($G48='Input| Projects'!CP$9,1,0)) -> 0 | CQ48: =IF($C48="","",IF($G48='Input| Projects'!CQ$9,1,0)) -> 0
B49: 40 | C49: ACR Replacement | D49: A469 | F49: Replacement | G49: Distribution system assets | J49: 0 | K49: 199.9824113 | L49: 199.9824113 | M49: 199.9824113 | N49: 199.9824113 | O49: 199.9824113 | P49: 0 | Q49: 0 | S49: 0 | T49: 0 | U49: 0 | V49: 0 | W49: 0 | X49: 0 | Z49: 0.5386705125 | AA49: 0.2286211396 | AB49: 0.2327083479 | AD49: Yes | AE49: No | AJ49: =IF('Input| JEN Mapping'!$F49='Input| Projects'!AJ$9,1,0) -> 1 | AK49: =IF('Input| JEN Mapping'!$F49='Input| Projects'!AK$9,1,0) -> 0 | AL49: =IF('Input| JEN Mapping'!$F49='Input| Projects'!AL$9,1,0) -> 0 | AM49: =IF('Input| JEN Mapping'!$F49='Input| Projects'!AM$9,1,0) -> 0 | AN49: =IF('Input| JEN Mapping'!$F49='Input| Projects'!AN$9,1,0) -> 0 | AO49: =IF('Input| JEN Mapping'!$F49='Input| Projects'!AO$9,1,0) -> 0 | AP49: =IF('Input| JEN Mapping'!$F49='Input| Projects'!AP$9,1,0) -> 0 | AQ49: =IF('Input| JEN Mapping'!$F49='Input| Projects'!AQ$9,1,0) -> 0 | AR49: =IF('Input| JEN Mapping'!$F49='Input| Projects'!AR$9,1,0) -> 0 | AT49: =IF($C49="","",IF($G49='Input| Projects'!AT$9,1,0)) -> 0 | AU49: =IF($C49="","",IF($G49='Input| Projects'!AU$9,1,0)) -> 1 | AV49: =IF($C49="","",IF($G49='Input| Projects'!AV$9,1,0)) -> 0 | AW49: =IF($C49="","",IF($G49='Input| Projects'!AW$9,1,0)) -> 0 | AX49: =IF($C49="","",IF($G49='Input| Projects'!AX$9,1,0)) -> 0 | AY49: =IF($C49="","",IF($G49='Input| Projects'!AY$9,1,0)) -> 0 | AZ49: =IF($C49="","",IF($G49='Input| Projects'!AZ$9,1,0)) -> 0 | BA49: =IF($C49="","",IF($G49='Input| Projects'!BA$9,1,0)) -> 0 | BB49: =IF($C49="","",IF($G49='Input| Projects'!BB$9,1,0)) -> 0 | BC49: =IF($C49="","",IF($G49='Input| Projects'!BC$9,1,0)) -> 0 | BD49: =IF($C49="","",IF($G49='Input| Projects'!BD$9,1,0)) -> 0 | BE49: =IF($C49="","",IF($G49='Input| Projects'!BE$9,1,0)) -> 0 | BF49: =IF($C49="","",IF($G49='Input| Projects'!BF$9,1,0)) -> 0 | BG49: =IF($C49="","",IF($G49='Input| Projects'!BG$9,1,0)) -> 0 | BH49: =IF($C49="","",IF($G49='Input| Projects'!BH$9,1,0)) -> 0 | BI49: =IF($C49="","",IF($G49='Input| Projects'!BI$9,1,0)) -> 0 | BJ49: =IF($C49="","",IF($G49='Input| Projects'!BJ$9,1,0)) -> 0 | BK49: =IF($C49="","",IF($G49='Input| Projects'!BK$9,1,0)) -> 0 | BL49: =IF($C49="","",IF($G49='Input| Projects'!BL$9,1,0)) -> 0 | BM49: =IF($C49="","",IF($G49='Input| Projects'!BM$9,1,0)) -> 0 | BN49: =IF($C49="","",IF($G49='Input| Projects'!BN$9,1,0)) -> 0 | BO49: =IF($C49="","",IF($G49='Input| Projects'!BO$9,1,0)) -> 0 | BP49: =IF($C49="","",IF($G49='Input| Projects'!BP$9,1,0)) -> 0 | BQ49: =IF($C49="","",IF($G49='Input| Projects'!BQ$9,1,0)) -> 0 | BR49: =IF($C49="","",IF($G49='Input| Projects'!BR$9,1,0)) -> 0 | BS49: =IF($C49="","",IF($G49='Input| Projects'!BS$9,1,0)) -> 0 | BT49: =IF($C49="","",IF($G49='Input| Projects'!BT$9,1,0)) -> 0 | BU49: =IF($C49="","",IF($G49='Input| Projects'!BU$9,1,0)) -> 0 | BV49: =IF($C49="","",IF($G49='Input| Projects'!BV$9,1,0)) -> 0 | BW49: =IF($C49="","",IF($G49='Input| Projects'!BW$9,1,0)) -> 0 | BX49: =IF($C49="","",IF($G49='Input| Projects'!BX$9,1,0)) -> 0 | BY49: =IF($C49="","",IF($G49='Input| Projects'!BY$9,1,0)) -> 0 | BZ49: =IF($C49="","",IF($G49='Input| Projects'!BZ$9,1,0)) -> 0 | CA49: =IF($C49="","",IF($G49='Input| Projects'!CA$9,1,0)) -> 0 | CB49: =IF($C49="","",IF($G49='Input| Projects'!CB$9,1,0)) -> 0 | CC49: =IF($C49="","",IF($G49='Input| Projects'!CC$9,1,0)) -> 0 | CD49: =IF($C49="","",IF($G49='Input| Projects'!CD$9,1,0)) -> 0 | CE49: =IF($C49="","",IF($G49='Input| Projects'!CE$9,1,0)) -> 0 | CF49: =IF($C49="","",IF($G49='Input| Projects'!CF$9,1,0)) -> 0 | CG49: =IF($C49="","",IF($G49='Input| Projects'!CG$9,1,0)) -> 0 | CH49: =IF($C49="","",IF($G49='Input| Projects'!CH$9,1,0)) -> 0 | CI49: =IF($C49="","",IF($G49='Input| Projects'!CI$9,1,0)) -> 0 | CJ49: =IF($C49="","",IF($G49='Input| Projects'!CJ$9,1,0)) -> 0 | CK49: =IF($C49="","",IF($G49='Input| Projects'!CK$9,1,0)) -> 0 | CL49: =IF($C49="","",IF($G49='Input| Projects'!CL$9,1,0)) -> 0 | CM49: =IF($C49="","",IF($G49='Input| Projects'!CM$9,1,0)) -> 0 | CN49: =IF($C49="","",IF($G49='Input| Projects'!CN$9,1,0)) -> 0 | CO49: =IF($C49="","",IF($G49='Input| Projects'!CO$9,1,0)) -> 0 | CP49: =IF($C49="","",IF($G49='Input| Projects'!CP$9,1,0)) -> 0 | CQ49: =IF($C49="","",IF($G49='Input| Projects'!CQ$9,1,0)) -> 0
B50: 41 | C50: HV Isolator Replacement (Single) | D50: A900 | F50: Replacement | G50: Distribution system assets | J50: 0 | K50: 24.61458258 | L50: 24.61458258 | M50: 24.61458258 | N50: 24.61458258 | O50: 24.61458258 | P50: 0 | Q50: 0 | S50: 0 | T50: 0 | U50: 0 | V50: 0 | W50: 0 | X50: 0 | Z50: 0.768023652 | AA50: 0.07612153082 | AB50: 0.1558548172 | AD50: Yes | AE50: No | AJ50: =IF('Input| JEN Mapping'!$F50='Input| Projects'!AJ$9,1,0) -> 1 | AK50: =IF('Input| JEN Mapping'!$F50='Input| Projects'!AK$9,1,0) -> 0 | AL50: =IF('Input| JEN Mapping'!$F50='Input| Projects'!AL$9,1,0) -> 0 | AM50: =IF('Input| JEN Mapping'!$F50='Input| Projects'!AM$9,1,0) -> 0 | AN50: =IF('Input| JEN Mapping'!$F50='Input| Projects'!AN$9,1,0) -> 0 | AO50: =IF('Input| JEN Mapping'!$F50='Input| Projects'!AO$9,1,0) -> 0 | AP50: =IF('Input| JEN Mapping'!$F50='Input| Projects'!AP$9,1,0) -> 0 | AQ50: =IF('Input| JEN Mapping'!$F50='Input| Projects'!AQ$9,1,0) -> 0 | AR50: =IF('Input| JEN Mapping'!$F50='Input| Projects'!AR$9,1,0) -> 0 | AT50: =IF($C50="","",IF($G50='Input| Projects'!AT$9,1,0)) -> 0 | AU50: =IF($C50="","",IF($G50='Input| Projects'!AU$9,1,0)) -> 1 | AV50: =IF($C50="","",IF($G50='Input| Projects'!AV$9,1,0)) -> 0 | AW50: =IF($C50="","",IF($G50='Input| Projects'!AW$9,1,0)) -> 0 | AX50: =IF($C50="","",IF($G50='Input| Projects'!AX$9,1,0)) -> 0 | AY50: =IF($C50="","",IF($G50='Input| Projects'!AY$9,1,0)) -> 0 | AZ50: =IF($C50="","",IF($G50='Input| Projects'!AZ$9,1,0)) -> 0 | BA50: =IF($C50="","",IF($G50='Input| Projects'!BA$9,1,0)) -> 0 | BB50: =IF($C50="","",IF($G50='Input| Projects'!BB$9,1,0)) -> 0 | BC50: =IF($C50="","",IF($G50='Input| Projects'!BC$9,1,0)) -> 0 | BD50: =IF($C50="","",IF($G50='Input| Projects'!BD$9,1,0)) -> 0 | BE50: =IF($C50="","",IF($G50='Input| Projects'!BE$9,1,0)) -> 0 | BF50: =IF($C50="","",IF($G50='Input| Projects'!BF$9,1,0)) -> 0 | BG50: =IF($C50="","",IF($G50='Input| Projects'!BG$9,1,0)) -> 0 | BH50: =IF($C50="","",IF($G50='Input| Projects'!BH$9,1,0)) -> 0 | BI50: =IF($C50="","",IF($G50='Input| Projects'!BI$9,1,0)) -> 0 | BJ50: =IF($C50="","",IF($G50='Input| Projects'!BJ$9,1,0)) -> 0 | BK50: =IF($C50="","",IF($G50='Input| Projects'!BK$9,1,0)) -> 0 | BL50: =IF($C50="","",IF($G50='Input| Projects'!BL$9,1,0)) -> 0 | BM50: =IF($C50="","",IF($G50='Input| Projects'!BM$9,1,0)) -> 0 | BN50: =IF($C50="","",IF($G50='Input| Projects'!BN$9,1,0)) -> 0 | BO50: =IF($C50="","",IF($G50='Input| Projects'!BO$9,1,0)) -> 0 | BP50: =IF($C50="","",IF($G50='Input| Projects'!BP$9,1,0)) -> 0 | BQ50: =IF($C50="","",IF($G50='Input| Projects'!BQ$9,1,0)) -> 0 | BR50: =IF($C50="","",IF($G50='Input| Projects'!BR$9,1,0)) -> 0 | BS50: =IF($C50="","",IF($G50='Input| Projects'!BS$9,1,0)) -> 0 | BT50: =IF($C50="","",IF($G50='Input| Projects'!BT$9,1,0)) -> 0 | BU50: =IF($C50="","",IF($G50='Input| Projects'!BU$9,1,0)) -> 0 | BV50: =IF($C50="","",IF($G50='Input| Projects'!BV$9,1,0)) -> 0 | BW50: =IF($C50="","",IF($G50='Input| Projects'!BW$9,1,0)) -> 0 | BX50: =IF($C50="","",IF($G50='Input| Projects'!BX$9,1,0)) -> 0 | BY50: =IF($C50="","",IF($G50='Input| Projects'!BY$9,1,0)) -> 0 | BZ50: =IF($C50="","",IF($G50='Input| Projects'!BZ$9,1,0)) -> 0 | CA50: =IF($C50="","",IF($G50='Input| Projects'!CA$9,1,0)) -> 0 | CB50: =IF($C50="","",IF($G50='Input| Projects'!CB$9,1,0)) -> 0 | CC50: =IF($C50="","",IF($G50='Input| Projects'!CC$9,1,0)) -> 0 | CD50: =IF($C50="","",IF($G50='Input| Projects'!CD$9,1,0)) -> 0 | CE50: =IF($C50="","",IF($G50='Input| Projects'!CE$9,1,0)) -> 0 | CF50: =IF($C50="","",IF($G50='Input| Projects'!CF$9,1,0)) -> 0 | CG50: =IF($C50="","",IF($G50='Input| Projects'!CG$9,1,0)) -> 0 | CH50: =IF($C50="","",IF($G50='Input| Projects'!CH$9,1,0)) -> 0 | CI50: =IF($C50="","",IF($G50='Input| Projects'!CI$9,1,0)) -> 0 | CJ50: =IF($C50="","",IF($G50='Input| Projects'!CJ$9,1,0)) -> 0 | CK50: =IF($C50="","",IF($G50='Input| Projects'!CK$9,1,0)) -> 0 | CL50: =IF($C50="","",IF($G50='Input| Projects'!CL$9,1,0)) -> 0 | CM50: =IF($C50="","",IF($G50='Input| Projects'!CM$9,1,0)) -> 0 | CN50: =IF($C50="","",IF($G50='Input| Projects'!CN$9,1,0)) -> 0 | CO50: =IF($C50="","",IF($G50='Input| Projects'!CO$9,1,0)) -> 0 | CP50: =IF($C50="","",IF($G50='Input| Projects'!CP$9,1,0)) -> 0 | CQ50: =IF($C50="","",IF($G50='Input| Projects'!CQ$9,1,0)) -> 0
B51: 42 | C51: Install Remote Control Gas Switch | D51: A63 | F51: Augmentation | G51: Distribution system assets | J51: 0 | K51: 0 | L51: 0 | M51: 0 | N51: 0 | O51: 0 | P51: 0 | Q51: 0 | S51: 0 | T51: 0 | U51: 0 | V51: 0 | W51: 0 | X51: 0 | Z51: 0 | AA51: 0 | AB51: 0 | AD51: Yes | AE51: No | AJ51: =IF('Input| JEN Mapping'!$F51='Input| Projects'!AJ$9,1,0) -> 0 | AK51: =IF('Input| JEN Mapping'!$F51='Input| Projects'!AK$9,1,0) -> 0 | AL51: =IF('Input| JEN Mapping'!$F51='Input| Projects'!AL$9,1,0) -> 1 | AM51: =IF('Input| JEN Mapping'!$F51='Input| Projects'!AM$9,1,0) -> 0 | AN51: =IF('Input| JEN Mapping'!$F51='Input| Projects'!AN$9,1,0) -> 0 | AO51: =IF('Input| JEN Mapping'!$F51='Input| Projects'!AO$9,1,0) -> 0 | AP51: =IF('Input| JEN Mapping'!$F51='Input| Projects'!AP$9,1,0) -> 0 | AQ51: =IF('Input| JEN Mapping'!$F51='Input| Projects'!AQ$9,1,0) -> 0 | AR51: =IF('Input| JEN Mapping'!$F51='Input| Projects'!AR$9,1,0) -> 0 | AT51: =IF($C51="","",IF($G51='Input| Projects'!AT$9,1,0)) -> 0 | AU51: =IF($C51="","",IF($G51='Input| Projects'!AU$9,1,0)) -> 1 | AV51: =IF($C51="","",IF($G51='Input| Projects'!AV$9,1,0)) -> 0 | AW51: =IF($C51="","",IF($G51='Input| Projects'!AW$9,1,0)) -> 0 | AX51: =IF($C51="","",IF($G51='Input| Projects'!AX$9,1,0)) -> 0 | AY51: =IF($C51="","",IF($G51='Input| Projects'!AY$9,1,0)) -> 0 | AZ51: =IF($C51="","",IF($G51='Input| Projects'!AZ$9,1,0)) -> 0 | BA51: =IF($C51="","",IF($G51='Input| Projects'!BA$9,1,0)) -> 0 | BB51: =IF($C51="","",IF($G51='Input| Projects'!BB$9,1,0)) -> 0 | BC51: =IF($C51="","",IF($G51='Input| Projects'!BC$9,1,0)) -> 0 | BD51: =IF($C51="","",IF($G51='Input| Projects'!BD$9,1,0)) -> 0 | BE51: =IF($C51="","",IF($G51='Input| Projects'!BE$9,1,0)) -> 0 | BF51: =IF($C51="","",IF($G51='Input| Projects'!BF$9,1,0)) -> 0 | BG51: =IF($C51="","",IF($G51='Input| Projects'!BG$9,1,0)) -> 0 | BH51: =IF($C51="","",IF($G51='Input| Projects'!BH$9,1,0)) -> 0 | BI51: =IF($C51="","",IF($G51='Input| Projects'!BI$9,1,0)) -> 0 | BJ51: =IF($C51="","",IF($G51='Input| Projects'!BJ$9,1,0)) -> 0 | BK51: =IF($C51="","",IF($G51='Input| Projects'!BK$9,1,0)) -> 0 | BL51: =IF($C51="","",IF($G51='Input| Projects'!BL$9,1,0)) -> 0 | BM51: =IF($C51="","",IF($G51='Input| Projects'!BM$9,1,0)) -> 0 | BN51: =IF($C51="","",IF($G51='Input| Projects'!BN$9,1,0)) -> 0 | BO51: =IF($C51="","",IF($G51='Input| Projects'!BO$9,1,0)) -> 0 | BP51: =IF($C51="","",IF($G51='Input| Projects'!BP$9,1,0)) -> 0 | BQ51: =IF($C51="","",IF($G51='Input| Projects'!BQ$9,1,0)) -> 0 | BR51: =IF($C51="","",IF($G51='Input| Projects'!BR$9,1,0)) -> 0 | BS51: =IF($C51="","",IF($G51='Input| Projects'!BS$9,1,0)) -> 0 | BT51: =IF($C51="","",IF($G51='Input| Projects'!BT$9,1,0)) -> 0 | BU51: =IF($C51="","",IF($G51='Input| Projects'!BU$9,1,0)) -> 0 | BV51: =IF($C51="","",IF($G51='Input| Projects'!BV$9,1,0)) -> 0 | BW51: =IF($C51="","",IF($G51='Input| Projects'!BW$9,1,0)) -> 0 | BX51: =IF($C51="","",IF($G51='Input| Projects'!BX$9,1,0)) -> 0 | BY51: =IF($C51="","",IF($G51='Input| Projects'!BY$9,1,0)) -> 0 | BZ51: =IF($C51="","",IF($G51='Input| Projects'!BZ$9,1,0)) -> 0 | CA51: =IF($C51="","",IF($G51='Input| Projects'!CA$9,1,0)) -> 0 | CB51: =IF($C51="","",IF($G51='Input| Projects'!CB$9,1,0)) -> 0 | CC51: =IF($C51="","",IF($G51='Input| Projects'!CC$9,1,0)) -> 0 | CD51: =IF($C51="","",IF($G51='Input| Projects'!CD$9,1,0)) -> 0 | CE51: =IF($C51="","",IF($G51='Input| Projects'!CE$9,1,0)) -> 0 | CF51: =IF($C51="","",IF($G51='Input| Projects'!CF$9,1,0)) -> 0 | CG51: =IF($C51="","",IF($G51='Input| Projects'!CG$9,1,0)) -> 0 | CH51: =IF($C51="","",IF($G51='Input| Projects'!CH$9,1,0)) -> 0 | CI51: =IF($C51="","",IF($G51='Input| Projects'!CI$9,1,0)) -> 0 | CJ51: =IF($C51="","",IF($G51='Input| Projects'!CJ$9,1,0)) -> 0 | CK51: =IF($C51="","",IF($G51='Input| Projects'!CK$9,1,0)) -> 0 | CL51: =IF($C51="","",IF($G51='Input| Projects'!CL$9,1,0)) -> 0 | CM51: =IF($C51="","",IF($G51='Input| Projects'!CM$9,1,0)) -> 0 | CN51: =IF($C51="","",IF($G51='Input| Projects'!CN$9,1,0)) -> 0 | CO51: =IF($C51="","",IF($G51='Input| Projects'!CO$9,1,0)) -> 0 | CP51: =IF($C51="","",IF($G51='Input| Projects'!CP$9,1,0)) -> 0 | CQ51: =IF($C51="","",IF($G51='Input| Projects'!CQ$9,1,0)) -> 0
